Workbook

Sheet CAPA
B1: SPARTA | C1: Ver. | R1: DF | S1: Sudeste/Centro Oeste
B2: Helenístico | C2: 0.93 | M2: =C23 -> 165 | N2: 1000040
C3: Macro Ver.
C4: 3.51
B6: ENERGISA Sul Sudeste | L6: CodigoSamp | M6: Empresa | N6: Nome Completo | O6: IdSgtAg | P6: CodigoSamp | Q6: Coluna1 | R6: Financeiro 243 (TUSD) | S6: Databse Fin. 243 | U6: Sim
B7: =VLOOKUP(B6,TabEmpresas[],2,FALSE) -> ENERGISA SUL SUDESTE | C7: Reajuste | G7: Últ. Atualização | L7: 396 | M7: AES SUL | N7: AES-SUL - AES SUL Distribuidora Gaúcha de Energia S/A. | O7: 101 | P7: 396 | U7: Não
B8: CÓDIGO DA EMPRESA | C8: ="D" & TEXT(C23-100,"00") -> D65 | F8: Info iniciais | G8: 2020-06-19T18:54:22 | L8: 7019 | M8: AME | N8: Amazonas Distribuidora de Energia S/A | O8: 102 | P8: 7019
B9: Data do Reajuste/Revisão Anterior | C9: 43658 | F9: Energia do ano anterior (CM compra, MWh Mercado, R$ Mercado) | L9: 383 | M9: AMPLA | N9: AMPLA - Ampla Energia e Serviços S/A | O9: 103 | P9: 383
B10: Data de Reajuste/Revisão em Processamento | C10: 44024 | F10: Perda de RB /Perdas Regulatórias /TUSDgONS-RB | L10: 391 | M10: BANDEIRANTE | N10: BANDEIRANTE - Bandeirante Energia S/A. | O10: 104 | P10: 391
F11: Financeiros ano anterior (CVA 5º dia útil, RTE restante) | L11: 370 | M11: BOAVISTA | N11: Boa Vista - Boa Vista Energia S/A | O11: 105 | P11: 370
F12: Encargos ano anterior (não RTE) | L12: 386 | M12: BRAGANTINA | N12: BRAGANTINA- Empresa Elétrica Bragantina S/A. | O12: 142 | P12: 386
F13: Dados da Revisão, Fator X e DecFec | L13: 5216 | M13: CAIUA | N13: CAIUÁ-D - Caiuá Distribuição de Energia S/A | O13: 106 | P13: 5216
F14: Previsão de Subsidios dos Processos Anteriores | L14: 31 | M14: CEA | N14: CEA - Companhia de Eletricidade do Amapá | O14: 107 | P14: 31
B15: Período de Referencia final | C15: =DATE(YEAR($C$10),MONTH($C$10)-1,1) -> 43983 | F15: Conexão ano anterior | L15: 44 | M15: CEAL | N15: CEAL - Companhia Energética de Alagoas | O15: 108 | P15: 44
B16: Período de Referencia inicial | C16: =DATE(YEAR($C$10)-1,MONTH($C$10),1) -> 43647 | F16: Energia (CCEAR, Bil., Itaipu) | G16: 2020-06-26T19:11:28 | L16: 5160 | M16: CEB | N16: CEB-DIS - CEB Distribuição S/A | O16: 109 | P16: 5160
B17: Índice IGPM na data Revisão/Reajuste | C17: =VLOOKUP(C15,Índices!$B$7:$F$500,2,FALSE) -> 792.429 | F17: CCEAR | L17: 5707 | M17: CEEE | N17: CEEE-D - Companhia Estadual de Distribuição de Energia Elétrica | O17: 110 | P17: 5707
B18: Índice IPCA na data Revisão/Reajuste | C18: =VLOOKUP(C15,Índices!$B$7:$F$500,3,FALSE) -> 5322.2733 | L18: 5697 | M18: CELESC | N18: CELESC-DIS - Celesc Distribuição S.A. | O18: 111 | P18: 5697
B19: IGPM para o período de Referência | C19: =VLOOKUP(DATE(YEAR($C$10),MONTH($C$10)-1,1),Índices!$B$7:$F$500,2,FALSE)/VLOOKUP(DATE(YEAR($C$9),MONTH($C$9)-1,1),Índices!$B$7:$F$500,2,FALSE)-1 -> 0.07313984841 | F19: Itaipu (Energia, Transporte, MUST) | L19: 6072 | M19: CELG | N19: CELG-D - Celg Distribuição S.A. | O19: 112 | P19: 6072
B20: IPCA para o período de Referência | C20: =VLOOKUP(DATE(YEAR(C10),MONTH(C10)-1,1),Índices!$B$7:$F$500,3,FALSE)/VLOOKUP(DATE(YEAR($C$9),MONTH($C$9)-1,1),Índices!$B$7:$F$500,3,FALSE)-1 -> 0.02071302407 | F20: Cotas Lei/Angra | L20: 371 | M20: CELPA | N20: CELPA - Centrais Elétricas do Pará S/A. | O20: 113 | P20: 371
B21: Dados Gerenciais | F21: Encargos DRP | G21: 2020-06-26T19:08:15 | L21: 43 | M21: CELPE | N21: CELPE - Companhia Energética de Pernambuco | O21: 114 | P21: 43
B22: IdAgente | C22: =VLOOKUP(B6,TabEmpresas[],4,FALSE) -> 1000040 | F22: Indicadores Econômicos / Dólar | G22: 2020-06-30T16:02:47 | L22: 32 | M22: CELTINS | N22: CELTINS - Companhia de Energia Elétrica do Estado do Tocantins | O22: 115 | P22: 32
B23: ID Concessão | C23: =VLOOKUP(B6,TabEmpresas[],3,FALSE) -> 165 | F23: Tudo de Mercado | G23: 2020-06-17T14:00:37 | L23: 37 | M23: CEMAR | N23: CEMAR - Companhia Energética do Maranhão | O23: 116 | P23: 37
F24: Rede Básica e Conexão | G24: 2020-06-24T13:59:50 | L24: 405 | M24: CEMAT | N24: CEMAT - Centrais Elétricas Matogrossenses S/A. | O24: 117 | P24: 405
B25: Quadro para vínculos | F25: Histórico de Tarifas B1 Residencial | G25: 2020-05-28T18:22:18 | L25: 4950 | M25: CEMIG | N25: CEMIG-D - CEMIG Distribuição S/A | O25: 118 | P25: 4950
B26: Descrição | C26: valor | F26: CVA | G26: 2020-06-26T19:04:10 | L26: 38 | M26: CEPISA | N26: CEPISA - Companhia Energética do Piauí | O26: 119 | P26: 38
B27: (Exemplo) Efeito Consumidor Geral | C27: =LnkTxtEfeito -> 0.0487462921 | L27: 369 | M27: CERON | N27: CERON - Centrais Elétricas de Rondônia S/A. | O27: 120 | P27: 369
B28: Contrato de concessão | C28: 13/1999 | F28: 24/06 pendências | L28: 28 | M28: CERR | N28: CERR - Companhia Energética de Roraima | O28: 121 | P28: 28
C29: 48500.007057/2019-43 | F29: TUSDg ONS DRP | G29: 2020-06-24 | L29: 103 | M29: CHESP | N29: CHESP - Companhia Hidroelétrica São Patrício | O29: 123 | P29: 103
B30: Período de Referencia | C30: =TEXT(C16,"mmmm/aaaa")& " a "&TEXT(C15,"mmmm/aaaa") -> julho/2019 a junho/2020 | F30: tarifas de transporte ITAIPU | G30: 2020-06-20 | L30: 75 | M30: CNEE | N30: CNEE - Companhia Nacional de Energia Elétrica | O30: 127 | P30: 75
B31: Neutralidade Total | F31: Tarifas RB | G31: 2020-06-20 | L31: 82 | M31: COCEL | N31: COCEL - Companhia Campolarguense de Energia | O31: 128 | P31: 82
B32: CVA Saldo a Compensar | C32: =SUM(Financeiros!D27:D43) -> -1184479.072 | F32: Cotas | G32: 2020-06-10 | L32: 47 | M32: COELBA | N32: COELBA - Companhia de Eletricidade do Estado da Bahia | O32: 129 | P32: 47
B33: Reversão CDE | F33: dolar itaipu | G33: 2020-06-19 | L33: 39 | M33: COELCE | N33: COELCE - Companhia Energética do Ceará | O33: 130 | P33: 39
F34: témicas | G34: 2020-06-08 | L34: 2904 | M34: COOPERALIANÇA | N34: COOPERALIANÇA - Cooperativa Aliança | O34: 131 | P34: 2904
F35: mercado | G35: 2020-06-17 | L35: 2866 | M35: COPEL | N35: COPEL-DIS - Copel Distribuição S/A | O35: 132 | P35: 2866
F36: REN 711 | G36: 2020-06-15 | L36: 40 | M36: COSERN | N36: COSERN - Companhia Energética do Rio Grande do Norte | O36: 133 | P36: 40
F37: CVA | G37: 2020-06-20 | L37: 69 | M37: CPFL Jaguari | N37: CPFL Jaguari - Companhia Jaguari de Energia | O37: 124 | P37: 69
F38: CUSD | G38: 2020-06-15 | L38: 71 | M38: CPFL Leste Paulista | N38: =TabEmpresas[[#This Row],[Empresa]]&" - Companhia Leste Paulista de Energia " -> CPFL Leste Paulista - Companhia Leste Paulista de Energia | O38: 134 | P38: 71
F39: UDEROR | G39: 2020-06-17 | L39: 70 | M39: CPFL Mococa | N39: =TabEmpresas[[#This Row],[Empresa]]&" - Companhia Luz e Força de Mococa " -> CPFL Mococa - Companhia Luz e Força de Mococa | O39: 125 | P39: 70
F40: Bilaterais | G40: 2020-06-17 | L40: 72 | M40: CPFL Santa Cruz | N40: =TabEmpresas[[#This Row],[Empresa]]&" - Companhia Luz e Força Santa Cruz " -> CPFL Santa Cruz - Companhia Luz e Força Santa Cruz | O40: 126 | P40: 72
F41: RB dedicada a Lajeado | G41: 2020-06-24 | L41: 73 | M41: CPFL Sul Paulista | N41: =TabEmpresas[[#This Row],[Empresa]]&" - Companhia Sul Paulista de Energia " -> CPFL Sul Paulista - Companhia Sul Paulista de Energia | O41: 137 | P41: 73
L42: 63 | M42: CPFL Paulista | N42: CPFL-Paulista - Companhia Paulista de Força e Luz | O42: 136 | P42: 63
L43: 2937 | M43: CPFL Piratininga | N43: CPFL- Piratininga - Companhia Piratininga de Força e Luz | O43: 135 | P43: 2937
L44: 95 | M44: DEMEI | N44: DEMEI - Departamento Municipal de Energia de Ijuí | O44: 138 | P44: 95
L45: 51 | M45: DMED | N45: =TabEmpresas[[#This Row],[Empresa]]&" - DME Distribuição S.A" -> DMED - DME Distribuição S.A | O45: 139 | P45: 51
L46: 6611 | M46: EBO | N46: EBO - Energisa Borborema – Distribuidora de Energia S.A. | O46: 140 | P46: 6611
B47: Deslocar mercado | C47: Não | L47: 5217 | M47: EDEVP | N47: EDEVP - Empresa de Distribuição de Energia Vale Paranapanema S/A | O47: 141 | P47: 5217
B48: Data de processamento em simulação | C48: 43811 | L48: 385 | M48: ELEKTRO | N48: ELEKTRO - Elektro Eletricidade e Serviços S/A. | O48: 145 | P48: 385
L49: 26 | M49: ELETROACRE | N49: ELETROACRE - Companhia de Eletricidade do Acre | O49: 146 | P49: 26
L50: 398 | M50: ELETROCAR | N50: ELETROCAR - Centrais Elétricas de Carazinho S/A. | O50: 147 | P50: 398
L51: 390 | M51: ELETROPAULO | N51: ELETROPAULO - Eletropaulo Metropolitana Eletricidade de São Paulo S/A | O51: 148 | P51: 390
L52: 6585 | M52: EMG | N52: EMG - Energisa Minas Gerais - Distribuidora de Energia S.A. | O52: 150 | P52: 6585
L53: 404 | M53: ENERSUL | N53: ENERSUL - Empresa Energética de Mato Grosso do Sul S/A. | O53: 151 | P53: 404
L54: 6612 | M54: ENF | N54: ENF - Energisa Nova Friburgo - Distribuidora de Energia S.A. | O54: 152 | P54: 6612
L55: 6600 | M55: EPB | N55: EPB - Energisa Paraíba - Distribuidora de Energia | O55: 153 | P55: 6600
L56: 380 | M56: ESCELSA | N56: ESCELSA - Espírito Santo Centrais Elétricas S/A. | O56: 154 | P56: 380
L57: 6587 | M57: ESE | N57: ESE - Energisa Sergipe - Distribuidora de Energia S.A. | O57: 155 | P57: 6587
L58: 83 | M58: FORCEL | N58: FORCEL - Força e Luz Coronel Vivida Ltda | O58: 156 | P58: 83
L59: 399 | M59: HIDROPAN | N59: HIDROPAN - Hidroelétrica Panambi S/A. | O59: 157 | P59: 399
L60: 87 | M60: IENERGIA | N60: IENERGIA - Iguaçu Distribuidora de Energia Elétrica Ltda | O60: 158 | P60: 87
L61: 213 | M61: JARI | N61: JARI - Jari Celulose S/A | O61: 159 | P61: 213
L62: 88 | M62: JOÃO CESA | N62: JOÃO CESA - Empresa Força e Luz João Cesa Ltda | O62: 143 | P62: 88
L63: 382 | M63: LIGHT | N63: LIGHT - Light Serviços de Eletricidade S/A. | O63: 160 | P63: 382
L64: 401 | M64: MUX Energia | N64: MUX Energia - Muxfeldt Marin & Cia. Ltda | O64: 161 | P64: 401
L65: 84 | M65: OESTE | N65: CFLO - Companhia Força e Luz do Oeste | O65: 122 | P65: 84
L66: 397 | M66: RGE | N66: RGE - Rio Grande Energia S/A. | O66: 162 | P66: 397
L67: 381 | M67: SANTA MARIA | N67: SANTA MARIA - Empresa Luz e Força Santa Maria S/A. | O67: 149 | P67: 381
L68: 46 | M68: SULGIPE | N68: SULGIPE - Companhia Sul Sergipana de Eletricidade | O68: 163 | P68: 46
L69: 400 | M69: UHENPAL | N69: UHENPAL - Usina Hidroelétrica Nova Palma Ltda. | O69: 164 | P69: 400
L70: 86 | M70: URUSSANGA | N70: URUSSANGA - Empresa Força e Luz Urussanga Ltda | O70: 144 | P70: 86
L71: 1000040 | M71: ENERGISA Sul Sudeste | N71: ENERGISA SUL SUDESTE | O71: 165 | P71: 1000040
L72: 1000041 | M72: NOVA SANTA CRUZ | N72: NOVA SANTA CRUZ | O72: 166 | P72: 1000041

Sheet SPARTA ADMIN (hidden)
A1: ABA RESERVADA AO DESENVOLVEDORES DO SPARTA Sabemos que você ia aparecer por aqui. Saciou sua curiosidade? Melhor não fuçar mais, ou poderá prejudicar seriamente sua análise. Então, oculte essa aba e volte a trabalhar!! | AD1: Matrix Alternativa
AD2: Matrix Oficial
A4: O que deseja?? | I4: Versão
A5: Matrix Oficial | I5: 3.1
A6: Endereço da Matrix Alternativa | I6: 20.02.20
A7: \\corporativo\SGT\Gestão da Informação\Sistemas\SPARTA\Matrix\dev
A8: Nome da Matrix Alternativa
A9: SPARTAMatrixNC.xlsm
A10: Estado do Direcionamento

Sheet Entrada
A1: Entrada de parâmetros para cálculo tarifário
B4: Energia | D4: Últ. Atulização | F4: Parâmetros para Revisão | P4: ="Caso de OR para a empresa é: " &IF(BD!C53=4,"caso 1","caso 3") -> Caso de OR para a empresa é: caso 1
D6: 43979 | F6: CAPEX - Ativos de Distribuição | J6: Custo Operacional Real do(s) último(s) ano(s) | P6: Outras Receitas - Caso 1 e 2
B7: Montante de Geração Própria | D7: 43979 | F7: (1) Ativo Imobilizado em Serviço (Valor Novo de Reposição) | H7: 43979 | J7: Ano do Custo Operacional | P7: Tipo de Receita | Q7: =UDEROR!G12 -> 2020-06-01 | R7: =UDEROR!H12 -> 2020-05-01 | S7: =UDEROR!I12 -> 2020-04-01 | T7: =UDEROR!J12 -> 2020-03-01 | U7: =UDEROR!K12 -> 2020-02-01 | V7: =UDEROR!L12 -> 2020-01-01 | W7: =UDEROR!M12 -> 2019-12-01 | X7: =UDEROR!N12 -> 2019-11-01 | Y7: =UDEROR!O12 -> 2019-10-01 | Z7: =UDEROR!P12 -> 2019-09-01 | AA7: =UDEROR!Q12 -> 2019-08-01 | AB7: =UDEROR!R12 -> 2019-07-01 | AC7: =UDEROR!S12 -> 00:00:00 | AD7: =UDEROR!T12 -> 00:00:00 | AE7: =UDEROR!U12 -> 00:00:00 | AF7: =UDEROR!V12 -> 00:00:00 | AG7: =UDEROR!W12 -> 00:00:00 | AH7: =UDEROR!X12 -> 00:00:00 | AI7: =UDEROR!Y12 -> 00:00:00 | AJ7: =UDEROR!Z12 -> 00:00:00 | AK7: =UDEROR!AA12 -> 00:00:00 | AL7: =UDEROR!AB12 -> 00:00:00 | AM7: =UDEROR!AC12 -> 00:00:00 | AN7: =UDEROR!AD12 -> 00:00:00 | AO7: =UDEROR!AE12 -> 00:00:00 | AP7: =UDEROR!AF12 -> 00:00:00 | AQ7: =UDEROR!AG12 -> 00:00:00 | AR7: =UDEROR!AH12 -> 00:00:00 | AS7: =UDEROR!AI12 -> 00:00:00 | AT7: =UDEROR!AJ12 -> 00:00:00 | AU7: =UDEROR!AK12 -> 00:00:00 | AV7: =UDEROR!AL12 -> 00:00:00 | AW7: =UDEROR!AM12 -> 00:00:00 | AX7: =UDEROR!AN12 -> 00:00:00 | AY7: =UDEROR!AO12 -> 00:00:00 | AZ7: =UDEROR!AP12 -> 00:00:00 | BA7: =UDEROR!AQ12 -> 00:00:00 | BB7: =UDEROR!AR12 -> 00:00:00 | BC7: =UDEROR!AS12 -> 00:00:00 | BD7: =UDEROR!AT12 -> 00:00:00
B8: Custo médio da Geração Própria | D8: 43979 | F8: (2) Índice de Aproveitamento Integral | H8: 43979 | J8: CONTA PESSOAL | P8: Serviços Cobráveis | Q8: 20490.26 | R8: 20490.26 | S8: 73754.71 | T8: 204057.63 | U8: 209023.3 | V8: 223476.08 | W8: 242932.12 | X8: 174597.63 | Y8: 256718.43 | Z8: 309412.36 | AA8: 328353.93 | AB8: 332138.92
D9: 43979 | F9: (3) Obrigações Especiais Bruta | H9: 43979 | J9: BMP - 610530501; 610550501; 610532501; 610552501 | K9: Remuneração | P9: Arrecadação de convênios ou valores pela fatura | Q9: 436700.08 | R9: 436700.08 | S9: 503607.24 | T9: 554627.65 | U9: 560813.58 | V9: 564549.52 | W9: 540873.33 | X9: 550654 | Y9: 508794.71 | Z9: 6911216.28 | AA9: 265205.45 | AB9: 274646.45
D10: 43979 | F10: (4) Bens Totalmente Depreciados | H10: 43979 | J10: BMP - 610530502; 610550502; 610532502; 610552502 | K10: Encargos | P10: Arrecadação de faturas de terceiros por estrutura própria
F11: (5) Base de Remuneração Bruta = (1)-(2)-(3)-(4) | H11: 43979 | J11: BMP - 610530503; 610550503; 610532503; 610552503 | K11: Previdência Privada - Corrente | P11: Veiculação de publicidade
F12: (6) Depreciação Acumulada | H12: 43979 | J12: BMP - 610530508; 610550508; 610532508; 610552508 | K12: Outros Benefícios | P12: Aluguel ou cessão onerosa de imóveis e espaços físicos
F13: (7) AIS Líquido (Valor de Mercado em Uso) | H13: 43979 | J13: BMP - 610530506; 610550506; 610532506; 610552506 | K13: Despesas Rescisórias | P13: Compartilhamento de infraestrutura | Q13: 2307638.93 | R13: 2307638.93 | S13: 2293292.15 | T13: 2071394.13 | U13: 2210400.8 | V13: 2256893.41 | W13: 2319713.68 | X13: 2172303.55 | Y13: 2043866.63 | Z13: 1892199.29 | AA13: 1900269.71 | AB13: 1628602.69
F14: (8) Índice de Aproveitamento Depreciado | H14: 43979 | J14: BMP - 610530507; 610550507; 610532507; 610552507 | K14: Participação nos Lucros e Resultados - PLR | P14: Serviços de avaliação técnica e aferição de medidores.
F15: (9) Valor da Base de Remuneração (VBR) | H15: 43979 | J15: BMP - 610530599; 610550599; 610532599; 610552599 | K15: Outros | P15: Operacionalização de serviço de créditos tributários
F16: (10) Almoxarifado em Operação | H16: 43979 | J16: BMP - 610530510; 610550510; 610532510; 610552510 | K16: (-) Créditos de Tributos Recuperáveis | P16: Elaboração de projeto, construção, operação, manutenção ou reforma de:
F17: (11) Ativo Diferido | H17: 43979 | J17: BMP - 6105306; 6105506; 6105326; 6105526 | K17: Administradores | P17: (1) redes de distribuição de energia elétrica destinadas à regularização fundiária de interesse específico e ao atendimento dos empreendimentos de múltiplas unidades consumidoras;
F18: (12) Obrigações Especiais Líquida | H18: 43979 | K18: Subtotal | P18: (2) redes de energia elétrica destinadas ao acesso dos sistemas de distribuição ou transmissão;
F19: (13) Terrenos e Servidões | H19: 43979 | J19: CONTA MATERIAIS | P19: (3) subestações de energia;
F20: (14) Base de Rem. Líquida Total = (1)-(6)-(8)+(10)+(11)-(12)+(13) | H20: 43979 | J20: BMP - 610530701; 610550701; 610532701; 610552701 | K20: Materiais | P20: (4) instalações elétricas internas de unidades consumidoras;
F21: (15) Saldo RGR PLPT | H21: 43979 | J21: BMP - 610530799; 610550799; 610532799; 610552799 | K21: Outros | P21: (5) banco de capacitores:
F22: (16) Saldo RGR Demais Investimentos | H22: 43979 | J22: BMP - 610530710; 610550710; 610532710; 610552710 | K22: (-) Créditos de Tributos Recuperáveis | P22: (6) padrões de entrada de unidades consumidoras atendidas em baixa tensão;
F23: (17) Taxa de Depreciação | H23: 43979 | K23: Subtotal | P23: (7) sistemas de medição de energia elétrica;
F24: (18) Quota de Reintegração Regulatória = (5) * (17) | H24: 43979 | J24: CONTA TERCEIROS | P24: (8) geradores, incluindo-se unidades de microgeração e minigeração distribuída;
J25: RIT - RP 800 - Célula F20 | K25: Manut. e Conserv. Bens e Instalações vinculadas ao Serviço Concedido | P25: (9) sistemas de iluminação pública.
F26: Gasto do Conselho de Consumidores | J26: RIT - RP 800 - Célula F21 | K26: Auditoria e Consultoria | P26: Eficientização do consumo de energia elétrica e instalação de cogeração qualificada, desde que não enquadráveis nos projetos de Pesquisa e Desenvolvimento (P&D) ou de Eficiência Energética estabelecidos em lei
F27: =Indexador!D132 -> Despesa 2019 | J27: RIT - RP 800 - Célula F22 | K27: Serviços Jurídicos | P27: Serviços de comunicação de dados
F28: =Indexador!E132 -> Despesa 2018 | J28: RIT - RP 800 - Célula F23 | K28: Serviços de Informática | P28: Serviços de consultoria
F29: =Indexador!F132 -> Despesa 2017 | J29: RIT - RP 800 - Célula F26 | K29: Viagens (Passagens Aéreas, etc) | P29: Receita proveniente da comercialização de resultados de projetos de P&D
F30: =Indexador!G132 -> Despesa 2016 | J30: RIT - RP 800 - Célula F27 | K30: Transportes (inclui Fretes)
J31: RIT - RP 800 - Célula F28 | K31: Propaganda e Publicidade (exceto Publicações Oficiais) | P31: Outras Receitas - Caso 3
F32: Perdas Regulatórias | J32: RIT - RP 800 - Célula F29 | K32: Publicações Oficiais | P32: Alíquota ISS
F33: Perdas Não Técnicas | J33: RIT - RP 800 - Célula F30 | K33: Serviço de Engenharia e Supervisão de Obras
F34: Perdas Técnicas | J34: RIT - RP 800 - Célula F31 | K34: Gestão Comercial | P34: Tipo de Receita | Q34: =Q7 -> 2020-06-01 | R34: 2020-05-01 | S34: 2020-04-01 | T34: 2020-03-01 | U34: 2020-02-01 | V34: 2020-01-01 | W34: 2019-12-01 | X34: 2019-11-01 | Y34: 2019-10-01 | Z34: 2019-09-01 | AA34: 2019-08-01 | AB34: 2019-07-01
J35: RIT - RP 800 - Célula F32 | K35: Outros Serviços Terceirizados | P35: Serviços Cobráveis
F36: Dados da Revisão Anterior - Componente Pd | J36: RIT - RP 800 - Célula F33 | K36: (-) Créditos de Tributos Recuperáveis | P36: Encargos de Conexão
F37: Data Base Ativos e Consumidores | J37: RIT - RP 800 - Célula F34 | K37: Transferências da Administração Central | P37: Compartilhamento de Infraestrutura
F38: Mercado AT (MWh) | K38: Subtotal | P38: Sistemas de Comunicação (PLC)
F39: Mercado MT (MWh) | J39: CONTA SEGUROS | P39: Serviços de Consultoria
F40: Mercado BT (MWh) | J40: BMP - 610531001; 610551001; 610533001; 610553001 | K40: Seguros | P40: Serviços de O&M
F41: Número de unidades consumidoras | J41: BMP - 610531099; 610551099; 610533099; 610553099 | K41: Outros | P41: Serviços de Comunicação
J42: BMP - 610531010; 610551010; 610533010; 610553010 | K42: (-) Créditos de Tributos Recuperáveis | P42: Serviços de Engenharia
F43: OPEX | K43: Subtotal | P43: Convênios
F44: Extensão de redes subterrâneas (Km) | J44: CONTA TRIBUTOS
F45: Extensão de rede de distribuição aérea (Km) | J45: BMP - 6105316; 6105516; 6105336; 6105536 | K45: Tributos | Q45: =Q34 -> 2020-06-01 | R45: =R34 -> 2020-05-01 | S45: 2020-04-01 | T45: 2020-03-01 | U45: 2020-02-01 | V45: 2020-01-01 | W45: 2019-12-01 | X45: 2019-11-01 | Y45: 2019-10-01 | Z45: 2019-09-01 | AA45: 2019-08-01 | AB45: 2019-07-01
F46: Extensão de rede de alta tensão (Km) | K46: (+) Créditos de Tributos Recuperáveis | P46: Ultrapassagem de Demanda | Q46: 680833.4058 | R46: 680833.4058 | S46: 441114.4859 | T46: 671133.1314 | U46: 633416.7902 | V46: 700687.3241 | W46: 647006.986 | X46: 1005494.135 | Y46: 790271.6468 | Z46: 786001.9254 | AA46: 603458.8016 | AB46: 588738.1626
F47: ="% PNT / BT Real de "&IF(MONTH(LnkTxtDRPData)>6,YEAR(LnkTxtDRPData)-1,YEAR(LnkTxtDRPData)-2) & " (Medido)" -> % PNT / BT Real de 2019 (Medido) | J47: CONTA OUTROS | P47: Excedente Reativo | Q47: 1242282.694 | R47: 1242282.694 | S47: 1337992.774 | T47: 1302123.779 | U47: 1362816.96 | V47: 1246732.006 | W47: 1175496.854 | X47: 1110987.275 | Y47: 1010948.083 | Z47: 1097374.385 | AA47: 1014089.038 | AB47: 1047244.087
F48: ="% PNT / BT Real de "&IF(MONTH(LnkTxtDRPData)>6,YEAR(LnkTxtDRPData)-1,YEAR(LnkTxtDRPData)-2)-1 & " (Medido)" -> % PNT / BT Real de 2018 (Medido) | J48: BMP - 610531901; 610551901; 610533901; 610553901 | K48: Indenização por Perdas e Danos
F49: ="% PNT / BT Real de "&IF(MONTH(LnkTxtDRPData)>6,YEAR(LnkTxtDRPData)-1,YEAR(LnkTxtDRPData)-2)-2 & " (Medido)" -> % PNT / BT Real de 2017 (Medido) | J49: BMP - 610531902; 610551902; 610533902; 610553902 | K49: Consumo Próprio de Energia
F50: ="DEC Apurado "&IF(MONTH(LnkTxtDRPData)>3,YEAR(LnkTxtDRPData)-1,YEAR(LnkTxtDRPData)-2) -> DEC Apurado 2019 | J50: BMP - 610531905 | K50: Despesas com Conselho de Consumidores
F51: ="DEC Apurado "&IF(MONTH(LnkTxtDRPData)>3,YEAR(LnkTxtDRPData)-1,YEAR(LnkTxtDRPData)-2)-1 -> DEC Apurado 2018 | J51: BMP - 610531903; 610551903; 610533903; 610553903 | K51: Taxa de Arrecadação
F52: ="DEC Apurado "&IF(MONTH(LnkTxtDRPData)>3,YEAR(LnkTxtDRPData)-1,YEAR(LnkTxtDRPData)-2)-2 -> DEC Apurado 2017 | J52: BMP - 610531904; 610551904; 610533904; 610553904 | K52: Taxas Bancárias
F53: Meta de % PNT / BT (Medido) | J53: BMP - 610531910; 610551910; 610533910; 610553910 | K53: (-) Créditos de Tributos Recuperáveis
F54: DEC 8 anos (Limite V8) | K54: Subtotal
J55: Demais
K56: Condenações Trabalhistas
F57: Dados da última Revisão Tarifária | K57: Gastos com CCEE
F58: Custos Operacionais (CO3) | J58: BMP - 611511401 | K58: Perdas na Alienação e Desativação
F59: Receitas Irrecuperáveis - Encargos Setoriais (Vi) | J59: BMP - 611112103 | K59: Ganhos na Alienação de Materiais
F60: Demais Receitas Irrecuperáveis (Vse)
F61: Remuneração do Capital (RC)
F62: Quota de Reintegração Regulatória (QRR)
F63: Custo anual das instalações móveis e imóveis (CAIMI)
F64: Ajuste em função dos investimentos realizados (valor negativo)
F65: Índice de Produtividade da Parcela B
F66: Outras Receitas (OR) (inserir o valor positivo)
F67: Componente T - Última Revisão

Sheet BD
B1: Banco de Dados | M1: Anexo II | N1: =Resultado!$D$6 -> 0.1157478846
B2: =CAPA!B6 -> ENERGISA Sul Sudeste | M2: Anexo I | N2: =Resultado!$D$8 -> 0.1339132748
B5: Informações do ano anterior | G5: Dados de abertura (Neutralidade e CVA saldo a compensar) | L5: Dados de Energia | S5: Dados para Revisão
B7: Encargos | G7: Encargo | H7: Valor | I7: Norma | L7: Cotas | M7: Valor da "Cota" | N7: Ano | O7: Custo Médio da Cota | S7: item | T7: Descrição | U7: Detalhe | V7: Valor
B8: CDE Energia: Conta ACR | C8: 14425108.18 | D8: 14425108.18 | E8: =C8-D8 -> 0 | G8: CCC | L8: Itaipu | M8: 0.01361926887 | N8: 2020 | O8: 269.75
B9: CDE Energia: Decreto | C9: 0 | E9: =C9-D9 -> 0 | G9: CDE | H9: 225954126.2 | I9: ReH 2.664/2019 | J9: ok | L9: Angra | M9: 0.01041435065 | N9: 2020 | O9: 269.75
B10: TFSEE | C10: 1963214.9 | D10: 1963214.9 | E10: 0 | G10: CFURH
B11: CDE | C11: 185797428.3 | D11: 185797428.3 | E11: 0 | G11: ESS/EER | H11: 36590917.82 | I11: DSP 1.191/2020 | L11: Ano | M11: Cota Itaipu
E12: 0 | G12: PROINFA | H12: 31396250.3 | I12: ReH 2.653/2019 | J12: ok | L12: 2018 | M12: 0.01368408
B13: ESS/ERR | C13: 32519066.29 | D13: 32519066.29 | E13: 0 | G13: ONS | H13: 64270.25 | I13: Contribuição 2019 | J13: contrato novo | L13: 2019 | M13: 0.01370034
B14: PROINFA | C14: 37848223.3 | D14: 37848223.3 | E14: 0 | G14: TFSEE | L14: 2020 | M14: 0.01366211413
B15: P&D | C15: 15363054.86 | D15: 15363054.86 | E15: 0 | G15: EER | H15: 32058731.52 | I15: DSP 1.191/2020 | L15: 2021 | M15: 0.0138453597
B16: ONS | C16: 0 | G16: TFSEE Fator de Carga | H16: 0.741346331
B17: Energia
B18: Pmix | C18: 186.4636263 | D18: 186.46
B19: PN2019 | C19: 0.008150473962
B20: PN2020 | C20: 0.008150473962
B21: PT2017 | C21: 0.06290952235 | G21: Informações de Postergação
B22: Perda RB total | C22: 0.01436135807 | D22: 0.01436135807 | L22: Mês | M22: Potência | N22: Tarifa | O22: Perdas | P22: Energia
B23: CVA | G23: Tipo | H23: Valor | L23: 44013 | M23: 152.9473677 | N23: 28.41 | O23: 0.05794699743 | P23: 69436.73146
B24: CVA RB | C24: 13367232.76 | D24: 13367232.76 | E24: =C24-D24 -> 0 | G24: Data Postergada | H24: 44024 | L24: 44044 | M24: 151.5811563 | N24: 28.41 | O24: 0.05794699743 | P24: 69436.73146
B25: CVA CCC | C25: 0 | E25: =C25-D25 -> 0 | G25: Data Anterior | H25: 44024 | L25: 44075 | M25: 150.7614294 | N25: 28.41 | O25: 0.05794699743 | P25: 67196.8369
B26: CVA CDE | C26: 41124325.81 | D26: 41124325.81 | E26: 0 | G26: Diferença de Dias | H26: 0 | L26: 44105 | M26: 146.1163106 | N26: 28.41 | O26: 0.05794699743 | P26: 69436.73146
B27: CVA CFURH | E27: 0 | G27: MesesAdin | H27: 0 | L27: 44136 | M27: 145.2965838 | N27: 28.41 | O27: 0.05794699743 | P27: 67196.8369
B28: CVA ESS/ERR | C28: -52012267.75 | D28: -52012267.75 | E28: 0 | G28: Reversão Subvenção CDE | L28: 44166 | M28: 142.0176764 | N28: 28.41 | O28: 0.05794699743 | P28: 69436.73146
B29: CVA PROINFA | C29: 3121490.302 | D29: 3121490.302 | E29: 0 | G29: Data 4CRT | H29: 44389 | L29: 44197 | M29: 144.1994213 | N29: 28.41 | O29: 0.05794699743 | P29: 70368.06415
B30: CVA TRANS. ITAIPU | C30: 1860245.976 | D30: 1860245.976 | E30: 0 | L30: 44228 | M30: 144.0609677 | N30: 28.41 | O30: 0.05794699743 | P30: 65828.18905
B31: CVA ENERGIA | C31: 162720713.1 | D31: 162720713.1 | E31: 0 | L31: 44256 | M31: 147.5223076 | N31: 28.41 | O31: 0.05794699743 | P31: 70368.06415
B32: CVA CDE E | C32: -6961663.904 | D32: -6961663.904 | E32: 0 | L32: 44287 | M32: 149.1837508 | N32: 28.41 | O32: 0.05794699743 | P32: 68098.1266
L33: 44317 | M33: 153.7527195 | N33: 28.41 | O33: 0.05794699743 | P33: 70368.06415
L34: 44348 | M34: 155.275709 | N34: 28.41 | O34: 0.05794699743 | P34: 68098.1266
G35: Nome | H35: Valor
G36: TUSDg Export DRP | H36: 0 | L36: Mês | M36: Potência | N36: Tarifa DRA | O36: Tarifa DRP | P36: Colunas1
G37: TUSDg ONS DRP | H37: 1593458.64 | I37: 2020-06-24 | L37: 43647 | M37: 153.375 | N37: 10357.15 | O37: 12649.64 | Q37: tarifas provisórias em 19/06.
G38: TUSDg ONS DRA | H38: 1494746.16 | L38: 43678 | M38: 152.005 | N38: 10357.15 | O38: 12649.64
B39: Rede Básica | L39: 43709 | M39: 151.183 | N39: 10357.15 | O39: 12649.64
C40: 3719464.799 | D40: ? | L40: 43739 | M40: 146.525 | N40: 10357.15 | O40: 12649.64
L41: 43770 | M41: 145.703 | N41: 10357.15 | O41: 12649.64
G42: Fator X | H42: Valor | L42: 43800 | M42: 142.415 | N42: 10357.15 | O42: 12649.64
G43: fatorx_t | H43: 0.0089 | I43: ok | L43: 43831 | M43: 142.2909187 | N43: 10357.15 | O43: 12649.64
B44: Mercado | G44: fatorx_pd | H44: 0.0141 | I44: ok | L44: 43862 | M44: 142.1542975 | N44: 10357.15 | O44: 12649.64
C45: 4466577.791 | D45: 4466577.791 | E45: =C45-D45 -> 0 | L45: 43891 | M45: 145.5698261 | N45: 10357.15 | O45: 12649.64
C46: 1640104384 | D46: 1640104384 | E46: =C46-D46 -> 0 | G46: DecFec Processo Anterior | H46: Valor | L46: 43922 | M46: 147.2092798 | N46: 10357.15 | O46: 12649.64
G47: DEC A-2 | H47: 0 | L47: 43952 | M47: 151.7177774 | N47: 10357.15 | O47: 12649.64
B48: 2020 | C48: 81499.61949 | D48: ? | G48: DEC A-1 | H48: 0 | L48: 43983 | M48: 153.22061 | N48: 10357.15 | O48: 12649.64
B49: 2020 | C49: 81499.61949 | G49: FEC A-2 | H49: 0
G50: FEC A-1 | H50: 0 | L50: Dado | M50: Valor | N50: Início | O50: Fim
L51: MUST | M51: 6496 | N51: 43647 | O51: 44012
G52: Dados de dólar | H52: Valor | L52: MUST | M52: 9214 | N52: 44013 | O52: 44377 | P52: valor provisório em 19/06
B53: Ciclo de Revisão | C53: 4 | F53: 4 | G53: Dólar médio | H53: 5.189419048 | L53: Potência Max | M53: 11215 | N53: 43466 | O53: 43830
G54: Data Inicial | H54: 43979 | L54: Potência Max | M54: 11215 | N54: 43831 | O54: 44196 | P54: corrigido em 01/7
G55: Data Final | H55: 44008
G56: Último Dado Diponível | H56: 44011 | L56: Dados de perda | M56: Valor | O56: Agente | P56: Ressarcimento P&D
B57: Subsídios Concedidos (sem ajuste) | L57: Perdas RB | M57: 52652.5359
B58: Mês de Início | C58: Carga Fonte | D58: Geração | E58: Distribuição | F58: Água, Esgoto e Saneamento | G58: Rural | H58: Irrigante/Aquicultor | L58: Perdas DITs | M58: 77027.767
B59: 2019-07-01 | C59: 3584781.166 | D59: 287635.4992 | E59: 0 | F59: 700210.62 | G59: 2756418.632 | H59: 344192.0075
L62: Informações de DR1
L63: Fator PB1 | M63: 1.070829306
L64: Informações de RI
B65: Data | C65: Tipo | D65: Valor | E65: Valor IGPM | F65: Valor IPCA | G65: EixoRef
L66: Tipo | M66: % RI | O66: Data | P66: Fat Bandeiras
B67: 2017-07-01 | C67: 0 | D67: 432.96 | E67: 432.96 | F67: 432.96 | L67: PctRIResidencial | M67: 0.0008 | O67: 43647 | P67: 2044243.16
B68: 2018-07-01 | C68: 0 | D68: 498.84 | E68: 504.6121991 | F68: 503.0055539 | H68: tarifas de 2018 e 2019 | L68: PctRIIndustrial | M68: 0 | O68: 43678 | P68: 7405870.06
B69: 2019-07-01 | C69: 0 | D69: 497.351539 | E69: 537.463193 | F69: 519.9382017 | L69: PctRICOMERCIAL | M69: 0.0005 | O69: 43709 | P69: 10958453.55
L70: PctRIRURAL | M70: 0.0001 | O70: 43739 | P70: 7384338.43
L71: PctRILUMPUBLICA | M71: 0 | O71: 43770 | P71: 8675327.61
L72: PctRIPODERPUBLICO | M72: 0 | O72: 43800 | P72: 7503028.42
L73: PctRISERVPUBLICO | M73: 0 | O73: 43831 | P73: 3953046.73
O74: 43862 | P74: 1738670.31
L75: Tipo | M75: % RI Anterior | N75: Colunas1 | O75: 43891 | P75: 6657.35
L76: PctRIResidencial | M76: 0.0008 | O76: 43922 | P76: 47.39
L77: PctRIIndustrial | M77: 0 | O77: 43952 | P77: 47.39
L78: PctRICOMERCIAL | M78: 0.0005 | O78: 43983 | P78: 47.39
L79: PctRIRURAL | M79: 0.0001 | O79: 43405 | P79: 15507096.39
L80: PctRILUMPUBLICA | M80: 0 | O80: 43435 | P80: 2800175.9
L81: PctRIPODERPUBLICO | M81: 0 | O81: 43466 | P81: 0
L82: PctRISERVPUBLICO | M82: 0 | O82: 43497 | P82: 74021.78
O83: 43525 | P83: 28147.54
B84: Tabela de Resumo de Montante DRP ano anterior/ Montante Apurado pelo Mercado | O84: 43556 | P84: 41898.1
B85: detalhe_grupo | C85: GrupoTarifa | D85: tipoBase | E85: tipofatura | F85: ValorCTAnterior_Sum | G85: ValorAnt_Sum | L85: Prcesso Anterior | N85: RTE | P85: 2558366.85
D86: Base | E86: Econômico | F86: 0 | G86: 0 | L86: MWh | M86: R$ | N86: MWh | O86: R$ | S86: DthEfetivaPagamento | T86: VlrGarantiaFinanceira | U86: Competência | V86: Pagamento | W86: Data
B87: CCC | C87: ENCARGO | D87: Base | E87: Econômico | F87: 0 | G87: 0 | I87: BILATERAL | K87: valor | L87: 601848 | M87: 132530893.8 | P87: 601848 | Q87: 132530893.8 | S87: 43617 | T87: 93422.86 | U87: 43586 | V87: 93422.87 | W87: 43633 | X87: ok
B88: CDE | C88: ENCARGO | D88: Base | E88: Econômico | F88: 185797428.3 | G88: 186364813.5 | I88: CCEAR-DISP | J88: Alternativa | K88: valor | L88: 51427.89363 | M88: 11604056 | S88: 43647 | T88: 97774.94 | U88: 43617 | V88: 97774.9 | W88: 43661 | X88: ok
B89: CDE | C89: ENCARGO | D89: Base | E89: RTE 2015 | F89: 0 | G89: 0 | I89: CCEAR-DISP | J89: Existente | K89: valor | L89: 29652.053 | M89: 10419603.47 | S89: 43678 | T89: 97774.94 | U89: 43647 | V89: 97774.9 | W89: 43692 | X89: ok
B90: CDE Energia | C90: ENCARGO | D90: Base | E90: Econômico | F90: 0 | G90: 14415819.71 | I90: CCEAR-DISP | J90: Nova | K90: valor | L90: 476614.4474 | M90: 120433871.3 | S90: 43709 | T90: 97774.94 | U90: 43678 | V90: 97774.9 | W90: 43724 | X90: ok
B91: CDE Energia | C91: ENCARGO | D91: Base | E91: RTE 2015 | F91: 0 | G91: 0 | I91: CCEAR-QTD | J91: Belo Monte | K91: valor | L91: 480123.0838 | M91: 61645608.08 | S91: 43739 | T91: 97774.94 | U91: 43709 | V91: 97774.9 | W91: 43753 | X91: ok
B92: CDE Energia: Conta ACR | C92: ENCARGO | D92: Base | E92: Econômico | F92: 14425108.18 | G92: 0 | I92: CCEAR-QTD | J92: Alternativa | K92: valor | L92: 4068.139067 | M92: 979966.862 | S92: 43770 | T92: 97774.94 | U92: 43739 | V92: 97774.9 | W92: 43787 | X92: ok
B93: CDE Energia: Decreto | C93: ENCARGO | D93: Base | E93: Econômico | F93: 0 | G93: 0 | I93: CCEAR-QTD | J93: Existente | K93: valor | L93: 101363.52 | M93: 34247796.83 | S93: 43800 | T93: 97774.88 | U93: 43770 | V93: 97774.9 | W93: 43815 | X93: ok
B94: CFURH | C94: ENCARGO | D94: Base | E94: Econômico | F94: 0 | G94: 0 | I94: CCEAR-QTD | J94: Madeira | K94: valor | L94: 168784.6486 | M94: 22691850.25 | S94: 43831 | T94: 97774.88 | U94: 43800 | V94: 97774.9 | W94: 43845 | X94: ok
B95: ESS/ERR | C95: ENCARGO | D95: Base | E95: Econômico | F95: 32519066.29 | G95: 32498126.94 | I95: CCEAR-QTD | J95: Nova | K95: valor | L95: 360665.3806 | M95: 63532997.94 | S95: 43862 | T95: 94507.55 | U95: 43831 | V95: 94507.54 | W95: 43878 | X95: ok
B96: ONS | C96: ENCARGO | D96: Base | E96: Econômico | F96: 0 | G96: 0 | I96: CCEN | K96: valor | L96: 145153.5274 | M96: 35921143.44 | S96: 43891 | T96: =V96 -> 94507.54 | U96: 43862 | V96: 94507.54 | W96: 43906
B97: P&D | C97: ENCARGO | D97: Base | E97: Econômico | F97: 15363054.86 | G97: 15455610.97 | I97: CCGF | K97: valor | L97: 920400.3279 | M97: 98436815.07 | P97: 920400.3279 | Q97: 98436815.07 | S97: 43922 | T97: 94507.55 | U97: 43891 | V97: 94507.54 | W97: 43936 | X97: ok
B98: P&D | C98: ENCARGO | D98: Base | E98: RTE 2015 | F98: 0 | G98: 0 | I98: ITAIPU | K98: valor | L98: 771418.4483 | M98: 190681987.8 | S98: 43952 | T98: 94507.55 | U98: 43922 | V98: 94507.54 | W98: 43966 | X98: ok
B99: PROINFA | C99: ENCARGO | D99: Base | E99: Econômico | F99: 37848223.3 | G99: 37950406.54 | I99: PROINFA | K99: valor | L99: 81068.60191
B100: RGR | C100: ENCARGO | D100: Base | E100: Econômico | F100: 0 | G100: 0 | I100: SOBRA/EXPOSIÇÃO | K100: valor | L100: -339699.4161 | M100: -64703000.34 | P100: -339699.4161 | Q100: -64703000.34 | S100: iddet1 | T100: valor
B101: TFSEE | C101: ENCARGO | D101: Base | E101: Econômico | F101: 1963214.9 | G101: 1989251.765 | S101: 56 | T101: 44000
C102: ENERGIA | D102: Base | E102: Econômico | F102: 718423590.5 | G102: 718770157.5 | S102: 57 | T102: 43966
C103: ENERGIA | D103: Base | E103: RTE 2015 | F103: 0 | G103: 0 | Q103: 3852888.656 | R103: 718423590.5 | S103: 58 | T103: 43922
B104: CDE Energia: Conta ACR | C104: ENERGIA | D104: Base | E104: Econômico | F104: 0 | G104: 0 | Q104: =SUM(L87:L100) -> 3852888.656 | R104: =SUM(M87:M100) -> 718423590.5
C105: Parcela B | D105: Base | E105: Econômico | F105: 399997973.4 | G105: 405726127.8 | V105: Empresa | W105: AT | X105: MT | Y105: BT
C106: Receita Irrecuperável | D106: Base | E106: Econômico | F106: 1103178.67 | G106: 0 | V106: 167 | W106: 0.02134 | X106: 0.35825 | Y106: 0.62041
B107: CONEXÃO D | C107: TRANSPORTE TERCEIROS | D107: Base | E107: Econômico | F107: 0 | G107: 0 | V107: 102 | W107: 0.064 | X107: 0.32003 | Y107: 0.61596
B108: CONEXÃO T | C108: TRANSPORTE TERCEIROS | D108: Base | E108: Econômico | F108: 3719464.799 | G108: 3789405.894 | V108: 103 | W108: 0.02996 | X108: 0.27106 | Y108: 0.69898
B109: EUSD | C109: TRANSPORTE TERCEIROS | D109: Base | E109: Econômico | F109: 32516611.14 | G109: 33104765.01 | V109: 104 | W109: 0.07171 | X109: 0.2909 | Y109: 0.63739
B110: EUSD | C110: TRANSPORTE TERCEIROS | D110: Base | E110: RTE 2015 | F110: 0 | G110: 0 | S110: Nível | T110: Mercado Faturado A-6 | V110: 105 | W110: 0.00823 | X110: 0.24677 | Y110: 0.745
B111: EUST - CI | C111: TRANSPORTE TERCEIROS | D111: Base | E111: Econômico | F111: 1e-06 | G111: 0 | I111: Agente | J111: idagente | K111: indexador | L111: database | M111: RAP do ciclo | N111: Colunas1 | O111: RAP atualizada | V111: 165 | W111: 0.00795 | X111: 0.22554 | Y111: 0.76651
B112: EUST - FR | C112: TRANSPORTE TERCEIROS | D112: Base | E112: Econômico | F112: 96177756 | G112: 98385658.64 | O112: =M112*VLOOKUP(CAPA!C15,Índices!$B$6:$F$626,IF(BD!K112="IPCA",3,2),FALSE)/VLOOKUP(L112,Índices!$B$6:$F$626,IF(BD!K112="IPCA",3,2),FALSE) ->  | V112: 108 | W112: 0.06098 | X112: 0.1711 | Y112: 0.76792
B113: EUST - ITAIPU | C113: TRANSPORTE TERCEIROS | D113: Base | E113: Econômico | F113: 11991497.78 | G113: 11983776.33 | O113: =M113*VLOOKUP(CAPA!C16,Índices!$B$6:$F$626,IF(BD!K113="IPCA",3,2),FALSE)/VLOOKUP(L113,Índices!$B$6:$F$626,IF(BD!K113="IPCA",3,2),FALSE) ->  | V113: 109 | W113: 0.01034 | X113: 0.24366 | Y113: 0.746
B114: EUST - RB | C114: TRANSPORTE TERCEIROS | D114: Base | E114: Econômico | F114: 68299591.8 | G114: 69586185.51 | O114: =M114*VLOOKUP(CAPA!C17,Índices!$B$6:$F$626,IF(BD!K114="IPCA",3,2),FALSE)/VLOOKUP(L114,Índices!$B$6:$F$626,IF(BD!K114="IPCA",3,2),FALSE) ->  | V114: 110 | W114: 0.01165 | X114: 0.24322 | Y114: 0.74513
B115: TRANSPORTE ITAIPU | C115: TRANSPORTE TERCEIROS | D115: Base | E115: Econômico | F115: 18463877.73 | G115: 18451988.66 | O115: =M115*VLOOKUP(CAPA!C18,Índices!$B$6:$F$626,IF(BD!K115="IPCA",3,2),FALSE)/VLOOKUP(L115,Índices!$B$6:$F$626,IF(BD!K115="IPCA",3,2),FALSE) ->  | V115: 111 | W115: 0.03791 | X115: 0.37961 | Y115: 0.58248
B116: TUSDg EXPORTADORAS (A2) | C116: TRANSPORTE TERCEIROS | D116: Base | E116: Econômico | F116: 0 | G116: 0 | O116: =M116*VLOOKUP(CAPA!C19,Índices!$B$6:$F$626,IF(BD!K116="IPCA",3,2),FALSE)/VLOOKUP(L116,Índices!$B$6:$F$626,IF(BD!K116="IPCA",3,2),FALSE) ->  | V116: 112 | W116: 0.02273 | X116: 0.26361 | Y116: 0.71367
B117: TUSDg ONS (A2) | C117: TRANSPORTE TERCEIROS | D117: Base | E117: Econômico | F117: 1494746.16 | G117: 1292257.633 | O117: =M117*VLOOKUP(CAPA!C20,Índices!$B$6:$F$626,IF(BD!K117="IPCA",3,2),FALSE)/VLOOKUP(L117,Índices!$B$6:$F$626,IF(BD!K117="IPCA",3,2),FALSE) ->  | V117: 113 | W117: 0.01263 | X117: 0.23345 | Y117: 0.75392
B118: TUSDg T (A2) | C118: TRANSPORTE TERCEIROS | D118: Base | E118: Econômico | F118: 0 | G118: 0 | O118: =M118*VLOOKUP(CAPA!C21,Índices!$B$6:$F$626,IF(BD!K118="IPCA",3,2),FALSE)/VLOOKUP(L118,Índices!$B$6:$F$626,IF(BD!K118="IPCA",3,2),FALSE) ->  | V118: 114 | W118: 0.01726 | X118: 0.23794 | Y118: 0.7448
O119: =M119*VLOOKUP(CAPA!C22,Índices!$B$6:$F$626,IF(BD!K119="IPCA",3,2),FALSE)/VLOOKUP(L119,Índices!$B$6:$F$626,IF(BD!K119="IPCA",3,2),FALSE) ->  | V119: 115 | W119: 0.00993 | X119: 0.23087 | Y119: 0.7592
O120: =M120*VLOOKUP(CAPA!C23,Índices!$B$6:$F$626,IF(BD!K120="IPCA",3,2),FALSE)/VLOOKUP(L120,Índices!$B$6:$F$626,IF(BD!K120="IPCA",3,2),FALSE) ->  | V120: 116 | W120: 0.00806 | X120: 0.16835 | Y120: 0.82359
O121: =M121*VLOOKUP(CAPA!C24,Índices!$B$6:$F$626,IF(BD!K121="IPCA",3,2),FALSE)/VLOOKUP(L121,Índices!$B$6:$F$626,IF(BD!K121="IPCA",3,2),FALSE) ->  | V121: 117 | W121: 0.03028 | X121: 0.29131 | Y121: 0.67841
O122: =M122*VLOOKUP(CAPA!C25,Índices!$B$6:$F$626,IF(BD!K122="IPCA",3,2),FALSE)/VLOOKUP(L122,Índices!$B$6:$F$626,IF(BD!K122="IPCA",3,2),FALSE) ->  | V122: 118 | W122: 0.04215 | X122: 0.2081 | Y122: 0.74975
O123: =M123*VLOOKUP(CAPA!C26,Índices!$B$6:$F$626,IF(BD!K123="IPCA",3,2),FALSE)/VLOOKUP(L123,Índices!$B$6:$F$626,IF(BD!K123="IPCA",3,2),FALSE) ->  | V123: 119 | W123: 0.01807 | X123: 0.11713 | Y123: 0.8648
O124: =M124*VLOOKUP(CAPA!C27,Índices!$B$6:$F$626,IF(BD!K124="IPCA",3,2),FALSE)/VLOOKUP(L124,Índices!$B$6:$F$626,IF(BD!K124="IPCA",3,2),FALSE) ->  | V124: 120 | W124: - | X124: 0.17688 | Y124: 0.82312
O125: =M125*VLOOKUP(CAPA!C28,Índices!$B$6:$F$626,IF(BD!K125="IPCA",3,2),FALSE)/VLOOKUP(L125,Índices!$B$6:$F$626,IF(BD!K125="IPCA",3,2),FALSE) ->  | V125: 123 | W125: - | X125: 0.13612 | Y125: 0.86388
O126: =M126*VLOOKUP(CAPA!C29,Índices!$B$6:$F$626,IF(BD!K126="IPCA",3,2),FALSE)/VLOOKUP(L126,Índices!$B$6:$F$626,IF(BD!K126="IPCA",3,2),FALSE) ->  | V126: 166 | W126: 0.04257 | X126: 0.29652 | Y126: 0.66092
O127: =M127*VLOOKUP(CAPA!C30,Índices!$B$6:$F$626,IF(BD!K127="IPCA",3,2),FALSE)/VLOOKUP(L127,Índices!$B$6:$F$626,IF(BD!K127="IPCA",3,2),FALSE) ->  | V127: 128 | W127: - | X127: 0.40427 | Y127: 0.59573
O128: =M128*VLOOKUP(CAPA!C31,Índices!$B$6:$F$626,IF(BD!K128="IPCA",3,2),FALSE)/VLOOKUP(L128,Índices!$B$6:$F$626,IF(BD!K128="IPCA",3,2),FALSE) ->  | V128: 129 | W128: 0.02905 | X128: 0.24895 | Y128: 0.722
O129: =M129*VLOOKUP(CAPA!C32,Índices!$B$6:$F$626,IF(BD!K129="IPCA",3,2),FALSE)/VLOOKUP(L129,Índices!$B$6:$F$626,IF(BD!K129="IPCA",3,2),FALSE) ->  | V129: 130 | W129: 0.0175 | X129: 0.14397 | Y129: 0.83853
O130: =M130*VLOOKUP(CAPA!C33,Índices!$B$6:$F$626,IF(BD!K130="IPCA",3,2),FALSE)/VLOOKUP(L130,Índices!$B$6:$F$626,IF(BD!K130="IPCA",3,2),FALSE) ->  | V130: 131 | W130: - | X130: 0.30099 | Y130: 0.69901
O131: =M131*VLOOKUP(CAPA!C34,Índices!$B$6:$F$626,IF(BD!K131="IPCA",3,2),FALSE)/VLOOKUP(L131,Índices!$B$6:$F$626,IF(BD!K131="IPCA",3,2),FALSE) ->  | V131: 132 | W131: 0.02757 | X131: 0.26424 | Y131: 0.70819
O132: =M132*VLOOKUP(CAPA!C35,Índices!$B$6:$F$626,IF(BD!K132="IPCA",3,2),FALSE)/VLOOKUP(L132,Índices!$B$6:$F$626,IF(BD!K132="IPCA",3,2),FALSE) ->  | V132: 133 | W132: 0.01856 | X132: 0.19536 | Y132: 0.78608
V133: 135 | W133: 0.04788 | X133: 0.27054 | Y133: 0.68158
V134: 136 | W134: 0.06732 | X134: 0.35547 | Y134: 0.57721
V135: 138 | W135: - | X135: 0.07651 | Y135: 0.92349
V136: 139 | W136: - | X136: 0.35483 | Y136: 0.64517
V137: 140 | W137: 0.01004 | X137: 0.21058 | Y137: 0.77938
V138: 143 | W138: - | X138: 0.20409 | Y138: 0.79591
V139: 144 | W139: - | X139: 0.48131 | Y139: 0.51869
A140: NumBar | B140: Nome Conexão | C140: Tensão | D140: Posto Tarifário | E140: Tarifas RB - DRA | F140: Tarifa RB - DRP | G140: Tarifas Fronteira - DRA | H140: Tarifa Fronteira - DRP | I140: M01 | J140: M02 | K140: M03 | L140: M04 | M140: M05 | N140: M06 | O140: M07 | P140: M08 | Q140: M09 | R140: M10 | S140: M11 | T140: M12 | V140: 145 | W140: 0.03725 | X140: 0.29306 | Y140: 0.66969
A141: 3180 | B141: ALTO ALEGRE - 138 kV (A) | C141: 138 | D141: Ponta | E141: 3297 | F141: 5010 | G141: 5020 | H141: 7007.825802 | I141: 4 | J141: 4 | K141: 4 | L141: 4 | M141: 4 | N141: 4 | O141: 4 | P141: 4 | Q141: 4 | R141: 4 | S141: 4 | T141: 4 | W141: - | X141: 0.14124 | Y141: 0.85876
A142: 3190 | B142: BASTOS - 138 kV (A) | C142: 138 | D142: Ponta | E142: 3332 | F142: 5006 | G142: 5020 | H142: 7007.825802 | I142: 15 | J142: 15 | K142: 15 | L142: 15 | M142: 15 | N142: 15 | O142: 15 | P142: 15 | Q142: 15 | R142: 15 | S142: 15 | T142: 15 | V142: 147 | W142: - | X142: 0.20977 | Y142: 0.79023
A143: 3155 | B143: BORBOREMA - 138 kV (A) | C143: 138 | D143: Ponta | E143: 3525 | F143: 5417 | G143: 5020 | H143: 7007.825802 | I143: 23.2 | J143: 23.2 | K143: 23.2 | L143: 23.2 | M143: 23.2 | N143: 23.2 | O143: 24.2 | P143: 24.2 | Q143: 24.2 | R143: 24.2 | S143: 24.2 | T143: 24.2 | V143: 148 | W143: 0.03455 | X143: 0.23757 | Y143: 0.72788
A144: 3158 | B144: BRA. PAULISTA - 138 kV (A) | C144: 138 | D144: Ponta | E144: 4146 | F144: 6062 | G144: 5020 | H144: 7007.825802 | I144: 152 | J144: 152 | K144: 152 | L144: 152 | M144: 152 | N144: 152 | O144: 157.3 | P144: 157.3 | Q144: 157.3 | R144: 157.3 | S144: 157.3 | T144: 157.3 | V144: 149 | W144: - | X144: 0.17399 | Y144: 0.82601
A145: 550 | B145: CAPIVARA - 138 kV (A) | C145: 138 | D145: Ponta | E145: 3255 | F145: 5007 | G145: 10 | H145: 13.41724258 | I145: 6.7 | J145: 6.7 | K145: 6.7 | L145: 6.7 | M145: 6.7 | N145: 6.7 | O145: 6.9 | P145: 6.9 | Q145: 6.9 | R145: 6.9 | S145: 6.9 | T145: 6.9 | V145: 150 | W145: 0.03635 | X145: 0.17413 | Y145: 0.78952
A146: 638 | B146: CATANDUVA - 138 kV (A) | C146: 138 | D146: Ponta | E146: 3468 | F146: 5358 | G146: 5020 | H146: 7007.825802 | I146: 77 | J146: 77 | K146: 77 | L146: 77 | M146: 77 | N146: 77 | O146: 79.5 | P146: 79.5 | Q146: 79.5 | R146: 79.5 | S146: 79.5 | T146: 79.5 | V146: 151 | W146: 0.02735 | X146: 0.28351 | Y146: 0.68915
A147: 3175 | B147: ENEIDA - 138 kV (A) | C147: 138 | D147: Ponta | E147: 3296 | F147: 5010 | G147: 5020 | H147: 7007.825802 | I147: 2.6 | J147: 2.6 | K147: 2.6 | L147: 2.6 | M147: 2.6 | N147: 2.6 | O147: 2.9 | P147: 2.9 | Q147: 2.9 | R147: 2.9 | S147: 2.9 | T147: 2.9 | V147: 152 | W147: 0.00215 | X147: 0.1412 | Y147: 0.85665
B148: OSVALDO CRUZ - 138 kV (A) | C148: 138 | D148: Ponta | F148: 5006 | H148: 7007.825802 | I148: 19 | J148: 19 | K148: 19 | L148: 19 | M148: 19 | N148: 19 | O148: 19 | P148: 19 | Q148: 19 | R148: 19 | S148: 19 | T148: 19 | V148: 153 | W148: 0.03606 | X148: 0.17601 | Y148: 0.78793
A149: 3172 | B149: PRE.PRUDENTE4 - 138 kV (A) | C149: 138 | D149: Ponta | E149: 3295 | F149: 5011 | G149: 5020 | H149: 7007.825802 | I149: 31.5 | J149: 31.5 | K149: 31.5 | L149: 31.5 | M149: 31.5 | N149: 31.5 | O149: 32.4 | P149: 32.4 | Q149: 32.4 | R149: 32.4 | S149: 32.4 | T149: 32.4 | V149: 154 | W149: 0.12913 | X149: 0.26626 | Y149: 0.60462
A150: 3178 | B150: PRE.PRUDENTE5 - 138 kV (A) | C150: 138 | D150: Ponta | E150: 3295 | F150: 5005 | G150: 5020 | H150: 7007.825802 | I150: 34.8 | J150: 34.8 | K150: 34.8 | L150: 34.8 | M150: 34.8 | N150: 34.8 | O150: 35.9 | P150: 35.9 | Q150: 35.9 | R150: 35.9 | S150: 35.9 | T150: 35.9 | V150: 155 | W150: 0.04008 | X150: 0.23225 | Y150: 0.72768
B151: PRE.VENCESLAU - 138 kV (A) | C151: 138 | D151: Ponta | F151: 4975 | H151: 7007.825802 | I151: 53.5 | J151: 53.5 | K151: 53.5 | L151: 53.5 | M151: 53.5 | N151: 53.5 | O151: 54.8 | P151: 54.8 | Q151: 54.8 | R151: 54.8 | S151: 54.8 | T151: 54.8 | V151: 156 | W151: - | X151: 0.35985 | Y151: 0.64015
A152: 3159 | B152: STA.TEREZINHA - 138 kV (A) | C152: 138 | D152: Ponta | E152: 4144 | F152: 6060 | G152: 5020 | H152: 7007.825802 | I152: 35 | J152: 35 | K152: 35 | L152: 35 | M152: 35 | N152: 35 | O152: 35 | P152: 35 | Q152: 35 | R152: 35 | S152: 35 | T152: 35 | V152: 157 | W152: - | X152: 0.15963 | Y152: 0.84037
A153: 3191 | B153: TUPA - 138 kV (A) | C153: 138 | D153: Ponta | E153: 3344 | F153: 5170 | G153: 5020 | H153: 7007.825802 | I153: 31 | J153: 31 | K153: 31 | L153: 31 | M153: 31 | N153: 31 | O153: 31.1 | P153: 31.1 | Q153: 31.1 | R153: 31.1 | S153: 31.1 | T153: 31.1 | V153: 158 | W153: - | X153: 0.33049 | Y153: 0.66951
B154: URUPES - 138 kV (A) | C154: 138 | D154: Ponta | F154: 1792.635194 | H154: 7007.825802 | I154: 24.7 | J154: 24.7 | K154: 24.7 | L154: 24.7 | M154: 24.7 | N154: 24.7 | O154: 24.7 | P154: 24.7 | Q154: 24.7 | R154: 24.7 | S154: 24.7 | T154: 24.7 | V154: 160 | W154: 0.1013 | X154: 0.22818 | Y154: 0.67051
A155: 642 | B155: FLOR.PAULISTA - 69 kV (A) | C155: 69 | D155: Ponta | E155: 3298 | F155: 5006 | G155: 5020 | H155: 7007.825802 | I155: 20.7 | J155: 20.7 | K155: 20.7 | L155: 20.7 | M155: 20.7 | N155: 20.7 | O155: 20.7 | P155: 20.7 | Q155: 20.7 | R155: 20.7 | S155: 20.7 | T155: 20.7 | V155: 161 | W155: - | X155: 0.28355 | Y155: 0.71645
A156: 672 | B156: UBARANA - 69 kV (A) | C156: 69 | D156: Ponta | E156: 3439 | F156: 5299 | G156: 5020 | H156: 7007.825802 | I156: 21.4 | J156: 21.4 | K156: 21.4 | L156: 21.4 | M156: 21.4 | N156: 21.4 | O156: 22.3 | P156: 22.3 | Q156: 22.3 | R156: 22.3 | S156: 22.3 | T156: 22.3 | V156: 163 | W156: 0.03507 | X156: 0.1664 | Y156: 0.79853
A157: 3192 | B157: ASSIS I - 88 kV (A) | C157: 88 | D157: Ponta | E157: 3497 | F157: 5315 | G157: 5020 | H157: 7007.825802 | I157: 31.5 | J157: 31.5 | K157: 31.5 | L157: 31.5 | M157: 31.5 | N157: 31.5 | O157: 32.4 | P157: 32.4 | Q157: 32.4 | R157: 32.4 | S157: 32.4 | T157: 32.4 | V157: 164 | W157: - | X157: 0.12897 | Y157: 0.87103
A158: 3193 | B158: ASSIS III - 88 kV (A) | C158: 88 | D158: Ponta | E158: 3492 | F158: 5309 | G158: 5020 | H158: 7007.825802 | I158: 32.1 | J158: 32.1 | K158: 32.1 | L158: 32.1 | M158: 32.1 | N158: 32.1 | O158: 33.2 | P158: 33.2 | Q158: 33.2 | R158: 33.2 | S158: 33.2 | T158: 33.2
A159: 3197 | B159: CANDIDO MOTA - 88 kV (A) | C159: 88 | D159: Ponta | E159: 3640 | F159: 5477 | G159: 5020 | H159: 7007.825802 | I159: 14.2 | J159: 14.2 | K159: 14.2 | L159: 14.2 | M159: 14.2 | N159: 16.5 | O159: 17 | P159: 17 | Q159: 17 | R159: 17 | S159: 17 | T159: 17
A160: 9112 | B160: DECASA - 88 kV (A) | C160: 88 | D160: Ponta | E160: 3569 | F160: 5396 | G160: 5020 | H160: 7007.825802 | I160: 0.2 | J160: 0.2 | K160: 0.2 | L160: 0.2 | M160: 0.2 | N160: 0.2 | O160: 0.2 | P160: 0.2 | Q160: 0.2 | R160: 0.2 | S160: 0.2 | T160: 0.2
A161: 3184 | B161: HALOTEK FADEL - 88 kV (A) | C161: 88 | D161: Ponta | E161: 3539 | F161: 5362 | G161: 5020 | H161: 7007.825802 | I161: 7 | J161: 7 | K161: 7 | L161: 7 | M161: 7 | N161: 7 | O161: 7 | P161: 7 | Q161: 7 | R161: 7 | S161: 7 | T161: 7
A162: 3199 | B162: IBIRAREMA - 88 kV (A) | C162: 88 | D162: Ponta | E162: 3590 | F162: 5418 | G162: 5020 | H162: 7007.825802 | I162: 10.9 | J162: 10.9 | K162: 10.9 | L162: 10.9 | M162: 10.9 | N162: 10.9 | O162: 11.2 | P162: 11.2 | Q162: 11.2 | R162: 11.2 | S162: 11.2 | T162: 11.2
A163: 9519 | B163: MARACAI - 88 kV (A) | C163: 88 | D163: Ponta | E163: 3465 | F163: 5272 | G163: 5020 | H163: 7007.825802 | I163: 6.5 | J163: 6.5 | K163: 6.5 | L163: 6.5 | M163: 6.5 | N163: 6.5 | O163: 6.5 | P163: 6.5 | Q163: 6.5 | R163: 6.5 | S163: 6.5 | T163: 6.5
B164: MARTINOPOLIS - 88 kV (A) | C164: 88 | D164: Ponta | F164: 5087 | H164: 7007.825802 | I164: 14.4 | J164: 14.4 | K164: 14.4 | L164: 14.4 | M164: 14.4 | N164: 14.4 | O164: 14.9 | P164: 14.9 | Q164: 14.9 | R164: 14.9 | S164: 14.9 | T164: 14.9
A165: 3198 | B165: PALMITAL - 88 kV (A) | C165: 88 | D165: Ponta | E165: 3545 | F165: 5368 | G165: 5020 | H165: 7007.825802 | I165: 9.2 | J165: 9.2 | K165: 9.2 | L165: 9.2 | M165: 9.2 | N165: 9.2 | O165: 9.4 | P165: 9.4 | Q165: 9.4 | R165: 9.4 | S165: 9.4 | T165: 9.4
B166: PAR.PAULISTA2 - 88 kV (A) | C166: 88 | D166: Ponta | F166: 1780.913268 | H166: 7007.825802 | I166: 18.2 | J166: 18.2 | K166: 18.2 | L166: 18.2 | M166: 18.2 | N166: 18.2 | O166: 18.7 | P166: 18.7 | Q166: 18.7 | R166: 18.7 | S166: 18.7 | T166: 18.7
A167: 3171 | B167: PRE.PRUDENTE1 - 88 kV (A) | C167: 88 | D167: Ponta | E167: 3313 | F167: 5040 | G167: 5020 | H167: 7007.825802 | I167: 71.2 | J167: 71.2 | K167: 71.2 | L167: 71.2 | M167: 71.2 | N167: 71.2 | O167: 73.3 | P167: 73.3 | Q167: 73.3 | R167: 73.3 | S167: 73.3 | T167: 73.3
A168: 9521 | B168: QUATA II - 88 kV (A) | C168: 88 | D168: Ponta | E168: 3418 | F168: 5202 | G168: 5020 | H168: 7007.825802 | I168: 14.6 | J168: 14.6 | K168: 14.6 | L168: 14.6 | M168: 14.6 | N168: 14.6 | O168: 14.6 | P168: 14.6 | Q168: 14.6 | R168: 14.6 | S168: 14.6 | T168: 14.6
A169: 3196 | B169: RANCHARIA - 88 kV (A) | C169: 88 | D169: Ponta | E169: 3378 | F169: 5156 | G169: 5020 | H169: 7007.825802 | I169: 17.5 | J169: 17.5 | K169: 17.5 | L169: 17.5 | M169: 17.5 | N169: 17.5 | O169: 18 | P169: 18 | Q169: 18 | R169: 18 | S169: 18 | T169: 18
A170: 3195 | B170: SANTA LINA - 88 kV (A) | C170: 88 | D170: Ponta | E170: 3408 | F170: 5211 | G170: 5020 | H170: 7007.825802 | I170: 7 | J170: 7 | K170: 7 | L170: 7 | M170: 7 | N170: 7 | O170: 7.2 | P170: 7.2 | Q170: 7.2 | R170: 7.2 | S170: 7.2 | T170: 7.2
A171: 9513 | B171: UTE COCAL - 88 kV (A) | C171: 88 | D171: Ponta | E171: 3448 | F171: 5250 | G171: 5020 | H171: 7007.825802 | I171: 2 | J171: 2 | K171: 2 | L171: 2 | M171: 2 | N171: 2 | O171: 2 | P171: 2 | Q171: 2 | R171: 2 | S171: 2 | T171: 2
A172: 3180 | B172: ALTO ALEGRE - 138 kV (A) | C172: 138 | D172: Fora Ponta | E172: 3187 | F172: 4884 | G172: 5020 | H172: 7007.825802 | I172: 4 | J172: 4 | K172: 4 | L172: 4 | M172: 4 | N172: 4 | O172: 4 | P172: 4 | Q172: 4 | R172: 4 | S172: 4 | T172: 4
A173: 3190 | B173: BASTOS - 138 kV (A) | C173: 138 | D173: Fora Ponta | E173: 3220 | F173: 4868 | G173: 5020 | H173: 7007.825802 | I173: 18 | J173: 18 | K173: 18 | L173: 18 | M173: 18 | N173: 18 | O173: 19.2 | P173: 19.2 | Q173: 19.2 | R173: 19.2 | S173: 19.2 | T173: 19.2
A174: 3155 | B174: BORBOREMA - 138 kV (A) | C174: 138 | D174: Fora Ponta | E174: 3426 | F174: 5320 | G174: 5020 | H174: 7007.825802 | I174: 23.7 | J174: 23.7 | K174: 23.7 | L174: 23.7 | M174: 23.7 | N174: 23.7 | O174: 24.7 | P174: 24.7 | Q174: 24.7 | R174: 24.7 | S174: 24.7 | T174: 24.7
A175: 3158 | B175: BRA. PAULISTA - 138 kV (A) | C175: 138 | D175: Fora Ponta | E175: 4133 | F175: 6061 | G175: 5020 | H175: 7007.825802 | I175: 165.9 | J175: 165.9 | K175: 165.9 | L175: 165.9 | M175: 165.9 | N175: 165.9 | O175: 171.7 | P175: 171.7 | Q175: 171.7 | R175: 171.7 | S175: 171.7 | T175: 171.7
A176: 550 | B176: CAPIVARA - 138 kV (A) | C176: 138 | D176: Fora Ponta | E176: 3140 | F176: 4882 | G176: 10 | H176: 13.41724258 | I176: 6.7 | J176: 6.7 | K176: 6.7 | L176: 6.7 | M176: 6.7 | N176: 6.7 | O176: 6.9 | P176: 6.9 | Q176: 6.9 | R176: 6.9 | S176: 6.9 | T176: 6.9
A177: 638 | B177: CATANDUVA - 138 kV (A) | C177: 138 | D177: Fora Ponta | E177: 3359 | F177: 5250 | G177: 5020 | H177: 7007.825802 | I177: 87.6 | J177: 87.6 | K177: 87.6 | L177: 87.6 | M177: 87.6 | N177: 87.6 | O177: 90.5 | P177: 90.5 | Q177: 90.5 | R177: 90.5 | S177: 90.5 | T177: 90.5
A178: 3175 | B178: ENEIDA - 138 kV (A) | C178: 138 | D178: Fora Ponta | E178: 3187 | F178: 4885 | G178: 5020 | H178: 7007.825802 | I178: 2.8 | J178: 2.8 | K178: 2.8 | L178: 2.8 | M178: 2.8 | N178: 2.8 | O178: 2.8 | P178: 2.8 | Q178: 2.8 | R178: 2.8 | S178: 2.8 | T178: 2.8
B179: OSVALDO CRUZ - 138 kV (A) | C179: 138 | D179: Fora Ponta | F179: 4868 | H179: 7007.825802 | I179: 19.9 | J179: 19.9 | K179: 19.9 | L179: 19.9 | M179: 19.9 | N179: 19.9 | O179: 20 | P179: 20 | Q179: 20 | R179: 20 | S179: 20 | T179: 20
A180: 3172 | B180: PRE.PRUDENTE4 - 138 kV (A) | C180: 138 | D180: Fora Ponta | E180: 3189 | F180: 4888 | G180: 5020 | H180: 7007.825802 | I180: 38.3 | J180: 38.3 | K180: 38.3 | L180: 38.3 | M180: 38.3 | N180: 38.3 | O180: 39.6 | P180: 39.6 | Q180: 39.6 | R180: 39.6 | S180: 39.6 | T180: 39.6
A181: 3178 | B181: PRE.PRUDENTE5 - 138 kV (A) | C181: 138 | D181: Fora Ponta | E181: 3191 | F181: 4880 | G181: 5020 | H181: 7007.825802 | I181: 36.5 | J181: 36.5 | K181: 36.5 | L181: 36.5 | M181: 36.5 | N181: 36.5 | O181: 44.2 | P181: 44.2 | Q181: 44.2 | R181: 44.2 | S181: 44.2 | T181: 44.2
B182: PRE.VENCESLAU - 138 kV (A) | C182: 138 | D182: Fora Ponta | F182: 4841 | H182: 7007.825802 | I182: 60.5 | J182: 60.5 | K182: 60.5 | L182: 60.5 | M182: 60.5 | N182: 60.5 | O182: 62.6 | P182: 62.6 | Q182: 62.6 | R182: 62.6 | S182: 62.6 | T182: 62.6
A183: 3159 | B183: STA.TEREZINHA - 138 kV (A) | C183: 138 | D183: Fora Ponta | E183: 4131 | F183: 6059 | G183: 5020 | H183: 7007.825802 | I183: 37 | J183: 37 | K183: 37 | L183: 37 | M183: 37 | N183: 37 | O183: 37 | P183: 37 | Q183: 37 | R183: 37 | S183: 37 | T183: 37
A184: 3191 | B184: TUPA - 138 kV (A) | C184: 138 | D184: Fora Ponta | E184: 3233 | F184: 5051 | G184: 5020 | H184: 7007.825802 | I184: 31.5 | J184: 31.5 | K184: 31.5 | L184: 31.5 | M184: 31.5 | N184: 31.5 | O184: 32 | P184: 32 | Q184: 32 | R184: 32 | S184: 32 | T184: 32
B185: URUPES - 138 kV (A) | C185: 138 | D185: Fora Ponta | F185: 1775.452531 | H185: 7007.825802 | I185: 26.2 | J185: 26.2 | K185: 26.2 | L185: 26.2 | M185: 26.2 | N185: 26.2 | O185: 26.2 | P185: 26.2 | Q185: 26.2 | R185: 26.2 | S185: 26.2 | T185: 26.2
A186: 642 | B186: FLOR.PAULISTA - 69 kV (A) | C186: 69 | D186: Fora Ponta | E186: 3185 | F186: 4868 | G186: 5020 | H186: 7007.825802 | I186: 22.1 | J186: 22.1 | K186: 22.1 | L186: 22.1 | M186: 22.1 | N186: 22.1 | O186: 22.1 | P186: 22.1 | Q186: 22.1 | R186: 22.1 | S186: 22.1 | T186: 22.1
A187: 672 | B187: UBARANA - 69 kV (A) | C187: 69 | D187: Fora Ponta | E187: 3329 | F187: 5189 | G187: 5020 | H187: 7007.825802 | I187: 25.2 | J187: 25.2 | K187: 25.2 | L187: 25.2 | M187: 25.2 | N187: 25.2 | O187: 26.3 | P187: 26.3 | Q187: 26.3 | R187: 26.3 | S187: 26.3 | T187: 26.3
A188: 3192 | B188: ASSIS I - 88 kV (A) | C188: 88 | D188: Fora Ponta | E188: 3448 | F188: 5281 | G188: 5020 | H188: 7007.825802 | I188: 31.2 | J188: 31.2 | K188: 31.2 | L188: 31.2 | M188: 31.2 | N188: 31.2 | O188: 32.1 | P188: 32.1 | Q188: 32.1 | R188: 32.1 | S188: 32.1 | T188: 32.1
A189: 3193 | B189: ASSIS III - 88 kV (A) | C189: 88 | D189: Fora Ponta | E189: 3442 | F189: 5274 | G189: 5020 | H189: 7007.825802 | I189: 34.8 | J189: 34.8 | K189: 34.8 | L189: 34.8 | M189: 34.8 | N189: 34.8 | O189: 35.9 | P189: 35.9 | Q189: 35.9 | R189: 35.9 | S189: 35.9 | T189: 35.9
A190: 3197 | B190: CANDIDO MOTA - 88 kV (A) | C190: 88 | D190: Fora Ponta | E190: 3626 | F190: 5484 | G190: 5020 | H190: 7007.825802 | I190: 14.4 | J190: 14.4 | K190: 14.4 | L190: 14.4 | M190: 14.4 | N190: 16.5 | O190: 17.2 | P190: 17.2 | Q190: 17.2 | R190: 17.2 | S190: 17.2 | T190: 17.2
A191: 9112 | B191: DECASA - 88 kV (A) | C191: 88 | D191: Fora Ponta | E191: 3538 | F191: 5382 | G191: 5020 | H191: 7007.825802 | I191: 0.5 | J191: 0.5 | K191: 0.5 | L191: 0.5 | M191: 0.5 | N191: 0.5 | O191: 0.5 | P191: 0.5 | Q191: 0.5 | R191: 0.5 | S191: 0.5 | T191: 0.5
A192: 3184 | B192: HALOTEK FADEL - 88 kV (A) | C192: 88 | D192: Fora Ponta | E192: 3500 | F192: 5340 | G192: 5020 | H192: 7007.825802 | I192: 7 | J192: 7 | K192: 7 | L192: 7 | M192: 7 | N192: 7 | O192: 7 | P192: 7 | Q192: 7 | R192: 7 | S192: 7 | T192: 7
A193: 3199 | B193: IBIRAREMA - 88 kV (A) | C193: 88 | D193: Fora Ponta | E193: 3563 | F193: 5411 | G193: 5020 | H193: 7007.825802 | I193: 10.8 | J193: 10.8 | K193: 10.8 | L193: 10.8 | M193: 10.8 | N193: 10.8 | O193: 11.1 | P193: 11.1 | Q193: 11.1 | R193: 11.1 | S193: 11.1 | T193: 11.1
A194: 9519 | B194: MARACAI - 88 kV (A) | C194: 88 | D194: Fora Ponta | E194: 3407 | F194: 5226 | G194: 5020 | H194: 7007.825802 | I194: 6.5 | J194: 6.5 | K194: 6.5 | L194: 6.5 | M194: 6.5 | N194: 6.5 | O194: 6.5 | P194: 6.5 | Q194: 6.5 | R194: 6.5 | S194: 6.5 | T194: 6.5
B195: MARTINOPOLIS - 88 kV (A) | C195: 88 | D195: Fora Ponta | F195: 4986 | H195: 7007.825802 | I195: 15.7 | J195: 15.7 | K195: 15.7 | L195: 15.7 | M195: 15.7 | N195: 15.7 | O195: 16.2 | P195: 16.2 | Q195: 16.2 | R195: 16.2 | S195: 16.2 | T195: 16.2
A196: 3198 | B196: PALMITAL - 88 kV (A) | C196: 88 | D196: Fora Ponta | E196: 3508 | F196: 5348 | G196: 5020 | H196: 7007.825802 | I196: 8.3 | J196: 8.3 | K196: 8.3 | L196: 8.3 | M196: 8.3 | N196: 8.3 | O196: 9.4 | P196: 9.4 | Q196: 9.4 | R196: 9.4 | S196: 9.4 | T196: 9.4
B197: PAR.PAULISTA2 - 88 kV (A) | C197: 88 | D197: Fora Ponta | F197: 1787.76189 | H197: 7007.825802 | I197: 18.6 | J197: 18.6 | K197: 18.6 | L197: 18.6 | M197: 18.6 | N197: 18.6 | O197: 19.9 | P197: 19.9 | Q197: 19.9 | R197: 19.9 | S197: 19.9 | T197: 19.9
A198: 3171 | B198: PRE.PRUDENTE1 - 88 kV (A) | C198: 88 | D198: Fora Ponta | E198: 3213 | F198: 4925 | G198: 5020 | H198: 7007.825802 | I198: 79.7 | J198: 79.7 | K198: 79.7 | L198: 79.7 | M198: 79.7 | N198: 79.7 | O198: 82 | P198: 82 | Q198: 82 | R198: 82 | S198: 82 | T198: 82
A199: 9521 | B199: QUATA II - 88 kV (A) | C199: 88 | D199: Fora Ponta | E199: 3347 | F199: 5135 | G199: 5020 | H199: 7007.825802 | I199: 14.6 | J199: 14.6 | K199: 14.6 | L199: 14.6 | M199: 14.6 | N199: 14.6 | O199: 14.6 | P199: 14.6 | Q199: 14.6 | R199: 14.6 | S199: 14.6 | T199: 14.6
A200: 3196 | B200: RANCHARIA - 88 kV (A) | C200: 88 | D200: Fora Ponta | E200: 3295 | F200: 5076 | G200: 5020 | H200: 7007.825802 | I200: 18.5 | J200: 18.5 | K200: 18.5 | L200: 18.5 | M200: 18.5 | N200: 18.5 | O200: 19 | P200: 19 | Q200: 19 | R200: 19 | S200: 19 | T200: 19
A201: 3195 | B201: SANTA LINA - 88 kV (A) | C201: 88 | D201: Fora Ponta | E201: 3334 | F201: 5147 | G201: 5020 | H201: 7007.825802 | I201: 6.9 | J201: 6.9 | K201: 6.9 | L201: 6.9 | M201: 6.9 | N201: 6.9 | O201: 7.1 | P201: 7.1 | Q201: 7.1 | R201: 7.1 | S201: 7.1 | T201: 7.1
A202: 9513 | B202: UTE COCAL - 88 kV (A) | C202: 88 | D202: Fora Ponta | E202: 3386 | F202: 5197 | G202: 5020 | H202: 7007.825802 | I202: 4 | J202: 4 | K202: 4 | L202: 4 | M202: 4 | N202: 4 | O202: 4 | P202: 4 | Q202: 4 | R202: 4 | S202: 4 | T202: 4
B441: Transmissora | C441: Indice de atualização | D441: ENCARGO DE CONEXÃO repassável | E441: Instalações com Estabelecimento de RAP que entraram em operação | F441: PA para repasse a tarifa | G441: PA Qualidade DIT | H441: ENCARGO DE CONEXÃO ou PA não rapassável a tarifa (REN 67/2004 ou 68/2004) | I441: PA Empreendimento Autorizado sem estabelecimento prévio de RAP | J441: Estimativa | K441: Estimativa Total do Encargo de Conexão
B442: CTEEP | C442: IPCA | D442: 4630676.587 | E442: 0 | F442: 0 | G442: 0 | H442: 0 | I442: 0 | J442: 059/2001
B452: Empresa | C452: idsgtag | D452: dtConv | E452: VlrMontante | F452: VlrTarOutros | G452: VlrTarB4a | H452: VlrTarB4b
... 25 more rows

Sheet Resultado
A1: =CAPA!C7&" "&CAPA!#REF!&"/"&YEAR(CAPA!$C$10) -> 
B2: Resultado | F2: Parâmetros a serem considerados para os Reajustes subsequentes
B4: RA1 | D4: =D40+D45 -> 1841963435 | F4: FATOR X | K4: Última versão enviada: | L4: 20
B5: RA0 | D5: =Mercado!D24 -> 1650877820 | F5: Componente T do Fator X | G5: ='VPB e Fator X'!C36 ->  | K5: Data de envio | L5: 2020-07-06T12:54:59
B6: Índice de Reposição/Reajuste (Anexo II) | D6: =D4/D5-1 -> 0.1157478846 | F6: Componente Pd do Fator X | G6: ='VPB e Fator X'!C33 -> 0.00180843
B7: Componentes Financeiros | D7: =Financeiros!E8 -> 0.01816539018 | K7: Efeito Consumidor
B8: Índice de Reposição/Reajuste com Financeiros (Anexo I) | D8: =D6+D7 -> 0.1339132748 | F8: PERDAS | K8: Efeito Grupo A - Alta tensão | L8: 0.06900047343
D9: 0.1934 | F9: Perdas Não Técnicas | G9: =Entrada!G33 -> 0 | K9: Efeito Grupo B - Baixa tensão | L9: 0.04028816532
C10: Anterior | D10: Atual | F10: Perdas Técnicas | G10: =Entrada!G34 -> 0 | K10: Efeito tarifário médio AT+BT | L10: 0.0487462921
B11: TOTAL (Parcela A + Parcela B) | C11: =C45+C40 -> 1650877820 | D11: =D45+D40 -> 1841963435 | G11: =G5+G6 ->  | K11: Tarifa B1 - Residencial (R$) | L11: 513.8869931
D12: =D11+Financeiros!D8 -> 1871952275
K13: Subvenção da CDE para descontos tarifários (Valores anuais)
K14: Subsídio Carga Fonte Incentivada | L14: 49889840.56
K15: Subsídio Geração Fonte Incentivada | L15: 3659405.764
B16: Parcela A | F16: Formação da Parcela B e Reposicionamento (Resumo) | K16: Subsídio Distribuição | L16: 0
K17: Subsídio Água, Esgoto e Saneamento | L17: 6816265.241
C18: Anterior | D18: Atual | K18: Subsídio Rural | L18: 27804610.18
B19: ENCARGOS | C19: =SUM(C20:C28) -> 288674377.2 | D19: =SUM(D20:D28) -> 312204634.1 | F19: Custo de Administração, Operação e Manutenção (CAOM) | G19: =SUM(G20:G20) ->  | K19: Subsídio Irrigante/Aquicultor | L19: 6202732.639
B20: Reserva Global de Reversão – RGR | D20: =Encargos!C16 -> 0 | F20: Custos Operacionais (CO) | G20: ='VPB e Fator X'!C121+Encargos!C14 -> 
B21: Conta de Consumo de Combustíveis – CCC | D21: =Encargos!C9 -> 0 | F21: Custo Anual dos Ativos (CAA) | G21: =SUM(G22:G24) ->  | K21: Versão de Mercado
B22: Taxa de Fisc. de Serviços de E.E. – TFSEE | C22: ='Votos e NTs'!BM250 -> 1989254.161 | D22: =Encargos!C17 -> 1959584.691 | F22: Remuneração do Capital (RC) | G22: ='VPB e Fator X'!C95 ->  | K22: Status de Sincronização de BDL | L22: Trabalha na pasta de rede
B23: Conta de Desenvolvimento Energético – CDE | C23: ='Votos e NTs'!BM251+'Votos e NTs'!BM252+'Votos e NTs'!BM253 -> 200780875.1 | D23: =Encargos!C10 -> 225954126.2 | F23: Quota de Reintegração Regulatória (QRR) | G23: ='VPB e Fator X'!C77 -> 0 | K23: Última Sincronização
B24: Compensação financeira - CFURH | C24: ='Votos e NTs'!BM254 -> 0 | D24: =Encargos!C11 -> 0 | F24: Custo anual das instalações móveis e imóveis (CAIMI) | G24: ='VPB e Fator X'!C67 -> 0
B25: Encargos Serv. Sist. - ESS e Energ. Reserv. - EER | C25: ='Votos e NTs'!BM255 -> 32498166.08 | D25: =Encargos!C12 -> 36590917.82 | F25: Parcela B (VPB) | G25: =SUM(G21,G19) -> 
B26: PROINFA | C26: ='Votos e NTs'!BM256 -> 37950452.25 | D26: =Encargos!C13 -> 31396250.3 | F26: Índice de Produtividade da Parcela B | G26: ='VPB e Fator X'!C33 -> 0.00180843
B27: P&D e Eficiência Energética | C27: ='Votos e NTs'!BM257 -> 15455629.59 | D27: =Encargos!C15 -> 16303755.13 | F27: Mecanismo de Incentivo à Qualidade | G27: ='VPB1'!F42 -> -0.003707154638
F28: Parcela B com ajustes | G28: =(1-G26-G27)*G25 -> 
B29: TRANSPORTE | C29: =SUM(C30:C37) -> 236594322.7 | D29: =SUM(D30:D37) -> 330884538.2 | F29: Outras Receitas (OR) | G29: =UDEROR!C2 -> 24161824.99
B30: Rede Básica | C30: ='Votos e NTs'!BM260 -> 69586269.33 | D30: ='RB e Conexão'!E6 -> 106279183.4 | F30: Excedente de Reativos (ER) | G30: =UDEROR!C6 -> 4051513.609
B31: Rede Básica Fronteira | C31: ='Votos e NTs'!BM261 -> 98385777.14 | D31: ='RB e Conexão'!E7 -> 143093583.2 | F31: Ultrapassagem de Demanda (UD) | G31: =UDEROR!C7 -> 6990363.15
B32: Rede Básica ONS (A2) | C32: ='Votos e NTs'!BM262 -> 1292259.189 | D32: =VLOOKUP("TUSDg ONS DRP",TUSDG[],2,FALSE) -> 1593458.64 | F32: Parcela B deduzidas as outras receitas | G32: =G28-SUM(G29:G31) -> 
B33: Rede Básica Export. (A2) | C33: ='Votos e NTs'!BM263 -> 0 | D33: =VLOOKUP("TUSDg Export DRP",TUSDG[],2,FALSE) -> 0
B34: MUST Itaipu | C34: ='Votos e NTs'!BM264 -> 11983790.77 | D34: ='RB e Conexão'!E8 -> 16964996.83 | E34: 15453648.9 | F34: 1. Receita Requerida (RR) | G34: =G28+D40 ->  | J34: =D34-E34 -> 1511347.931
B35: Transporte de Itaipu | C35: ='Votos e NTs'!BM265 -> 18452010.88 | D35: =SUMPRODUCT(itaiputransporte[Potência],itaiputransporte[Tarifa DRP]) -> 22432475.76 | F35: 2. Outras Receitas (OR) | G35: =G29 -> 24161824.99
B36: Conexão | C36: ='Votos e NTs'!BM266 -> 3789410.458 | D36: ='RB e Conexão'!E9 -> 4639937.94 | F36: 3. Receita Verificada (RV) | G36: =Mercado!D24 -> 1650877820
B37: Uso do sistema de distribuição e CCD | C37: ='Votos e NTs'!BM267 -> 33104804.89 | D37: =CUSD!D14+CUSD!E14 -> 35880902.38
B38: ENERGIA | C38: ='Votos e NTs'!BM268 -> 718771023.2 | D38: =Energia!D15 -> 797860013
B39: RECEITA IRRECUPERÁVEL | C39: ='Votos e NTs'!BM269 -> 1111968.848 | D39: =Mercado!H38 -> 1137508.126
B40: VPA (ENCARGO + TRANSPORTE + ENERGIA+RI) | C40: =C19+C29+C38+C39 -> 1245151692 | D40: =D19+D29+D38+D39 -> 1442086693
B42: Parcela B
D44: VPB1
B45: ="Parcela B "&IF(CAPA!C7="Revisão","(menos Outras Receitas)",) -> Parcela B | C45: ='Votos e NTs'!BM270 -> 405726127.8 | D45: =IF(CAPA!$C$7="Revisão",Resultado!$G$32,'VPB1'!$C$43) -> 399876741.8

Sheet Gráfico B1 (2)
D4: =D5/$J$5 -> 0.1841672238 | E4: =E5/$J$5 -> 0.3417061807 | F4: =F5/$J$5 -> 0.1715662619 | G4: =G5/$J$5 -> 0.06769336798 | H4: =H5/$J$5 -> 0.2348669657
D5: 249586 | E5: 463085 | F5: 232509 | G5: 91739 | H5: 318295 | J5: =SUM(D5:H5) -> 1355214
B6: Data | C6: Processo | D6: Bragantina | E6: Caiua | F6: Nacional | G6: Oeste | H6: Vale | I6: ESS | J6: IGP-M | K6: IPCA
B7: 2009-04-01 | C7: Reajuste 2009 | D7: 343.09 | E7: 266.15 | F7: 279.37 | G7: 289.72 | H7: 314.73
B8: 2010-04-01 | C8: Reajuste 2010 | D8: 345.03 | E8: 281.95 | F8: 312.01 | G8: 304.1 | H8: 299.01 | J8: =$D$4*D8+$E$4*E8+$F$4*F8+$G$4*G8+$H$4*H8 -> 304.2307888 | K8: =J8 -> 304.2307888
B9: 2011-04-01 | C9: Reajuste 2011 | D9: 364.54 | E9: 297.64 | F9: 328.18 | G9: 313.41 | H9: 331.51 | J9: =J8*VLOOKUP(B9,Índices!$B$159:$F$388,2,0)/VLOOKUP(B8,Índices!$B$159:$F$388,2,0) -> 336.4711172 | K9: =K8*VLOOKUP(B9,Índices!$B$159:$F$388,3,0)/VLOOKUP(B8,Índices!$B$159:$F$388,3,0) -> 324.0369948
B10: 2012-04-01 | C10: Revisão 2012 | D10: 382.81 | E10: 326.98 | F10: 338.46 | G10: 333.56 | H10: 319.8 | J10: =J9*VLOOKUP(B10,Índices!$B$159:$F$388,2,0)/VLOOKUP(B9,Índices!$B$159:$F$388,2,0) -> 348.7575045 | K10: =K9*VLOOKUP(B10,Índices!$B$159:$F$388,3,0)/VLOOKUP(B9,Índices!$B$159:$F$388,3,0) -> 340.57638
B11: 2012-12-01 | C11: RTE 2013 | D11: =AVERAGE($E$11*D10/$E$10,$E$11*D12/$E$12) -> 306.67723 | E11: 267.86 | F11: =AVERAGE($E$11*F10/$E$10,$E$11*F12/$E$12) -> 266.3724348 | G11: =AVERAGE($E$11*G10/$E$10,$E$11*G12/$E$12) -> 271.7768065 | H11: =AVERAGE($E$11*H10/$E$10,$E$11*H12/$E$12) -> 266.3217394 | J11: =J10*VLOOKUP(B11,Índices!$B$159:$F$388,2,0)/VLOOKUP(B10,Índices!$B$159:$F$388,2,0) -> 370.5611576 | K11: =K10*VLOOKUP(B11,Índices!$B$159:$F$388,3,0)/VLOOKUP(B10,Índices!$B$159:$F$388,3,0) -> 353.8361758
B12: 2013-04-01 | C12: Reajuste 2013 | D12: 331.25 | E12: 296 | F12: 282.32 | G12: 298.7 | H12: 299.1 | J12: =J11*VLOOKUP(B12,Índices!$B$159:$F$388,2,0)/VLOOKUP(B11,Índices!$B$159:$F$388,2,0) -> 374.2097455 | K12: =K11*VLOOKUP(B12,Índices!$B$159:$F$388,3,0)/VLOOKUP(B11,Índices!$B$159:$F$388,3,0) -> 362.6917549
B13: 2014-04-01 | C13: Reajuste 2014 | D13: 378.43 | E13: 338.04 | F13: 328.86 | G13: 380.18 | H13: 355.34 | J13: =J12*VLOOKUP(B13,Índices!$B$159:$F$388,2,0)/VLOOKUP(B12,Índices!$B$159:$F$388,2,0) -> 404.089821 | K13: =K12*VLOOKUP(B13,Índices!$B$159:$F$388,3,0)/VLOOKUP(B12,Índices!$B$159:$F$388,3,0) -> 385.4671729
B14: 2015-04-01 | C14: RTE 2015 | D14: 492.72 | E14: 441.1 | F14: 441.72 | G14: 484.53 | H14: 453.79 | J14: =J13*VLOOKUP(B14,Índices!$B$159:$F$388,2,0)/VLOOKUP(B13,Índices!$B$159:$F$388,2,0) -> 418.4365274 | K14: =K13*VLOOKUP(B14,Índices!$B$159:$F$388,3,0)/VLOOKUP(B13,Índices!$B$159:$F$388,3,0) -> 416.9655721
B15: 2015-04-01 | C15: Reajuste 2015 | D15: 484.37 | E15: 447.36 | F15: 424.02 | G15: 553.35 | H15: 451.6 | J15: =J14*VLOOKUP(B15,Índices!$B$159:$F$388,2,0)/VLOOKUP(B14,Índices!$B$159:$F$388,2,0) -> 418.4365274 | K15: =K14*VLOOKUP(B15,Índices!$B$159:$F$388,3,0)/VLOOKUP(B14,Índices!$B$159:$F$388,3,0) -> 416.9655721
B16: 2016-04-01 | C16: Revisão 2016 | D16: 492.5585847 | E16: 436.6494479 | F16: 418.8667197 | G16: 475.3937075 | H16: 450.2246988 | J16: =J15*VLOOKUP(B16,Índices!$B$159:$F$388,2,0)/VLOOKUP(B15,Índices!$B$159:$F$388,2,0) -> 462.9247528 | K16: =K15*VLOOKUP(B16,Índices!$B$159:$F$388,3,0)/VLOOKUP(B15,Índices!$B$159:$F$388,3,0) -> 455.6507806
B17: 2017-06-01 | C17: Reajuste 2017 | D17: 432.96 | E17: 432.96 | F17: 432.96 | G17: 432.96 | H17: 432.96 | J17: =J16*VLOOKUP(B17,Índices!$B$159:$F$388,2,0)/VLOOKUP(B16,Índices!$B$159:$F$388,2,0) -> 470.8951452 | K17: =K16*VLOOKUP(B17,Índices!$B$159:$F$388,3,0)/VLOOKUP(B16,Índices!$B$159:$F$388,3,0) -> 474.6289861
B18: 2018-06-01 | C18: Reajuste 2018 | D18: 498.8444607 | E18: 498.8444607 | F18: 498.8444607 | G18: 498.8444607 | H18: 498.8444607 | J18: =J17*VLOOKUP(B18,Índices!$B$159:$F$388,2,0)/VLOOKUP(B17,Índices!$B$159:$F$388,2,0) -> 503.4869697 | K18: =K17*VLOOKUP(B18,Índices!$B$159:$F$388,3,0)/VLOOKUP(B17,Índices!$B$159:$F$388,3,0) -> 495.4704383
B19: 2019-06-01 | C19: Reajuste 2019 | D19: 497.351539 | E19: 497.351539 | F19: 497.351539 | G19: 497.351539 | H19: 497.351539 | J19: =J18*VLOOKUP(B19,Índices!$B$159:$F$388,2,0)/VLOOKUP(B18,Índices!$B$159:$F$388,2,0) -> 536.2647095 | K19: =K18*VLOOKUP(B19,Índices!$B$159:$F$388,3,0)/VLOOKUP(B18,Índices!$B$159:$F$388,3,0) -> 512.1492969
B20: 2020-06-01 | C20: Reajuste 2020 | D20: =E20 -> 513.8869931 | E20: =F20 -> 513.8869931 | F20: =Resultado!L11 -> 513.8869931 | G20: =F20 -> 513.8869931 | H20: =G20 -> 513.8869931 | J20: =J19*VLOOKUP(B20,Índices!$B$159:$F$388,2,0)/VLOOKUP(B19,Índices!$B$159:$F$388,2,0) -> 575.4870291 | K20: =K19*VLOOKUP(B20,Índices!$B$159:$F$388,3,0)/VLOOKUP(B19,Índices!$B$159:$F$388,3,0) -> 522.7574577
D21: =$F$20/D8 -1 -> 0.4893980034 | E21: 0.822617461 | F21: =$F$20/F8 -1 -> 0.6470209068 | G21: =$F$20/G8 -1 -> 0.6898618649 | H21: 0.7186281165 | I21: =F20/J8-1 -> 0.6891353932 | J21: =J20/J8 -1 -> 0.8916133745 | K21: =K20/K8 -1 -> 0.7182924176
B23: variação nos ultimos 4 anos | E23: =D20/D17-1 -> 0.1869156345 | J23: =J20/J17-1 -> 0.2221128948 | K23: =K20/K17-1 -> 0.1014023016
C24: B1 | D24: =(D8*D5+E8*E5+F8*F5+G8*G5+H8*H5)/J5 -> 304.2307888 | E24: =D20/D24-1 -> 0.6891353932 | J24: =J20/$D$24-1 -> 0.8916133745 | K24: =K20/$D$24-1 -> 0.7182924176

Sheet Votos e NTs
B2: Tabelas | D2: Gráficos
B4: Consumidores | D4: Composição da Receita | K4: Composição da Receita com Tributos | N4: Composição da Receita com detalhamento de Encargos | R4: Composição da Receita com Tributos
B5: Mercado
B6: Encargos
B7: Custo do Transporte de Energia
B8: Perdas
B9: Energia Requerida
B10: Energia na DRA
B11: Contratos
B12: Fator X
B13: Parcela B
B14: CVA em Processamento
B15: Financeiros
B16: Subsídios
B17: Efeito Médio AT + BT
B18: Avaliação RTA
B19: Variação do Custo de Energia
B20: Dados dos Gráficos
E23: Impacto da RTA na Tarifa | K23: Composição da Receita | N23: Composição da Receita com detalhamento de Encargos | T23: Composição da Receita com Tributos | AB23: Tipo | AC23: Tipo | AE23: B1 - Residencial | AF23: IGPM | AG23: IPCA | AH23: Data
E24: Encargos Setoriais | H24: =BP249 -> 0.01425338953 | K24: Custo de Distribuição | L24: =Resultado!D45 -> 399876741.8 | N24: Custo de Distribuição | P24: =Resultado!D45 -> 399876741.8 | T24: Custo de Distribuição | U24: =L24/$U$33 -> 0.1610021203 | AB24: =YEAR(BD!B79) -> 1900 | AC24: Reajuste | AD24: =CONCATENATE(AC24," ",AB24) -> Reajuste 1900 | AE24: =ROUND(BD!D79,2) -> 0 | AF24: =AE24 -> 0 | AG24: =AF24 -> 0 | AH24: =BD!B79-31 -> -31
E25: Custos de Transmissão | H25: =BP259 -> 0.05711537181 | K25: Custo de Energia | L25: =Resultado!D38 -> 797860013 | N25: Custo de Energia | P25: =Resultado!D38 -> 797860013 | T25: Custo de Energia | U25: =L25/$U$33 -> 0.3212418737 | AB25: =YEAR(BD!B78) -> 1900 | AC25: Reajuste | AD25: =CONCATENATE(AC25," ",AB25) -> Reajuste 1900 | AE25: =ROUND(BD!D78,2) -> 0 | AF25: =AF24*VLOOKUP(AH25,Índices!$B$147:$D$495,2,0)/VLOOKUP(AH24,Índices!$B$147:$D$495,2,0) ->  | AG25: =AG24*VLOOKUP(AH25,Índices!$B$147:$D$495,3,0)/VLOOKUP(AH24,Índices!$B$147:$D$495,3,0) ->  | AH25: =BD!B78-31 -> -31
E26: Custos de Aquisição de Energia | H26: =BP268 -> 0.04790775826 | K26: Custo de Transmissão | L26: =Resultado!D29 -> 330884538.2 | N26: Custo de Transmissão | P26: =Resultado!D29 -> 330884538.2 | T26: Custo de Transmissão | U26: =L26/$U$33 -> 0.1332238329 | AB26: =YEAR(BD!B77) -> 1900 | AC26: Reajuste | AD26: Reajuste 1900 | AE26: =BD!D77 -> 0 | AF26: =AF25*VLOOKUP(AH26,Índices!$B$147:$D$495,2,0)/VLOOKUP(AH25,Índices!$B$147:$D$495,2,0) ->  | AG26: =AG25*VLOOKUP(AH26,Índices!$B$147:$D$495,3,0)/VLOOKUP(AH25,Índices!$B$147:$D$495,3,0) ->  | AH26: =BD!B77-31 -> -31
E27: Distribuição | H27: =BP270 -> -0.003543200644 | K27: Encargos Setoriais | L27: =Resultado!D19 -> 312204634.1 | N27: Receitas Irrecuperáveis | P27: =LnkTxtRI -> 1137508.126 | T27: Encargos Setoriais | U27: =L27/$U$33 -> 0.1257027549 | AB27: =YEAR(BD!B76) -> 1900 | AC27: RTE | AD27: RTE 1900 | AE27: =BD!D76 -> 0 | AF27: =AF26*VLOOKUP(AH27,Índices!$B$147:$D$495,2,0)/VLOOKUP(AH26,Índices!$B$147:$D$495,2,0) ->  | AG27: =AG26*VLOOKUP(AH27,Índices!$B$147:$D$495,3,0)/VLOOKUP(AH26,Índices!$B$147:$D$495,3,0) ->  | AH27: =BD!B76-31 -> -31
E28: Receitas Irrecuperáveis | H28: =BP269 -> 1.547093129e-05 | K28: Receitas Irrecuperáveis | L28: =LnkTxtRI -> 1137508.126 | N28: PROINFA | P28: =Resultado!D26 -> 31396250.3 | T28: Receitas Irrecuperáveis | U28: =L28/U33 -> 0.0004579941791 | AB28: =YEAR(BD!B75) -> 1900 | AC28: Reajuste | AD28: Reajuste 1900 | AE28: =BD!D75 -> 0 | AF28: =AF27*VLOOKUP(AH28,Índices!$B$147:$D$495,2,0)/VLOOKUP(AH27,Índices!$B$147:$D$495,2,0) ->  | AG28: =AG27*VLOOKUP(AH28,Índices!$B$147:$D$495,3,0)/VLOOKUP(AH27,Índices!$B$147:$D$495,3,0) ->  | AH28: =BD!B75-31 -> -31
E29: Componentes Financeiros | H29: =BP273 -> 0.01816539018 | N29: CDE | P29: =Resultado!D23 -> 225954126.2 | T29: ICMS | U29: =Mercado!G9 -> 0.211206123 | AB29: =YEAR(BD!B74) -> 1900 | AC29: Revisão | AD29: Revisão 1900 | AE29: =BD!D74 -> 0 | AF29: =AF28*VLOOKUP(AH29,Índices!$B$147:$D$495,2,0)/VLOOKUP(AH28,Índices!$B$147:$D$495,2,0) ->  | AG29: =AG28*VLOOKUP(AH29,Índices!$B$147:$D$495,3,0)/VLOOKUP(AH28,Índices!$B$147:$D$495,3,0) ->  | AH29: =BD!B74-31 -> -31
E30: Efeito da Retirada dos Financeiros Anteriores | H30: =BP322 -> -0.08516788796 | N30: ESS/EER | P30: =Resultado!D25 -> 36590917.82 | T30: PIS/COFINS | U30: =Mercado!$G$10 -> 0.04716530103 | AB30: =YEAR(BD!B73) -> 1900 | AC30: RTE | AD30: RTE 1900 | AE30: =BD!D73 -> 0 | AF30: =AF29*VLOOKUP(AH30,Índices!$B$147:$D$495,2,0)/VLOOKUP(AH29,Índices!$B$147:$D$495,2,0) ->  | AG30: =AG29*VLOOKUP(AH30,Índices!$B$147:$D$495,3,0)/VLOOKUP(AH29,Índices!$B$147:$D$495,3,0) ->  | AH30: =BD!B73-28 -> -28
E31: Efeito Médio Consumidor | H31: =BP323 -> 0.0487462921 | N31: Outros | P31: =Resultado!D27+Resultado!D28+Resultado!D24+Resultado!D22 -> 18263339.82 | T31: Imposto Total por Fora | U31: =(U29+U30)/(1-U29-U30) -> 0.3483838574 | AB31: =YEAR(BD!B72) -> 1900 | AC31: Reajuste | AD31: Reajuste 1900 | AE31: =BD!D72 -> 0 | AF31: =AF30*VLOOKUP(AH31,Índices!$B$147:$D$495,2,0)/VLOOKUP(AH30,Índices!$B$147:$D$495,2,0) ->  | AG31: =AG30*VLOOKUP(AH31,Índices!$B$147:$D$495,3,0)/VLOOKUP(AH30,Índices!$B$147:$D$495,3,0) ->  | AH31: =BD!B72-31 -> -31
T32: Imposto por dentro | U32: =LnkTxtPisCofins+LnkTxtICMS -> 0.2583714241 | AB32: =YEAR(BD!B71) -> 1900 | AC32: Reajuste | AD32: Reajuste 1900 | AE32: =BD!D71 -> 0 | AF32: =AF31*VLOOKUP(AH32,Índices!$B$147:$D$495,2,0)/VLOOKUP(AH31,Índices!$B$147:$D$495,2,0) ->  | AG32: =AG31*VLOOKUP(AH32,Índices!$B$147:$D$495,3,0)/VLOOKUP(AH31,Índices!$B$147:$D$495,3,0) ->  | AH32: =BD!B71-31 -> -31
T33: Receita com Impostos | U33: =SUM(P24:P31)/(1-U29-U30) -> 2483673762 | AB33: =YEAR(BD!B70) -> 1900 | AC33: RTE | AD33: RTE 1900 | AE33: =BD!D70 -> 0 | AF33: =AF32*VLOOKUP(AH33,Índices!$B$147:$D$495,2,0)/VLOOKUP(AH32,Índices!$B$147:$D$495,2,0) ->  | AG33: =AG32*VLOOKUP(AH33,Índices!$B$147:$D$495,3,0)/VLOOKUP(AH32,Índices!$B$147:$D$495,3,0) ->  | AH33: =BD!B70-31 -> -31
AB34: =YEAR(BD!B69) -> 2019 | AC34: Reajuste | AD34: Reajuste 2019 | AE34: =BD!D69 -> 497.351539 | AF34: =AF33*VLOOKUP(AH34,Índices!$B$147:$D$495,2,0)/VLOOKUP(AH33,Índices!$B$147:$D$495,2,0) ->  | AG34: =AG33*VLOOKUP(AH34,Índices!$B$147:$D$495,3,0)/VLOOKUP(AH33,Índices!$B$147:$D$495,3,0) ->  | AH34: =BD!B69-31 -> 2019-05-31
AB35: =YEAR(BD!B68) -> 2018 | AC35: Revisão | AD35: Revisão 2018 | AE35: =BD!D68 -> 498.84 | AF35: =AF34*VLOOKUP(AH35,Índices!$B$147:$D$495,2,0)/VLOOKUP(AH34,Índices!$B$147:$D$495,2,0) ->  | AG35: =AG34*VLOOKUP(AH35,Índices!$B$147:$D$495,3,0)/VLOOKUP(AH34,Índices!$B$147:$D$495,3,0) ->  | AH35: =BD!B68-31 -> 2018-05-31
AB36: =YEAR(BD!B67) -> 2017 | AC36: Reajuste | AD36: Reajuste 2017 | AE36: =BD!D67 -> 432.96 | AF36: =AF35*VLOOKUP(AH36,Índices!$B$147:$D$495,2,0)/VLOOKUP(AH35,Índices!$B$147:$D$495,2,0) ->  | AG36: =AG35*VLOOKUP(AH36,Índices!$B$147:$D$495,3,0)/VLOOKUP(AH35,Índices!$B$147:$D$495,3,0) ->  | AH36: =BD!B67-31 -> 2017-05-31
AB37: =YEAR(BD!B66) -> 1900 | AC37: Reajuste | AD37: Reajuste 1900 | AE37: =BD!D66 -> 0 | AF37: =AF36*VLOOKUP(AH37,Índices!$B$147:$D$495,2,0)/VLOOKUP(AH36,Índices!$B$147:$D$495,2,0) ->  | AG37: =AG36*VLOOKUP(AH37,Índices!$B$147:$D$495,3,0)/VLOOKUP(AH36,Índices!$B$147:$D$495,3,0) ->  | AH37: =BD!B66-31 -> -31
B46: TabCons | E46: Voltar
B47: Classe de Consumo | C47: Nº de Unidades Consumidoras* | D47: Consumo de Energia (MWh) | E47: Participação no Consumo (%)
B48: Residencial | C48: =Mercado!E30 -> 676599 | D48: =Mercado!F30 -> 123672.255 | E48: =D48/$D$56 -> 0.3619107772
B49: Industrial | C49: =Mercado!E31 -> 4156 | D49: =Mercado!F31 -> 94407.812 | E49: 0.276272189
B50: Comercial | C50: =Mercado!E32 -> 61495 | D50: =Mercado!F32 -> 46656.414 | E50: 0.1365339303
B51: Rural | C51: =Mercado!E33 -> 46450 | D51: =Mercado!F33 -> 31463.26 | E51: 0.09207314024
B52: Iluminação Pública | C52: =Mercado!E34 -> 628 | D52: =Mercado!F34 -> 15902.071 | E52: 0.04653534355
B53: Poder Público | C53: =Mercado!E35 -> 6791 | D53: =Mercado!F35 -> 6819.861 | E53: 0.01995743665
B54: Serviço Público | C54: =Mercado!E36 -> 1220 | D54: =Mercado!F36 -> 13858.921 | E54: 0.04055633068
B55: Demais classes | C55: =Mercado!E37 -> 176 | D55: =Mercado!F37 -> 8939.694 | E55: 0.02616085235
B56: Total | C56: =SUM(C48:C55) -> 797515 | D56: =SUM(D48:D55) -> 341720.288 | E56: =SUM(E48:E55) -> 1
B57: Nota: dados do último mês informado pela empresa | G57: TabMercado | I57: Voltar
G58: Subgrupos | H58: Mercado (MWh) | I58: Receita (R$) | J58: Colunas1
G59: Fornecimento | H59: =SUM(H60:H66) -> 3364446.951 | I59: =SUM(I60:I66) -> 1460282661 | J59: =IF(ABS(H59)+ABS(I59)>0,1,0) -> 1
G60: A1 (230 kV ou mais) | H60: =Mercado!C10 -> 0 | I60: =Mercado!D10 -> 0 | J60: 0
G61: A2 (88 a 138 kV) | H61: =Mercado!C11 -> 45781.66 | I61: =Mercado!D11 -> 15353590.26 | J61: 1
G62: A3 (69 kV) | H62: =Mercado!C12 -> 2052.313 | I62: =Mercado!D12 -> 697211.887 | J62: 1
G63: A3a (30 kV a 44 kV) | H63: =Mercado!C13 -> 8319 | I63: =Mercado!D13 -> 3992963.481 | J63: 1
G64: A4 (2,3 kV a 25 kV) | H64: =Mercado!C14 -> 720571.589 | I64: =Mercado!D14 -> 305450566.1 | J64: 1
G65: As | H65: =Mercado!C15 -> 0 | I65: =Mercado!D15 -> 0 | J65: 0
G66: BT (menor que 2,3 kV) | H66: =Mercado!C16 -> 2587722.389 | I66: =Mercado!D16 -> 1134788329 | J66: 1
G67: Suprimento | H67: =Mercado!C17 -> 40493.359 | I67: =Mercado!D17 -> 12316681.11 | J67: 1
G68: Livres A1 | H68: =Mercado!C18 -> 0 | I68: =Mercado!D18 -> 0 | J68: 0
G69: Demais Livres | H69: =Mercado!C19 -> 1012696.376 | I69: =Mercado!D19 -> 160018888.8 | J69: 1
G70: Distribuição | H70: =Mercado!C20 -> 72181.407 | I70: =Mercado!D20 -> 5825398.322 | J70: 1
G71: Geração | H71: =Mercado!C21 -> 0 | I71: =Mercado!D21 -> 12434190.98 | J71: 1
G72: Total | H72: =SUM(H60:H71) -> 4489818.093 | I72: =SUM(I60:I71) -> 1650877820
K73: TabEnc | N73: Voltar
K74: Encargos Setoriais | L74: Processo Anterior (R$) | M74: Processo Atual (R$) | N74: Dispositivo Legal | O74: Colunas1
K75: Taxa de Fisc. de Serviços de E.E. – TFSEE | L75: =Resultado!C22 -> 1989254.161 | M75: =Resultado!D22 -> 1959584.691 | N75: =Encargos!D17 -> Conforme módulo 5.5 do PRORET | O75: =IF(ABS(L75)+ABS(M75)>0,1,0) -> 1
K76: Conta de Desenvolvimento Energético – CDE | L76: =Resultado!C23 -> 200780875.1 | M76: =Resultado!D23 -> 225954126.2 | N76: =Encargos!D10 -> ReH 2.664/2019 | O76: 1
K77: Compensação financeira - CFURH | L77: =Resultado!C24 -> 0 | M77: =Resultado!D24 -> 0 | N77: =Encargos!D11 -> 0 | O77: 0
K78: Encargos Serv. Sist. - ESS e Energ. Reserv. - EER | L78: =Resultado!C25 -> 32498166.08 | M78: =Resultado!D25 -> 36590917.82 | N78: =Encargos!D12 -> DSP 1.191/2020 | O78: 1
K79: PROINFA | L79: =Resultado!C26 -> 37950452.25 | M79: =Resultado!D26 -> 31396250.3 | N79: =Encargos!$D$13 -> ReH 2.653/2019 | O79: 1
K80: P&D e Eficiência Energética | L80: =Resultado!C27 -> 15455629.59 | M80: =Resultado!D27 -> 16303755.13 | N80: Res. Normativa nº 316/2008 | O80: 1
K81: Contribuição ONS | L81: =Resultado!C28 -> 0 | M81: =Resultado!D28 -> 0 | N81: =Encargos!$D$14 -> 0 | O81: 0
K82: Total de Encargos Tarifários | L82: =SUM(L75:L81) -> 288674377.2 | M82: =SUM(M75:M81) -> 312204634.1
P83: TabTrans | R83: Voltar
P84: Componente | Q84: Processo Anterior (R$) | R84: Processo Atual (R$) | S84: Colunas1
P85: Rede Básica | Q85: =BM260 -> 69586269.33 | R85: =Resultado!D30 -> 106279183.4 | S85: =IF(ABS(Q85)+ABS(R85)>0,1,0) -> 1
P86: Rede Básica Fronteira | Q86: =BM261 -> 98385777.14 | R86: =Resultado!D31 -> 143093583.2 | S86: 1
P87: Rede Básica ONS (A2) | Q87: 1292259.189 | R87: =Resultado!D32 -> 1593458.64 | S87: 1
P88: Rede Básica Export. (A2) | Q88: 0 | R88: =Resultado!D33 -> 0 | S88: 0
P89: MUST Itaipu | Q89: 11983790.77 | R89: =Resultado!D34 -> 16964996.83 | S89: 1
P90: Transporte de Itaipu | Q90: 18452010.88 | R90: =Resultado!D35 -> 22432475.76 | S90: 1
P91: Conexão | Q91: 3789410.458 | R91: =Resultado!D36 -> 4639937.94 | S91: 1
P92: Uso do sistema de distribuição | Q92: 33104804.89 | R92: =Resultado!D37 -> 35880902.38 | S92: 1
P93: Total dos Custos de Transporte | Q93: =SUM(Q85:Q92) -> 236594322.7 | R93: =SUM(R85:R92) -> 330884538.2
T94: TabPerdas | V94: Voltar
T95: Perdas | U95: Processo Anterior | V95: Processo Atual | W95: Referência
T96: Não Técnica (s/ Baixa Tensão) | U96: =Neutralidade!H14 -> 0.008150473962 | V96: =Energia!H13 -> 0.008150473962 | W96: Nota Técnica 199/2017
T97: Técnica (s/ merc. injetado) | U97: =Neutralidade!H15 -> 0.06290952235 | V97: =Energia!H14 -> 0.06290952235 | W97: =W96 -> Nota Técnica 199/2017
T98: Rede Básica (s/ merc. Injetado) | U98: =Neutralidade!H16 -> 0.01383439754 | V98: =Energia!H15 -> 0.01383439754 | W98: CCEE (últimos 12 meses)
T99: Mercado Baixa Tensão (MWh) | U99: =Mercado!$C$16 -> 2587722.389 | V99: =Mercado!$C$16 -> 2587722.389 | W99: SAMP
Y100: TabEnergia | AA100: Voltar
Y101: Descrição | Z101: DRA (MWh) | AA101: DRP (MWh)
Y102: Mercado Total | Z102: =AA102 -> 3404940.31 | AA102: =Z103+Z104 -> 3404940.31 | AB102: Colunas1
Y103: Fornecimento | Z103: =Energia!H5 -> 3364446.951 | AA103: =Z103 -> 3364446.951 | AB103: =IF(Z103<>0,1,0) -> 1
Y104: Suprimento | Z104: =Energia!C8 -> 40493.359 | AA104: =Z104 -> 40493.359 | AB104: =IF(Z104<>0,1,0) -> 1
Y105: Consumidores Livres | Z105: =Energia!H7 -> 1084877.783 | AA105: =Z105 -> 1084877.783 | AB105: =IF(Z105<>0,1,0) -> 1
Y106: Consumidores Rede B. | Z106: =Energia!H8 -> 0 | AA106: =Z106 -> 0 | AB106: =IF(Z106<>0,1,0) -> 0
Y107: Perdas Totais | Z107: =Z108+Z109 -> 453626.8484 | AA107: =AA108+AA109 -> 453626.8484
Y108: Perdas Rede Básica | Z108: =SUM(Neutralidade!H19:H20) -> 52652.5359 | AA108: =SUM(Energia!H18:H19) -> 52652.5359
Y109: Perdas na Distribuição | Z109: =SUM(Z110:Z111) -> 400974.3125 | AA109: =SUM(AA110:AA111) -> 400974.3125
Y110: Perda Não Técnica | Z110: =Neutralidade!H17 -> 21091.16395 | AA110: =Energia!H16 -> 21091.16395
Y111: Perda Técnica | Z111: =Neutralidade!H18 -> 379883.1486 | AA111: =Energia!H17 -> 379883.1486
Y112: Energia Requerida | Z112: =Z102+Z107 -> 3858567.158 | AA112: =AA102+AA107 -> 3858567.158
AC113: TabEDRA | AE113: Voltar
AC114: Energia Requerida (MWh) | AD114: Tarifa Média (R$/MWh) | AE114: Energia Requerida (R$)
AC115: ='Votos e NTs'!Z112 -> 3858567.158 | AD115: =Energia!C14 -> 186.4636263 | AE115: =AD115*AC115 -> 719482424.7
AG116: TabContratos | AK116: Voltar
AG117: Contratos | AH117: Montante Contratado (MWh) | AI117: Montante Considerado (MWh) | AJ117: Tarifa (R$/MWh) | AK117: Despesa (R$) | AL117: Colunas1
AG118: Ambiente Regulado | AH118: =SUM(AH119:AH123) -> 1576710.151 | AI118: =SUM(AI119:AI123) -> 1467460.206 | AJ118: =IFERROR(AK118/AI118,"") -> 194.2114504 | AK118: =SUM(AK119:AK123) -> 284997574.9 | AL118: =IF(AH118=0,0,1) -> 1
AG119: Existente - CCEAR-DSP | AH119: =SUMPRODUCT((Energia!$J$49:$J$140),(Energia!$T$49:$T$140=18)*(INT(Energia!$S$49:$S$140/10000)=2)) -> 0 | AI119: =SUMPRODUCT((Energia!$K$49:$K$140),(Energia!$T$49:$T$140=18)*(INT(Energia!$S$49:$S$140/10000)=2)) -> 0 | AK119: =IFERROR(SUMPRODUCT((Energia!$U$49:$U$140),(Energia!$T$49:$T$140=18)*(INT(Energia!$S$49:$S$140/10000)=2))*AI119/AH119,"") ->  | AL119: 0
AG120: Existente - CCEAR-QTD | AH120: =SUMPRODUCT((Energia!$J$49:$J$140),(Energia!$T$49:$T$140=1)*(INT(Energia!$S$49:$S$140/10000)=2)) -> 0 | AI120: =SUMPRODUCT((Energia!$K$49:$K$140),(Energia!$T$49:$T$140=1)*(INT(Energia!$S$49:$S$140/10000)=2)) -> 0 | AK120: =IFERROR(SUMPRODUCT((Energia!$U$49:$U$140),(Energia!$T$49:$T$140=1)*(INT(Energia!$S$49:$S$140/10000)=2))*AI120/AH120,"") ->  | AL120: 0
AG121: Nova e Alternativa- CCEAR-DSP | AH121: =SUMPRODUCT((Energia!$J$49:$J$140),(Energia!$T$49:$T$140=18)*(INT(Energia!$S$49:$S$140/10000)=1))+SUMPRODUCT((Energia!$J$49:$J$140),(Energia!$T$49:$T$140=18)*(INT(Energia!$S$49:$S$140/10000)=3)) -> 564063.2616 | AI121: =SUMPRODUCT((Energia!$K$49:$K$140),(Energia!$T$49:$T$140=18)*(INT(Energia!$S$49:$S$140/10000)=1))+SUMPRODUCT((Energia!$K$49:$K$140),(Energia!$T$49:$T$140=18)*(INT(Energia!$S$49:$S$140/10000)=3)) -> 524979.426 | AJ121: 269.5537965 | AK121: =(SUMPRODUCT((Energia!$U$49:$U$140),(Energia!$T$49:$T$140=18)*(INT(Energia!$S$49:$S$140/10000)=1))+SUMPRODUCT((Energia!$U$49:$U$140),(Energia!$T$49:$T$140=18)*(INT(Energia!$S$49:$S$140/10000)=3)))*AI121/AH121 -> 141510197.3 | AL121: 1
AG122: Nova e Alternativa- CCEAR-QTD | AH122: =SUMPRODUCT((Energia!J50:J141),(Energia!T50:T141=1)*(INT(Energia!S50:S141/10000)=1))+SUMPRODUCT((Energia!J50:J141),(Energia!T50:T141=1)*(INT(Energia!S50:S141/10000)=3)) -> 365512.1287 | AI122: =SUMPRODUCT((Energia!$K$49:$K$140),(Energia!$T$49:$T$140=1)*(INT(Energia!$S$49:$S$140/10000)=1))+SUMPRODUCT((Energia!$K$49:$K$140),(Energia!$T$49:$T$140=1)*(INT(Energia!$S$49:$S$140/10000)=3)) -> 340185.8631 | AJ122: 182.7536618 | AK122: =(SUMPRODUCT((Energia!$U$49:$U$140),(Energia!$T$49:$T$140=1)*(INT(Energia!$S$49:$S$140/10000)=1))+SUMPRODUCT((Energia!$U$49:$U$140),(Energia!$T$49:$T$140=1)*(INT(Energia!$S$49:$S$140/10000)=3)))*AI122/AH122 -> 62170212.17 | AL122: 1
AG123: Madeira e Belo Monte | AH123: =SUMPRODUCT((Energia!$J$49:$J$140)*(INT(Energia!$S$49:$S$140/10000)=5)) -> 647134.7605 | AI123: =SUMPRODUCT((Energia!$K$49:$K$140)*(INT(Energia!$S$49:$S$140/10000)=5)) -> 602294.9167 | AJ123: 135.0122061 | AK123: =(SUMPRODUCT((Energia!U49:U140)*(INT(Energia!S49:S140/10000)=5)))*AI123/AH123 -> 81317165.4 | AL123: 1
AG124: Bilaterais | AH124: =SUM(AH125:AH131) -> 601848 | AI124: =SUM(AI125:AI131) -> 560146.0671 | AJ124: =AK124/AI124 -> 235.9017283 | AK124: =SUM(AK125:AK131) -> 132139425.3 | AL124: =IF(AH124=0,0,1) -> 1
AG125: =Energia!B185 -> Rede Lajeado Energia S.A. | AH125: =Energia!H185 -> 601848 | AI125: =Energia!M185 -> 560146.0671 | AJ125: =Energia!L185 -> 235.9017283 | AK125: =AJ125*AI125 -> 132139425.3 | AL125: 1
AL126: 0
AL127: 0
AL128: 0
AL129: 0
AL130: 0
AL131: 0
AG132: =Energia!B20 -> Energia Base | AH132: =SUM(AH133:AH137) -> 1961205.335 | AI132: =SUM(AI133:AI137) -> 1830960.885 | AJ132: =AK132/AI132 -> 207.9361803 | AK132: =SUM(AK133:AK137) -> 380723012.8 | AL132: 1
AG133: =Energia!B21 -> Geração Própria | AH133: =Energia!H33 -> 0 | AI133: =Energia!C21 -> 0 | AJ133: =Energia!D21 -> 0 | AK133: =AJ133*AI133 -> 0 | AL133: =IF(AH133=0,0,1) -> 0
AG134: =Energia!B22 -> Cota Angra I/Angra II | AH134: =Energia!H34 -> 144322.5851 | AI134: =Energia!C22 -> 134322.5008 | AJ134: =Energia!D22 -> 269.75 | AK134: =AJ134*AI134 -> 36233494.58 | AL134: 1
AG135: =Energia!B23 -> Cotas Lei n º 12783/2013 | AH135: =Energia!H35 -> 957935.7705 | AI135: =Energia!C23 -> 891560.584 | AJ135: =Energia!D23 -> 112.02 | AK135: =AJ135*AI135 -> 99872616.62 | AL135: 1
AG136: =Energia!B24 -> Itaipu (tirando as perdas) | AH136: =Energia!H36 -> 777447.3601 | AI136: =Energia!C24 -> 723578.1811 | AJ136: =Energia!D24 -> 338.0656133 | AK136: =AJ136*AI136 -> 244616901.5 | AL136: 1
AG137: =Energia!B25 -> PROINFA | AH137: =Energia!C25 -> 81499.61949 | AI137: =Energia!C25 -> 81499.61949 | AJ137: =Energia!D25 -> 0 | AK137: =AJ137*AI137 -> 0 | AL137: 1
AG138: Total | AH138: =SUM(AH118,AH124,AH132) -> 4139763.486 | AI138: 3858567.158 | AJ138: =AK138/AI138 -> 206.7762411 | AK138: =SUM(AK118,AK124,AK132) -> 797860013
AM139: TabFatorX | AN139: Voltar
AM140: Componentes | AN140: Valor
AM141: Componente Pd do Fator X | AN141: ='VPB1'!F40 -> 0.0141
AM142: Componente T do Fator X | AN142: ='VPB1'!F41 -> 0.0089
AM143: Componente Q do Fator X | AN143: ='VPB1'!F42 -> -0.003707154638
AM144: Fator X | AN144: ='VPB1'!F43 -> 0.01929284536
AP145: TabParcelaB | AR145: Voltar
AP146: Descrição | AQ146: Valores | AR146: Referência
AP147: (1) Parcela B Ano Anterior | AQ147: =+'VPB1'!C37 -> 405726127.8 | AR147: TUSD aplicada ao Mercado
AP148: (2) Fator DR1/Fator PB | AQ148: =+'VPB1'!C38 -> 1.070829306 | AR148: SGT/ANEEL
AP149: (3) Parcela B econômica = (1)*(2) | AQ149: =+'VPB1'!C39 -> 434463427.8 | AR149: SGT/ANEEL
AP150: (4) IPCA | AQ150: =+LnkTxtIPCA -> 0.02071302407 | AR150: Indicador econômico oficial
AP151: (5) Fator X | AQ151: =LnkTxtFatorX -> 0.01929284536
AP152: (5.1) Componente Pd do Fator X | AQ152: =LnkTxtFatorPd -> 0.0141 | AR152: Reh 2271/2017
AP153: (5.2) Componente T do Fator X | AQ153: =LnkTxtFatorT -> 0.0089 | AR153: Reh 2271/2017
AP154: (5.3) Componente Q do Fator X | AQ154: =LnkTxtFatorQ -> -0.003707154638 | AR154: PRORET 2.5 A
AP155: (6) UDEROR | AQ155: =LnkTxtONS -> 0 | AR155: REA 6.981/2018
AP156: (6.1) Outras Receitas (OR) | AQ156: =+'VPB1'!C40 -> 24161824.99 | AR156: Valores fiscalizados - SFF | AS156: <-cuidado para verificar se é Reajuste depois de revisão. Se for reajuste pós revisão, deve se aplicar o Pd Expost.
AP157: (6.2) Excedente de Reativos (ER) | AQ157: =+'VPB1'!C41 -> 6990363.15 | AR157: Valores fiscalizados - SFF
AP158: (6.3) Ultrapassagem de Demanda (UD) | AQ158: =+'VPB1'!C42 -> 4051513.609 | AR158: Valores fiscalizados - SFF
AP159: Parcela B-DRP (R$) = (3)*[1+(4)-(5)]-(6) | AQ159: =Resultado!D45 -> 399876741.8
AT161: TabCVA | AW161: Voltar
AT162: Descrição | AU162: Delta (R$) | AV162: 5° Dia Útil Anterior (R$) | AW162: 12 Meses Subseqüentes (R$) | AX162: Colunas1
AP163: IPCA | AQ163: ='VPB1'!F39 -> 0.02071302407 | AT163: ="CVA "&CVA!B9 -> CVA CCC | AU163: =CVA!C9 -> 0 | AV163: =CVA!D9 -> 0 | AW163: =CVA!E9 -> 0 | AX163: =IF(AU163<>0,1,0) -> 0
AP164: Fator X | AQ164: =+LnkTxtFatorX -> 0.01929284536 | AT164: ="CVA "&CVA!B10 -> CVA CDE | AU164: =CVA!C10 -> 26103384.09 | AV164: =CVA!D10 -> 26486229.58 | AW164: =CVA!E10 -> 26898647.78 | AX164: 1
AP165: Parcela B - DRP (R$) | AQ165: =Resultado!D45 -> 399876741.8 | AT165: ="CVA "&CVA!B11 -> CVA CDE Energia | AU165: =CVA!C11 -> -4936442.537 | AV165: =CVA!D11 -> -4906541.442 | AW165: =CVA!E11 -> -4982941.406 | AX165: 1
AT166: ="CVA "&CVA!B12 -> CVA Rede Básica | AU166: =CVA!C12 -> 14560994.7 | AV166: =CVA!D12 -> 14909305.31 | AW166: =CVA!E12 -> 15141458.73 | AX166: 1
AT167: ="CVA "&CVA!B13 -> CVA Compra Energia | AU167: =CVA!C13 -> 82760104.93 | AV167: =CVA!D13 -> 84735297.58 | AW167: =CVA!E13 -> 86054714.47 | AX167: 1
AT168: ="CVA "&CVA!B14 -> CVA CFURH | AU168: =CVA!C14 -> 0 | AV168: =CVA!D14 -> 0 | AW168: =CVA!E14 -> 0 | AX168: 0
AT169: ="CVA "&CVA!B15 -> CVA Transporte Itaipu | AU169: =CVA!C15 -> 1886108.853 | AV169: =CVA!D15 -> 1928513.336 | AW169: =CVA!E15 -> 1958542.299 | AX169: 1
AT170: ="CVA "&CVA!B16 -> CVA Proinfa | AU170: =CVA!C16 -> -3416770.656 | AV170: =CVA!D16 -> -3453813.474 | AW170: =CVA!E16 -> -3507592.949 | AX170: 1
AT171: ="CVA "&CVA!B17 -> CVA ESS/ERR | AU171: =CVA!C17 -> -36622676.27 | AV171: =CVA!D17 -> -37059576.96 | AW171: =CVA!E17 -> -37636633.19 | AX171: 1
AT172: Total | AU172: =SUM(AU163:AU171) -> 80334703.11 | AV172: =SUM(AV163:AV171) -> 82639413.93 | AW172: =SUM(AW163:AW171) -> 83926195.73
AY173: TabFin | BA173: Voltar
AY174: COMPONENTES FINANCEIROS | AZ174: Valor (R$) | BA174: Participação | BB174: Colunas1
AY175: CVA em processamento - Energia | AZ175: =SUM(Financeiros!D19:D23) -> 86054714.47 | BA175: =AZ175/Financeiros!$D$5 -> 0.05212664041 | BB175: =IF(AZ175<>0,1,0) -> 1
AY176: CVA em processamento -Transporte | AZ176: =SUM(Financeiros!D13:D18) -> 17100001.03 | BA176: =AZ176/Financeiros!$D$5 -> 0.01035812634 | BB176: 1
AY177: CVA em processamento - Encargos Setoriais | AZ177: =SUM(Financeiros!D10:D12,Financeiros!D24:D26) -> -19228519.77 | BA177: =AZ177/Financeiros!$D$5 -> -0.01164745176 | BB177: 1 | BD177: =SUMIFS(Financeiros[Valor],Financeiros[idDet1],19,Financeiros[id_Grupo_TARIFA],3,Financeiros[idDet2],60, Financeiros[idDet3],999) -> -19228519.77 | BE177: -0.0433
AY178: Saldo a Compensar CVA-Ano Anterior + Ajustes | AZ178: =SUMIFS(Financeiros[Valor],Financeiros[idDet1],19,Financeiros[idDet2],64, Financeiros[idDet3],999) -> -1184479.072 | BA178: =AZ178/Financeiros!$D$5 -> -0.0007174843942 | BB178: 1
AY179: Neutralidade de Parcela A- Energia | AZ179: =SUMIFS(Financeiros[Valor],Financeiros[idDet1],20,Financeiros[id_Grupo_TARIFA],2,Financeiros[idDet2],60, Financeiros[idDet3],999)+SUMIFS(Financeiros[Valor],Financeiros[idDet1],20,Financeiros[id_Grupo_TARIFA],5,Financeiros[idDet2],60, Financeiros[idDet3],999) -> 709050.5081 | BA179: =AZ179/Financeiros!$D$5 -> 0.000429499082 | BB179: 1
AY180: Neutralidade de Parcela A - Transporte | AZ180: =SUMIFS(Financeiros[Valor],Financeiros[idDet1],20,Financeiros[id_Grupo_TARIFA],1,Financeiros[idDet2],60, Financeiros[idDet3],999) -> 8888879.214 | BA180: =AZ180/Financeiros!$D$5 -> 0.005384334993 | BB180: 1
AY181: Neutralidade de Parcela A - Encargos Setoriais | AZ181: =SUMIFS(Financeiros[Valor],Financeiros[idDet1],20,Financeiros[id_Grupo_TARIFA],3,Financeiros[idDet2],60, Financeiros[idDet3],999) -> -666727.2673 | BA181: =AZ181/Financeiros!$D$5 -> -0.0004038622721 | BB181: 1
AY182: Sobrecontratação/exposição de energia | AZ182: =SUMIFS(Financeiros[Valor],Financeiros[idDet1],22,Financeiros[id_Grupo_TARIFA],2,Financeiros[idDet2],60, Financeiros[idDet3],106)+SUMIFS(Financeiros[Valor],Financeiros[idDet1],22,Financeiros[id_Grupo_TARIFA],2,Financeiros[idDet2],60, Financeiros[idDet3],101) -> 9264666.859 | BA182: =AZ182/Financeiros!$D$5 -> 0.005611963979 | BB182: 1
AY183: Garantias financeiras na contratação regulada de energia (CCEAR) | AZ183: =SUMIFS(Financeiros[Valor],Financeiros[idDet1],22,Financeiros[id_Grupo_TARIFA],2,Financeiros[idDet2],60, Financeiros[idDet3],102) -> 1185127.779 | BA183: =AZ183/Financeiros!$D$5 -> 0.0007178773407 | BB183: 1
AY184: Previsão de Risco Hidrológico | AZ184: =SUMIFS(Financeiros[Valor],Financeiros[idDet1],22,Financeiros[id_Grupo_TARIFA],2,Financeiros[idDet2],60, Financeiros[idDet3],220) -> 77314517.69 | BA184: =AZ184/Financeiros!$D$5 -> 0.04683236807 | BB184: 1
AY185: Ajuste Liminar Abrace | AZ185: =SUMIFS(Financeiros[Valor],Financeiros[idDet1],22,Financeiros[id_Grupo_TARIFA],3,Financeiros[idDet2],85, Financeiros[idDet3],85) -> 0 | BA185: =AZ185/Financeiros!$D$5 -> 0 | BB185: 0
AY186: Ajuste ref. equilíbrio econômico-financeiro TUSDg (A3a) | AZ186: =SUMIFS(Financeiros[Valor],Financeiros[idDet1],22,Financeiros[id_Grupo_TARIFA],4,Financeiros[idDet2],60, Financeiros[idDet3],137) -> 0 | BA186: =AZ186/Financeiros!$D$5 -> 0 | BB186: 0
AY187: Repasse de ultrapassagem de Supridas/Permissionárias de Energia | AZ187: =Financeiros!D85+Financeiros!D86+Financeiros!D87+Financeiros!D88+Financeiros!D89 -> -27168.83171 | BA187: =AZ187/Financeiros!$D$5 -> -1.645720319e-05 | BB187: 1
AY188: Cálculo extraordinário de Neutralidade -Postergação da Data de Aniversário | AZ188: =SUMIFS(Financeiros[Valor],Financeiros[idDet1],22,Financeiros[idDet2],60, Financeiros[idDet3],999) -> 0 | BA188: =AZ188/Financeiros!$D$5 -> 0 | BB188: 0
AY189: Ajuste CUSD | AZ189: =Financeiros!D92 -> -52190.24864 | BA189: =AZ189/Financeiros!$D$5 -> -3.161363489e-05 | BB189: 1
AY190: Repasse de compensação DIC/FIC | AZ190: =Financeiros!D127 -> 0 | BA190: =AZ190/Financeiros!$D$5 -> 0 | BB190: 0
AY191: Compensação ref. acordos bilaterais de CCEAR | AZ191: =SUMIFS(Financeiros[Valor],Financeiros[idDet1],22,Financeiros[id_Grupo_TARIFA],2,Financeiros[idDet2],60, Financeiros[idDet3],230) -> 8080273.676 | BA191: =AZ191/Financeiros!$D$5 -> 0.004894531612 | BB191: 1
AY192: Reversão do Risco Hidrológico | AZ192: =SUMIFS(Financeiros[Valor],Financeiros[idDet1],22,Financeiros[id_Grupo_TARIFA],2,Financeiros[idDet2],62, Financeiros[idDet3],220) -> -60052878.31 | BA192: =AZ192/Financeiros!$D$5 -> -0.03637633118 | BB192: 1
AY193: Ressarcimento de P&D | AZ193: =SUMIFS(Financeiros[Valor],Financeiros[idDet1],22,Financeiros[id_Grupo_TARIFA],3,Financeiros[idDet2],60, Financeiros[idDet3],231) -> 0 | BA193: =AZ193/Financeiros!$D$5 -> 0 | BB193: 0
AY194: Conta Covid - CVA | AZ194: =SUM(Financeiros!D150:D163) -> -83317796.3 | BA194: =AZ194/Financeiros!D5 -> -0.05046878412 | BB194: 1
AY195: Conta Covid - sobrecontração | AZ195: =SUM(Financeiros!D164:D168) -> -14078631.7 | BA195: =AZ195/Financeiros!D5 -> -0.00852796708 | BB195: 1
BB196: 0
BB197: 0
BB198: 0
BB199: 0
BB200: 0
BB201: 0
BB202: 0
BB203: 0
BB204: 0
BB205: 0
BB206: 0
BB207: 0
BB208: 0
BB209: 0
BB210: 0
BB211: 0
BB212: 0
BB213: 0
... 172 more rows

Sheet Apresentação
B9: Impacto da RTA na Tarifa
B10: Encargos Setoriais | C10: ='Votos e NTs'!H24 -> 0.01425338953
B11: Custos de Transmissão | C11: ='Votos e NTs'!H25 -> 0.05711537181
B12: Custos de Aquisição de Energia | C12: ='Votos e NTs'!H26 -> 0.04790775826
B13: Distribuição | C13: ='Votos e NTs'!H27 -> -0.003543200644
B14: Receitas Irrecuperáveis | C14: ='Votos e NTs'!H28 -> 1.547093129e-05
B15: Componentes Financeiros | C15: ='Votos e NTs'!H29 -> 0.01816539018
B16: Efeito da Retirada dos Financeiros Anteriores | C16: ='Votos e NTs'!H30 -> -0.08516788796
B17: Efeito Médio Consumidor | C17: =SUM(C10:C16) -> 0.0487462921 | D17: ='[15]Votos e NTs'!BP295 -> 0.004114716151
E19: SUBGRUPO | F19: EFEITO | Z19: ='[15]Votos e NTs'!O24 -> Custo de Distribuição | AA19: ='[15]Votos e NTs'!Q24 -> 0.1655677111 | AD19: ='[15]Votos e NTs'!U24 -> Custo de Distribuição | AE19: ='[15]Votos e NTs'!W24 -> 2698835890
E20: Grupo A | F20: =Resultado!L8 -> 0.06900047343 | Z20: ='Votos e NTs'!O25 -> 0 | AA20: ='Votos e NTs'!Q25 -> 0 | AD20: ='Votos e NTs'!U25 -> 0.3212418737 | AE20: ='Votos e NTs'!W25 -> 0
E21: Grupo B | F21: =Resultado!L9 -> 0.04028816532 | Z21: ='Votos e NTs'!O26 -> 0 | AA21: ='Votos e NTs'!Q26 -> 0 | AD21: ='Votos e NTs'!U26 -> 0.1332238329 | AE21: ='Votos e NTs'!W26 -> 0
E22: Grupos A+B | F22: =Resultado!L10 -> 0.0487462921 | Z22: ='Votos e NTs'!O27 -> 0 | AA22: ='Votos e NTs'!Q27 -> 0 | AD22: ='Votos e NTs'!U27 -> 0.1257027549 | AE22: ='Votos e NTs'!W27 -> 0
Z23: ='Votos e NTs'!O28 -> 0 | AA23: ='Votos e NTs'!Q28 -> 0 | AD23: ='Votos e NTs'!U28 -> 0.0004579941791 | AE23: ='Votos e NTs'!W28 -> 0
Z24: ='Votos e NTs'!O29 -> 0 | AA24: ='Votos e NTs'!Q29 -> 0 | AD24: ='Votos e NTs'!U29 -> 0.211206123 | AE24: ='Votos e NTs'!W29 -> 0
H25: Contratos | I25: Montantes (GWh) | L25: Preço (R$/MWh) | O25: Impacto Processo | Z25: ='Votos e NTs'!O30 -> 0 | AA25: ='Votos e NTs'!Q30 -> 0 | AD25: ='Votos e NTs'!U30 -> 0.04716530103 | AE25: ='Votos e NTs'!W30 -> 0
I26: Processo Anterior | J26: Processo Atual | K26: Variação | L26: Processo Anterior | M26: Processo Atual | N26: Variação | AD26: ='Votos e NTs'!U31 -> 0.3483838574 | AE26: ='Votos e NTs'!W31 -> 0
H27: CCEAR | I27: =(SUM('Votos e NTs'!BY342:BY345)+'Votos e NTs'!BY355*SUM('Votos e NTs'!BY342:BY345)/SUM('Votos e NTs'!BY342:BY351))/1000 -> 939.6671811 | J27: =(SUM('Votos e NTs'!BZ342:BZ345)+'Votos e NTs'!BZ355*SUM('Votos e NTs'!BZ342:BZ345)/SUM('Votos e NTs'!BZ342:BZ351))/1000 -> 909.9071512 | K27: =IFERROR(J27/I27-1,"") -> -0.03167081974 | L27: =SUM('Votos e NTs'!CE342:CE345)/SUM('Votos e NTs'!BY342:BY345) -> 235.6127278 | M27: =SUM('Votos e NTs'!CF342:CF345)/SUM('Votos e NTs'!BZ342:BZ345) -> 224.0392064 | N27: =IFERROR(M27/L27-1,"") -> -0.04912095138 | O27: =SUM('Votos e NTs'!CJ385:CJ388) -> -0.006208761775
H28: Madeira/Belo Monte | I28: =('Votos e NTs'!BY347+'Votos e NTs'!BY355*'Votos e NTs'!BY347/SUM('Votos e NTs'!BY342:BY351))/1000 -> 595.5874211 | J28: =('Votos e NTs'!BZ347+'Votos e NTs'!BZ355*'Votos e NTs'!BZ347/SUM('Votos e NTs'!BZ342:BZ351))/1000 -> 602.8108246 | K28: =IFERROR(J28/I28-1,"") -> 0.01212820012 | L28: ='Votos e NTs'!CE347/'Votos e NTs'!BY347 -> 129.9683362 | M28: ='Votos e NTs'!CF347/'Votos e NTs'!BZ347 -> 135.0122061 | N28: =IFERROR(M28/L28-1,"") -> 0.03880845152 | O28: ='Votos e NTs'!CJ390 -> 0.002781771952
H29: Cota Angra I e II | I29: =(SUM('Votos e NTs'!BY348)+'Votos e NTs'!BY355*'Votos e NTs'!BY348/SUM('Votos e NTs'!BY342:BY351))/1000 -> 133.2263599 | J29: =(SUM('Votos e NTs'!BZ348)+'Votos e NTs'!BZ355*'Votos e NTs'!BZ348/SUM('Votos e NTs'!BZ342:BZ351))/1000 -> 134.4375574 | K29: =IFERROR(J29/I29-1,"") -> 0.009091275715 | L29: ='Votos e NTs'!CE348/'Votos e NTs'!BY348 -> 247.47 | M29: ='Votos e NTs'!CC348 -> 269.75 | N29: =IFERROR(M29/L29-1,"") -> 0.09003111488 | O29: ='Votos e NTs'!CJ391 -> 0.001973291455
H30: Cotas Lei 12.783/2013 | I30: =('Votos e NTs'!BY349+'Votos e NTs'!BY355*'Votos e NTs'!BY349/SUM('Votos e NTs'!BY342:BY351))/1000 -> 844.7716528 | J30: =('Votos e NTs'!BZ349+'Votos e NTs'!BZ355*'Votos e NTs'!BZ349/SUM('Votos e NTs'!BZ342:BZ351))/1000 -> 892.3242683 | K30: =IFERROR(J30/I30-1,"") -> 0.05629049615 | L30: ='Votos e NTs'!CE349/'Votos e NTs'!BY349 -> 106.95 | M30: ='Votos e NTs'!CC349 -> 112.02 | N30: =IFERROR(M30/L30-1,"") -> 0.04740532959 | O30: ='Votos e NTs'!CJ392 -> 0.002321637962
H31: Ajuste - CCEAR | K31: =IFERROR(J31/I31-1,"") ->  | L31: =IFERROR('Votos e NTs'!CI319/'Votos e NTs'!CC319,"") ->  | M31: =IFERROR('Votos e NTs'!CJ319/'Votos e NTs'!CD319,"") ->  | N31: =IFERROR(M31/L31-1,"") ->  | O31: ='Votos e NTs'!CJ393 -> 0.04084428239
H32: Itaipu | I32: =('Votos e NTs'!BY350+'Votos e NTs'!BY355*'Votos e NTs'!BY350/SUM('Votos e NTs'!BY342:BY351))/1000 -> 708.031514 | J32: =('Votos e NTs'!BZ350+'Votos e NTs'!BZ355*'Votos e NTs'!BZ350/SUM('Votos e NTs'!BZ342:BZ351))/1000 -> 724.1979767 | K32: 0.02283297054 | L32: ='Votos e NTs'!CE350/'Votos e NTs'!BY350 -> 247.1835982 | M32: ='Votos e NTs'!CC350 -> 338.0656133 | N32: 0.3676700867 | O32: ='Votos e NTs'!CJ394 -> 0.006122940757
H33: Bilateral | I33: =('Votos e NTs'!BY351+'Votos e NTs'!BY355*'Votos e NTs'!BY351/SUM('Votos e NTs'!BY342:BY351))/1000 -> 552.3945552 | J33: =('Votos e NTs'!BZ351+'Votos e NTs'!BZ355*'Votos e NTs'!BZ351/SUM('Votos e NTs'!BZ342:BZ351))/1000 -> 560.6258715 | K33: 0.01490115406 | L33: ='Votos e NTs'!CE351/'Votos e NTs'!BY351 -> 220.2065868 | M33: ='Votos e NTs'!CC351 -> 235.9017283 | N33: 0.07127462314 | O33: ='Votos e NTs'!CJ395+0.01% -> 0.0001
H34: Geração Própria | L34: =IFERROR('Votos e NTs'!CI322/'Votos e NTs'!CC322,"") ->  | M34: =IFERROR('Votos e NTs'!CJ322/'Votos e NTs'!CD322,"") ->  | O34: ='Votos e NTs'!CL375 -> 0
H35: Montante de Reposição | L35: =IFERROR('Votos e NTs'!CI323/'Votos e NTs'!CC323,"") ->  | M35: =IFERROR('Votos e NTs'!CJ323/'Votos e NTs'!CD323,"") ->  | O35: ='Votos e NTs'!CL376 -> 0
H36: Proinfa | I36: ='Votos e NTs'!BY354/1000 -> 81.06860191 | J36: ='Votos e NTs'!BZ354/1000 -> 81.49961949 | K36: 0.005316701788 | L36: =IFERROR('Votos e NTs'!CI324/'Votos e NTs'!CC324,"") ->  | M36: =IFERROR('Votos e NTs'!CJ324/'Votos e NTs'!CD324,"") -> 
H37: Total | I37: =SUM(I27:I36) -> 3854.747286 | J37: =SUM(J27:J36) -> 3905.803269 | K37: =J37/I37-1 -> 0.01324496249 | L37: ='Votos e NTs'!CB356 -> 186.4636263 | M37: ='Votos e NTs'!CC356 -> 204.2755249 | N37: =M37/L37-1 -> 0.09552478914 | O37: =SUM(O27:O36) -> 0.04793516274
Q40: Encargos Setoriais | R40: Processo Anterior (mil R$) | S40: Processo Atual (mil R$) | T40: Impacto Processo
Q41: TFSEE | R41: ='Votos e NTs'!BM250/1000 -> 1989.254161 | S41: ='Votos e NTs'!BN250/1000 -> 1959.584691 | T41: ='Votos e NTs'!BP250 -> -1.797048481e-05
Q42: CDE (USO) | R42: ='Votos e NTs'!BM251/1000 -> 186365.038 | S42: ='Votos e NTs'!BN251/1000 -> 225954.1262 | T42: ='Votos e NTs'!BP251 -> 0.02398076475
Q43: CDE (Decr. 7945/2013) | R43: ='Votos e NTs'!BM252/1000 -> 0 | S43: ='Votos e NTs'!BN252/1000 -> 0 | T43: ='Votos e NTs'!BP252 -> 0
Q44: CDE (Conta-ACR) | R44: ='Votos e NTs'!BM253/1000 -> 14415.83707 | S44: ='Votos e NTs'!BN253/1000 -> 0 | T44: ='Votos e NTs'!BP253 -> -0.008732214787
Q45: Compensação financeira - CFURH | R45: ='Votos e NTs'!BM254/1000 -> 0 | S45: ='Votos e NTs'!BN254/1000 -> 0 | T45: ='Votos e NTs'!BP254 -> 0
Q46: ESS/EER | R46: ='Votos e NTs'!BM255/1000 -> 32498.16608 | S46: ='Votos e NTs'!BN255/1000 -> 36590.91782 | T46: ='Votos e NTs'!BP255 -> 0.002479160381
Q47: PROINFA | R47: ='Votos e NTs'!BM256/1000 -> 37950.45225 | S47: ='Votos e NTs'!BN256/1000 -> 31396.2503 | T47: ='Votos e NTs'!BP256 -> -0.003970103763
Q48: P&D | R48: ='Votos e NTs'!BM257/1000 -> 15455.62959 | S48: ='Votos e NTs'!BN257/1000 -> 16303.75513 | T48: ='Votos e NTs'!BP257 -> 0.0005137534375
Q49: ONS | R49: 0 | S49: 0 | T49: 0
Q50: Total de Encargos | R50: =SUM(R41:R49) -> 288674.3772 | S50: =SUM(S41:S49) -> 312204.6341 | T50: =SUM(T41:T49) -> 0.01425338953
V52: Custos de Transporte | W52: Processo Anterior (mil R$) | X52: Processo Atual (mil R$) | Y52: Impacto Processo
V53: Rede Básica | W53: ='Votos e NTs'!BM260/1000 -> 69586.26933 | X53: ='Votos e NTs'!BN260/1000 -> 106279.1834 | Y53: ='Votos e NTs'!BP260 -> 0.02222635587
V54: Rede Básica Fronteira | W54: ='Votos e NTs'!BM261/1000 -> 98385.77714 | X54: ='Votos e NTs'!BN261/1000 -> 143093.5832 | Y54: ='Votos e NTs'!BP261 -> 0.02708130426
V55: Rede Básica ONS (A2) | W55: ='Votos e NTs'!BM262/1000 -> 1292.259189 | X55: ='Votos e NTs'!BN262/1000 -> 1593.45864 | Y55: ='Votos e NTs'!BP262 -> 0.0001824489998
V56: Rede Básica Export. (A2) | W56: ='Votos e NTs'!BM263/1000 -> 0 | X56: ='Votos e NTs'!BN263/1000 -> 0 | Y56: ='Votos e NTs'!BP263 -> 0
V57: MUST Itaipu | W57: ='Votos e NTs'!BM264/1000 -> 11983.79077 | X57: ='Votos e NTs'!BN264/1000 -> 16964.99683 | Y57: ='Votos e NTs'!BP264 -> 0.003017316262
V58: Transporte de Itaipu | W58: ='Votos e NTs'!BM265/1000 -> 18452.01088 | X58: ='Votos e NTs'!BN265/1000 -> 22432.47576 | Y58: ='Votos e NTs'!BP265 -> 0.002411133674
V59: Conexão | W59: ='Votos e NTs'!BM266/1000 -> 3789.410458 | X59: ='Votos e NTs'!BN266/1000 -> 4639.93794 | Y59: ='Votos e NTs'!BP266 -> 0.0005151998748
V60: Uso do sistema de distribuição | W60: ='Votos e NTs'!BM267/1000 -> 33104.80489 | X60: ='Votos e NTs'!BN267/1000 -> 35880.90238 | Y60: ='Votos e NTs'!BP267 -> 0.001681612857
V61: Total do Transporte | W61: =SUM(W53:W60) -> 236594.3227 | X61: =SUM(X53:X60) -> 330884.5382 | Y61: =SUM(Y53:Y60) -> 0.05711537181
AB64: Descrição | AC64: Valor | AD64: Referência
AB65: (1) Parcela B - DRA (MM R$) | AC65: ='Votos e NTs'!AQ147/1000 -> 405726.1278 | AD65: TUSD fio B aplicada ao Mercado
AB66: (2) Fator DR1/Fator PB | AC66: ='Votos e NTs'!AQ148 -> 1.070829306 | AD66: SGT/ANEEL
AB67: ='[15]Votos e NTs'!AP143 -> (3) Parcela B econômica = (1)*(2) | AC67: =AC65*AC66 -> 434463.4278 | AD67: SGT/ANEEL
AB68: ='[15]Votos e NTs'!AP144 -> (4) IPCA | AC68: ='Votos e NTs'!AQ150 -> 0.02071302407 | AD68: Indicador econômico oficial
AB69: ='[15]Votos e NTs'!AP145 -> (5) Fator X | AC69: =SUM(AC70:AC72) -> 0.01929284536 | AD69: Pd + T + Q
AB70: ='[15]Votos e NTs'!AP146 -> (5.1) Componente Pd do Fator X | AC70: ='Votos e NTs'!AQ152 -> 0.0141 | AD70: ='[15]Votos e NTs'!AR146 -> PRORET 2.5 A
AB71: ='[15]Votos e NTs'!AP147 -> (5.2) Componente T do Fator X | AC71: ='Votos e NTs'!AQ153 -> 0.0089 | AD71: ='[15]Votos e NTs'!AR147 -> REH nº 2.377/2018
AB72: ='[15]Votos e NTs'!AP148 -> (5.3) Componente Q do Fator X | AC72: ='Votos e NTs'!AQ154 -> -0.003707154638 | AD72: ='[15]Votos e NTs'!AR148 -> PRORET 2.5 A
AB73: ='[15]Votos e NTs'!AP149 -> (6) ONS | AC73: ='[15]Votos e NTs'!AZ196/1000 -> 0 | AD73: 0
AB74: ='[15]Votos e NTs'!AP150 -> (6) UDEROR | AC74: =SUM(AC75:AC77) -> 35203.70175 | AD74: UD + ER + OR
AB75: ='[15]Votos e NTs'!AP151 -> (6.1) Outras Receitas (OR) | AC75: ='Votos e NTs'!AQ156/1000 -> 24161.82499 | AD75: Valores fiscalizados - SFF
AB76: ='[15]Votos e NTs'!AP152 -> (6.2) Excedente de Reativos (ER) | AC76: ='Votos e NTs'!AQ157/1000 -> 6990.36315 | AD76: Valores fiscalizados - SFF
AB77: ='[15]Votos e NTs'!AP153 -> (6.3) Ultrapassagem de Demanda (UD) | AC77: ='Votos e NTs'!AQ158/1000 -> 4051.513609 | AD77: Valores fiscalizados - SFF
AB78: Parcela B-DRP (mil R$) = (3)*[(1)+(4)-(5)]-(6) | AC78: =AC67*(1+AC68-AC69)-AC74 -> 399876.7418
AF80: Resultado Bandeiras Tarifárias no Período | AG80: Valor (mil R$) | AH80: Impacto Processo
AF81: Usinas com contrato por disponibilidade - CCEAR-D | AG81: -4739.981007 | AH81: -0.002871188255
AF82: Risco Hidrológico das usinas que repactuaram | AG82: 44235.71796 | AH82: 0.02679527063
AF83: Risco Hidrológico das usinas cotistas - CCGF | AG83: 32355.63757 | AH83: 0.01959905039
AF84: Risco Hidrológico da UHE ITAIPU | AG84: 29607.55233 | AH84: 0.01793442978
AF85: Encargos de Energia de Reserva - EER e de Serviço do Sistema - ESS | AG85: -37636.63319 | AH85: -0.02279795194
AF86: Resultado Mercado de Curto Prazo - MCP | AG86: 24675.43441 | AH86: 0.01494685683
AF87: Custo Total | AG87: =SUM(AG81:AG86) -> 88497.72807 | AH87: =SUM(AH81:AH86) -> 0.05360646743
AF88: Recolhimento pelas Bandeiras Tarifárias | AG88: -61788.644 | AH88: -0.03742775102
AF89: Previsão do Risco Hidrológico no Processo Tarifário de 2019 | AG89: -60052.87831 | AH89: -0.03637633118
AF90: Receita Total | AG90: =AG88+AG89 -> -121841.5223 | AH90: =AH88+AH89 -> -0.0738040822
AF91: Custo não coberto antecipadamente | AG91: =AG90+AG87 -> -33343.79423 | AH91: =AH87+AH90 -> -0.02019761477
AJ93: Descrição | AK93: Valor (mil R$) | AL93: Impacto | AS93: 1000
AJ94: CVA Energia - Efeito CCEAR-D | AK94: -4739.981007 | AL94: -0.002871188255 | AQ94: COMPONENTES FINANCEIROS | AR94: Valor (R$mil) | AS94: Participação
AJ95: CVA Energia - Risco Hidrológico das usinas repactuadas | AK95: 44235.71796 | AL95: 0.02679527063 | AQ95: CVA em processamento - Energia | AR95: =86054714.4688/1000 -> 86054.71447 | AS95: 0.05212664041
AJ96: CVA Energia - Risco Hidrológico das usinas cotistas | AK96: 32355.63757 | AL96: 0.01959905039 | AQ96: CVA em processamento -Transporte | AR96: =17100001.0289/$AS$93 -> 17100.00103 | AS96: 0.01035812634
AJ97: CVA Energia - Risco Hidrológico da UHE Itaipu | AK97: 29607.55233 | AL97: 0.01793442978 | AQ97: CVA em processamento - Encargos Setoriais | AR97: =-19228519.7668/AS93 -> -19228.51977 | AS97: -0.01164745176
AJ98: CVA ESS/EER (sem bandeiras) | AK98: -37636.63319 | AL98: -0.02279795194 | AQ98: Saldo a Compensar CVA-Ano Anterior + Ajustes | AR98: =-1184479.07235041/AS93 -> -1184.479072 | AS98: -0.0007174843942
AJ99: Resultado do Mercado de Curto Prazo | AK99: 24675.43441 | AL99: 0.01494685683 | AQ99: Neutralidade de Parcela A- Energia | AR99: =709050.50810122/AS93 -> 709.0505081 | AS99: 0.000429499082
AJ100: Custo total - Itens observados nas Bandeiras Tarifárias | AK100: 88497.72807 | AL100: 0.05360646743 | AQ100: Neutralidade de Parcela A - Transporte | AR100: =8888879.21358347/AS93 -> 8888.879214 | AS100: 0.005384334993
AJ101: Receita das Bandeiras Tarifárias (Energia, ESS e MCP) | AK101: -61788.644 | AL101: -0.03742775102 | AQ101: Neutralidade de Parcela A - Encargos Setoriais | AR101: =-666727.267304526/AS93 -> -666.7272673 | AS101: -0.0004038622721
AJ102: Reversão da Previsão do Risco Hidrológico | AK102: -60052.87831 | AL102: -0.03637633118 | AQ102: Sobrecontratação/exposição de energia | AR102: =9264666.8586/AS93 -> 9264.666859 | AS102: 0.005611963979
AJ103: Custo não coberto antecipadamente | AK103: -33343.79423 | AL103: -0.02019761477 | AQ103: Garantias financeiras na contratação regulada de energia (CCEAR) | AR103: =1185127.77905971/AS93 -> 1185.127779 | AS103: 0.0007178773407
AJ104: ='[15]Votos e NTs'!CJ387 -> CVA Energia - Itens não coberto pelas bandeiras | AK104: 30973.66406 | AL104: 0.01876193604 | AQ104: Previsão de Risco Hidrológico | AR104: =77314517.694179/AS93 -> 77314.51769 | AS104: 0.04683236807
AJ105: ='[15]Votos e NTs'!CJ388 -> CVA Transporte | AK105: 17100.00103 | AL105: 0.01035812634 | AQ105: Repasse de ultrapassagem de Supridas/Permissionárias de Energia | AR105: =-27168.8317143672/AS93 -> -27.16883171 | AS105: -1.645720319e-05
AJ106: ='[15]Votos e NTs'!CJ389 -> CVA Encargos (desconsiderando ESS/EER) | AK106: 18408.11343 | AL106: 0.01115050018 | AQ106: Ajuste CUSD | AR106: =-52190.2486442801/AS93 -> -52.19024864 | AS106: -3.161363489e-05
AJ107: ='[15]Votos e NTs'!CJ390 -> Sobrecontratação | AK107: =AR102 -> 9264.666859 | AL107: =AS102 -> 0.005611963979 | AQ107: Compensação ref. acordos bilaterais de CCEAR | AR107: =8080273.67593941/AS93 -> 8080.273676 | AS107: 0.004894531612
AJ108: ='[15]Votos e NTs'!CJ391 -> Neutralidade | AK108: =SUM(AR99:AR101) -> 8931.202454 | AL108: =SUM(AS99:AS101) -> 0.005409971803 | AQ108: Reversão do Risco Hidrológico | AR108: =-60052878.3070364/AS93 -> -60052.87831 | AS108: -0.03637633118
AJ109: ='[15]Votos e NTs'!CJ392 -> Previsão do Risco Hidrológico | AK109: =AR104 -> 77314.51769 | AL109: =AS104 -> 0.04683236807 | AQ109: Conta Covid - CVA | AR109: =-83317796.3/1000 -> -83317.7963 | AS109: -0.05046878412
AJ110: ='[15]Votos e NTs'!CJ393 -> Compensação ref. acordos bilaterais de CCEAR | AK110: =AR107 -> 8080.273676 | AL110: =AS107 -> 0.004894531612 | AQ110: Conta Covid - sobrecontração | AR110: =-14078631.7/1000 -> -14078.6317 | AS110: -0.00852796708
AJ111: =AQ109 -> Conta Covid - CVA | AK111: =AR109 -> -83317.7963 | AL111: =AS109 -> -0.05046878412 | AQ111: Total | AR111: =SUM(AR95:AR110) -> 29988.83973 | AS111: =SUM(AS95:AS110) -> 0.01816539018
AJ112: =AQ110 -> Conta Covid - sobrecontração | AK112: =AR110 -> -14078.6317 | AL112: =AS110 -> -0.00852796708
AJ113: ='[15]Votos e NTs'!CJ395 -> Demais Itens | AK113: =AK114-SUM(AK104:AK112)-AK103 -> -9343.377232 | AL113: =AL114-SUM(AL104:AL112)-AL103 -> -0.005659641871
AJ114: Total de Financeiros | AK114: =AR111 -> 29988.83973 | AL114: =AS111 -> 0.01816539018 | AO114: Variação
AN115: IGP-M | AO115: =LnKTxTIGPMESS -> 0.8916133745
AK116: =AK114-'Votos e NTs'!AZ230 -> -29958850.89 | AN116: IPCA | AO116: =LnKTxTIPCAESS -> 0.7182924176
AN117: Tarifa B1 | AO117: =LnKTxTtarifaESS -> 0.6891353932
AV119: Custo unitário (R$/MWh)
AT120: Variação | AU120: Processo DRA | AV120: Processo Atual | AW120: Variação | AX120: Impacto IRT
AT121: -1 | AU121: 351.3956849 | AV121: 0 | AW121: -1 | AX121: -0.005792937285 | AY121: -0.002698044111
AT122: -1 | AU122: 337.8710291 | AV122: 0 | AW122: -1 | AX122: -0.01904058438 | AY122: -0.008455277352
AT123: 0.06821597031 | AU123: 250.05178 | AV123: 269.5537965 | AW123: 0.07799191217 | AX123: 0.01238307936 | AY123: 0.008174197514
AT124: 0.131643288 | AU124: 176.8769837 | AV124: 161.8388004 | AW124: -0.08502057744 | AX124: 0.001824173387 | AY124: -0.003229637826
AT125: - | AU125: 0 | AV125: 0 | AW125: - | AX125: 0 | AY125: 0
AT126: -0.002732240405 | AU126: 129.9683362 | AV126: 135.0122061 | AW126: 0.03880845152 | AX126: 0.002410422526 | AY126: 0.002781771952 | BN126: =BN129/BN130-1 -> 0.0001023990638
AT127: -0.005724575568 | AU127: 247.47 | AV127: 269.75 | AW127: 0.09003111488 | AX127: 0.001995910177 | AY127: 0.001973291455
AT128: 0.04078164846 | AU128: 106.95 | AV128: 112.02 | AW128: 0.04740532959 | AX128: 0.005821046325 | AY128: 0.002321637962
AT129: 0.007815358612 | AU129: 247.1835982 | AV129: 338.0656133 | AW129: 0.3676700867 | AX129: 0.04228820266 | AY129: 0.04084428239 | BG129: Enel RJ | BH129: 683.67 | BI129: 1000 | BJ129: =BJ130+1 -> 53 | BK129: 1 | BL129: =BG129 -> Enel RJ | BN129: =BH129 -> 683.67
AT130: 0 | AU130: 220.2065868 | AV130: 235.9017283 | AW130: 0.07127462314 | AX130: 0.006427909037 | AY130: 0.006122940757 | BG130: Celpa | BH130: 683.6 | BJ130: 52 | BK130: 2 | BL130: =BG130 -> Celpa | BN130: =BH130 -> 683.6
AT131: - | AU131: 0 | AV131: 0 | AW131: - | AX131: 0 | AY131: 0 | BG131: AmE | BH131: 664.84 | BJ131: 51 | BK131: =BK130+1 -> 3 | BL131: AmE | BN131: 664.84
AT132: - | AV132: 0 | AW132: - | AX132: 0 | AY132: 0 | BG132: Light | BH132: 663.11 | BJ132: 50 | BK132: =BK131+1 -> 4 | BL132: Light | BN132: 663.11
AT133: 0.005316701788 | AU133: 0 | AV133: 0 | AW133: - | AX133: 0 | AY133: 6.712221292e-05 | BG133: ENF | BH133: 662.45 | BJ133: 49 | BK133: 5 | BL133: ENF | BN133: 662.45
AT134: -0.1676661329 | AU134: 190.4933806 | AV134: 211.2379524 | AW134: 0.108899174 | BG134: Urussanga | BH134: 648.12 | BJ134: 48 | BK134: 6 | BL134: Urussanga | BN134: 648.12
AT135: 0.01324496249 | AU135: 186.4636263 | AV135: 204.2755249 | AW135: 0.09552478914 | AX135: 0.04831722181 | BG135: EMS | BH135: 645.42 | BJ135: 47 | BK135: 7 | BL135: EMS | BN135: 645.42
BG136: Cemig | BH136: 644.63 | BJ136: 46 | BK136: 8 | BL136: Cemig | BN136: 644.63
BG137: João Cesa | BH137: 639.05 | BJ137: 45 | BK137: 9 | BL137: João Cesa | BN137: 639.05
BG138: EMT | BH138: 636.28 | BJ138: 44 | BK138: 10 | BL138: EMT | BN138: 636.28
BG139: Cemar | BH139: 630.18 | BJ139: 43 | BK139: 11 | BL139: Cemar | BN139: 630.18
BG140: EMG | BH140: 627.72 | BJ140: 42 | BK140: 12 | BL140: EMG | BN140: 627.72
BG141: Sulgipe | BH141: 619.22 | BJ141: 41 | BK141: 13 | BL141: Sulgipe | BN141: 619.22
BG142: Forcel | BH142: 619.01 | BJ142: 40 | BK142: 14 | BL142: Forcel | BN142: 619.01
BG143: Roraima Energia | BH143: 617.77 | BJ143: 39 | BK143: 15 | BL143: Roraima Energia | BN143: 617.77
BG144: Hidropan | BH144: 600.74 | BJ144: 38 | BK144: 16 | BL144: Hidropan | BN144: 600.74
BG145: ETO | BH145: 600.08 | BJ145: 37 | BK145: 17 | BL145: ETO | BN145: 600.08
BG146: RGE Sul | BH146: 589.56 | BJ146: 36 | BK146: 18 | BL146: RGE Sul | BN146: 589.56
BG147: Ceal | BH147: 583.31 | BJ147: 35 | BK147: 19 | BL147: Ceal | BN147: 583.31
BG148: Cocel | BH148: 579.76 | BJ148: 34 | BK148: 20 | BL148: Cocel | BN148: 579.76
BG149: Ceron | BH149: 576.82 | BJ149: 33 | BK149: 21 | BL149: Ceron | BN149: 576.82
BG150: Coelba | BH150: 576.5149072 | BJ150: 32 | BK150: 22 | BL150: Coelba | BN150: 576.5149072
BG151: Celpe | BH151: 574.34 | BJ151: 31 | BK151: 23 | BL151: Celpe | BN151: 574.34
BG152: Chesp | BH152: 573.14 | BJ152: 30 | BK152: 24 | BL152: Chesp | BN152: 573.14
BG153: Nova Palma | BH153: 571.71 | BJ153: 29 | BK153: 25 | BL153: Nova Palma | BN153: 571.71
BG154: Eletroacre | BH154: 569.84 | BJ154: 28 | BK154: 26 | BL154: Eletroacre | BN154: 569.84
BG155: Cepisa | BH155: 569.48 | BJ155: 27 | BK155: 27 | BL155: Cepisa | BN155: 569.48
BG156: CPFL Paulista | BH156: 550.2 | BJ156: 26 | BK156: 28 | BL156: CPFL Paulista | BN156: 550.2
BG157: Enel CE | BH157: 546.45 | BJ157: 25 | BK157: 29 | BL157: Enel CE | BN157: 546.45
BG158: EPB | BH158: 545.4 | BJ158: 24 | BK158: 30 | BL158: EPB | BN158: 545.4
BG159: Eletrocar | BH159: 541.57 | BJ159: 23 | BK159: 31 | BL159: =BG160 -> CPFL Santa Cruz (nova) | BN159: =BH160 -> 541.15
BG160: CPFL Santa Cruz (nova) | BH160: 541.15 | BJ160: 22 | BK160: 32 | BL160: =BG161 -> CEA | BN160: =BH161 -> 537.18
BG161: CEA | BH161: 537.18 | BJ161: 21 | BK161: 33 | BL161: =BG162 -> ESE | BN161: =BH162 -> 535.51
BG162: ESE | BH162: 535.51 | BJ162: 20 | BK162: 34 | BL162: =BG163 -> Enel GO | BN162: =BH163 -> 533.68
BG163: Enel GO | BH163: 533.68 | BJ163: 19 | BK163: 35 | BL163: =BG164 -> Elektro | BN163: =BH164 -> 531.87
BG164: Elektro | BH164: 531.87 | BJ164: 18 | BK164: 36 | BL164: =BG165 -> EDP ES | BN164: =BH165 -> 525.81
BG165: EDP ES | BH165: 525.81 | BJ165: 17 | BK165: 37 | BL165: =BG166 -> EDP SP | BN165: =BH166 -> 525.73
BG166: EDP SP | BH166: 525.73 | BJ166: 16 | BK166: 38 | BL166: =BG167 -> Cosern | BN166: =BH167 -> 518.5013319
BG167: Cosern | BH167: 518.5013319 | BJ167: 15 | BK167: 39 | BL167: =BG168 -> CEB | BN167: =BH168 -> 518.01
BG168: CEB | BH168: 518.01 | BJ168: 14 | BK168: 40 | BL168: =BG169 -> Santa Maria | BN168: =BH169 -> 517.96
BG169: Santa Maria | BH169: 517.96 | BJ169: 13 | BK169: 41 | BL169: =BG170 -> Enel SP | BN169: =BH170 -> 515.59
BG170: Enel SP | BH170: 515.59 | BJ170: 12 | BK170: 42 | BL170: =BG171 -> CEEE | BN170: =BH171 -> 515.07
BG171: CEEE | BH171: 515.07 | BJ171: 11 | BK171: 43 | BL171: =BG171 -> CEEE | BN171: =BH171 -> 515.07
BG172: Copel | BH172: 512.77 | BJ172: 10 | BK172: 44 | BM172: ESS 2020 | BN172: =Resultado!L11 -> 513.8869931 | BT172: Enel RJ | BU172: RJ | BV172: 683.67 | BW172: 2666/2020 | BX172: 43905
BG173: Iguaçu | BH173: 510.62 | BJ173: 10 | BK173: 45 | BL173: =BG172 -> Copel | BN173: =BH172 -> 512.77 | BT173: Celpa | BU173: PA | BV173: 683.6 | BW173: 2588/2019 | BX173: 43684
BG174: DMED | BH174: 507.42 | BJ174: 9 | BK174: 46 | BL174: =BG173 -> Iguaçu | BN174: =BH173 -> 510.62 | BT174: AmE | BU174: AM | BV174: 664.84 | BW174: 2633/2019 | BX174: 43770
BG175: Demei | BH175: 507.03 | BJ175: 8 | BK175: 47 | BL175: DMED | BN175: 507.42 | BT175: Light | BU175: RJ | BV175: 663.11 | BW175: 2667/2020 | BX175: 43905
BG176: EBO | BH176: 497.66 | BJ176: 7 | BK176: =BK175+1 -> 48 | BL176: Demei | BN176: 507.03 | BT176: ENF | BU176: RJ | BV176: 662.45 | BX176: 44004
BG177: ESS | BH177: 497.35 | BJ177: 6 | BK177: 49 | BL177: EBO | BN177: 497.66 | BT177: Urussanga | BU177: SC | BV177: 648.12 | BW177: 2598/2019 | BX177: 43706
BG178: CPFL Piratininga | BH178: 490.18 | BJ178: 5 | BK178: 50 | BM178: ESS 2019 | BN178: 497.35 | BT178: EMS | BU178: MS | BV178: 645.42 | BW178: 2671/2020 | BX178: 43929
BG179: MuxEnergia | BH179: 485.22 | BJ179: 4 | BK179: 51 | BL179: CPFL Piratininga | BN179: 490.18 | BT179: Cemig | BU179: MG | BV179: 644.63 | BX179: 43979
BG180: Celesc | BH180: 469.78 | BJ180: 3 | BK180: 52 | BL180: MuxEnergia | BN180: 485.22 | BT180: João Cesa | BU180: SC | BV180: 639.05 | BW180: 2599/2019 | BX180: 43706
BG181: Cooperaliança | BH181: 467.6 | BJ181: =BJ182+1 -> 2 | BK181: 53 | BL181: Celesc | BN181: 469.78 | BT181: EMT | BU181: MS | BV181: 636.28 | BW181: 2672/2020 | BX181: 43929
BJ182: 1 | BK182: 54 | BL182: Cooperaliança | BN182: 467.6 | BT182: Cemar | BU182: MA | BV182: 630.18 | BW182: 2594/2019 | BX182: 43705
BT183: EMG | BU183: MG | BV183: 627.72 | BX183: 44004
BT184: Sulgipe | BU184: SE | BV184: 619.22 | BW184: 2687/2020 | BX184: 43973
BT185: Forcel | BU185: PR | BV185: 619.01 | BW185: 2595/2019 | BX185: 43703
BT186: Roraima Energia | BU186: RR | BV186: 617.77 | BW186: 2634/2019 | BX186: 43770
BT187: Hidropan | BU187: RS | BV187: 600.74 | BW187: 2572/2019 | BX187: 43668
BT188: ETO | BU188: TO | BV188: 600.08 | BW188: 2567/2019 | BX188: 43650
BT189: RGE Sul | BU189: RS | BV189: 589.56 | BX189: 44001
BT190: Ceal | BU190: AL | BV190: 583.31 | BW190: 2684/2020 | BX190: 43954
BT191: Cocel | BU191: PR | BV191: 579.76 | BX191: 44011
BG192: AmE | BT192: Ceron | BU192: RO | BV192: 576.82 | BW192: 2648/2019 | BX192: 43812
BG193: CEA | BT193: Coelba | BU193: BA | BV193: 576.5149072 | BW193: 2675/2020 | BX193: 43943
BG194: Ceal | BT194: Celpe | BU194: PE | BV194: 574.34 | BW194: 2683/2020 | BX194: 43950
BG195: CEB | BT195: Chesp | BU195: GO | BV195: 573.14 | BW195: 2639/2019 | BX195: 43791
BG196: CEEE | BT196: Nova Palma | BU196: RS | BV196: 571.71 | BW196: 2688/2020 | BX196: 43973
BG197: Celesc | BT197: Eletroacre | BU197: AC | BV197: 569.84 | BW197: 2649/2019 | BX197: 43812
BG198: Celpa | BT198: Cepisa | BU198: PI | BV198: 569.48 | BW198: 2644/2019 | BX198: 43799
BG199: Celpe | BT199: CPFL Paulista | BU199: SP | BV199: 550.2 | BW199: 2670/2020 | BX199: 43929
BG200: Cemar | BT200: Enel CE | BU200: CE | BV200: 546.45 | BW200: 2676/2020 | BX200: 43943
BG201: Cemig | BT201: Enel CE | BU201: CE | BV201: 546.4483119 | BW201: 2676/2020 | BX201: 43943
BG202: Cepisa | BT202: EPB | BU202: PB | BV202: 545.4 | BW202: 2596/2019 | BX202: 43705
BG203: Ceron | BT203: Eletrocar | BU203: RS | BV203: 541.57 | BW203: 2574/2019 | BX203: 43668
BG204: Chesp | BT204: CPFL Santa Cruz (nova) | BU204: SP | BV204: 541.15 | BW204: 2668/2020 | BX204: 43912
BG205: Cocel | BT205: CEA | BU205: AP | BV205: 537.18 | BW205: 2645/2019 | BX205: 43799
BG206: Coelba | BT206: Copel | BU206: PR | BV206: 536.6 | BW206: 2559/2019 | BX206: 44006
BG207: Cooperaliança | BT207: ESE | BU207: SE | BV207: 535.51 | BW207: 2678/2020 | BX207: 43943
BG208: Copel | BT208: Enel GO | BU208: GO | BV208: 533.68 | BW208: 2626/2019 | BX208: 43760
BG209: Cosern | BT209: Elektro | BU209: SP | BV209: 531.87 | BW209: 2592/2019 | BX209: 43704
BG210: CPFL Paulista | BT210: EDP ES | BU210: ES | BV210: 525.81 | BW210: 2589/2019 | BX210: 43684
BG211: CPFL Piratininga | BT211: EDP SP | BU211: SP | BV211: 525.73 | BW211: 2629/2019 | BX211: 43761
BG212: CPFL Santa Cruz (nova) | BT212: Cosern | BU212: RN | BV212: 518.5013319 | BW212: 2677/2020 | BX212: 43943
BG213: Demei | BT213: CEB | BU213: DF | BV213: 518.01 | BW213: 2625/2019 | BX213: 43760
BG214: DMED | BT214: Santa Maria | BU214: ES | BV214: 517.96 | BW214: 2591/2019 | BX214: 43699
BG215: EBO | BT215: Enel SP | BU215: SP | BV215: 515.59 | BW215: 2568/2019 | BX215: 43650
BG216: EDP ES | BT216: CEEE | BU216: RS | BV216: 515.07 | BW216: 2640/2019 | BX216: 43791
BG217: EDP SP | BT217: Iguaçu | BU217: SC | BV217: 510.62 | BW217: 2600/2019 | BX217: 43706
... 27 more rows

Sheet Mercado
B2: DADOS DE MERCADO DE ENERGIA E RECEITA VERIFICADA | G2: Anexo II | H2: =Resultado!$D$6 -> 0.1157478846
G3: Anexo I | H3: =Resultado!$D$8 -> 0.1339132748
M5: TipoMercado | R5: AnoMes
B6: Dados de Mercado | M6: Regular | R6: =DATE(YEAR(R8),MONTH(R8)-1,1) -> 43647
C7: 3387061.815 | D7: 1470781009 | E7: 2020-06-16 | R7: AnoMes
B8: Descrição | C8: MERCADO (MWh) | D8: RECEITA (R$) | F8: DESCRIÇÃO | G8: POR DENTRO | J8: Critérios | L8: Para º de consumidores | R8: =DATE(YEAR(R10),MONTH(R10)-1,1) -> 43678
B9: FORNECIMENTO | C9: =SUM(C10:C16) -> 3364446.951 | D9: =SUM(D10:D16) -> 1460282661 | F9: ICMS | G9: =SUM(INDIRECT("DADOS_MercadoBase[ICMS]"))/SUM(INDIRECT("DADOS_MercadoBase[ICMS]"),INDIRECT("DADOS_MercadoBase[PisPasep]"),INDIRECT("DADOS_MercadoBase[Cofins]"),INDIRECT("DADOS_MercadoBase[FinTotAj]")) -> 0.211206123 | J9: Subgrupo | K9: OPÇÃO | M9: AnoMes | N9: Subgrupo | O9: OPÇÃO | R9: AnoMes
B10: A1 | C10: =DSUM(Mercado_Receita!A:AAA,"TUSD_E",J9:K10) -> 0 | D10: =DSUM(Mercado_Receita!A:AAA,"total",J9:K10) -> 0 | F10: PIS/COFINS | G10: =SUM( INDIRECT("DADOS_MercadoBase[Cofins]"), INDIRECT("DADOS_MercadoBase[PisPasep]"))/SUM( INDIRECT("DADOS_MercadoBase[ICMS]"), INDIRECT("DADOS_MercadoBase[PisPasep]"), INDIRECT("DADOS_MercadoBase[Cofins]"), INDIRECT("DADOS_MercadoBase[FinTotAj]")) -> 0.04716530103 | J10: A1 | K10: Cativo | M10: =DMAX(MercadoBase,"AnoMes",M5:M6) -> 43952 | N10: A1 | O10: Suprimento | R10: =DATE(YEAR(R12),MONTH(R12)-1,1) -> 43709
B11: A2 | C11: =DSUM(Mercado_Receita!A:AAA,"TUSD_E",J11:K12) -> 45781.66 | D11: =DSUM(Mercado_Receita!A:AAA,"total",J11:K12) -> 15353590.26 | J11: Subgrupo | K11: OPÇÃO | M11: AnoMes | N11: Subgrupo | O11: OPÇÃO | P11: Subgrupo | R11: AnoMes
B12: A3 | C12: =DSUM(Mercado_Receita!A:AAA,"TUSD_E",J13:K14) -> 2052.313 | D12: =DSUM(Mercado_Receita!A:AAA,"total",J13:K14) -> 697211.887 | F12: MWh Ano Anterior | G12: =BD!C45 -> 4466577.791 | J12: A2 | K12: Cativo | M12: =$M$10 -> 43952 | N12: A2 | O12: Livre | P12: A1 | R12: =DATE(YEAR(R14),MONTH(R14)-1,1) -> 43739
B13: A3a | C13: =DSUM(Mercado_Receita!A:AAA,"TUSD_E",J15:K16) -> 8319 | D13: =DSUM(Mercado_Receita!A:AAA,"total",J15:K16) -> 3992963.481 | F13: Variação | G13: 0 | H13: =C24/G12-1 -> 0.005203156217 | J13: Subgrupo | K13: OPÇÃO | M13: AnoMes | N13: Subgrupo | O13: OPÇÃO | R13: AnoMes
B14: A4 | C14: =DSUM(Mercado_Receita!A:AAA,"TUSD_E",J17:K18) -> 720571.589 | D14: =DSUM(Mercado_Receita!A:AAA,"total",J17:K18) -> 305450566.1 | F14: R$ Ano Anterior | G14: =BD!C46 -> 1640104384 | J14: ="=A3" -> =A3 | K14: Cativo | M14: =$M$10 -> 43952 | N14: ="=A3" -> =A3 | O14: Distribuição | R14: =DATE(YEAR(R16),MONTH(R16)-1,1) -> 43770
B15: As | C15: =DSUM(Mercado_Receita!A:AAA,"TUSD_E",J19:K20) -> 0 | D15: =DSUM(Mercado_Receita!A:AAA,"total",J19:K20) -> 0 | F15: Variação | G15: =D24/G14-1 -> 0.006568750117 | J15: Subgrupo | K15: OPÇÃO | M15: AnoMes | N15: Subgrupo | O15: OPÇÃO | R15: AnoMes
B16: BT | C16: =DSUM(Mercado_Receita!A:AAA,"TUSD_E",J21:K22) -> 2587722.389 | D16: =DSUM(Mercado_Receita!A:AAA,"total",J21:K22) -> 1134788329 | J16: ="=A3a" -> =A3a | K16: Cativo | M16: =$M$10 -> 43952 | N16: ="=A3a" -> =A3a | O16: Geração | R16: =DATE(YEAR(R18),MONTH(R18)-1,1) -> 43800
B17: SUPRIMENTO (Mercado TE) | C17: =DSUM(Mercado_Receita!A:AAA,"TE_E",O9:P10) -> 40493.359 | D17: =DSUM(Mercado_Receita!A:AAA,"total",O9:P10) -> 12316681.11 | F17: Parâmetros de cálculo de RI | J17: Subgrupo | K17: OPÇÃO | M17: AnoMes | N17: Subgrupo | O17: OPÇÃO | R17: AnoMes
B18: LIVRES A1 | C18: =DSUM(Mercado_Receita!A:AAA,"TUSD_E",O11:P12) -> 0 | D18: =DSUM(Mercado_Receita!A:AAA,"total",O11:P12) -> 0 | F18: RR sem RI | G18: =SUM(Resultado!D19,Resultado!D29,Resultado!D38,Resultado!D45) -> 1840825927 | J18: A4 | K18: Cativo | M18: =$M$10 -> 43952 | N18: A4 | O18: Livre | R18: =DATE(YEAR(R20),MONTH(R20)-1,1) -> 43831
B19: DEMAIS LIVRES | C19: =DSUM(Mercado_Receita!A:AAA,"TUSD_E",O19:P20)+DSUM(Mercado_Receita!A:AAA,"TUSD_E",O17:P18)-C18 -> 1012696.376 | D19: =DSUM(Mercado_Receita!A:AAA,"total",O19:P20)+DSUM(Mercado_Receita!A:AAA,"TOTAL",O17:P18)-D18 -> 160018888.8 | F19: Financeiros | G19: =Financeiros!D8 -> 29988839.73 | J19: Subgrupo | K19: OPÇÃO | M19: AnoMes | N19: Subgrupo | O19: OPÇÃO | R19: AnoMes
B20: DISTRIBUIÇÃO | C20: =DSUM(Mercado_Receita!A:AAA,"TUSD_E",O13:P14) -> 72181.407 | D20: =DSUM(Mercado_Receita!A:AAA,"total",O13:P14) -> 5825398.322 | F20: Receita Bandeiras | G20: =SUM(TabBand[Fat Bandeiras]) -> 49669777.79 | J20: AS | K20: Cativo | M20: =$M$10 -> 43952 | N20: AS | O20: erc | R20: =DATE(YEAR(R22),MONTH(R22)-1,1) -> 43862
B21: GERADOR | D21: =DSUM(Mercado_Receita!A:AAA,"total",O15:P16) -> 12434190.98 | J21: Subgrupo | K21: OPÇÃO | M21: AnoMes | N21: Subgrupo | R21: AnoMes
B22: CDE Baixa Renda | J22: ="=B*" -> =B* | K22: Cativo | M22: =$M$10 -> 43952 | N22: ="=B*" -> =B* | R22: =DATE(YEAR(R24),MONTH(R24)-1,1) -> 43891
B23: AJUSTE ECONÔMICO - BOLHA | J23: Subclasse | K23: OPÇÃO | R23: AnoMes
B24: TOTAL | C24: =SUM(C10:C23) -> 4489818.093 | D24: =SUM(D10:D23) -> 1650877820 | F24: 119414.803 | G24: =C24/F24 -> 37.59850521 | J24: ="=Residencial baixa renda*" -> =Residencial baixa renda* | K24: Cativo | R24: =DATE(YEAR(R26),MONTH(R26)-1,1) -> 43922 | T24: 119414.803
B25: ENERGIA DESTINADA APE/PIE | J25: Classe | L25: AnoMes | R25: AnoMes
B26: MERCADO TOTAL BAIXA RENDA | C26: =DSUM(Mercado_Receita!A:AAA,"TUSD_E",J23:K24) -> 150034.98 | J26: Residencial | L26: =$M$10 -> 43952 | R26: =DATE(YEAR(R28),MONTH(R28)-1,1) -> 43952
J27: Classe | L27: AnoMes | R27: AnoMes
B28: ="Fonte: SAMP - "&TEXT(L26,"mmmm/aa") -> Fonte: SAMP - maio/20 | J28: Industrial | L28: =$M$10 -> 43952 | R28: =B65 -> 43983
B29: DESCRIÇÃO - Tipo | C29: RECEITA (R$) | D29: % Total | E29: nº de consumidores | F29: MWh mensal | G29: Percentual RI | H29: Reais RI (c/tributos) | J29: Classe | L29: AnoMes
B30: Residencial | C30: =DSUM(Mercado_Receita!A:AAA,"total",J25:K26) -> 688692636.4 | D30: =IFERROR(C30/$C$38,0) -> 0.4171675385 | E30: =DSUM(Mercado_Receita!$A:$AAA,"UC",$J$25:$L$26) -> 676599 | F30: =DSUM(Mercado_Receita!$A:$AAA,"TUSD_E",$J$25:$L$26) -> 123672.255 | G30: =BD!M67 -> 0.0008 | H30: =G30*C30/$D$24*SUM($G$18:$G$20)/(1-SUM($G$9:$G$10)) -> 864221.0791 | J30: Comercial | L30: =$M$10 -> 43952
B31: Industrial | C31: =DSUM(Mercado_Receita!A:AAA,"total",J27:K28) -> 292624914.5 | D31: 0.1772541317 | E31: =DSUM(Mercado_Receita!$A:$AAA,"UC",$J$27:$L$28) -> 4156 | F31: =DSUM(Mercado_Receita!$A:$AAA,"TUSD_E",$J$27:$L$28) -> 94407.812 | G31: =BD!M68 -> 0 | H31: =G31*C31/$D$24*SUM($G$18:$G$20)/(1-SUM($G$9:$G$10)) -> 0 | J31: Classe | L31: AnoMes
B32: Comercial | C32: =DSUM(Mercado_Receita!A:AAA,"total",J29:K30) -> 318036361.1 | D32: 0.1926468194 | E32: =DSUM(Mercado_Receita!$A:$AAA,"UC",$J$29:$L$30) -> 61495 | F32: =DSUM(Mercado_Receita!$A:$AAA,"TUSD_E",$J$29:$L$30) -> 46656.414 | G32: =BD!M69 -> 0.0005 | H32: 249434.3201 | J32: Rural | L32: =$M$10 -> 43952
B33: Rural | C33: =DSUM(Mercado_Receita!A:AAA,"total",J31:K32) -> 152064767.4 | D33: 0.0921114607 | E33: =DSUM(Mercado_Receita!$A:$AAA,"UC",$J$31:$L$32) -> 46450 | F33: =DSUM(Mercado_Receita!$A:$AAA,"TUSD_E",$J$31:$L$32) -> 31463.26 | G33: =BD!M70 -> 0.0001 | H33: 23852.72661 | J33: Classe | L33: AnoMes
B34: Iluminação Pública | C34: =DSUM(Mercado_Receita!A:AAA,"total",J33:K34) -> 47488222.82 | D34: 0.02876543755 | E34: =DSUM(Mercado_Receita!$A:$AAA,"UC",$J$33:$L$34) -> 628 | F34: =DSUM(Mercado_Receita!$A:$AAA,"TUSD_E",$J$33:$L$34) -> 15902.071 | G34: =BD!M71 -> 0 | H34: 0 | J34: Iluminação Pública | L34: =$M$10 -> 43952
B35: Poder Público | C35: =DSUM(Mercado_Receita!A:AAA,"total",J35:K36) -> 52643292.45 | D35: 0.03188806089 | E35: =DSUM(Mercado_Receita!$A:$AAA,"UC",$J$35:$L$36) -> 6791 | F35: =DSUM(Mercado_Receita!$A:$AAA,"TUSD_E",$J$35:$L$36) -> 6819.861 | G35: =BD!M72 -> 0 | H35: 0 | J35: Classe | L35: AnoMes
B36: Serviço Público | C36: =DSUM(Mercado_Receita!A:AAA,"total",J37:K38) -> 66991319.1 | D36: 0.04057921083 | E36: =DSUM(Mercado_Receita!$A:$AAA,"UC",$J$37:$L$38) -> 1220 | F36: =DSUM(Mercado_Receita!$A:$AAA,"TUSD_E",$J$37:$L$38) -> 13858.921 | G36: =BD!M73 -> 0 | H36: 0 | J36: Poder Público | L36: =$M$10 -> 43952
B37: Demais | C37: =D24-SUM(C30:C36) -> 32336305.89 | D37: 0.01958734045 | E37: =DSUM(Mercado_Receita!A:AAA,"UC",$J$39:$L$40)-SUM(E$30:E$36) -> 176 | F37: =DSUM(Mercado_Receita!B:AAB,"TUSD_E",$J$39:$L$40)-SUM(F$30:F$36) -> 8939.694 | G37: =BD!M74 -> 0 | H37: 0 | J37: Classe | L37: AnoMes
B38: TOTAL | C38: =SUM(C30:C37) -> 1650877820 | D38: =SUM(D30:D37) -> 1 | E38: =SUM(E30:E37) -> 797515 | F38: =SUM(F30:F37) -> 341720.288 | H38: =SUM(H30:H37) -> 1137508.126 | J38: Serviço público | L38: =$M$10 -> 43952
J39: Classe | L39: AnoMes
B40: nº de consumidores | J40: * | L40: =$M$10 -> 43952
B41: A1 | C41: =DSUM(Mercado_Receita!A:AAA,"UC",L9:N10) -> 0
B42: A2 | C42: =DSUM(Mercado_Receita!A:AAA,"UC",L11:N12) -> 18
B43: A3 | C43: =DSUM(Mercado_Receita!A:AAA,"UC",L13:N14) -> 2
B44: A3a | C44: =DSUM(Mercado_Receita!A:AAA,"UC",L15:N16) -> 31
B45: A4 | C45: =DSUM(Mercado_Receita!A:AAA,"UC",L17:N18) -> 2166
B46: As | C46: =DSUM(Mercado_Receita!A:AAA,"UC",L19:N20) -> 0
B47: BT | C47: =DSUM(Mercado_Receita!A:AAA,"UC",L21:N22) -> 795298 | D47: 29231
D48: =D47-C47 -> -766067
B52: Arrecadação dos Encargos
B53: Competência | D53: PeD | E53: ONS | F53: ESSERR | G53: PROINFA | H53: CDE | I53: TFSEE | J53: CFURH | K53: CVA_Energia | L53: CVA_RB | M53: CVA_CDE | N53: CVA_CFURH | O53: CVA_TranItaipu | P53: CVA_ESSERR | Q53: CVA_PROINFA | R53: Fator Selic | S53: RTE_Energia | T53: RTE_CDE_USO | U53: RTE_CDE_E | V53: RTE_CUSD | W53: RTE_PeD | X53: CVA_CDE_E | Y53: CVA_CCC | Z53: DISTRIBUICAO | AA53: cDE_E_ACR | AB53: CDE_E_Dec
B54: =DATE(YEAR(B55),MONTH(B55)-1,1) -> 43647 | D54: =DSUM(MercadoBase,D$53,INDIRECT("r"&5+2*(ROW()-54)&":r"&6+2*(ROW()-54))) -> 1149377.237 | E54: 0 | F54: 2412233.075 | G54: 2869823.184 | H54: 14072421.36 | I54: 150855.9205 | J54: 0 | K54: 12477502.24 | L54: 1085296.392 | M54: 3215349.33 | N54: 0 | O54: 142446.5105 | P54: -3982788.371 | Q54: 244327.2306 | R54: =VLOOKUP(CAPA!$C$15,Índices!B:F,5,FALSE)/VLOOKUP(DATE(YEAR(B54),MONTH(B54),1),Índices!B:F,5,FALSE) -> 1.040125321 | S54: =DSUM(MercadoBase,S$53,INDIRECT("r"&5+2*(ROW()-54)&":r"&6+2*(ROW()-54))) -> 0 | T54: 0 | U54: 0 | V54: 0 | W54: 0 | X54: -533082.5831 | Y54: 0 | Z54: =DSUM(MercadoBase,Z$53,INDIRECT("r"&5+2*(ROW()-54)&":r"&6+2*(ROW()-54))) -> 30557939.44 | AA54: =DSUM(MercadoBase,AA$53,INDIRECT("r"&5+2*(ROW()-54)&":r"&6+2*(ROW()-54))) -> 1070040.657 | AB54: 0
B55: 43678 | D55: 1194432.974 | E55: 0 | F55: 2505906.136 | G55: 2982874.003 | H55: 14637583.32 | I55: 157062.0702 | J55: 0 | K55: 12954161.97 | L55: 1114803.132 | M55: 3344480.848 | N55: 0 | O55: 147978.0657 | P55: -4137450.033 | Q55: 253952.0026 | R55: =VLOOKUP(CAPA!$C$15,Índices!B:F,5,FALSE)/VLOOKUP(DATE(YEAR(B55),MONTH(B55),1),Índices!B:F,5,FALSE) -> 1.034932861 | S55: 0 | T55: 0 | U55: 0 | V55: 0 | W55: 0 | X55: -553783.5167 | Y55: 0 | Z55: 31692964.49 | AA55: 1111593.02 | AB55: 0
B56: 43709 | D56: 1287138.09 | E56: 0 | F56: 2708132.451 | G56: 3191093.028 | H56: 15661392.42 | I56: 166301.7499 | J56: 0 | K56: 14002779.11 | L56: 1176761.453 | M56: 3578406.752 | N56: 0 | O56: 159919.8773 | P56: -4471341.739 | Q56: 271679.08 | R56: =VLOOKUP(CAPA!$C$15,Índices!B:F,5,FALSE)/VLOOKUP(DATE(YEAR(B56),MONTH(B56),1),Índices!B:F,5,FALSE) -> 1.030155412 | S56: 0 | T56: 0 | U56: 0 | V56: 0 | W56: 0 | X56: -598473.7781 | Y56: 0 | Z56: 33896452.85 | AA56: 1201298.439 | AB56: 0
B57: 43739 | D57: 1381844.896 | E57: 0 | F57: 2902925.494 | G57: 3362171.502 | H57: 16553975.76 | I57: 176271.7846 | J57: 0 | K57: 15023491.65 | L57: 1235336.465 | M57: 3782349.426 | N57: 0 | O57: 171422.7414 | P57: -4792960.523 | Q57: 286244.134 | R57: =VLOOKUP(CAPA!$C$15,Índices!B:F,5,FALSE)/VLOOKUP(DATE(YEAR(B57),MONTH(B57),1),Índices!B:F,5,FALSE) -> 1.025241796 | S57: 0 | T57: 0 | U57: 0 | V57: 0 | W57: 0 | X57: -641521.3508 | Y57: 0 | Z57: 36046416.16 | AA57: 1287706.539 | AB57: 0
B58: 43770 | D58: 1362356.857 | E58: 0 | F58: 2864905.207 | G58: 3371648.102 | H58: 16552482.96 | I58: 176141.1319 | J58: 0 | K58: 14806995.55 | L58: 1208608.333 | M58: 3782008.344 | N58: 0 | O58: 169177.5781 | P58: -4730186.01 | Q58: 287050.9404 | R58: =VLOOKUP(CAPA!$C$15,Índices!B:F,5,FALSE)/VLOOKUP(DATE(YEAR(B58),MONTH(B58),1),Índices!B:F,5,FALSE) -> 1.021356703 | S58: 0 | T58: 0 | U58: 0 | V58: 0 | W58: 0 | X58: -633119.1972 | Y58: 0 | Z58: 35481234.81 | AA58: 1270841.148 | AB58: 0
B59: 43800 | D59: 1371047.844 | E59: 0 | F59: 2895021.595 | G59: 3321915.472 | H59: 16324144.92 | I59: 173346.6111 | J59: 0 | K59: 14966015.18 | L59: 1214734.402 | M59: 3729836.329 | N59: 0 | O59: 170956.0026 | P59: -4779910.557 | Q59: 282816.8692 | R59: =VLOOKUP(CAPA!$C$15,Índices!B:F,5,FALSE)/VLOOKUP(DATE(YEAR(B59),MONTH(B59),1),Índices!B:F,5,FALSE) -> 1.017543926 | S59: 0 | T59: 0 | U59: 0 | V59: 0 | W59: 0 | X59: -639774.6576 | Y59: 0 | Z59: 35548244.8 | AA59: 1284200.454 | AB59: 0
B60: 43831 | D60: 1367536.345 | E60: 0 | F60: 2888988.447 | G60: 3375686.249 | H60: 16541388.28 | I60: 173849.6041 | J60: 0 | K60: 14932114.73 | L60: 1209118.111 | M60: 3779473.366 | N60: 0 | O60: 170599.7348 | P60: -4769949.351 | Q60: 287394.7348 | R60: =VLOOKUP(CAPA!$C$15,Índices!B:F,5,FALSE)/VLOOKUP(DATE(YEAR(B60),MONTH(B60),1),Índices!B:F,5,FALSE) -> 1.013725896 | S60: 0 | T60: 0 | U60: 0 | V60: 0 | W60: 0 | X60: -638441.3843 | Y60: 0 | Z60: 35379697.01 | AA60: 1281524.214 | AB60: 0
B61: 43862 | D61: 1355916.844 | E61: 0 | F61: 2873558.436 | G61: 3382155.164 | H61: 16548488.19 | I61: 173103.0934 | J61: 0 | K61: 14841253.45 | L61: 1198907.17 | M61: 3781095.594 | N61: 0 | O61: 169688.5662 | P61: -4744473.177 | Q61: 287945.4768 | R61: =VLOOKUP(CAPA!$C$15,Índices!B:F,5,FALSE)/VLOOKUP(DATE(YEAR(B61),MONTH(B61),1),Índices!B:F,5,FALSE) -> 1.010757013 | S61: 0 | T61: 0 | U61: 0 | V61: 0 | W61: 0 | X61: -635031.4856 | Y61: 0 | Z61: 35105125.54 | AA61: 1274679.627 | AB61: 0
B62: 43891 | D62: 1343450.279 | E62: 0 | F62: 2850836.548 | G62: 3334499.645 | H62: 16334514.88 | I62: 171239.4837 | J62: 0 | K62: 14727673.56 | L62: 1197298.033 | M62: 3732205.718 | N62: 0 | O62: 168346.7996 | P62: -4706957.536 | Q62: 283888.2439 | R62: =VLOOKUP(CAPA!$C$15,Índices!B:F,5,FALSE)/VLOOKUP(DATE(YEAR(B62),MONTH(B62),1),Índices!B:F,5,FALSE) -> 1.007348457 | S62: 0 | T62: 0 | U62: 0 | V62: 0 | W62: 0 | X62: -630010.1456 | Y62: 0 | Z62: =DSUM(MercadoBase,Z$53,INDIRECT("r"&5+2*(ROW()-54)&":r"&6+2*(ROW()-54))) -> 34784291.5 | AA62: 1264600.442 | AB62: 0
B63: 43922 | D63: 1251726.851 | E63: 0 | F63: 2604842.782 | G63: 3008863.415 | H63: 14847942.07 | I63: 161942.2898 | J63: 0 | K63: =DSUM(MercadoBase,K$53,INDIRECT("r"&5+2*(ROW()-54)&":r"&6+2*(ROW()-54)))*IF(VLOOKUP("MesesAdin",TabPostergacao[#All],2,FALSE)>2,0,1) -> 13497217.72 | L63: =DSUM(MercadoBase,L$53,INDIRECT("r"&5+2*(ROW()-54)&":r"&6+2*(ROW()-54)))*IF(VLOOKUP("MesesAdin",TabPostergacao[#All],2,FALSE)>2,0,1) -> 1159319.127 | M63: =DSUM(MercadoBase,M$53,INDIRECT("r"&5+2*(ROW()-54)&":r"&6+2*(ROW()-54)))*IF(VLOOKUP("MesesAdin",TabPostergacao[#All],2,FALSE)>2,0,1) -> 3392544.848 | N63: =DSUM(MercadoBase,N$53,INDIRECT("r"&5+2*(ROW()-54)&":r"&6+2*(ROW()-54)))*IF(VLOOKUP("MesesAdin",TabPostergacao[#All],2,FALSE)>2,0,1) -> 0 | O63: =DSUM(MercadoBase,O$53,INDIRECT("r"&5+2*(ROW()-54)&":r"&6+2*(ROW()-54)))*IF(VLOOKUP("MesesAdin",TabPostergacao[#All],2,FALSE)>2,0,1) -> 153820.4448 | P63: =DSUM(MercadoBase,P$53,INDIRECT("r"&5+2*(ROW()-54)&":r"&6+2*(ROW()-54)))*IF(VLOOKUP("MesesAdin",TabPostergacao[#All],2,FALSE)>2,0,1) -> -4300802.293 | Q63: =DSUM(MercadoBase,Q$53,INDIRECT("r"&5+2*(ROW()-54)&":r"&6+2*(ROW()-54)))*IF(VLOOKUP("MesesAdin",TabPostergacao[#All],2,FALSE)>2,0,1) -> 256164.6549 | R63: =VLOOKUP(CAPA!$C$15,Índices!B:F,5,FALSE)/VLOOKUP(DATE(YEAR(B63),MONTH(B63),1),Índices!B:F,5,FALSE) -> 1.004486425 | S63: 0 | T63: 0 | U63: 0 | V63: 0 | W63: 0 | X63: -575647.6573 | Y63: 0 | Z63: 33363239.35 | AA63: 1155480.252 | AB63: 0
B64: 43952 | D64: =DSUM(MercadoBase,D$53,INDIRECT("r"&5+2*(ROW()-54)&":r"&6+2*(ROW()-54))) -> 1195391.379 | E64: 0 | F64: 2495388.384 | G64: 2874838.39 | H64: 14145239.69 | I64: 154569.0131 | J64: 0 | K64: =DSUM(MercadoBase,K$53,INDIRECT("r"&5+2*(ROW()-54)&":r"&6+2*(ROW()-54)))*IF(VLOOKUP("MesesAdin",TabPostergacao[#All],2,FALSE)>1,0,1) -> 12913109.01 | L64: =DSUM(MercadoBase,L$53,INDIRECT("r"&5+2*(ROW()-54)&":r"&6+2*(ROW()-54)))*IF(VLOOKUP("MesesAdin",TabPostergacao[#All],2,FALSE)>1,0,1) -> 1127046.543 | M64: =DSUM(MercadoBase,M$53,INDIRECT("r"&5+2*(ROW()-54)&":r"&6+2*(ROW()-54)))*IF(VLOOKUP("MesesAdin",TabPostergacao[#All],2,FALSE)>1,0,1) -> 3231987.288 | N64: =DSUM(MercadoBase,N$53,INDIRECT("r"&5+2*(ROW()-54)&":r"&6+2*(ROW()-54)))*IF(VLOOKUP("MesesAdin",TabPostergacao[#All],2,FALSE)>1,0,1) -> 0 | O64: =DSUM(MercadoBase,O$53,INDIRECT("r"&5+2*(ROW()-54)&":r"&6+2*(ROW()-54)))*IF(VLOOKUP("MesesAdin",TabPostergacao[#All],2,FALSE)>1,0,1) -> 147356.9744 | P64: =DSUM(MercadoBase,P$53,INDIRECT("r"&5+2*(ROW()-54)&":r"&6+2*(ROW()-54)))*IF(VLOOKUP("MesesAdin",TabPostergacao[#All],2,FALSE)>1,0,1) -> -4120084.39 | Q64: =DSUM(MercadoBase,Q$53,INDIRECT("r"&5+2*(ROW()-54)&":r"&6+2*(ROW()-54)))*IF(VLOOKUP("MesesAdin",TabPostergacao[#All],2,FALSE)>1,0,1) -> 244754.2087 | R64: =VLOOKUP(CAPA!$C$15,Índices!B:F,5,FALSE)/VLOOKUP(DATE(YEAR(B64),MONTH(B64),1),Índices!B:F,5,FALSE) -> 1.002123322 | S64: =DSUM(MercadoBase,S$53,INDIRECT("r"&5+2*(ROW()-54)&":r"&6+2*(ROW()-54))) -> 0 | T64: 0 | U64: 0 | V64: 0 | W64: 0 | X64: -551459.1849 | Y64: 0 | Z64: =DSUM(MercadoBase,Z$53,INDIRECT("r"&5+2*(ROW()-54)&":r"&6+2*(ROW()-54))) -> 31935260.94 | AA64: =DSUM(MercadoBase,AA$53,INDIRECT("r"&5+2*(ROW()-54)&":r"&6+2*(ROW()-54))) -> 1106927.458 | AB64: 0
B65: =DATE(YEAR(CAPA!$C$10),MONTH(CAPA!$C$10)-1,1) -> 43983 | D65: 1195391.379 | E65: 0 | F65: 2495388.384 | G65: 2874838.39 | H65: 14145239.69 | I65: 154569.0131 | J65: 0 | K65: =DSUM(MercadoBase,K$53,INDIRECT("r"&5+2*(ROW()-54)&":r"&6+2*(ROW()-54)))*IF(VLOOKUP("MesesAdin",TabPostergacao[#All],2,FALSE)>0,0,1) -> 12913109.01 | L65: =DSUM(MercadoBase,L$53,INDIRECT("r"&5+2*(ROW()-54)&":r"&6+2*(ROW()-54)))*IF(VLOOKUP("MesesAdin",TabPostergacao[#All],2,FALSE)>0,0,1) -> 1127046.543 | M65: =DSUM(MercadoBase,M$53,INDIRECT("r"&5+2*(ROW()-54)&":r"&6+2*(ROW()-54)))*IF(VLOOKUP("MesesAdin",TabPostergacao[#All],2,FALSE)>0,0,1) -> 3231987.288 | N65: =DSUM(MercadoBase,N$53,INDIRECT("r"&5+2*(ROW()-54)&":r"&6+2*(ROW()-54)))*IF(VLOOKUP("MesesAdin",TabPostergacao[#All],2,FALSE)>0,0,1) -> 0 | O65: =DSUM(MercadoBase,O$53,INDIRECT("r"&5+2*(ROW()-54)&":r"&6+2*(ROW()-54)))*IF(VLOOKUP("MesesAdin",TabPostergacao[#All],2,FALSE)>0,0,1) -> 147356.9744 | P65: =DSUM(MercadoBase,P$53,INDIRECT("r"&5+2*(ROW()-54)&":r"&6+2*(ROW()-54)))*IF(VLOOKUP("MesesAdin",TabPostergacao[#All],2,FALSE)>0,0,1) -> -4120084.39 | Q65: =DSUM(MercadoBase,Q$53,INDIRECT("r"&5+2*(ROW()-54)&":r"&6+2*(ROW()-54)))*IF(VLOOKUP("MesesAdin",TabPostergacao[#All],2,FALSE)>0,0,1) -> 244754.2087 | R65: =VLOOKUP(CAPA!$C$15,Índices!B:F,5,FALSE)/VLOOKUP(DATE(YEAR(B65),MONTH(B65),1),Índices!B:F,5,FALSE) -> 1 | S65: 0 | T65: 0 | U65: 0 | V65: 0 | W65: 0 | X65: -551459.1849 | Y65: 0 | Z65: 31935260.94 | AA65: 1106927.458 | AB65: 0
B66: Total Bruto | D66: =SUM(D54:D65) -> 15455610.97 | E66: =SUM(E54:E65) -> 0 | F66: 32498126.94 | G66: =SUM(G54:G65) -> 37950406.54 | H66: 186364813.5 | I66: 1989251.765 | J66: 0 | K66: 168055423.2 | L66: 14054275.7 | M66: 42581725.13 | N66: 0 | O66: 1919070.27 | P66: -53656988.37 | Q66: 3230971.785 | S66: =SUM(S54:S65) -> 0 | T66: 0 | U66: 0 | V66: 0 | W66: 0 | X66: -7181804.126 | Y66: 0 | Z66: 405726127.8 | AA66: 14415819.71 | AB66: 0
B67: Total Atualizado pelo SELIC | D67: =SUMPRODUCT(D54:D65,$R$54:$R$65) -> 15721681.05 | E67: 0 | F67: 33057870.97 | G67: 38607965.02 | H67: 189592570.7 | I67: 2023620.225 | J67: 0 | K67: 170949686.5 | L67: 14296443.23 | M67: 43319222.02 | N67: 0 | O67: 1952124.117 | P67: -54581170.21 | Q67: 3286954.133 | R67: 12.42111775 | S67: 0 | T67: 0 | U67: 0 | V67: 0 | W67: 0 | X67: -7305502.7 | Y67: 0 | Z67: 412709202.3 | AA67: 14664116.14 | AB67: 0

Sheet Mercado_Receita
A1: Código | B1: TipoMercado | C1: Modalidade | D1: Subgrupo | E1: Classe | F1: Subclasse | G1: Detalhe | H1: Agente | I1: Posto | J1: OPÇÃO | K1: AnoMes | L1: D | M1: Daj | N1: TUSD_E | O1: TUSD_Eaj | P1: TE_E | Q1: TE_Eaj | R1: TUSD/KW | S1: TUSD/MWh | T1: TE | U1: ReceitaD | V1: ReceitaE | W1: Total | X1: Total com Tar de aplicação | Y1: CCC | Z1: CDE | AA1: CFURH | AB1: Conexao_D | AC1: Conexao_T | AD1: CUSD | AE1: DISTRIBUICAO | AF1: EnergiaRevenda | AG1: ESSERR | AH1: ITAIPU | AI1: ONS | AJ1: OUTROS | AK1: PeD | AL1: PROINFA | AM1: RGR | AN1: TFSEE | AO1: TUST_FR | AP1: TUST_RB | AQ1: TUSDG_ONS | AR1: TUSDG_T | AS1: TUST_CI | AT1: TUST_ITAIPU | AU1: CVA_CCC | AV1: CVA_CDE | AW1: CVA_PROINFA | AX1: CVA_TranItaipu | AY1: CVA_ESSERR | AZ1: CVA_CFURH | BA1: CVA_CDE_E | BB1: CVA_Energia | BC1: CVA_RB | BD1: perdasnt | BE1: perdasrb_d | BF1: perdasrb_c | BG1: perdastec | BH1: RI | BI1: PisPasep | BJ1: Cofins | BK1: ICMS | BL1: UC | BM1: total_dummy | BN1: Subs_CarFI | BO1: Subs_GerFI | BP1: Subs_Dist | BQ1: Subs_AguaEsgoto | BR1: Subs_Rural | BS1: Subs_Irrigante | BT1: Subs_BaixaRenda | BU1: CDE_E | BV1: DespesaEnergia | BW1: RTE_CUSD | BX1: RTE_Energia | BY1: RTE_CDE_USO | BZ1: RTE_CDE_E | CA1: RTE_PeD | CB1: Dif_Subs_Car | CC1: Dif_Subs_Ger | CD1: Dif_Subs_D | CE1: Dif_Subs_Agua | CF1: Dif_Subs_Ru | CG1: Dif_Subs_Irr | CH1: dif_subs_baixa | CI1: FinTotAj | CJ1: FinAj | CK1: RTE_CDE_E_Dec | CL1: RTE_CDE_E_ACR | CM1: CDE_E_Dec | CN1: CDE_E_ACR | CO1: FinPostTUSD | CP1: FinPostTE | CQ1: FinPostQtddias | CR1: FinCT_Geral | CS1: finCT_TUST_FR | CT1: finCT_TUST_RB | CU1: FINCT_TUSDG_ONS | CV1: FINCT_TUSDG_T | CW1: FINCT_TUST_CI | CX1: FINCT_TUST_ITAIPU | CY1: FinCT_Itaipu | CZ1: FinCT_CUSD | DA1: FinCT_Conexao_D | DB1: FinCT_Conexao_T | DC1: FinCT_EnergiaRevenda | DD1: FINCT_perdasrb_c | DE1: FINCT_perdasrb_d | DF1: FinCT_perdasnt | DG1: FinCT_perdastec | DH1: FinCT_CCC | DI1: FinCT_CDE | DJ1: FinCT_CDE_E | DK1: FinCT_CFURH | DL1: FinCT_ONS | DM1: FinCT_ESSERR | DN1: FinCT_Ped | DO1: finCT_PROINFA | DP1: finCT_TFSEE | DQ1: FINCT_Liminar | DR1: FinCT_Posterg | DS1: FINCT_RGR | DT1: Tipo_ato | DU1: DIST_D | DV1: DIST_E | DW1: FIN_RI | DX1: FINCT_RI | DY1: idsreag | DZ1: FinCTAn3En | EA1: An3En | EB1: CVA_An3En | EC1: Fin_An3En | ED1: FIN_CFURH | EE1: TEAngra | EF1: TUSDAngra | EG1: teCheia | EH1: tusdcheia | EI1: AngraIII_TE | EJ1: AngraIII_TUSD | EK1: AngraIII_Desc_TE | EL1: AngraIII_Desc_TUSD
A2: 1 | B2: Regular | C2: Convencional | D2: B1 | E2: Residencial | F2: Residencial | G2: Não se aplica | H2: Não se aplica | I2: Não se aplica | J2: CATIVO | K2: 2019-07-01 | L2: 0 | M2: 0 | N2: 99766.533 | O2: 99766.533 | P2: 99766.533 | Q2: 99766.533 | S2: 236.77 | T2: 220.1 | V2: 45580335.93 | W2: 45580335.93 | X2: 49618885.19 | Y2: 0 | Z2: 4706581.124 | AA2: 0 | AB2: 0 | AC2: 71539.85682 | AD2: 764533.352 | AE2: 11047645.14 | AF2: 19128838.1 | AG2: 976624.0305 | AH2: 554513.6668 | AI2: 0 | AJ2: 0 | AK2: 473087.7356 | AL2: 914329.3929 | AM2: 0 | AN2: 48647.11369 | AO2: 1933845.38 | AP2: 1412940.428 | AQ2: 0 | AR2: 0 | AS2: 0 | AT2: 360132.8768 | AU2: 0 | AV2: 1075387.247 | AW2: 77842.97296 | AX2: 57671.32811 | AY2: -1612483.831 | AZ2: 0 | BA2: -215825.4383 | BB2: 5109814.115 | BC2: 286999.2493 | BD2: 100903.7397 | BE2: 34063.6462 | BF2: 274178.5099 | BG2: 2316603.176 | BH2: 28564.29755 | BI2: 690674.9 | BJ2: 3191774.22 | BK2: 13805943.28 | BL2: 594907 | BU2: 433219.9198 | BV2: 21854587.17 | CI2: 49618883.7 | CJ2: 4038547.734 | CM2: 0 | CN2: 433219.9198 | CO2: 1618213.165 | CP2: 2420336.091 | CQ2: 31 | CR2: -735607.4412 | CS2: -55613.56895 | CT2: -45032.91135 | CU2: 0 | CV2: 0 | CW2: 0 | CX2: -8113.582581 | CY2: 11448.07304 | CZ2: -93488.68331 | DA2: 0 | DB2: -1509.212199 | DC2: -320504.1902 | DD2: -4593.868212 | DE2: -570.7372963 | DF2: -1690.644837 | DG2: -38814.74772 | DH2: 0 | DI2: -114253.1456 | DJ2: -82621.46852 | DK2: 0 | DL2: 0 | DM2: 16300.27585 | DN2: 29774.12007 | DO2: -25060.41169 | DP2: -1262.737723 | DQ2: 0 | DR2: 0 | DS2: 0 | DV2: 11047645.14 | DW2: 28696.81707 | DX2: 132.5195182 | DY2: 165 | DZ2: 0 | EA2: 0 | EB2: 0 | ED2: 0 | EI2: 0 | EJ2: 0 | EK2: 0 | EL2: 0
A3: 2 | B3: Refaturamento - Regular | C3: Convencional | D3: B1 | E3: Residencial | F3: Residencial | G3: Não se aplica | H3: Não se aplica | I3: Não se aplica | J3: CATIVO | K3: 2019-07-01 | L3: 0 | M3: 0 | N3: -66.542 | O3: -66.542 | P3: -66.542 | Q3: -66.542 | S3: 236.77 | T3: 220.1 | V3: -30401.04354 | W3: -30401.04354 | X3: -33094.6637 | Y3: 0 | Z3: -3139.182166 | AA3: 0 | AB3: 0 | AC3: -47.71545136 | AD3: -509.9262927 | AE3: -7368.527107 | AF3: -12758.49833 | AG3: -651.3859335 | AH3: -369.8479571 | AI3: 0 | AJ3: 0 | AK3: -315.5387198 | AL3: -609.8368324 | AM3: 0 | AN3: -32.44651429 | AO3: -1289.830722 | AP3: -942.3990104 | AQ3: 0 | AR3: 0 | AS3: 0 | AT3: -240.2004075 | AU3: 0 | AV3: -717.2587442 | AW3: -51.91948593 | AX3: -38.46545931 | AY3: 1075.489905 | AZ3: 0 | BA3: 143.9506404 | BB3: -3408.129366 | BC3: -191.4219476 | BD3: -67.30049088 | BE3: -22.7196744 | BF3: -182.8708071 | BG3: -1545.121434 | BH3: -19.05173439 | BI3: -393.72 | BJ3: -1814.51 | BK3: -11839.73 | BL3: -78 | BU3: -288.9477968 | BV3: -14576.51074 | CI3: -33093.669 | CJ3: -2692.65546 | CM3: 0 | CN3: -288.9477968 | CO3: -1079.31124 | CP3: -1614.30892 | CQ3: 31 | CR3: 490.6333705 | CS3: 37.09298092 | CT3: 30.03592384 | CU3: 0 | CV3: 0 | CW3: 0 | CX3: 5.411574361 | CY3: -7.635603377 | CZ3: 62.35481757 | DA3: 0 | DB3: 1.006610084 | DC3: 213.7689782 | DD3: 3.064005227 | DE3: 0.3806687476 | DF3: 1.127621511 | DG3: 25.88855065 | DH3: 0 | DI3: 76.2042399 | DJ3: 55.10663338 | DK3: 0 | DL3: 0 | DM3: -10.87191188 | DN3: -19.85865839 | DO3: 16.71472251 | DP3: 0.8422172346 | DQ3: 0 | DR3: 0 | DS3: 0 | DV3: -7368.527107 | DW3: -19.14012188 | DX3: -0.08838749342 | DY3: 165 | DZ3: 0 | EA3: 0 | EB3: 0 | ED3: 0 | EI3: 0 | EJ3: 0 | EK3: 0 | EL3: 0
A4: 3 | B4: Sistema de Compensação | C4: Convencional | D4: B1 | E4: Residencial | F4: Residencial | G4: Não se aplica | H4: Não se aplica | I4: Não se aplica | J4: CATIVO | K4: 2019-07-01 | L4: 0 | M4: 0 | N4: 344.73 | O4: 344.73 | P4: 344.73 | Q4: 344.73 | S4: 236.77 | T4: 220.1 | V4: 157496.7951 | W4: 157496.7951 | X4: 171451.4655 | Y4: 0 | Z4: 16262.96577 | AA4: 0 | AB4: 0 | AC4: 247.1964706 | AD4: 2641.743424 | AE4: 38173.67001 | AF4: 66097.15863 | AG4: 3374.594585 | AH4: 1916.048304 | AI4: 0 | AJ4: 0 | AK4: 1634.691817 | AL4: 3159.343741 | AM4: 0 | AN4: 168.0936382 | AO4: 6682.145784 | AP4: 4882.227929 | AQ4: 0 | AR4: 0 | AS4: 0 | AT4: 1244.391309 | AU4: 0 | AV4: 3715.857757 | AW4: 268.976051 | AX4: 199.2756122 | AY4: -5571.723648 | AZ4: 0 | BA4: -745.756128 | BB4: 17656.28379 | BC4: 991.6877759 | BD4: 348.6594665 | BE4: 117.7024038 | BF4: 947.3874142 | BG4: 8004.714496 | BH4: 98.70013518 | BI4: 2502.78 | BJ4: 11564.07 | BK4: 58447.27 | BL4: 2000 | BU4: 1496.933876 | BV4: 75515.62241 | CI4: 171451.4655 | CJ4: 13954.6404 | CM4: 0 | CN4: 1496.933876 | CO4: 5591.5206 | CP4: 8363.1498 | CQ4: 31 | CR4: -2541.793782 | CS4: -192.1652988 | CT4: -155.6052422 | CU4: 0 | CV4: 0 | CW4: 0 | CX4: -28.03540665 | CY4: 39.55729542 | CZ4: -323.0377244 | DA4: 0 | DB4: -5.214882243 | DC4: -1107.459648 | DD4: -15.87350127 | DE4: -1.9721069 | DF4: -5.841798617 | DG4: -134.1192039 | DH4: 0 | DI4: -394.7865652 | DJ4: -285.4875075 | DK4: 0 | DL4: 0 | DM4: 56.32343756 | DN4: 102.8805162 | DO4: -86.5929231 | DP4: -4.363222435 | DQ4: 0 | DR4: 0 | DS4: 0 | DV4: 38173.67001 | DW4: 99.15803877 | DX4: 0.4579035888 | DY4: 165 | DZ4: 0 | EA4: 0 | EB4: 0 | ED4: 0 | EI4: 0 | EJ4: 0 | EK4: 0 | EL4: 0
A5: 4 | B5: Sistema de Compensação - Refaturamento | C5: Convencional | D5: B1 | E5: Residencial | F5: Residencial | G5: Não se aplica | H5: Não se aplica | I5: Não se aplica | J5: CATIVO | K5: 2019-07-01 | L5: 0 | M5: 0 | N5: -0.508 | O5: -0.508 | P5: -0.508 | Q5: -0.508 | S5: 236.77 | T5: 220.1 | V5: -232.08996 | W5: -232.08996 | X5: -252.6538 | Y5: 0 | Z5: -23.96538337 | AA5: 0 | AB5: 0 | AC5: -0.3642729297 | AD5: -3.892918107 | AE5: -56.25337036 | AF5: -97.40189884 | AG5: -4.972860062 | AH5: -2.823521418 | AI5: 0 | AJ5: 0 | AK5: -2.408909706 | AL5: -4.655662752 | AM5: 0 | AN5: -0.2477056485 | AO5: -9.846923849 | AP5: -7.194534238 | AQ5: 0 | AR5: 0 | AS5: 0 | AT5: -1.83375623 | AU5: 0 | AV5: -5.475751286 | AW5: -0.3963676904 | AX5: -0.2936559365 | AY5: 8.210586875 | AZ5: 0 | BA5: 1.098958933 | BB5: -26.01860055 | BC5: -1.461367999 | BD5: -0.5137905288 | BE5: -0.1734482672 | BF5: -1.396086231 | BG5: -11.79588363 | BH5: -0.1454462004 | BI5: -3.55 | BJ5: -16.36 | BK5: -91.32 | BL5: 0 | BU5: -2.205907258 | BV5: -111.2811075 | CI5: -253.6485 | CJ5: -21.58854 | CM5: 0 | CN5: -2.205907258 | CO5: -8.23976 | CP5: -12.32408 | CQ5: 31 | CR5: 3.745630613 | CS5: 0.2831780576 | CT5: 0.2293025354 | CU5: 0 | CV5: 0 | CW5: 0 | CX5: 0.04131345279 | CY5: -0.05829230434 | CZ5: 0.4760338932 | DA5: 0 | DB5: 0.007684739302 | DC5: 1.631971401 | DD5: 0.02339146186 | DE5: 0.002906130321 | DF5: 0.008608573949 | DG5: 0.1976403434 | DH5: 0 | DI5: 0.5817642071 | DJ5: 0.420699254 | DK5: 0 | DL5: 0 | DM5: -0.08299917699 | DN5: -0.1516064811 | DO5: 0.1276048065 | DP5: 0.006429718902 | DQ5: 0 | DR5: 0 | DS5: 0 | DV5: -56.25337036 | DW5: -0.146120975 | DX5: -0.0006747745282 | DY5: 165 | DZ5: 0 | EA5: 0 | EB5: 0 | ED5: 0 | EI5: 0 | EJ5: 0 | EK5: 0 | EL5: 0
A6: 5 | B6: Regular | C6: Convencional | D6: B1 | E6: Residencial | F6: Residencial baixa renda – faixa 01 | G6: Não se aplica | H6: Não se aplica | I6: Não se aplica | J6: CATIVO | K6: 2019-07-01 | L6: 0 | M6: 0 | N6: 2314.572 | O6: 2314.572 | P6: 2314.572 | Q6: 2314.572 | S6: 180.42 | T6: 220.1 | V6: 927032.3774 | W6: 927032.3774 | X6: 997187.0548 | Y6: 0 | Z6: 0 | AA6: 0 | AB6: 0 | AC6: 1659.716385 | AD6: 17737.08514 | AE6: 256304.0865 | AF6: 443786.8264 | AG6: 22657.56429 | AH6: 12864.65279 | AI6: 0 | AJ6: 0 | AK6: 10946.5383 | AL6: 0 | AM6: 0 | AN6: 1128.607398 | AO6: 44864.98863 | AP6: 32780.05413 | AQ6: 0 | AR6: 0 | AS6: 0 | AT6: 8355.040992 | AU6: 0 | AV6: 0 | AW6: 0 | AX6: 1337.968127 | AY6: -37409.43796 | AZ6: 0 | BA6: -5007.125149 | BB6: 118547.0951 | BC6: 6658.349314 | BD6: 2340.955062 | BE6: 790.2726429 | BF6: 6360.909645 | BG6: 53744.92513 | BH6: 662.6883918 | BI6: 4819.25 | BJ6: 22126.39 | BK6: 63762.89 | BL6: 2574 | BT6: 648149.5972 | BU6: 10050.65192 | BV6: 507023.8889 | CI6: 349037.156 | CJ6: 24557.27732 | CM6: 0 | CN6: 10050.65192 | CO6: 14003.1606 | CP6: 56151.51672 | CQ6: 31 | CR6: -13835.77678 | CS6: -1290.228353 | CT6: -1044.758323 | CU6: 0 | CV6: 0 | CW6: 0 | CX6: -188.2341753 | CY6: 265.5939674 | CZ6: -2168.926615 | DA6: 0 | DB6: -35.01354806 | DC6: -7435.660057 | DD6: -106.57721 | DE6: -13.24103911 | DF6: -39.22276422 | DG6: -900.4976473 | DH6: 0 | DI6: 0 | DJ6: -1916.808492 | DK6: 0 | DL6: 0 | DM6: 378.16451 | DN6: 688.9283346 | DO6: 0 | DP6: -29.29536878 | DQ6: 0 | DR6: 0 | DS6: 0 | DV6: 256304.0865 | DW6: 665.7628292 | DX6: 3.074437459 | DY6: 165 | DZ6: 0 | EA6: 0 | EB6: 0 | ED6: 0 | EI6: 0 | EJ6: 0 | EK6: 0 | EL6: 0
A7: 6 | B7: Refaturamento - Regular | C7: Convencional | D7: B1 | E7: Residencial | F7: Residencial baixa renda – faixa 01 | G7: Não se aplica | H7: Não se aplica | I7: Não se aplica | J7: CATIVO | K7: 2019-07-01 | L7: 0 | M7: 0 | N7: 2.305 | O7: 2.305 | P7: 2.305 | Q7: 2.305 | S7: 180.42 | T7: 220.1 | V7: 923.1986 | W7: 923.1986 | X7: 993.06315 | Y7: 0 | Z7: 0 | AA7: 0 | AB7: 0 | AC7: 1.652852565 | AD7: 17.66373275 | AE7: 255.2441313 | AF7: 441.9515292 | AG7: 22.56386308 | AH7: 12.81145053 | AI7: 0 | AJ7: 0 | AK7: 10.90126848 | AL7: 0 | AM7: 0 | AN7: 1.123939999 | AO7: 44.67944778 | AP7: 32.64449098 | AQ7: 0 | AR7: 0 | AS7: 0 | AT7: 8.320488404 | AU7: 0 | AV7: 0 | AW7: 0 | AX7: 1.332434909 | AY7: -37.25472982 | AZ7: 0 | BA7: -4.986417994 | BB7: 118.0568391 | BC7: 6.630813459 | BD7: 2.331273954 | BE7: 0.7870044405 | BF7: 6.334603863 | BG7: 53.52266096 | BH7: 0.6599478189 | BI7: 14.62 | BJ7: 67.43 | BK7: 403.08 | BL7: 15 | BT7: 645.46915 | BU7: 10.00908707 | BV7: 504.9270724 | CI7: 348.348 | CJ7: 25.18005 | CM7: 0 | CN7: 10.00908707 | CO7: 13.94525 | CP7: 55.9193 | CQ7: 31 | CR7: -13.7785584 | CS7: -1.284892564 | CT7: -1.040437685 | CU7: 0 | CV7: 0 | CW7: 0 | CX7: -0.1874557257 | CY7: 0.2644955935 | CZ7: -2.159956937 | DA7: 0 | DB7: -0.03486874821 | DC7: -7.404909604 | DD7: -0.1061364559 | DE7: -0.01318628029 | DF7: -0.03906055699 | DG7: -0.8967736053 | DH7: 0 | DI7: 0 | DJ7: -1.908881458 | DK7: 0 | DL7: 0 | DM7: 0.3766005964 | DN7: 0.6860792455 | DO7: 0 | DP7: -0.02917421667 | DQ7: 0 | DR7: 0 | DS7: 0 | DV7: 255.2441313 | DW7: 0.6630095419 | DX7: 0.003061723007 | DY7: 165 | DZ7: 0 | EA7: 0 | EB7: 0 | ED7: 0 | EI7: 0 | EJ7: 0 | EK7: 0 | EL7: 0
A8: 7 | B8: Sistema de Compensação | C8: Convencional | D8: B1 | E8: Residencial | F8: Residencial baixa renda – faixa 01 | G8: Não se aplica | H8: Não se aplica | I8: Não se aplica | J8: CATIVO | K8: 2019-07-01 | L8: 0 | M8: 0 | N8: 0.45 | O8: 0.45 | P8: 0.45 | Q8: 0.45 | S8: 180.42 | T8: 220.1 | V8: 180.234 | W8: 180.234 | X8: 193.8735 | Y8: 0 | Z8: 0 | AA8: 0 | AB8: 0 | AC8: 0.3226827133 | AD8: 3.448451079 | AE8: 49.83074146 | AF8: 86.2812096 | AG8: 4.405092575 | AH8: 2.501150863 | AI8: 0 | AJ8: 0 | AK8: 2.128230289 | AL8: 0 | AM8: 0 | AN8: 0.2194242949 | AO8: 8.722668764 | AP8: 6.373111038 | AQ8: 0 | AR8: 0 | AS8: 0 | AT8: 1.624390361 | AU8: 0 | AV8: 0 | AW8: 0 | AX8: 0.2601282902 | AY8: -7.273157665 | AZ8: 0 | BA8: -0.9734872439 | BB8: 23.04797293 | BC8: 1.294518896 | BD8: 0.4551294054 | BE8: 0.1536451185 | BF8: 1.236690559 | BG8: 10.44910952 | BH8: 0.1288401382 | BI8: 0.99 | BJ8: 4.6 | BK8: 23.17 | BL8: 0 | BT8: 126.0135 | BU8: 1.954051705 | BV8: 98.5757842 | CI8: 67.86 | CJ8: 4.7445 | CM8: 0 | CN8: 1.954051705 | CO8: 2.7225 | CP8: 10.917 | CQ8: 31 | CR8: -2.689957172 | CS8: -0.2508467045 | CT8: -0.2031223247 | CU8: 0 | CV8: 0 | CW8: 0 | CX8: -0.03659656251 | CY8: 0.05163688377 | CZ8: -0.4216835668 | DA8: 0 | DB8: -0.006807347807 | DC8: -1.445643957 | DD8: -0.02072078315 | DE8: -0.00257432804 | DF8: -0.00762570527 | DG8: -0.1750751073 | DH8: 0 | DI8: 0 | DJ8: -0.372666662 | DK8: 0 | DL8: 0 | DM8: 0.073522893 | DN8: 0.1339417182 | DO8: 0 | DP8: -0.005695617138 | DQ8: 0 | DR8: 0 | DS8: 0 | DV8: 49.83074146 | DW8: 0.1294378715 | DX8: 0.0005977333419 | DY8: 165 | DZ8: 0 | EA8: 0 | EB8: 0 | ED8: 0 | EI8: 0 | EJ8: 0 | EK8: 0 | EL8: 0
A9: 8 | B9: Regular | C9: Convencional | D9: B1 | E9: Residencial | F9: Residencial baixa renda – faixa 02 | G9: Não se aplica | H9: Não se aplica | I9: Não se aplica | J9: CATIVO | K9: 2019-07-01 | L9: 0 | M9: 0 | N9: 4647.591 | O9: 4647.591 | P9: 4647.591 | Q9: 4647.591 | S9: 180.42 | T9: 220.1 | V9: 1861453.147 | W9: 1861453.147 | X9: 2002321.631 | Y9: 0 | Z9: 0 | AA9: 0 | AB9: 0 | AC9: 3332.66061 | AD9: 35615.53378 | AE9: 514650.9012 | AF9: 891110.6071 | AG9: 45495.70801 | AH9: 25831.83609 | AI9: 0 | AJ9: 0 | AK9: 21980.31986 | AL9: 0 | AM9: 0 | AN9: 2266.209729 | AO9: 90087.54854 | AP9: 65821.36333 | AQ9: 0 | AR9: 0 | AS9: 0 | AT9: 16776.67116 | AU9: 0 | AV9: 0 | AW9: 0 | AX9: 2686.599779 | AY9: -75117.0269 | AZ9: 0 | BA9: -10054.15679 | BB9: 238039.0034 | BC9: 13369.76527 | BD9: 4700.567396 | BE9: 1586.843711 | BF9: 12772.51536 | BG9: 107918.1941 | BH9: 1330.65837 | BI9: 19409.1 | BJ9: 90246.93 | BK9: 265103.53 | BL9: 20980 | BT9: 800919.357 | BU9: 20181.40693 | BV9: 1018088.728 | CI9: 1201402.015 | CJ9: 84539.39179 | CM9: 0 | CN9: 20181.40693 | CO9: 28117.92555 | CP9: 112750.5577 | CQ9: 31 | CR9: -27781.82387 | CS9: -2590.739748 | CT9: -2097.843307 | CU9: 0 | CV9: 0 | CW9: 0 | CX9: -377.9685657 | CY9: 533.3047028 | CZ9: -4355.139445 | DA9: 0 | DB9: -70.306152 | DC9: -14930.58188 | DD9: -214.0038339 | DE9: -26.58760851 | DF9: -78.75813151 | DG9: -1808.172207 | DH9: 0 | DI9: 0 | DJ9: -3848.893832 | DK9: 0 | DL9: 0 | DM9: 759.3429684 | DN9: 1383.347387 | DO9: 0 | DP9: -58.82421989 | DQ9: 0 | DR9: 0 | DS9: 0 | DV9: 514650.9012 | DW9: 1336.831748 | DX9: 6.173378001 | DY9: 165 | DZ9: 0 | EA9: 0 | EB9: 0 | ED9: 0 | EI9: 0 | EJ9: 0 | EK9: 0 | EL9: 0
A10: 9 | B10: Refaturamento - Regular | C10: Convencional | D10: B1 | E10: Residencial | F10: Residencial baixa renda – faixa 02 | G10: Não se aplica | H10: Não se aplica | I10: Não se aplica | J10: CATIVO | K10: 2019-07-01 | L10: 0 | M10: 0 | N10: -1.004 | O10: -1.004 | P10: -1.004 | Q10: -1.004 | S10: 180.42 | T10: 220.1 | V10: -402.12208 | W10: -402.12208 | X10: -432.55332 | Y10: 0 | Z10: 0 | AA10: 0 | AB10: 0 | AC10: -0.7199409871 | AD10: -7.693877519 | AE10: -111.1779209 | AF10: -192.5029654 | AG10: -9.828250989 | AH10: -5.58034548 | AI10: 0 | AJ10: 0 | AK10: -4.748318246 | AL10: 0 | AM10: 0 | AN10: -0.4895599824 | AO10: -19.4612432 | AP10: -14.21911885 | AQ10: 0 | AR10: 0 | AS10: 0 | AT10: -3.624195383 | AU10: 0 | AV10: 0 | AW10: 0 | AX10: -0.5803751186 | AY10: 16.22722288 | AZ10: 0 | BA10: 2.171958206 | BB10: -51.42258849 | BC10: -2.888215493 | BD10: -1.015444273 | BE10: -0.3427993311 | BF10: -2.759194047 | BG10: -23.31312434 | BH10: -0.2874566638 | BI10: -3.84 | BJ10: -17.74 | BK10: -88.87 | BL10: -3 | BT10: -173.01932 | BU10: -4.359706471 | BV10: -219.9335274 | CI10: -258.5 | CJ10: -17.25876 | CM10: 0 | CN10: -4.359706471 | CO10: -6.0742 | CP10: -24.35704 | CQ10: 31 | CR10: 6.001593334 | CS10: 0.5596668697 | CT10: 0.4531884755 | CU10: 0 | CV10: 0 | CW10: 0 | CX10: 0.08165099724 | CY10: -0.1152076251 | CZ10: 0.9408228914 | DA10: 0 | DB10: 0.01518794933 | DC10: 3.225392296 | DD10: 0.04623036951 | DE10: 0.005743611893 | DF10: 0.01701379576 | DG10: 0.3906120172 | DH10: 0 | DI10: 0 | DJ10: 0.8314607303 | DK10: 0 | DL10: 0 | DM10: -0.1640377435 | DN10: -0.2988388557 | DO10: 0 | DP10: 0.01270755468 | DQ10: 0 | DR10: 0 | DS10: 0 | DV10: -111.1779209 | DW10: -0.2887902733 | DX10: -0.001333609501 | DY10: 165 | DZ10: 0 | EA10: 0 | EB10: 0 | ED10: 0 | EI10: 0 | EJ10: 0 | EK10: 0 | EL10: 0
A11: 10 | B11: Sistema de Compensação | C11: Convencional | D11: B1 | E11: Residencial | F11: Residencial baixa renda – faixa 02 | G11: Não se aplica | H11: Não se aplica | I11: Não se aplica | J11: CATIVO | K11: 2019-07-01 | L11: 0 | M11: 0 | N11: 0.814 | O11: 0.814 | P11: 0.814 | Q11: 0.814 | S11: 180.42 | T11: 220.1 | V11: 326.02328 | W11: 326.02328 | X11: 350.69562 | Y11: 0 | Z11: 0 | AA11: 0 | AB11: 0 | AC11: 0.5836971748 | AD11: 6.237864841 | AE11: 90.13827455 | AF11: 156.0731214 | AG11: 7.968323013 | AH11: 4.524304005 | AI11: 0 | AJ11: 0 | AK11: 3.849732123 | AL11: 0 | AM11: 0 | AN11: 0.396914169 | AO11: 15.77833861 | AP11: 11.52824974 | AQ11: 0 | AR11: 0 | AS11: 0 | AT11: 2.938341675 | AU11: 0 | AV11: 0 | AW11: 0 | AX11: 0.4705431739 | AY11: -13.15633409 | AZ11: 0 | BA11: -1.760930259 | BB11: 41.69122214 | BC11: 2.341640848 | BD11: 0.8232785244 | BE11: 0.2779269478 | BF11: 2.237035811 | BG11: 18.9012781 | BH11: 0.2330574944 | BI11: 3.32 | BJ11: 15.37 | BK11: 71.56 | BL11: 1 | BT11: 140.27662 | BU11: 3.534662418 | BV11: 178.3126408 | CI11: 209.385 | CJ11: 13.74266 | CM11: 0 | CN11: 3.534662418 | CO11: 4.9247 | CP11: 19.74764 | CQ11: 31 | CR11: -4.865833639 | CS11: -0.4537538167 | CT11: -0.3674257162 | CU11: 0 | CV11: 0 | CW11: 0 | CX11: -0.0661991153 | CY11: 0.0934053853 | CZ11: -0.7627787187 | DA11: 0 | DB11: -0.01231373581 | DC11: -2.615009292 | DD11: -0.0374815944 | DE11: -0.004656673388 | DF11: -0.01379405353 | DG11: -0.3166914164 | DH11: 0 | DI11: 0 | DJ11: -0.6741125841 | DK11: 0 | DL11: 0 | DM11: 0.1329947442 | DN11: 0.2422856858 | DO11: 0 | DP11: -0.01030273856 | DQ11: 0 | DR11: 0 | DS11: 0 | DV11: 90.13827455 | DW11: 0.2341387276 | DX11: 0.001081233201 | DY11: 165 | DZ11: 0 | EA11: 0 | EB11: 0 | ED11: 0 | EI11: 0 | EJ11: 0 | EK11: 0 | EL11: 0
A12: 11 | B12: Regular | C12: Convencional | D12: B1 | E12: Residencial | F12: Residencial baixa renda – faixa 03 | G12: Não se aplica | H12: Não se aplica | I12: Não se aplica | J12: CATIVO | K12: 2019-07-01 | L12: 0 | M12: 0 | N12: 3528.834 | O12: 3528.834 | P12: 3528.834 | Q12: 3528.834 | S12: 180.42 | T12: 220.1 | V12: 1413368.594 | W12: 1413368.594 | X12: 1520327.552 | Y12: 0 | Z12: 0 | AA12: 0 | AB12: 0 | AC12: 2530.430511 | AD12: 27042.24759 | AE12: 390765.366 | AF12: 676604.5911 | AG12: 34544.08989 | AH12: 19613.65823 | AI12: 0 | AJ12: 0 | AK12: 16689.26979 | AL12: 0 | AM12: 0 | AN12: 1720.693138 | AO12: 68401.88912 | AP12: 49977.00203 | AQ12: 0 | AR12: 0 | AS12: 0 | AT12: 12738.23097 | AU12: 0 | AV12: 0 | AW12: 0 | AX12: 2039.8879 | AY12: -57035.03568 | AZ12: 0 | BA12: -7633.944189 | BB12: 180738.8233 | BC12: 10151.42732 | BD12: 3569.058045 | BE12: 1204.862485 | BF12: 9697.945982 | BG12: 81940.38428 | BH12: 1010.345467 | BI12: 31514.14 | BJ12: 145665.06 | BK12: 588817.7 | BL12: 42536 | BT12: 151986.8804 | BU12: 15323.38688 | BV12: 773016.8419 | CI12: 1368339.121 | CJ12: 96300.29882 | CM12: 0 | CN12: 15323.38688 | CO12: 21349.4457 | CP12: 85609.51284 | CQ12: 31 | CR12: -21094.24961 | CS12: -1967.103066 | CT12: -1592.855479 | CU12: 0 | CV12: 0 | CW12: 0 | CX12: -286.9848757 | CY12: 404.9288691 | CZ12: -3306.780684 | DA12: 0 | DB12: -53.38222309 | DC12: -11336.52789 | DD12: -162.4893424 | DE12: -20.18750292 | DF12: -59.79966229 | DG12: -1372.913314 | DH12: 0 | DI12: 0 | DJ12: -2922.397306 | DK12: 0 | DL12: 0 | DM12: 576.5557436 | DN12: 1050.351309 | DO12: 0 | DP12: -44.66419424 | DQ12: 0 | DR12: 0 | DS12: 0 | DV12: 390765.366 | DW12: 1015.032804 | DX12: 4.6873372 | DY12: 165 | DZ12: 0 | EA12: 0 | EB12: 0 | ED12: 0 | EI12: 0 | EJ12: 0 | EK12: 0 | EL12: 0
A13: 12 | B13: Refaturamento - Regular | C13: Convencional | D13: B1 | E13: Residencial | F13: Residencial baixa renda – faixa 03 | G13: Não se aplica | H13: Não se aplica | I13: Não se aplica | J13: CATIVO | K13: 2019-07-01 | L13: 0 | M13: 0 | N13: -0.957 | O13: -0.957 | P13: -0.957 | Q13: -0.957 | S13: 180.42 | T13: 220.1 | V13: -383.29764 | W13: -383.29764 | X13: -412.30431 | Y13: 0 | Z13: 0 | AA13: 0 | AB13: 0 | AC13: -0.6862385704 | AD13: -7.333705962 | AE13: -105.9733768 | AF13: -183.4913724 | AG13: -9.368163542 | AH13: -5.319114168 | AI13: 0 | AJ13: 0 | AK13: -4.526036415 | AL13: 0 | AM13: 0 | AN13: -0.4666423338 | AO13: -18.5502089 | AP13: -13.55348281 | AQ13: 0 | AR13: 0 | AS13: 0 | AT13: -3.454536834 | AU13: 0 | AV13: 0 | AW13: 0 | AX13: -0.5532061639 | AY13: 15.46758197 | AZ13: 0 | BA13: 2.070282872 | BB13: -49.01535576 | BC13: -2.753010186 | BD13: -0.9679085355 | BE13: -0.3267519521 | BF13: -2.630028589 | BG13: -22.2217729 | BH13: -0.2740000272 | BI13: -6.08 | BJ13: -27.95 | BK13: -182.15 | BL13: -7 | BT13: -41.21799 | BU13: -4.155616626 | BV13: -209.6378344 | CI13: -372.2496 | CJ13: -27.30981 | CM13: 0 | CN13: -4.155616626 | CO13: -5.78985 | CP13: -23.21682 | CQ13: 31 | CR13: 5.720642252 | CS13: 0.533467325 | CT13: 0.4319734771 | CU13: 0 | CV13: 0 | CW13: 0 | CX13: 0.0778286896 | CY13: -0.1098144395 | CZ13: 0.8967803855 | DA13: 0 | DB13: 0.01447695967 | DC13: 3.074402816 | DD13: 0.04406619882 | DE13: 0.005474737632 | DF13: 0.01621733321 | DG13: 0.3723263949 | DH13: 0 | DI13: 0 | DJ13: 0.7925377678 | DK13: 0 | DL13: 0 | DM13: -0.1563586858 | DN13: -0.2848493874 | DO13: 0 | DP13: 0.01211267911 | DQ13: 0 | DR13: 0 | DS13: 0 | DV13: -105.9733768 | DW13: -0.2752712068 | DX13: -0.001271179574 | DY13: 165 | DZ13: 0 | EA13: 0 | EB13: 0 | ED13: 0 | EI13: 0 | EJ13: 0 | EK13: 0 | EL13: 0
A14: 13 | B14: Sistema de Compensação | C14: Convencional | D14: B1 | E14: Residencial | F14: Residencial baixa renda – faixa 03 | G14: Não se aplica | H14: Não se aplica | I14: Não se aplica | J14: CATIVO | K14: 2019-07-01 | L14: 0 | M14: 0 | N14: 0.611 | O14: 0.611 | P14: 0.611 | Q14: 0.611 | S14: 180.42 | T14: 220.1 | V14: 244.71772 | W14: 244.71772 | X14: 263.23713 | Y14: 0 | Z14: 0 | AA14: 0 | AB14: 0 | AC14: 0.4381314174 | AD14: 4.682230243 | AE14: 67.6590734 | AF14: 117.150709 | AG14: 5.981136807 | AH14: 3.39600706 | AI14: 0 | AJ14: 0 | AK14: 2.889663793 | AL14: 0 | AM14: 0 | AN14: 0.2979294315 | AO14: 11.84344581 | AP14: 8.653268542 | AQ14: 0 | AR14: 0 | AS14: 0 | AT14: 2.205561134 | AU14: 0 | AV14: 0 | AW14: 0 | AX14: 0.3531964118 | AY14: -9.875331851 | AZ14: 0 | BA14: -1.321779347 | BB14: 31.29402546 | BC14: 1.757668991 | BD14: 0.6179645927 | BE14: 0.2086159276 | BF14: 1.679150959 | BG14: 14.1875687 | BH14: 0.1749362765 | BI14: 4.47 | BJ14: 20.6 | BK14: 101.48 | BL14: 3 | BT14: 26.31577 | BU14: 2.653167982 | BV14: 133.8440092 | CI14: 236.5336 | CJ14: 16.25643 | CM14: 0 | CN14: 2.653167982 | CO14: 3.69655 | CP14: 14.82286 | CQ14: 31 | CR14: -3.652364071 | CS14: -0.3405940811 | CT14: -0.2757949786 | CU14: 0 | CV14: 0 | CW14: 0 | CX14: -0.04968999932 | CY14: 0.07011141329 | CZ14: -0.5725525763 | DA14: 0 | DB14: -0.009242865578 | DC14: -1.96286324 | DD14: -0.02813421889 | DE14: -0.003495365405 | DF14: -0.01035401316 | DG14: -0.2377130902 | DH14: 0 | DI14: 0 | DJ14: -0.5059985122 | DK14: 0 | DL14: 0 | DM14: 0.09982775027 | DN14: 0.1818630885 | DO14: 0 | DP14: -0.00773338238 | DQ14: 0 | DR14: 0 | DS14: 0 | DV14: 67.6590734 | DW14: 0.1757478655 | DX14: 0.0008115890487 | DY14: 165 | DZ14: 0 | EA14: 0 | EB14: 0 | ED14: 0 | EI14: 0 | EJ14: 0 | EK14: 0 | EL14: 0
A15: 14 | B15: Regular | C15: Convencional | D15: B1 | E15: Residencial | F15: Residencial baixa renda – faixa 04 | G15: Não se aplica | H15: Não se aplica | I15: Não se aplica | J15: CATIVO | K15: 2019-07-01 | L15: 0 | M15: 0 | N15: 781.801 | O15: 781.801 | P15: 781.801 | Q15: 781.801 | S15: 180.42 | T15: 220.1 | V15: 313126.9365 | W15: 313126.9365 | X15: 336823.3248 | Y15: 0 | Z15: 0 | AA15: 0 | AB15: 0 | AC15: 560.608151 | AD15: 5991.116672 | AE15: 86572.7189 | AF15: 149899.4132 | AG15: 7653.123955 | AH15: 4345.338323 | AI15: 0 | AJ15: 0 | AK15: 3697.450152 | AL15: 0 | AM15: 0 | AN15: 381.2136293 | AO15: 15154.20258 | AP15: 11072.23241 | AQ15: 0 | AR15: 0 | AS15: 0 | AT15: 2822.11113 | AU15: 0 | AV15: 0 | AW15: 0 | AX15: 451.9301276 | AY15: -12635.91541 | AZ15: 0 | BA15: -1691.274002 | BB15: 40042.06285 | BC15: 2249.013706 | BD15: 790.7124984 | BE15: 266.9331274 | BF15: 2148.546479 | BG15: 18153.60949 | BH15: 223.838553 | BI15: 9397.65 | BJ15: 43424.38 | BK15: 241134.34 | BL15: 11059 | BU15: 3394.843505 | BV15: 171259.2148 | CI15: 336822.894 | CJ15: 23695.92748 | CM15: 0 | CN15: 3394.843505 | CO15: 4729.89605 | CP15: 18966.49226 | CQ15: 31 | CR15: -4673.358237 | CS15: -435.8048988 | CT15: -352.8916367 | CU15: 0 | CV15: 0 | CW15: 0 | CX15: -63.58050926 | CY15: 89.71059414 | CZ15: -732.6058539 | DA15: 0 | DB15: -11.82664738 | DC15: -2511.568648 | DD15: -35.9989533 | DE15: -4.472471635 | DF15: -13.2484089 | DG15: -304.1642088 | DH15: 0 | DI15: 0 | DJ15: -647.4470423 | DK15: 0 | DL15: 0 | DM15: 127.7339362 | DN15: 232.7017094 | DO15: 0 | DP15: -9.895198164 | DQ15: 0 | DR15: 0 | DS15: 0 | DV15: 86572.7189 | DW15: 224.8770164 | DX15: 1.038463388 | DY15: 165 | DZ15: 0 | EA15: 0 | EB15: 0 | ED15: 0 | EI15: 0 | EJ15: 0 | EK15: 0 | EL15: 0
A16: 15 | B16: Refaturamento - Regular | C16: Convencional | D16: B1 | E16: Residencial | F16: Residencial baixa renda – faixa 04 | G16: Não se aplica | H16: Não se aplica | I16: Não se aplica | J16: CATIVO | K16: 2019-07-01 | L16: 0 | M16: 0 | N16: -0.707 | O16: -0.707 | P16: -0.707 | Q16: -0.707 | S16: 180.42 | T16: 220.1 | V16: -283.16764 | W16: -283.16764 | X16: -304.59681 | Y16: 0 | Z16: 0 | AA16: 0 | AB16: 0 | AC16: -0.5069703963 | AD16: -5.417899807 | AE16: -78.28963158 | AF16: -135.5573671 | AG16: -6.920889889 | AH16: -3.929585911 | AI16: 0 | AJ16: 0 | AK16: -3.343686255 | AL16: 0 | AM16: 0 | AN16: -0.3447399478 | AO16: -13.70428181 | AP16: -10.01286556 | AQ16: 0 | AR16: 0 | AS16: 0 | AT16: -2.552097745 | AU16: 0 | AV16: 0 | AW16: 0 | AX16: -0.4086904471 | AY16: 11.42693882 | AZ16: 0 | BA16: 1.529456625 | BB16: -36.21092636 | BC16: -2.033833022 | BD16: -0.7150588658 | BE16: -0.2413935529 | BF16: -1.942978278 | BG16: -16.41671206 | BH16: -0.2024221726 | BI16: -6.81 | BJ16: -31.48 | BK16: -175.78 | BL16: -6 | BU16: -3.070032345 | BV16: -154.8735098 | CI16: -305.8893 | CJ16: -22.75166 | CM16: 0 | CN16: -3.070032345 | CO16: -4.27735 | CP16: -17.15182 | CQ16: 31 | CR16: 4.226221601 | CS16: 0.3941080447 | CT16: 0.3191277412 | CU16: 0 | CV16: 0 | CW16: 0 | CX16: 0.05749726599 | CY16: -0.08112728183 | CZ16: 0.6625117372 | DA16: 0 | DB16: 0.01069509978 | DC16: 2.271267284 | DD16: 0.03255465263 | DE16: 0.004044555387 | DF16: 0.01198083028 | DG16: 0.2750624464 | DH16: 0 | DI16: 0 | DJ16: 0.5855007334 | DK16: 0 | DL16: 0 | DM16: -0.1155126341 | DN16: -0.2104373217 | DO16: 0 | DP16: 0.00894844737 | DQ16: 0 | DR16: 0 | DS16: 0 | DV16: -78.28963158 | DW16: -0.2033612781 | DX16: -0.000939105495 | DY16: 165 | DZ16: 0 | EA16: 0 | EB16: 0 | ED16: 0 | EI16: 0 | EJ16: 0 | EK16: 0 | EL16: 0
A17: 16 | B17: Sistema de Compensação | C17: Convencional | D17: B1 | E17: Residencial | F17: Residencial baixa renda – faixa 04 | G17: Não se aplica | H17: Não se aplica | I17: Não se aplica | J17: CATIVO | K17: 2019-07-01 | L17: 0 | M17: 0 | N17: 1.11 | O17: 1.11 | P17: 1.11 | Q17: 1.11 | S17: 180.42 | T17: 220.1 | V17: 444.5772 | W17: 444.5772 | X17: 478.2213 | Y17: 0 | Z17: 0 | AA17: 0 | AB17: 0 | AC17: 0.7959506929 | AD17: 8.506179329 | AE17: 122.9158289 | AF17: 212.8269837 | AG17: 10.86589502 | AH17: 6.169505461 | AI17: 0 | AJ17: 0 | AK17: 5.249634714 | AL17: 0 | AM17: 0 | AN17: 0.5412465941 | AO17: 21.51591628 | AP17: 15.72034056 | AQ17: 0 | AR17: 0 | AS17: 0 | AT17: 4.006829557 | AU17: 0 | AV17: 0 | AW17: 0 | AX17: 0.6416497825 | AY17: -17.94045557 | AZ17: 0 | BA17: -2.401268535 | BB17: 56.85166656 | BC17: 3.193146611 | BD17: 1.122652533 | BE17: 0.3789912924 | BF17: 3.050503379 | BG17: 25.77447014 | BH17: 0.3178056742 | BI17: 5.37 | BJ17: 24.89 | BK17: 126.51 | BL17: 11 | BU17: 4.819994206 | BV17: 243.153601 | CI17: 478.2213 | CJ17: 33.6141 | CM17: 0 | CN17: 4.819994206 | CO17: 6.7155 | CP17: 26.9286 | CQ17: 31 | CR17: -6.63522769 | CS17: -0.6187552045 | CT17: -0.5010350675 | CU17: 0 | CV17: 0 | CW17: 0 | CX17: -0.09027152086 | CY17: 0.12737098 | CZ17: -1.040152798 | DA17: 0 | DB17: -0.01679145792 | DC17: -3.565921761 | DD17: -0.05111126509 | DE17: -0.006350009165 | DF17: -0.018810073 | DG17: -0.4318519314 | DH17: 0 | DI17: 0 | DJ17: -0.9192444329 | DK17: 0 | DL17: 0 | DM17: 0.1813564694 | DN17: 0.3303895716 | DO17: 0 | DP17: -0.01404918894 | DQ17: 0 | DR17: 0 | DS17: 0 | DV17: 122.9158289 | DW17: 0.3192800831 | DX17: 0.00147440891 | DY17: 165 | DZ17: 0 | EA17: 0 | EB17: 0 | ED17: 0 | EI17: 0 | EJ17: 0 | EK17: 0 | EL17: 0
A18: 17 | B18: Regular | C18: Verde | D18: A4 | E18: Residencial | F18: Residencial | G18: Não se aplica | H18: Não se aplica | I18: Ponta | J18: CATIVO | K18: 2019-07-01 | L18: 0 | M18: 0 | N18: 4.587 | O18: 4.587 | P18: 4.587 | Q18: 4.587 | S18: 1013.09 | T18: 339.48 | V18: 6204.23859 | W18: 6204.23859 | X18: 6496.1094 | Y18: 0 | Z18: 199.0844024 | AA18: 0 | AB18: 0 | AC18: 19.35600293 | AD18: 252.1603155 | AE18: 3188.171074 | AF18: 1427.10206 | AG18: 44.90257698 | AH18: 25.49506446 | AI18: 0 | AJ18: 0 | AK18: 63.75241863 | AL18: 42.03843513 | AM18: 0 | AN18: 1.668637012 | AO18: 492.9716673 | AP18: 361.6426298 | AQ18: 0 | AR18: 0 | AS18: 0 | AT18: 16.55795241 | AU18: 0 | AV18: 45.48797137 | AW18: 3.579012984 | AX18: 2.651574372 | AY18: -74.13772046 | AZ18: 0 | BA18: -9.923079973 | BB18: 344.9656258 | BC18: 67.43994984 | BD18: 3.992285519 | BE18: 0.4595361827 | BF18: 12.6059991 | BG18: 31.25217348 | BH18: 1.130154659 | BI18: 0 | BJ18: 0 | BK18: 0 | BL18: 0 | BU18: 19.91830038 | BV18: 1475.412054 | CI18: 6500.358 | CJ18: 296.08941 | CM18: 0 | CN18: 19.91830038 | CO18: 61.69515 | CP18: 230.17566 | CQ18: 31 | CR18: -86.57865004 | CS18: -14.1768903 | CT18: -11.52619046 | CU18: 0 | CV18: 0 | CW18: 0 | CX18: -0.3730409605 | CY18: 0.5263519685 | CZ18: -30.83467297 | DA18: 0 | DB18: -0.4083362344 | DC18: -23.9111329 | DD18: -0.2112138495 | DE18: -0.00769954094 | DF18: -0.06689084985 | DG18: -0.5236309963 | DH18: 0 | DI18: -4.832811466 | DJ18: -3.798715508 | DK18: 0 | DL18: 0 | DM18: 0.749443356 | DN18: 4.012304746 | DO18: -1.152211117 | DP18: -0.04331296844 | DQ18: 0 | DR18: 0 | DS18: 0 | DV18: 3188.171074 | DW18: 1.135397832 | DX18: 0.005243172902 | DY18: 165 | DZ18: 0 | EA18: 0 | EB18: 0 | ED18: 0 | EI18: 0 | EJ18: 0 | EK18: 0 | EL18: 0
A19: 18 | B19: Regular | C19: Verde | D19: A4 | E19: Residencial | F19: Residencial | G19: Não se aplica | H19: Não se aplica | I19: Fora ponta | J19: CATIVO | K19: 2019-07-01 | L19: 0 | M19: 0 | N19: 47.549 | O19: 47.549 | P19: 47.549 | Q19: 47.549 | S19: 61.16 | T19: 209.25 | V19: 12857.72509 | W19: 12857.72509 | X19: 14426.3666 | Y19: 0 | Z19: 2063.715773 | AA19: 0 | AB19: 0 | AC19: 0 | AD19: 0 | AE19: 0 | AF19: 8600.807621 | AG19: 465.4616596 | AH19: 264.2827164 | AI19: 0 | AJ19: 0 | AK19: 119.7856445 | AL19: 435.7718665 | AM19: 0 | AN19: 17.29714874 | AO19: 0 | AP19: 0 | AQ19: 0 | AR19: 0 | AS19: 0 | AT19: 171.640305 | AU19: 0 | AV19: 471.5298781 | AW19: 37.10017187 | AX19: 27.48631127 | AY19: -768.514164 | AZ19: 0 | BA19: -102.8629888 | BB19: 2128.04004 | BC19: 13.3085232 | BD19: 41.3841692 | BE19: 4.763567898 | BF19: 130.6742209 | BG19: 323.9611068 | BH19: 11.71522212 | BI19: 0 | BJ19: 0 | BK19: 0 | BL19: 0 | BU19: 206.4737878 | BV19: 9101.590686 | CI19: 14426.67 | CJ19: 1568.91491 | CM19: 0 | CN19: 206.4737878 | CO19: 527.31841 | CP19: 1041.3231 | CQ19: 31 | CR19: -237.468164 | CS19: 0 | CT19: 0 | CU19: 0 | CV19: 0 | CW19: 0 | CX19: -3.866955446 | CY19: 5.456182636 | CZ19: 0 | DA19: 0 | DB19: 0 | DC19: -144.10676 | DD19: -2.18945004 | DE19: -0.07981370659 | DF19: -0.6933928536 | DG19: -5.427976944 | DH19: 0 | DI19: -50.09709012 | DJ19: -39.3776158 | DK19: 0 | DL19: 0 | DM19: 7.768755643 | DN19: 7.538796491 | DO19: -11.94386012 | DP19: -0.4489837227 | DQ19: 0 | DR19: 0 | DS19: 0 | DV19: 0 | DW19: 11.76957303 | DX19: 0.0543509109 | DY19: 165 | DZ19: 0 | EA19: 0 | EB19: 0 | ED19: 0 | EI19: 0 | EJ19: 0 | EK19: 0 | EL19: 0
A20: 19 | B20: Regular | C20: Verde | D20: A4 | E20: Residencial | F20: Residencial | G20: Não se aplica | H20: Não se aplica | I20: Não se aplica | J20: CATIVO | K20: 2019-07-01 | L20: 351 | M20: 351 | N20: 0 | O20: 0 | P20: 0 | Q20: 0 | R20: 15.17 | U20: 5324.67 | W20: 5324.67 | X20: 5408.91 | Y20: 0 | Z20: 0 | AA20: 0 | AB20: 0 | AC20: 50.22881342 | AD20: 303.8643526 | AE20: 2357.796953 | AI20: 0 | AJ20: 0 | AK20: 0 | AL20: 0 | AM20: 0 | AN20: 0 | AO20: 1513.742106 | AP20: 1098.492593 | AQ20: 0 | AR20: 0 | AU20: 0 | AV20: 0 | AW20: 0 | AZ20: 0 | BB20: 0 | BC20: 202.2127861 | BD20: 0 | BE20: 0 | BG20: 0 | BH20: 0 | BI20: 406.42 | BJ20: 1872.1 | BK20: 9391.83 | BL20: 4 | BV20: 0 | CI20: 5408.91 | CJ20: 84.21 | CO20: 84.24 | CP20: 0 | CQ20: 31 | CR20: -116.7599114 | CS20: -43.53222954 | CT20: -35.0109025 | CU20: 0 | CV20: 0 | CZ20: -37.15714711 | DA20: 0 | DB20: -1.059632229 | DE20: 0 | DF20: 0 | DG20: 0 | DH20: 0 | DI20: 0 | DK20: 0 | DL20: 0 | DN20: 0 | DO20: 0 | DP20: 0 | DQ20: 0 | DR20: 0 | DS20: 0 | DU20: 2357.796953 | DW20: 0 | DX20: 0 | DY20: 165 | ED20: 0 | EI20: 0 | EJ20: 0 | EK20: 0 | EL20: 0
A21: 20 | B21: Regular | C21: Branca | D21: B1 | E21: Residencial | F21: Residencial | G21: Não se aplica | H21: Não se aplica | I21: Ponta | J21: CATIVO | K21: 2019-07-01 | L21: 0 | M21: 0 | N21: 12.701 | O21: 12.701 | P21: 12.701 | Q21: 12.701 | S21: 483.99 | T21: 339.48 | V21: 10458.89247 | W21: 10458.89247 | X21: 11316.20997 | Y21: 0 | Z21: 599.1817602 | AA21: 0 | AB21: 0 | AC21: 23.67762025 | AD21: 253.0596014 | AE21: 3656.757772 | AF21: 3951.520223 | AG21: 124.3312906 | AH21: 70.59359357 | AI21: 0 | AJ21: 0 | AK21: 97.74634089 | AL21: 116.4007335 | AM21: 0 | AN21: 6.193128821 | AO21: 640.1016651 | AP21: 467.6803991 | AQ21: 0 | AR21: 0 | AS21: 0 | AT21: 45.8475155 | AU21: 0 | AV21: 136.9045612 | AW21: 9.909972511 | AX21: 7.341976476 | AY21: -205.2808344 | AZ21: 0 | BA21: -27.47613663 | BB21: 1005.037416 | BC21: 89.30857742 | BD21: 12.84577462 | BE21: 4.336548112 | BF21: 34.90490398 | BG21: 294.920311 | BH21: 3.636441322 | BI21: 0 | BJ21: 0 | BK21: 0 | BL21: 0 | BU21: 55.15202379 | BV21: 4298.52776 | CI21: 11315.319 | CJ21: 856.39653 | CM21: 0 | CN21: 55.15202379 | CO21: 219.98132 | CP21: 637.33618 | CQ21: 31 | CR21: -156.543254 | CS21: -18.40805809 | CT21: -14.90580178 | CU21: 0 | CV21: 0 | CW21: 0 | CX21: -1.032917645 | CY21: 1.457422357 | CZ21: -30.94463945 | DA21: 0 | DB21: -0.4995055192 | DC21: -66.20782623 | DD21: -0.5848325927 | DE21: -0.07265897874 | DF21: -0.2152312947 | DG21: -4.94139764 | DH21: 0 | DI21: -14.54525038 | DJ21: -10.5183095 | DK21: 0 | DL21: 0 | DM21: 2.075142809 | DN21: 6.151736921 | DO21: -3.190371353 | DP21: -0.1607556295 | DQ21: 0 | DR21: 0 | DS21: 0 | DV21: 3656.757772 | DW21: 3.653312014 | DX21: 0.0168706915 | DY21: 165 | DZ21: 0 | EA21: 0 | EB21: 0 | ED21: 0 | EI21: 0 | EJ21: 0 | EK21: 0 | EL21: 0
A22: 21 | B22: Regular | C22: Branca | D22: B1 | E22: Residencial | F22: Residencial | G22: Não se aplica | H22: Não se aplica | I22: Fora ponta | J22: CATIVO | K22: 2019-07-01 | L22: 0 | M22: 0 | N22: 88.947 | O22: 88.947 | P22: 88.947 | Q22: 88.947 | S22: 162.61 | T22: 209.25 | V22: 33075.83142 | W22: 33075.83142 | X22: 36436.24908 | Y22: 0 | Z22: 4196.15936 | AA22: 0 | AB22: 0 | AC22: 33.15894945 | AD22: 354.4391535 | AE22: 5121.76417 | AF22: 16089.00367 | AG22: 870.7105983 | AH22: 494.3774795 | AI22: 0 | AJ22: 0 | AK22: 342.9568676 | AL22: 815.1717221 | AM22: 0 | AN22: 43.37140613 | AO22: 896.5497755 | AP22: 655.0471374 | AQ22: 0 | AR22: 0 | AS22: 0 | AT22: 321.0769987 | AU22: 0 | AV22: 958.7630898 | AW22: 69.40101763 | AX22: 51.41695785 | AY22: -1437.612344 | AZ22: 0 | BA22: -192.4194886 | BB22: 4329.956437 | BC22: 145.0049418 | BD22: 89.96087827 | BE22: 30.36949413 | BF22: 244.4442559 | BG22: 2065.370987 | BH22: 25.46654171 | BI22: 0 | BJ22: 0 | BK22: 0 | BL22: 0 | BU22: 386.23786 | BV22: 18519.14928 | CI22: 36437.478 | CJ22: 3361.61658 | CM22: 0 | CN22: 386.23786 | CO22: 1412.47836 | CP22: 1947.9393 | CQ22: 31 | CR22: -560.89306 | CS22: -25.78299861 | CT22: -20.87751124 | CU22: 0 | CV22: 0 | CW22: 0 | CX22: -7.233676546 | CY22: 10.20654645 | CZ22: -43.34153597 | DA22: 0 | DB22: -0.6995246181 | DC22: -269.5716836 | DD22: -4.095669997 | DE22: -0.5088416804 | DF22: -1.507296904 | DG22: -34.60534571 | DH22: 0 | DI22: -101.8625609 | DJ22: -73.66129241 | DK22: 0 | DL22: 0 | DM22: 14.53253503 | DN22: 21.58423942 | DO22: -22.34264709 | DP22: -1.125795683 | DQ22: 0 | DR22: 0 | DS22: 0 | DV22: 5121.76417 | DW22: 25.58468968 | DX22: 0.1181479724 | DY22: 165 | DZ22: 0 | EA22: 0 | EB22: 0 | ED22: 0 | EI22: 0 | EJ22: 0 | EK22: 0 | EL22: 0
A23: 22 | B23: Regular | C23: Branca | D23: B1 | E23: Residencial | F23: Residencial | G23: Não se aplica | H23: Não se aplica | I23: Não se aplica | J23: CATIVO | K23: 2019-07-01 | L23: 0 | M23: 0 | N23: 0 | O23: 0 | P23: 0 | Q23: 0 | AA23: 0 | AZ23: 0 | BI23: 771.99 | BJ23: 3561.3 | BK23: 18514.67 | BL23: 297 | CJ23: -0.03 | CO23: 0 | CP23: 0 | CQ23: 31 | DK23: 0 | DY23: 165 | ED23: 0 | EI23: 0 | EJ23: 0 | EK23: 0 | EL23: 0
A24: 23 | B24: Regular | C24: Branca | D24: B1 | E24: Residencial | F24: Residencial | G24: Não se aplica | H24: Não se aplica | I24: Intermediário | J24: CATIVO | K24: 2019-07-01 | L24: 0 | M24: 0 | N24: 7.67 | O24: 7.67 | P24: 7.67 | Q24: 7.67 | S24: 323.3 | T24: 209.25 | V24: 4084.6585 | W24: 4084.6585 | X24: 4379.9535 | Y24: 0 | Z24: 361.8395481 | AA24: 0 | AB24: 0 | AC24: 8.578999404 | AD24: 91.69185642 | AE24: 1324.966481 | AF24: 1387.372909 | AG24: 75.08235566 | AH24: 42.63072692 | AI24: 0 | AJ24: 0 | AK24: 44.30077089 | AL24: 70.29317581 | AM24: 0 | AN24: 3.739965204 | AO24: 231.9305722 | AP24: 169.4563575 | AQ24: 0 | AR24: 0 | AS24: 0 | AT24: 27.68683126 | AU24: 0 | AV24: 82.67522118 | AW24: 5.984527924 | AX24: 4.433742191 | AY24: -123.9669318 | AZ24: 0 | BA24: -16.59254925 | BB24: 373.3770209 | BC24: 33.21822392 | BD24: 7.757427865 | BE24: 2.618795687 | BF24: 21.07870353 | BG24: 178.0992666 | BH24: 2.196008577 | BI24: 0 | BJ24: 0 | BK24: 0 | BL24: 0 | BU24: 33.30572573 | BV24: 1596.927103 | CI24: 4379.9535 | CJ24: 295.265 | CM24: 0 | CN24: 33.30572573 | CO24: 127.322 | CP24: 167.973 | CQ24: 31 | CR24: -63.08226138 | CS24: -6.669864612 | CT24: -5.400873932 | CU24: 0 | CV24: 0 | CW24: 0 | CX24: -0.6237680766 | CY24: 0.8801219966 | CZ24: -11.2122655 | DA24: 0 | DB24: -0.1809834564 | DC24: -23.24546992 | DD24: -0.3531742372 | DE24: -0.04387799126 | DF24: -0.1299759098 | DG24: -2.98405794 | DH24: 0 | DI24: -8.783723363 | DJ24: -6.351896217 | DK24: 0 | DL24: 0 | DM24: 1.253156865 | DN24: 2.788101175 | DO24: -1.926631625 | DP24: -0.09707862988 | DQ24: 0 | DR24: 0 | DS24: 0 | DV24: 1324.966481 | DW24: 2.20619661 | DX24: 0.01018803274 | DY24: 165 | DZ24: 0 | EA24: 0 | EB24: 0 | ED24: 0 | EI24: 0 | EJ24: 0 | EK24: 0 | EL24: 0
A25: 24 | B25: Regular | C25: Convencional | D25: B3 | E25: Industrial | F25: Não se aplica | G25: Não se aplica | H25: Não se aplica | I25: Não se aplica | J25: CATIVO | K25: 2019-07-01 | L25: 0 | M25: 0 | N25: 3717.577 | O25: 3717.577 | P25: 3717.577 | Q25: 3717.577 | S25: 236.77 | T25: 220.1 | V25: 1698449.404 | W25: 1698449.404 | X25: 1848936.921 | Y25: 0 | Z25: 175380.2323 | AA25: 0 | AB25: 0 | AC25: 2665.772963 | AD25: 28488.6276 | AE25: 411665.8185 | AF25: 712793.423 | AG25: 36391.71297 | AH25: 20662.71316 | AI25: 0 | AJ25: 0 | AK25: 17628.55771 | AL25: 34070.44246 | AM25: 0 | AN25: 1812.726027 | AO25: 72060.42839 | AP25: 52650.06892 | AQ25: 0 | AR25: 0 | AS25: 0 | AT25: 13419.54721 | AU25: 0 | AV25: 40071.90362 | AW25: 2900.644506 | AX25: 2148.99322 | AY25: -60085.60811 | AZ25: 0 | BA25: -8042.252862 | BB25: 190405.809 | BC25: 10694.38595 | BD25: 3759.952466 | BE25: 1269.305686 | BF25: 10216.64973 | BG25: 86323.04268 | BH25: 1064.384743 | BI25: 25301.88 | BJ25: 116607.93 | BK25: 466010.64 | BL25: 3506 | BU25: 16142.97261 | BV25: 814362.3735 | CI25: 1848938.413 | CJ25: 150488.979 | CM25: 0 | CN25: 16142.97261 | CO25: 60299.09894 | CP25: 90188.41802 | CQ25: 31 | CR25: -27410.76814 | CS25: -2072.315421 | CT25: -1678.05085 | CU25: 0 | CV25: 0 | CW25: 0 | CX25: -302.3345313 | CY25: 426.5868699 | CZ25: -3483.646954 | DA25: 0 | DB25: -56.23742142 | DC25: -11942.87272 | DD25: -171.1802374 | DE25: -21.26725047 | DF25: -62.99810338 | DG25: -1446.344872 | DH25: 0 | DI25: -4257.388259 | DJ25: -3078.70447 | DK25: 0 | DL25: 0 | DM25: 607.3933689 | DN25: 1109.466077 | DO25: -933.8202631 | DP25: -47.0531006 | DQ25: 0 | DR25: 0 | DS25: 0 | DV25: 411665.8185 | DW25: 1069.322787 | DX25: 4.938043831 | DY25: 165 | DZ25: 0 | EA25: 0 | EB25: 0 | ED25: 0 | EI25: 0 | EJ25: 0 | EK25: 0 | EL25: 0
A26: 25 | B26: Refaturamento - Regular | C26: Convencional | D26: B3 | E26: Industrial | F26: Não se aplica | G26: Não se aplica | H26: Não se aplica | I26: Não se aplica | J26: CATIVO | K26: 2019-07-01 | L26: 0 | M26: 0 | N26: -11.844 | O26: -11.844 | P26: -11.844 | Q26: -11.844 | S26: 236.77 | T26: 220.1 | V26: -5411.16828 | W26: -5411.16828 | X26: -5890.6134 | Y26: 0 | Z26: -558.7519698 | AA26: 0 | AB26: 0 | AC26: -8.493009015 | AD26: -90.76323241 | AE26: -1311.545115 | AF26: -2270.921437 | AG26: -115.9420366 | AH26: -65.8302907 | AI26: 0 | AJ26: 0 | AK26: -56.16363496 | AL26: -108.5465938 | AM26: 0 | AN26: -5.775247442 | AO26: -229.5806419 | AP26: -167.7402825 | AQ26: 0 | AR26: 0 | AS26: 0 | AT26: -42.7539543 | AU26: 0 | AV26: -127.6669256 | AW26: -9.241297096 | AX26: -6.846576599 | AY26: 191.4295097 | AZ26: 0 | BA26: 25.62218426 | BB26: -606.6226475 | BC26: -34.07173735 | BD26: -11.97900595 | BE26: -4.04393952 | BF26: -32.54969551 | BG26: -275.0205624 | BH26: -3.391072437 | BI26: -63.92 | BJ26: -294.43 | BK26: -1391.7 | BL26: -1 | BU26: -51.43064088 | BV26: -2594.51464 | CI26: -5888.624 | CJ26: -477.48572 | CM26: 0 | CN26: -51.43064088 | CO26: -192.10968 | CP26: -287.33544 | CQ26: 31 | CR26: 87.32923027 | CS26: 6.602285264 | CT26: 5.346179585 | CU26: 0 | CV26: 0 | CW26: 0 | CX26: 0.9632215253 | CY26: -1.359082781 | CZ26: 11.09871148 | DA26: 0 | DB26: 0.1791693943 | DC26: 38.04934896 | DD26: 0.5453710124 | DE26: 0.06775631401 | DF26: 0.2007085627 | DG26: 4.607976825 | DH26: 0 | DI26: 13.56380958 | DJ26: 9.808586544 | DK26: 0 | DL26: 0 | DM26: -1.935122544 | DN26: -3.534699137 | DO26: 2.975101039 | DP26: 0.1499086431 | DQ26: 0 | DR26: 0 | DS26: 0 | DV26: -1311.545115 | DW26: -3.406804778 | DX26: -0.01573234156 | DY26: 165 | DZ26: 0 | EA26: 0 | EB26: 0 | ED26: 0 | EI26: 0 | EJ26: 0 | EK26: 0 | EL26: 0
A27: 26 | B27: Sistema de Compensação | C27: Convencional | D27: B3 | E27: Industrial | F27: Não se aplica | G27: Não se aplica | H27: Não se aplica | I27: Não se aplica | J27: CATIVO | K27: 2019-07-01 | L27: 0 | M27: 0 | N27: 48.22 | O27: 48.22 | P27: 48.22 | Q27: 48.22 | S27: 236.77 | T27: 220.1 | V27: 22030.2714 | W27: 22030.2714 | X27: 23982.217 | Y27: 0 | Z27: 2274.824382 | AA27: 0 | AB27: 0 | AC27: 34.57724542 | AD27: 369.5206912 | AE27: 5339.640785 | AF27: 9245.510949 | AG27: 472.0301421 | AH27: 268.0122102 | AI27: 0 | AJ27: 0 | AK27: 228.6567441 | AL27: 441.9213738 | AM27: 0 | AN27: 23.51253222 | AO27: 934.6824173 | AP27: 682.9142539 | AQ27: 0 | AR27: 0 | AS27: 0 | AT27: 174.0624516 | AU27: 0 | AV27: 519.7652106 | AW27: 37.62372053 | AX27: 27.87419145 | AY27: -779.3592502 | AZ27: 0 | BA27: -104.3145665 | BB27: 2469.718344 | BC27: 138.7148915 | BD27: 48.76964428 | BE27: 16.46392804 | BF27: 132.5182639 | BG27: 1119.680135 | BH27: 13.80593658 | BI27: 330.54 | BJ27: 1523.06 | BK27: 6254.1 | BL27: 34 | BU27: 209.387496 | BV27: 10562.94292 | CI27: 23982.217 | CJ27: 1951.9156 | CM27: 0 | CN27: 209.387496 | CO27: 782.1284 | CP27: 1169.8172 | CQ27: 31 | CR27: -355.5399767 | CS27: -26.87961798 | CT27: -21.76568554 | CU27: 0 | CV27: 0 | CW27: 0 | CX27: -3.921524987 | CY27: 5.533178967 | CZ27: -45.18573687 | DA27: 0 | DB27: -0.7294451361 | DC27: -154.9087814 | DD27: -2.220347029 | DE27: -0.2758535513 | DF27: -0.8171366847 | DG27: -18.76027039 | DH27: 0 | DI27: -55.22179147 | DJ27: -39.9333032 | DK27: 0 | DL27: 0 | DM27: 7.878386445 | DN27: 14.39067818 | DO27: -12.11240899 | DP27: -0.6103170186 | DQ27: 0 | DR27: 0 | DS27: 0 | DV27: 5339.640785 | DW27: 13.86998703 | DX27: 0.06405044833 | DY27: 165 | DZ27: 0 | EA27: 0 | EB27: 0 | ED27: 0 | EI27: 0 | EJ27: 0 | EK27: 0 | EL27: 0
A28: 27 | B28: Regular | C28: Azul | D28: A2 | E28: Industrial | F28: Não se aplica | G28: Não se aplica | H28: Não se aplica | I28: Ponta | J28: CATIVO | K28: 2019-07-01 | L28: 10212 | M28: 10212 | N28: 19.265 | O28: 19.265 | P28: 19.265 | Q28: 19.265 | R28: 12.01 | S28: 48.71 | T28: 339.48 | U28: 122646.12 | V28: 7478.48035 | W28: 130124.6003 | X28: 132890.7244 | Y28: 0 | Z28: 717.9873177 | AA28: 0 | AB28: 0 | AC28: 1468.405452 | AD28: 18754.36719 | AE28: 18978.39302 | AF28: 5993.704203 | AG28: 188.5869077 | AH28: 107.0770475 | AI28: 0 | AJ28: 0 | AK28: 46.00926364 | AL28: 176.5577617 | AM28: 0 | AN28: 0.3863636815 | AO28: 48049.02238 | AP28: 35399.63482 | AQ28: 0 | AR28: 0 | AS28: 0 | AT28: 69.54195623 | AU28: 0 | AV28: 164.0499514 | AW28: 15.03154243 | AX28: 11.13638114 | AY28: -311.3719609 | AZ28: 0 | BA28: -41.67607057 | BB28: 1423.068276 | BC28: 6465.210704 | BD28: 8.133700216 | BE28: 0.4587370948 | BF28: 52.94409693 | BG28: 31.19782905 | BH28: 2.302525495 | BI28: 0 | BJ28: 0 | BK28: 0 | BL28: 0 | BU28: 83.65512466 | BV28: 6086.438567 | CI28: 132892.9592 | CJ28: 2768.32885 | CM28: 0 | CN28: 83.65512466 | CO28: 1799.40635 | CP28: 966.7177 | CQ28: 31 | CR28: -4967.867503 | CS28: -1381.794867 | CT28: -1128.248994 | CU28: 0 | CV28: 0 | CW28: 0 | CX28: -1.566739504 | CY28: 2.210632368 | CZ28: -2293.32192 | DA28: 0 | DB28: -30.97763288 | DC28: -100.424673 | DD28: -0.8870797495 | DE28: -0.007686152201 | DF28: -0.136280363 | DG28: -0.5227204539 | DH28: 0 | DI28: -17.42927773 | DJ28: -15.95427387 | DK28: 0 | DL28: 0 | DM28: 3.147596741 | DN28: 2.895626407 | DO28: -4.839186214 | DP28: -0.01002887855 | DQ28: 0 | DR28: 0 | DS28: 0 | DU28: 18978.39302 | DV28: 0 | DW28: 2.313207696 | DX28: 0.01068220105 | DY28: 165 | DZ28: 0 | EA28: 0 | EB28: 0 | ED28: 0 | EI28: 0 | EJ28: 0 | EK28: 0 | EL28: 0
A29: 28 | B29: Regular | C29: Azul | D29: A2 | E29: Industrial | F29: Não se aplica | G29: Não se aplica | H29: Não se aplica | I29: Fora ponta | J29: CATIVO | K29: 2019-07-01 | L29: 17259 | M29: 17259 | N29: 130.51 | O29: 130.51 | P29: 130.51 | Q29: 130.51 | R29: 7.83 | S29: 48.71 | T29: 209.25 | U29: 135137.97 | V29: 33666.3596 | W29: 168804.3296 | X29: 177270.9195 | Y29: 0 | Z29: 4863.977412 | AA29: 0 | AB29: 0 | AC29: 1765.714534 | AD29: 9222.614065 | AE29: 5811.482853 | AF29: 23607.04542 | AG29: 1277.574738 | AH29: 725.3893313 | AI29: 0 | AJ29: 0 | AK29: 311.6879833 | AL29: 1196.083752 | AM29: 0 | AN29: 2.617405869 | AO29: 68494.38359 | AP29: 49816.5258 | AQ29: 0 | AR29: 0 | AS29: 0 | AT29: 471.1093022 | AU29: 0 | AV29: 1111.350073 | AW29: 101.8306049 | AX29: 75.44298479 | AY29: -2109.377348 | AZ29: 0 | BA29: -282.3329338 | BB29: 5666.440999 | BC29: 9194.976562 | BD29: 55.10143863 | BE29: 3.107696768 | BF29: 358.6677441 | BG29: 211.3484905 | BH29: 15.59837023 | BI29: 0 | BJ29: 0 | BK29: 0 | BL29: 0 | BU29: 566.7184178 | BV29: 24235.27079 | CI29: 177270.9195 | CJ29: 8466.5599 | CM29: 0 | CN29: 566.7184178 | CO29: 5608.4209 | CP29: 2858.169 | CQ29: 31 | CR29: -5342.280823 | CS29: -1969.763024 | CT29: -1587.740817 | CU29: 0 | CV29: 0 | CW29: 0 | CX29: -10.61381638 | CY29: 14.97584378 | CZ29: -1127.759885 | DA29: 0 | DB29: -37.24969595 | DC29: -395.5366727 | DD29: -6.009487574 | DE29: -0.05206954185 | DF29: -0.923226067 | DG29: -3.541149568 | DH29: 0 | DI29: -118.0739702 | DJ29: -108.0816135 | DK29: 0 | DL29: 0 | DM29: 21.32327281 | DN29: 19.61630949 | DO29: -32.7828805 | DP29: -0.06794025124 | DQ29: 0 | DR29: 0 | DS29: 0 | DU29: 5811.482853 | DV29: 0 | DW29: 15.67073639 | DX29: 0.07236615931 | DY29: 165 | DZ29: 0 | EA29: 0 | EB29: 0 | ED29: 0 | EI29: 0 | EJ29: 0 | EK29: 0 | EL29: 0
A30: 29 | B30: Regular | C30: Azul | D30: A2 | E30: Industrial | F30: Não se aplica | G30: Não se aplica | H30: Não se aplica | I30: Não se aplica | J30: CATIVO | K30: 2019-07-01 | L30: 0 | M30: 0 | N30: 0 | O30: 0 | P30: 0 | Q30: 0 | AA30: 0 | AZ30: 0 | BI30: 3908.05 | BJ30: 18001.44 | BK30: 53797.6 | BL30: 5 | CJ30: -0.03 | CO30: 0 | CP30: 0 | CQ30: 31 | DK30: 0 | DY30: 165 | ED30: 0 | EI30: 0 | EJ30: 0 | EK30: 0 | EL30: 0
A31: 30 | B31: Regular | C31: Azul | D31: A3 | E31: Industrial | F31: Não se aplica | G31: Não se aplica | H31: Não se aplica | I31: Ponta | J31: CATIVO | K31: 2019-07-01 | L31: 672 | M31: 672 | N31: 2.856 | O31: 2.856 | P31: 2.856 | Q31: 2.856 | R31: 13.82 | S31: 56.52 | T31: 339.48 | U31: 9287.04 | V31: 1130.976 | W31: 10418.016 | X31: 10771.75848 | Y31: 0 | Z31: 106.4402689 | AA31: 0 | AB31: 0 | AC31: 128.8902689 | AD31: 214.6978372 | AE31: 4436.77727 | AF31: 888.5553701 | AG31: 27.95765421 | AH31: 15.87397081 | AI31: 0 | AJ31: 0 | AK31: 7.2784482 | AL31: 26.17435595 | AM31: 0 | AN31: 0.7643562264 | AO31: 2653.523134 | AP31: 1851.043785 | AQ31: 0 | AR31: 0 | AS31: 0 | AT31: 10.30946416 | AU31: 0 | AV31: 24.32009662 | AW31: 2.228397881 | AX31: 1.650947549 | AY31: -46.16030731 | AZ31: 0 | BA31: -6.178399042 | BB31: 215.7447444 | BC31: 349.4878727 | BD31: 3.670106688 | BE31: 0.3283995935 | BF31: 7.848862747 | BG31: 22.33382583 | BH31: 1.038950785 | BI31: 0 | BJ31: 0 | BK31: 0 | BL31: 0 | BU31: 12.40171482 | BV31: 922.736565 | CI31: 10773.5838 | CJ31: 355.5378 | CM31: 0 | CN31: 12.40171482 | CO31: 210.4284 | CP31: 143.31408 | CQ31: 31 | CR31: -184.4054957 | CS31: -76.310078 | CT31: -58.99604045 | CU31: 0 | CV31: 0 | CW31: 0 | CX31: -0.2322661834 | CY31: 0.327722089 | CZ31: -26.25368541 | DA31: 0 | DB31: -2.719082408 | DC31: -14.88776881 | DD31: -0.1315079037 | DE31: -0.005502343907 | DF31: -0.06149273499 | DG31: -0.3742038447 | DH31: 0 | DI31: -2.583857627 | DJ31: -2.365191081 | DK31: 0 | DL31: 0 | DM31: 0.4666252942 | DN31: 0.4580744211 | DO31: -0.7174002506 | DP31: -0.01984046673 | DQ31: 0 | DR31: 0 | DS31: 0 | DU31: 4436.77727 | DV31: 0 | DW31: 1.043770832 | DX31: 0.004820047024 | DY31: 165 | DZ31: 0 | EA31: 0 | EB31: 0 | ED31: 0 | EI31: 0 | EJ31: 0 | EK31: 0 | EL31: 0
A32: 31 | B32: Regular | C32: Azul | D32: A3 | E32: Industrial | F32: Não se aplica | G32: Não se aplica | H32: Não se aplica | I32: Fora ponta | J32: CATIVO | K32: 2019-07-01 | L32: 1171 | M32: 1171 | N32: 51.816 | O32: 51.816 | P32: 51.816 | Q32: 51.816 | R32: 7.64 | S32: 56.52 | T32: 209.25 | U32: 8946.44 | V32: 13771.13832 | W32: 22717.57832 | X32: 24729.58112 | Y32: 0 | Z32: 1931.130592 | AA32: 0 | AB32: 0 | AC32: 199.5926992 | AD32: 156.0263385 | AE32: 773.1469613 | AF32: 9372.635549 | AG32: 507.2317263 | AH32: 287.9991847 | AI32: 0 | AJ32: 0 | AK32: 132.0518459 | AL32: 474.8776007 | AM32: 0 | AN32: 13.86760582 | AO32: 4581.835341 | AP32: 3234.980155 | AQ32: 0 | AR32: 0 | AS32: 0 | AT32: 187.0431354 | AU32: 0 | AV32: 441.2360386 | AW32: 40.42950442 | AX32: 29.95290552 | AY32: -837.4798612 | AZ32: 0 | BA32: -112.0938112 | BB32: 2336.408751 | BC32: 619.590139 | BD32: 66.58622135 | BE32: 5.95810691 | BF32: 142.4007956 | BG32: 405.1994115 | BH32: 18.84953566 | BI32: 0 | BJ32: 0 | BK32: 0 | BL32: 0 | BU32: 225.0025403 | BV32: 9992.780084 | CI32: 24730.7724 | CJ32: 2013.16408 | CM32: 0 | CN32: 225.0025403 | CO32: 877.2324 | CP32: 1134.7704 | CQ32: 31 | CR32: -510.2452038 | CS32: -131.7645238 | CT32: -103.1045412 | CU32: 0 | CV32: 0 | CW32: 0 | CX32: -4.213972184 | CY32: 5.945815043 | CZ32: -19.07921597 | DA32: 0 | DB32: -4.210628172 | DC32: -157.0387574 | DD32: -2.38592911 | DE32: -0.09982823945 | DF32: -1.115653906 | DG32: -6.789126896 | DH32: 0 | DI32: -46.87855981 | DJ32: -42.91132391 | DK32: 0 | DL32: 0 | DM32: 8.465916053 | DN32: 8.310778783 | DO32: -13.01569026 | DP32: -0.3599627535 | DQ32: 0 | DR32: 0 | DS32: 0 | DU32: 773.1469613 | DV32: 0 | DW32: 18.93698509 | DX32: 0.08744942458 | DY32: 165 | DZ32: 0 | EA32: 0 | EB32: 0 | ED32: 0 | EI32: 0 | EJ32: 0 | EK32: 0 | EL32: 0
A33: 32 | B33: Regular | C33: Azul | D33: A3 | E33: Industrial | F33: Não se aplica | G33: Não se aplica | H33: Não se aplica | I33: Não se aplica | J33: CATIVO | K33: 2019-07-01 | L33: 0 | M33: 0 | N33: 0 | O33: 0 | P33: 0 | Q33: 0 | AA33: 0 | AZ33: 0 | BI33: 496.88 | BJ33: 2288.78 | BK33: 8789.27 | BL33: 1 | CJ33: -0.03 | CO33: 0 | CP33: 0 | CQ33: 31 | DK33: 0 | DY33: 165 | ED33: 0 | EI33: 0 | EJ33: 0 | EK33: 0 | EL33: 0
A34: 33 | B34: Regular | C34: Azul | D34: A4 | E34: Industrial | F34: Não se aplica | G34: Não se aplica | H34: Não se aplica | I34: Ponta | J34: CATIVO | K34: 2019-07-01 | L34: 3096 | M34: 3096 | N34: 98.966 | O34: 98.966 | P34: 98.966 | Q34: 98.966 | R34: 39.11 | S34: 61.16 | T34: 339.48 | U34: 121084.56 | V34: 39649.73824 | W34: 160734.2982 | X34: 167014.6651 | Y34: 0 | Z34: 4295.310001 | AA34: 0 | AB34: 0 | AC34: 543.0210405 | AD34: 7076.896211 | AE34: 89474.30655 | AF34: 30790.18584 | AG34: 968.7875372 | AH34: 550.0642139 | AI34: 0 | AJ34: 0 | AK34: 249.3155711 | AL34: 906.9927558 | AM34: 0 | AN34: 36.00138009 | AO34: 13834.90515 | AP34: 10149.34162 | AQ34: 0 | AR34: 0 | AS34: 0 | AT34: 357.2431477 | AU34: 0 | AV34: 981.4176095 | AW34: 77.218356 | AX34: 57.20856971 | AY34: -1599.545159 | AZ34: 0 | BA34: -214.0936413 | BB34: 7442.744303 | BC34: 1884.3314 | BD34: 86.13484383 | BE34: 9.91464091 | BF34: 271.9784841 | BG34: 674.2756923 | BH34: 24.38345018 | BI34: 0 | BJ34: 0 | BK34: 0 | BL34: 0 | BU34: 429.7437356 | BV34: 31832.4895 | CI34: 167016.5127 | CJ34: 6282.18446 | CM34: 0 | CN34: 429.7437356 | CO34: 1314.25294 | CP34: 4966.11388 | CQ34: 31 | CR34: -2308.382707 | CS34: -397.8645136 | CT34: -323.4774746 | CU34: 0 | CV34: 0 | CW34: 0 | CX34: -8.048478679 | CY34: 11.35621297 | CZ34: -865.3771701 | DA34: 0 | DB34: -11.45562789 | DC34: -515.8903811 | DD34: -4.557006722 | DE34: -0.1661200716 | DF34: -1.443191595 | DG34: -11.29750712 | DH34: 0 | DI34: -104.2694614 | DJ34: -81.9585086 | DK34: 0 | DL34: 0 | DM34: 16.1694814 | DN34: 15.69085645 | DO34: -24.85932535 | DP34: -0.9344912218 | DQ34: 0 | DR34: 0 | DS34: 0 | DU34: 89474.30655 | DV34: 0 | DW34: 24.49657332 | DX34: 0.1131231414 | DY34: 165 | DZ34: 0 | EA34: 0 | EB34: 0 | ED34: 0 | EI34: 0 | EJ34: 0 | EK34: 0 | EL34: 0
A35: 34 | B35: Regular | C35: Azul | D35: A4 | E35: Industrial | F35: Não se aplica | G35: Não se aplica | H35: Não se aplica | I35: Fora ponta | J35: CATIVO | K35: 2019-07-01 | L35: 4207 | M35: 4207 | N35: 986.658 | O35: 986.658 | P35: 986.658 | Q35: 986.658 | R35: 15.17 | S35: 61.16 | T35: 209.25 | U35: 63820.19 | V35: 266802.1898 | W35: 330622.3798 | X35: 364181.9072 | Y35: 0 | Z35: 42822.80758 | AA35: 0 | AB35: 0 | AC35: 602.0302509 | AD35: 3642.04368 | AE35: 28259.97658 | AF35: 178469.6975 | AG35: 9658.48851 | AH35: 5483.956684 | AI35: 0 | AJ35: 0 | AK35: 2485.59306 | AL35: 9042.415157 | AM35: 0 | AN35: 358.9217477 | AO35: 18143.34199 | AP35: 13166.26308 | AQ35: 0 | AR35: 0 | AS35: 0 | AT35: 3561.594988 | AU35: 0 | AV35: 9784.406116 | AW35: 769.8412454 | AX35: 570.3503524 | AY35: -15946.93154 | AZ35: 0 | BA35: -2134.442171 | BB35: 44157.55809 | BC35: 2699.829314 | BD35: 858.7356541 | BE35: 98.84566185 | BF35: 2711.534741 | BG35: 6722.30368 | BH35: 243.0948627 | BI35: 0 | BJ35: 0 | BK35: 0 | BL35: 0 | BU35: 4284.40166 | BV35: 188861.1172 | CI35: 364182.514 | CJ35: 33560.10422 | CM35: 0 | CN35: 4284.40166 | CO35: 11951.71722 | CP35: 21607.8102 | CQ35: 31 | CR35: -6327.001249 | CS35: -521.7666372 | CT35: -419.6320992 | CU35: 0 | CV35: 0 | CW35: 0 | CX35: -80.24064705 | CY35: 113.2176544 | CZ35: -445.3564612 | DA35: 0 | DB35: -12.70049228 | DC35: -2990.264519 | DD35: -45.43183657 | DE35: -1.656161688 | DF35: -14.38813868 | DG35: -112.6323766 | DH35: 0 | DI35: -1039.531741 | DJ35: -817.0989853 | DK35: 0 | DL35: 0 | DM35: 161.2043346 | DN35: 156.4326036 | DO35: -247.8391794 | DP35: -9.316565688 | DQ35: 0 | DR35: 0 | DS35: 0 | DU35: 28259.97658 | DV35: 0 | DW35: 244.2226627 | DX35: 1.127799976 | DY35: 165 | DZ35: 0 | EA35: 0 | EB35: 0 | ED35: 0 | EI35: 0 | EJ35: 0 | EK35: 0 | EL35: 0
A36: 35 | B36: Regular | C36: Azul | D36: A4 | E36: Industrial | F36: Não se aplica | G36: Não se aplica | H36: Não se aplica | I36: Não se aplica | J36: CATIVO | K36: 2019-07-01 | L36: 0 | M36: 0 | N36: 0 | O36: 0 | P36: 0 | Q36: 0 | AA36: 0 | AZ36: 0 | BI36: 7171.18 | BJ36: 33032.38 | BK36: 116464.88 | BL36: 9 | CJ36: -0.03 | CO36: 0 | CP36: 0 | CQ36: 31 | DK36: 0 | DY36: 165 | ED36: 0 | EI36: 0 | EJ36: 0 | EK36: 0 | EL36: 0
A37: 36 | B37: Regular | C37: Verde | D37: A3a | E37: Industrial | F37: Não se aplica | G37: Não se aplica | H37: Não se aplica | I37: Ponta | J37: CATIVO | K37: 2019-07-01 | L37: 0 | M37: 0 | N37: 13.279 | O37: 13.279 | P37: 13.279 | Q37: 13.279 | S37: 1013.09 | T37: 339.48 | V37: 17960.77703 | W37: 17960.77703 | X37: 18805.7198 | Y37: 0 | Z37: 576.3335034 | AA37: 0 | AB37: 0 | AC37: 56.03408827 | AD37: 729.9840484 | AE37: 9229.501569 | AF37: 4131.346905 | AG37: 129.9893873 | AH37: 73.8061829 | AI37: 0 | AJ37: 0 | AK37: 184.558179 | AL37: 121.6979246 | AM37: 0 | AN37: 4.83057137 | AO37: 1427.11375 | AP37: 1046.926636 | AQ37: 0 | AR37: 0 | AS37: 0 | AT37: 47.93395467 | AU37: 0 | AV37: 131.6840575 | AW37: 10.3609578 | AX37: 7.676096813 | AY37: -214.6228014 | AZ37: 0 | BA37: -28.72652692 | BB37: 998.6480367 | BC37: 195.2332884 | BD37: 11.5573489 | BE37: 1.330320682 | BF37: 36.49336429 | BG37: 90.4725554 | BH37: 3.271707808 | BI37: 0 | BJ37: 0 | BK37: 0 | BL37: 0 | BU37: 57.66189465 | BV37: 4271.200494 | CI37: 18807.136 | CJ37: 846.32897 | CM37: 0 | CN37: 57.66189465 | CO37: 178.60255 | CP37: 666.34022 | CQ37: 31 | CR37: -250.6383026 | CS37: -41.04096932 | CT37: -33.36740422 | CU37: 0 | CV37: 0 | CW37: 0 | CX37: -1.079923897 | CY37: 1.523747066 | CZ37: -89.26392464 | DA37: 0 | DB37: -1.182100906 | DC37: -69.22082706 | DD37: -0.6114472875 | DE37: -0.02228955835 | DF37: -0.1936436876 | DG37: -1.515870068 | DH37: 0 | DI37: -13.99060463 | DJ37: -10.99697912 | DK37: 0 | DL37: 0 | DM37: 2.16957888 | DN37: 11.61530297 | DO37: -3.335559498 | DP37: -0.1253875971 | DQ37: 0 | DR37: 0 | DS37: 0 | DV37: 9229.501569 | DW37: 3.286886376 | DX37: 0.01517856834 | DY37: 165 | DZ37: 0 | EA37: 0 | EB37: 0 | ED37: 0 | EI37: 0 | EJ37: 0 | EK37: 0 | EL37: 0
A38: 37 | B38: Regular | C38: Verde | D38: A3a | E38: Industrial | F38: Não se aplica | G38: Não se aplica | H38: Não se aplica | I38: Fora ponta | J38: CATIVO | K38: 2019-07-01 | L38: 0 | M38: 0 | N38: 197.041 | O38: 197.041 | P38: 197.041 | Q38: 197.041 | S38: 61.16 | T38: 209.25 | V38: 53281.85681 | W38: 53281.85681 | X38: 59782.2394 | Y38: 0 | Z38: 8551.94893 | AA38: 0 | AB38: 0 | AC38: 0 | AD38: 0 | AE38: 0 | AF38: 35641.37489 | AG38: 1928.852991 | AH38: 1095.176149 | AI38: 0 | AJ38: 0 | AK38: 496.3865312 | AL38: 1805.819772 | AM38: 0 | AN38: 71.67863645 | AO38: 0 | AP38: 0 | AQ38: 0 | AR38: 0 | AS38: 0 | AT38: 711.2700024 | AU38: 0 | AV38: 1953.999426 | AW38: 153.741508 | AX38: 113.9020854 | AY38: -3184.689465 | AZ38: 0 | BA38: -426.2597779 | BB38: 8818.505909 | BC38: 55.14994467 | BD38: 171.4942077 | BE38: 19.7400194 | BF38: 541.5083209 | BG38: 1342.480819 | BH38: 48.54737391 | BI38: 0 | BJ38: 0 | BK38: 0 | BL38: 0 | BU38: 855.6184489 | BV38: 37716.59825 | CI38: 59781.936 | CJ38: 6500.04919 | CM38: 0 | CN38: 855.6184489 | CO38: 2185.18469 | CP38: 4315.1979 | CQ38: 31 | CR38: -984.0578036 | CS38: 0 | CT38: 0 | CU38: 0 | CV38: 0 | CW38: 0 | CX38: -16.02449616 | CY38: 22.61018492 | CZ38: 0 | DA38: 0 | DB38: 0 | DC38: -597.1721824 | DD38: -9.072986293 | DE38: -0.330744549 | DF38: -2.873390003 | DG38: -22.49330175 | DH38: 0 | DI38: -207.6001753 | DJ38: -163.1791372 | DK38: 0 | DL38: 0 | DM38: 32.19338747 | DN38: 31.24044668 | DO38: -49.49483991 | DP38: -1.860569133 | DQ38: 0 | DR38: 0 | DS38: 0 | DV38: 0 | DW38: 48.77260174 | DX38: 0.2252278247 | DY38: 165 | DZ38: 0 | EA38: 0 | EB38: 0 | ED38: 0 | EI38: 0 | EJ38: 0 | EK38: 0 | EL38: 0
A39: 38 | B39: Regular | C39: Verde | D39: A3a | E39: Industrial | F39: Não se aplica | G39: Não se aplica | H39: Não se aplica | I39: Não se aplica | J39: CATIVO | K39: 2019-07-01 | L39: 2085 | M39: 2085 | N39: 0 | O39: 0 | P39: 0 | Q39: 0 | R39: 15.17 | U39: 31629.45 | W39: 31629.45 | X39: 32129.85 | Y39: 0 | Z39: 0 | AA39: 0 | AB39: 0 | AC39: 298.3677379 | AD39: 1805.006197 | AE39: 14005.71694 | AI39: 0 | AJ39: 0 | AK39: 0 | AL39: 0 | AM39: 0 | AN39: 0 | AO39: 8991.886869 | AP39: 6525.233781 | AQ39: 0 | AR39: 0 | AU39: 0 | AV39: 0 | AW39: 0 | AZ39: 0 | BB39: 0 | BC39: 1201.178516 | BD39: 0 | BE39: 0 | BG39: 0 | BH39: 0 | BI39: 1779.28 | BJ39: 8195.86 | BK39: 48992.51 | BL39: 5 | BV39: 0 | CI39: 32129.85 | CJ39: 500.37 | CO39: 500.4 | CP39: 0 | CQ39: 31 | CR39: -693.5738326 | CS39: -258.5888849 | CT39: -207.9707456 | CU39: 0 | CV39: 0 | CZ39: -220.7198055 | DA39: 0 | DB39: -6.294396576 | DE39: 0 | DF39: 0 | DG39: 0 | DH39: 0 | DI39: 0 | DK39: 0 | DL39: 0 | DN39: 0 | DO39: 0 | DP39: 0 | DQ39: 0 | DR39: 0 | DS39: 0 | DU39: 14005.71694 | DW39: 0 | DX39: 0 | DY39: 165 | ED39: 0 | EI39: 0 | EJ39: 0 | EK39: 0 | EL39: 0
A40: 39 | B40: Regular | C40: Verde | D40: A4 | E40: Industrial | F40: Não se aplica | G40: Não se aplica | H40: Não se aplica | I40: Ponta | J40: CATIVO | K40: 2019-07-01 | L40: 0 | M40: 0 | N40: 928.117 | O40: 928.117 | P40: 928.117 | Q40: 928.117 | S40: 1013.09 | T40: 339.48 | V40: 1255343.211 | W40: 1255343.211 | X40: 1314399.295 | Y40: 0 | Z40: 40282.01839 | AA40: 0 | AB40: 0 | AC40: 3916.423669 | AD40: 51021.2068 | AE40: 645083.0113 | AF40: 288754.6724 | AG40: 9085.425122 | AH40: 5158.579189 | AI40: 0 | AJ40: 0 | AK40: 12899.43395 | AL40: 8505.905013 | AM40: 0 | AN40: 337.6259815 | AO40: 99746.10528 | AP40: 73173.46254 | AQ40: 0 | AR40: 0 | AS40: 0 | AT40: 3350.276241 | AU40: 0 | AV40: 9203.871708 | AW40: 724.1645506 | AX40: 536.5099741 | AY40: -15000.75838 | AZ40: 0 | BA40: -2007.800134 | BB40: 69799.09781 | BC40: 13645.55569 | BD40: 807.7846215 | BE40: 92.98089018 | BF40: 2550.652292 | BG40: 6323.451819 | BH40: 228.6714087 | BI40: 0 | BJ40: 0 | BK40: 0 | BL40: 0 | BU40: 4030.196903 | BV40: 298529.542 | CI40: 1314403.544 | CJ40: 59060.30331 | CM40: 0 | CN40: 4030.196903 | CO40: 12483.17365 | CP40: 46572.91106 | CQ40: 31 | CR40: -17518.01111 | CS40: -2868.50074 | CT40: -2332.167716 | CU40: 0 | CV40: 0 | CW40: 0 | CX40: -75.47975957 | CY40: 106.5001548 | CZ40: -6238.976274 | DA40: 0 | DB40: -82.62127772 | DC40: -4838.092202 | DD40: -42.73624687 | DE40: -1.557897283 | DF40: -13.53445278 | DG40: -105.9496031 | DH40: 0 | DI40: -977.8536035 | DJ40: -768.6183652 | DK40: 0 | DL40: 0 | DM40: 151.6396597 | DN40: 811.8352396 | DO40: -233.1342326 | DP40: -8.763789476 | DQ40: 0 | DR40: 0 | DS40: 0 | DV40: 645083.0113 | DW40: 229.7322933 | DX40: 1.060884653 | DY40: 165 | DZ40: 0 | EA40: 0 | EB40: 0 | ED40: 0 | EI40: 0 | EJ40: 0 | EK40: 0 | EL40: 0
A41: 40 | B41: Refaturamento - Regular | C41: Verde | D41: A4 | E41: Industrial | F41: Não se aplica | G41: Não se aplica | H41: Não se aplica | I41: Ponta | J41: CATIVO | K41: 2019-07-01 | L41: 0 | M41: 0 | N41: -1.791 | O41: -1.791 | P41: -1.791 | Q41: -1.791 | S41: 1013.09 | T41: 339.48 | V41: -2422.45287 | W41: -2422.45287 | X41: -2536.4142 | Y41: 0 | Z41: -77.73275884 | AA41: 0 | AB41: 0 | AC41: -7.557576029 | AD41: -98.45631679 | AE41: -1244.825462 | AF41: -557.2138193 | AG41: -17.53226845 | AH41: -9.954580433 | AI41: 0 | AJ41: 0 | AK41: -24.89221316 | AL41: -16.41396061 | AM41: 0 | AN41: -0.6515214492 | AO41: -192.4814162 | AP41: -141.203826 | AQ41: 0 | AR41: 0 | AS41: 0 | AT41: -6.465073636 | AU41: 0 | AV41: -17.76083643 | AW41: -1.397430184 | AX41: -1.035310595 | AY41: 28.94716751 | AZ41: 0 | BA41: 3.874479231 | BB41: -134.6922685 | BC41: -26.33201443 | BD41: -1.558792972 | BE41: -0.1794264886 | BF41: -4.922028425 | BG41: -12.20245099 | BH41: -0.4412703279 | BI41: 0 | BJ41: 0 | BK41: 0 | BL41: 0 | BU41: -7.777125786 | BV41: -576.0765182 | CI41: -2534.998 | CJ41: -112.57513 | CM41: 0 | CN41: -7.777125786 | CO41: -24.08895 | CP41: -89.87238 | CQ41: 31 | CR41: 33.80474433 | CS41: 5.535384898 | CT41: 4.500415766 | CU41: 0 | CV41: 0 | CW41: 0 | CX41: 0.1456543188 | CY41: -0.2055147974 | CZ41: 12.03943738 | DA41: 0 | DB41: 0.1594354035 | DC41: 9.336132334 | DD41: 0.08246871692 | DE41: 0.003006295579 | DF41: 0.02611761763 | DG41: 0.2044523903 | DH41: 0 | DI41: 1.8869774 | DJ41: 1.483213315 | DK41: 0 | DL41: 0 | DM41: -0.2926211141 | DN41: -1.566609505 | DO41: 0.4498823 | DP41: 0.01691160377 | DQ41: 0 | DR41: 0 | DS41: 0 | DV41: -1244.825462 | DW41: -0.4433175314 | DX41: -0.002047203546 | DY41: 165 | DZ41: 0 | EA41: 0 | EB41: 0 | ED41: 0 | EI41: 0 | EJ41: 0 | EK41: 0 | EL41: 0
A42: 41 | B42: Sistema de Compensação | C42: Verde | D42: A4 | E42: Industrial | F42: Não se aplica | G42: Não se aplica | H42: Não se aplica | I42: Ponta | J42: CATIVO | K42: 2019-07-01 | L42: 0 | M42: 0 | N42: 4.731 | O42: 4.731 | P42: 4.731 | Q42: 4.731 | S42: 1013.09 | T42: 339.48 | V42: 6399.00867 | W42: 6399.00867 | X42: 6700.0422 | Y42: 0 | Z42: 205.3342725 | AA42: 0 | AB42: 0 | AC42: 19.96364723 | AD42: 260.0764013 | AE42: 3288.257544 | AF42: 1471.903171 | AG42: 46.3122066 | AH42: 26.29543274 | AI42: 0 | AJ42: 0 | AK42: 65.7538026 | AL42: 43.35815055 | AM42: 0 | AN42: 1.721020646 | AO42: 508.4475601 | AP42: 372.9957012 | AQ42: 0 | AR42: 0 | AS42: 0 | AT42: 17.07775733 | AU42: 0 | AV42: 46.91597832 | AW42: 3.691369179 | AX42: 2.734815425 | AY42: -76.46513091 | AZ42: 0 | BA42: -10.23459589 | BB42: 355.7951549 | BC42: 69.55709673 | BD42: 4.117615607 | BE42: 0.473962433 | BF42: 13.00174008 | BG42: 32.23327507 | BH42: 1.16563368 | BI42: 0 | BJ42: 0 | BK42: 0 | BL42: 0 | BU42: 20.54359693 | BV42: 1521.729764 | CI42: 6698.626 | CJ42: 299.58733 | CM42: 0 | CN42: 20.54359693 | CO42: 63.63195 | CP42: 237.40158 | CQ42: 31 | CR42: -89.29661944 | CS42: -14.62194637 | CT42: -11.88803294 | CU42: 0 | CV42: 0 | CW42: 0 | CX42: -0.3847518605 | CY42: 0.5428757713 | CZ42: -31.80266793 | DA42: 0 | DB42: -0.4211551613 | DC42: -24.6617767 | DD42: -0.2178445001 | DE42: -0.007941253147 | DF42: -0.06899075881 | DG42: -0.5400693794 | DH42: 0 | DI42: -4.984528242 | DJ42: -3.91796884 | DK42: 0 | DL42: 0 | DM42: 0.7729706817 | DN42: 4.138263299 | DO42: -1.188382558 | DP42: -0.04467269537 | DQ42: 0 | DR42: 0 | DS42: 0 | DV42: 3288.257544 | DW42: 1.171041452 | DX42: 0.005407772182 | DY42: 165 | DZ42: 0 | EA42: 0 | EB42: 0 | ED42: 0 | EI42: 0 | EJ42: 0 | EK42: 0 | EL42: 0
A43: 42 | B43: Regular | C43: Verde | D43: A4 | E43: Industrial | F43: Não se aplica | G43: Não se aplica | H43: Não se aplica | I43: Fora ponta | J43: CATIVO | K43: 2019-07-01 | L43: 0 | M43: 0 | N43: 16676.959 | O43: 16676.959 | P43: 16676.959 | Q43: 16676.959 | S43: 61.16 | T43: 209.25 | V43: 4509616.483 | W43: 4509616.483 | X43: 5059789.361 | Y43: 0 | Z43: 723811.2965 | AA43: 0 | AB43: 0 | AC43: 0 | AD43: 0 | AE43: 0 | AF43: 3016579.025 | AG43: 163252.3295 | AH43: 92692.42308 | AI43: 0 | AJ43: 0 | AK43: 42012.66655 | AL43: 152839.167 | AM43: 0 | AN43: 6066.66471 | AO43: 0 | AP43: 0 | AQ43: 0 | AR43: 0 | AS43: 0 | AT43: 60199.75877 | AU43: 0 | AV43: 165380.6483 | AW43: 13012.21992 | AX43: 9640.330735 | AY43: -269542.5604 | AZ43: 0 | BA43: -36077.34856 | BB43: 746371.8794 | BC43: 4667.725835 | BD43: 14514.75516 | BE43: 1670.73601 | BF43: 45831.63944 | BG43: 113623.5482 | BH43: 4108.904057 | BI43: 0 | BJ43: 0 | BK43: 0 | BL43: 0 | BU43: 72416.97815 | BV43: 3192219.704 | CI43: 5059789.664 | CJ43: 550173.1508 | CM43: 0 | CN43: 72416.97815 | CO43: 184947.4753 | CP43: 365225.4021 | CQ43: 31 | CR43: -83287.69974 | CS43: 0 | CT43: 0 | CU43: 0 | CV43: 0 | CW43: 0 | CX43: -1356.265272 | CY43: 1913.658208 | CZ43: 0 | DA43: 0 | DB43: 0 | DC43: -50542.86165 | DD43: -767.9103355 | DE43: -27.9932262 | DF43: -243.195108 | DG43: -1903.765567 | DH43: 0 | DI43: -17570.65591 | DJ43: -13810.99254 | DK43: 0 | DL43: 0 | DM43: 2724.751716 | DN43: 2644.097667 | DO43: -4189.094736 | DP43: -157.4729886 | DQ43: 0 | DR43: 0 | DS43: 0 | DV43: 0 | DW43: 4127.966664 | DX43: 19.06260726 | DY43: 165 | DZ43: 0 | EA43: 0 | EB43: 0 | ED43: 0 | EI43: 0 | EJ43: 0 | EK43: 0 | EL43: 0
A44: 43 | B44: Refaturamento - Regular | C44: Verde | D44: A4 | E44: Industrial | F44: Não se aplica | G44: Não se aplica | H44: Não se aplica | I44: Fora ponta | J44: CATIVO | K44: 2019-07-01 | L44: 0 | M44: 0 | N44: -70.558 | O44: -70.558 | P44: -70.558 | Q44: -70.558 | S44: 61.16 | T44: 209.25 | V44: -19079.58878 | W44: -19079.58878 | X44: -21407.2972 | Y44: 0 | Z44: -3062.349524 | AA44: 0 | AB44: 0 | AC44: 0 | AD44: 0 | AE44: 0 | AF44: -12762.74547 | AG44: -690.6989375 | AH44: -392.169339 | AI44: 0 | AJ44: 0 | AK44: -177.7500158 | AL44: -646.6422293 | AM44: 0 | AN44: -25.66725316 | AO44: 0 | AP44: 0 | AQ44: 0 | AR44: 0 | AS44: 0 | AT44: -254.6971891 | AU44: 0 | AV44: -699.7035718 | AW44: -55.05297539 | AX44: -40.78695978 | AY44: 1140.398797 | AZ44: 0 | BA44: 152.6384732 | BB44: -3157.800356 | BC44: -19.74852846 | BD44: -61.41000254 | BE44: -7.068662301 | BF44: -193.9075832 | BG44: -480.7261514 | BH44: -17.38422769 | BI44: 0 | BJ44: 0 | BK44: 0 | BL44: 0 | BU44: -306.3866227 | BV44: -13505.85786 | CI44: -21407.904 | CJ44: -2328.34522 | CM44: 0 | CN44: -306.3866227 | CO44: -782.48822 | CP44: -1545.2202 | CQ44: 31 | CR44: 352.3792028 | CS44: 0 | CT44: 0 | CU44: 0 | CV44: 0 | CW44: 0 | CX44: 5.73817835 | CY44: -8.096433877 | CZ44: 0 | DA44: 0 | DB44: 0 | DC44: 213.8401391 | DD44: 3.248926705 | DE44: 0.1184356245 | DF44: 1.028926223 | DG44: 8.054579428 | DH44: 0 | DI44: 74.33911301 | DJ44: 58.4324763 | DK44: 0 | DL44: 0 | DM44: -11.52806285 | DN44: -11.18682628 | DO44: 17.72350381 | DP44: 0.6662473135 | DQ44: 0 | DR44: 0 | DS44: 0 | DV44: 0 | DW44: -17.46487905 | DX44: -0.08065136115 | DY44: 165 | DZ44: 0 | EA44: 0 | EB44: 0 | ED44: 0 | EI44: 0 | EJ44: 0 | EK44: 0 | EL44: 0
A45: 44 | B45: Sistema de Compensação | C45: Verde | D45: A4 | E45: Industrial | F45: Não se aplica | G45: Não se aplica | H45: Não se aplica | I45: Fora ponta | J45: CATIVO | K45: 2019-07-01 | L45: 0 | M45: 0 | N45: 33.53 | O45: 33.53 | P45: 33.53 | Q45: 33.53 | S45: 61.16 | T45: 209.25 | V45: 9066.8473 | W45: 9066.8473 | X45: 10173.002 | Y45: 0 | Z45: 1455.264882 | AA45: 0 | AB45: 0 | AC45: 0 | AD45: 0 | AE45: 0 | AF45: 6065.008297 | AG45: 328.2283423 | AH45: 186.3635298 | AI45: 0 | AJ45: 0 | AK45: 84.46891962 | AL45: 307.292071 | AM45: 0 | AN45: 12.19738369 | AO45: 0 | AP45: 0 | AQ45: 0 | AR45: 0 | AS45: 0 | AT45: 121.0351307 | AU45: 0 | AV45: 332.5074515 | AW45: 26.16182807 | AX45: 19.38244794 | AY45: -541.9310589 | AZ45: 0 | BA45: -72.5356162 | BB45: 1500.624252 | BC45: 9.384735384 | BD45: 29.18276291 | BE45: 3.359112318 | BF45: 92.14718765 | BG45: 228.4467793 | BH45: 8.261191565 | BI45: 0 | BJ45: 0 | BK45: 0 | BL45: 0 | BU45: 145.5985637 | BV45: 6418.14414 | CI45: 10173.002 | CJ45: 1106.1247 | CM45: 0 | CN45: 145.5985637 | CO45: 371.8477 | CP45: 734.307 | CQ45: 31 | CR45: -167.4547843 | CS45: 0 | CT45: 0 | CU45: 0 | CV45: 0 | CW45: 0 | CX45: -2.726850535 | CY45: 3.847521584 | CZ45: 0 | DA45: 0 | DB45: 0 | DC45: -101.619375 | DD45: -1.543928575 | DE45: -0.05628201607 | DF45: -0.4889579672 | DG45: -3.827631852 | DH45: 0 | DI45: -35.32682983 | DJ45: -27.76780706 | DK45: 0 | DL45: 0 | DM45: 5.47827245 | DN45: 5.316112775 | DO45: -8.422419609 | DP45: -0.31660864 | DQ45: 0 | DR45: 0 | DS45: 0 | DV45: 0 | DW45: 8.299518051 | DX45: 0.03832648515 | DY45: 165 | DZ45: 0 | EA45: 0 | EB45: 0 | ED45: 0 | EI45: 0 | EJ45: 0 | EK45: 0 | EL45: 0
A46: 45 | B46: Regular | C46: Verde | D46: A4 | E46: Industrial | F46: Não se aplica | G46: Não se aplica | H46: Não se aplica | I46: Não se aplica | J46: CATIVO | K46: 2019-07-01 | L46: 105750 | M46: 105750 | N46: 0 | O46: 0 | P46: 0 | Q46: 0 | R46: 15.17 | U46: 1604227.5 | W46: 1604227.5 | X46: 1629607.5 | Y46: 0 | Z46: 0 | AA46: 0 | AB46: 0 | AC46: 15133.03994 | AD46: 91548.87548 | AE46: 710361.9025 | AI46: 0 | AJ46: 0 | AK46: 0 | AL46: 0 | AM46: 0 | AN46: 0 | AO46: 456063.3268 | AP46: 330956.1019 | AQ46: 0 | AR46: 0 | AU46: 0 | AV46: 0 | AW46: 0 | AZ46: 0 | BB46: 0 | BC46: 60923.08299 | BD46: 0 | BE46: 0 | BG46: 0 | BH46: 0 | BI46: 112293.75 | BJ46: 517258.81 | BK46: 2018225.74 | BL46: 512 | BV46: 0 | CI46: 1629607.5 | CJ46: 25379.97 | CO46: 25380 | CP46: 0 | CQ46: 31 | CR46: -35177.66561 | CS46: -13115.47941 | CT46: -10548.15652 | CU46: 0 | CV46: 0 | CZ46: -11194.7815 | DA46: 0 | DB46: -319.2481717 | DE46: 0 | DF46: 0 | DG46: 0 | DH46: 0 | DI46: 0 | DK46: 0 | DL46: 0 | DN46: 0 | DO46: 0 | DP46: 0 | DQ46: 0 | DR46: 0 | DS46: 0 | DU46: 710361.9025 | DW46: 0 | DX46: 0 | DY46: 165 | ED46: 0 | EI46: 0 | EJ46: 0 | EK46: 0 | EL46: 0
A47: 46 | B47: Refaturamento - Regular | C47: Verde | D47: A4 | E47: Industrial | F47: Não se aplica | G47: Não se aplica | H47: Não se aplica | I47: Não se aplica | J47: CATIVO | K47: 2019-07-01 | L47: -480 | M47: -480 | N47: 0 | O47: 0 | P47: 0 | Q47: 0 | R47: 15.17 | U47: -7281.6 | W47: -7281.6 | X47: -7396.8 | Y47: 0 | Z47: 0 | AA47: 0 | AB47: 0 | AC47: -68.68897562 | AD47: -415.5409951 | AE47: -3224.337713 | AI47: 0 | AJ47: 0 | AK47: 0 | AL47: 0 | AM47: 0 | AN47: 0 | AO47: -2070.074675 | AP47: -1502.212094 | AQ47: 0 | AR47: 0 | AU47: 0 | AV47: 0 | AW47: 0 | AZ47: 0 | BB47: 0 | BC47: -276.5303058 | BD47: 0 | BE47: 0 | BG47: 0 | BH47: 0 | BI47: -402.8 | BJ47: -1855.38 | BK47: -7409.36 | BL47: -1 | BV47: 0 | CI47: -7396.8 | CJ47: -115.23 | CO47: -115.2 | CP47: 0 | CQ47: 31 | CR47: 159.6716737 | CS47: 59.53125407 | CT47: 47.87815727 | CU47: 0 | CV47: 0 | CZ47: 50.81319263 | DA47: 0 | DB47: 1.449069715 | DE47: 0 | DF47: 0 | DG47: 0 | DH47: 0 | DI47: 0 | DK47: 0 | DL47: 0 | DN47: 0 | DO47: 0 | DP47: 0 | DQ47: 0 | DR47: 0 | DS47: 0 | DU47: -3224.337713 | DW47: 0 | DX47: 0 | DY47: 165 | ED47: 0 | EI47: 0 | EJ47: 0 | EK47: 0 | EL47: 0
A48: 47 | B48: Sistema de Compensação | C48: Verde | D48: A4 | E48: Industrial | F48: Não se aplica | G48: Não se aplica | H48: Não se aplica | I48: Não se aplica | J48: CATIVO | K48: 2019-07-01 | L48: 873 | M48: 873 | N48: 0 | O48: 0 | P48: 0 | Q48: 0 | R48: 15.17 | U48: 13243.41 | W48: 13243.41 | X48: 13452.93 | Y48: 0 | Z48: 0 | AA48: 0 | AB48: 0 | AC48: 124.9280744 | AD48: 755.7651848 | AE48: 5864.264216 | AI48: 0 | AJ48: 0 | AK48: 0 | AL48: 0 | AM48: 0 | AN48: 0 | AO48: 3764.948315 | AP48: 2732.148245 | AQ48: 0 | AR48: 0 | AU48: 0 | AV48: 0 | AW48: 0 | AZ48: 0 | BB48: 0 | BC48: 502.9394936 | BD48: 0 | BE48: 0 | BG48: 0 | BH48: 0 | BI48: 400.37 | BJ48: 1844.24 | BK48: 6430.14 | BL48: 5 | BV48: 0 | CI48: 13452.93 | CJ48: 209.49 | CO48: 209.52 | CP48: 0 | CQ48: 31 | CR48: -290.4028565 | CS48: -108.2724683 | CT48: -87.07839854 | CU48: 0 | CV48: 0 | CZ48: -92.41649409 | DA48: 0 | DB48: -2.635495545 | DE48: 0 | DF48: 0 | DG48: 0 | DH48: 0 | DI48: 0 | DK48: 0 | DL48: 0 | DN48: 0 | DO48: 0 | DP48: 0 | DQ48: 0 | DR48: 0 | DS48: 0 | DU48: 5864.264216 | DW48: 0 | DX48: 0 | DY48: 165 | ED48: 0 | EI48: 0 | EJ48: 0 | EK48: 0 | EL48: 0
A49: 48 | B49: Regular | C49: Branca | D49: B3 | E49: Industrial | F49: Não se aplica | G49: Não se aplica | H49: Não se aplica | I49: Ponta | J49: CATIVO | K49: 2019-07-01 | L49: 0 | M49: 0 | N49: 0.825 | O49: 0.825 | P49: 0.825 | Q49: 0.825 | S49: 576.69 | T49: 339.48 | V49: 755.84025 | W49: 755.84025 | X49: 811.8825 | Y49: 0 | Z49: 38.92016 | AA49: 0 | AB49: 0 | AC49: 1.892921524 | AD49: 20.230913 | AE49: 292.340367 | AF49: 256.6730323 | AG49: 8.076003053 | AH49: 4.585443248 | AI49: 0 | AJ49: 0 | AK49: 7.263060443 | AL49: 7.560869627 | AM49: 0 | AN49: 0.402277874 | AO49: 51.17314822 | AP49: 37.38884347 | AQ49: 0 | AR49: 0 | AS49: 0 | AT49: 2.978048995 | AU49: 0 | AV49: 8.89270632 | AW49: 0.6437073712 | AX49: 0.4769018654 | AY49: -13.33412239 | AZ49: 0 | BA49: -1.784726614 | BB49: 65.28272328 | BC49: 7.086515668 | BD49: 0.8344039099 | BE49: 0.2816827173 | BF49: 2.267266025 | BG49: 19.15670078 | BH49: 0.23620692 | BI49: 0 | BJ49: 0 | BK49: 0 | BL49: 0 | BU49: 3.582428126 | BV49: 279.2130858 | CI49: 816.803 | CJ49: 60.93275 | CM49: 0 | CN49: 3.582428126 | CO49: 14.64375 | CP49: 41.3985 | CQ49: 31 | CR49: -11.08153875 | CS49: -1.471638548 | CT49: -1.191648593 | CU49: 0 | CV49: 0 | CW49: 0 | CX49: -0.06709369793 | CY49: 0.09466762024 | CZ49: -2.473876926 | DA49: 0 | DB49: -0.03993326774 | DC49: -4.300563471 | DD49: -0.03798810243 | DE49: -0.004719601406 | DF49: -0.01398045966 | DG49: -0.3209710301 | DH49: 0 | DI49: -0.944794234 | DJ49: -0.6832222137 | DK49: 0 | DL49: 0 | DM49: 0.1347919705 | DN49: 0.4571059815 | DO49: -0.2072322152 | DP49: -0.01044196475 | DQ49: 0 | DR49: 0 | DS49: 0 | DV49: 292.340367 | DW49: 0.2373027644 | DX49: 0.00109584446 | DY49: 165 | DZ49: 0 | EA49: 0 | EB49: 0 | ED49: 0 | EI49: 0 | EJ49: 0 | EK49: 0 | EL49: 0
A50: 49 | B50: Regular | C50: Branca | D50: B3 | E50: Industrial | F50: Não se aplica | G50: Não se aplica | H50: Não se aplica | I50: Fora ponta | J50: CATIVO | K50: 2019-07-01 | L50: 0 | M50: 0 | N50: 19.922 | O50: 19.922 | P50: 19.922 | Q50: 19.922 | S50: 181.15 | T50: 209.25 | V50: 7777.5488 | W50: 7777.5488 | X50: 8531.99494 | Y50: 0 | Z50: 939.8393061 | AA50: 0 | AB50: 0 | AC50: 9.141489092 | AD50: 97.70713948 | AE50: 1411.879537 | AF50: 3603.551903 | AG50: 195.0183428 | AH50: 110.7287277 | AI50: 0 | AJ50: 0 | AK50: 81.22786069 | AL50: 182.5789633 | AM50: 0 | AN50: 9.71415734 | AO50: 247.1436414 | AP50: 180.5718917 | AQ50: 0 | AR50: 0 | AS50: 0 | AT50: 71.91356615 | AU50: 0 | AV50: 214.7399943 | AW50: 15.54416757 | AX50: 11.51616844 | AY50: -321.9907711 | AZ50: 0 | BA50: -43.09736194 | BB50: 969.8066506 | BC50: 38.68554864 | BD50: 20.14908448 | BE50: 6.802040114 | BF50: 54.74966515 | BG50: 462.5936884 | BH50: 5.703896073 | BI50: 0 | BJ50: 0 | BK50: 0 | BL50: 0 | BU50: 86.50804015 | BV50: 4147.846381 | CI50: 8531.1384 | CJ50: 753.5596 | CM50: 0 | CN50: 86.50804015 | CO50: 318.15434 | CP50: 436.2918 | CQ50: 31 | CR50: -130.0370478 | CS50: -7.107362399 | CT50: -5.755145671 | CU50: 0 | CV50: 0 | CW50: 0 | CX50: -1.620170485 | CY50: 2.286022219 | CZ50: -11.94782647 | DA50: 0 | DB50: -0.1928497969 | DC50: -60.3776078 | DD50: -0.9173320929 | DE50: -0.1139683627 | DF50: -0.3375984453 | DG50: -7.750769529 | DH50: 0 | DI50: -22.81477664 | DJ50: -16.4983672 | DK50: 0 | DL50: 0 | DM50: 3.254940165 | DN50: 5.112134379 | DO50: -5.004218415 | DP50: -0.2521512992 | DQ50: 0 | DR50: 0 | DS50: 0 | DV50: 1411.879537 | DW50: 5.730358392 | DX50: 0.0264623192 | DY50: 165 | DZ50: 0 | EA50: 0 | EB50: 0 | ED50: 0 | EI50: 0 | EJ50: 0 | EK50: 0 | EL50: 0
A51: 50 | B51: Regular | C51: Branca | D51: B3 | E51: Industrial | F51: Não se aplica | G51: Não se aplica | H51: Não se aplica | I51: Não se aplica | J51: CATIVO | K51: 2019-07-01 | L51: 0 | M51: 0 | N51: 0 | O51: 0 | P51: 0 | Q51: 0 | AA51: 0 | AZ51: 0 | BI51: 133.22 | BJ51: 613.75 | BK51: 2357.07 | BL51: 10 | CJ51: -0.03 | CO51: 0 | CP51: 0 | CQ51: 31 | DK51: 0 | DY51: 165 | ED51: 0 | EI51: 0 | EJ51: 0 | EK51: 0 | EL51: 0
A52: 51 | B52: Regular | C52: Branca | D52: B3 | E52: Industrial | F52: Não se aplica | G52: Não se aplica | H52: Não se aplica | I52: Intermediário | J52: CATIVO | K52: 2019-07-01 | L52: 0 | M52: 0 | N52: 0.701 | O52: 0.701 | P52: 0.701 | Q52: 0.701 | S52: 378.92 | T52: 209.25 | V52: 412.30717 | W52: 412.30717 | X52: 439.47793 | Y52: 0 | Z52: 33.07034201 | AA52: 0 | AB52: 0 | AC52: 0.9650823211 | AD52: 10.31413083 | AE52: 149.0404634 | AF52: 126.7990103 | AG52: 6.862155322 | AH52: 3.896237233 | AI52: 0 | AJ52: 0 | AK52: 4.514792381 | AL52: 6.42444801 | AM52: 0 | AN52: 0.3418142905 | AO52: 26.08898459 | AP52: 19.06147416 | AQ52: 0 | AR52: 0 | AS52: 0 | AT52: 2.530439207 | AU52: 0 | AV52: 7.556105613 | AW52: 0.5469562027 | AX52: 0.4052220699 | AY52: -11.32996338 | AZ52: 0 | BA52: -1.516476796 | BB52: 34.12480986 | BC52: 3.691311639 | BD52: 0.7089904737 | BE52: 0.2393449513 | BF52: 1.926489071 | BG52: 16.2773906 | BH52: 0.2007043041 | BI52: 0 | BJ52: 0 | BK52: 0 | BL52: 0 | BU52: 3.043978323 | BV52: 145.9512254 | CI52: 438.851 | CJ52: 26.51383 | CM52: 0 | CN52: 3.043978323 | CO52: 11.81886 | CP52: 15.3519 | CQ52: 31 | CR52: -6.230973596 | CS52: -0.7502676057 | CT52: -0.6075229067 | CU52: 0 | CV52: 0 | CW52: 0 | CX52: -0.05700931182 | CY52: 0.08043879004 | CZ52: -1.261232761 | DA52: 0 | DB52: -0.0203594762 | DC52: -2.124520784 | DD52: -0.03227837552 | DE52: -0.004010231013 | DF52: -0.01187915421 | DG52: -0.2727281116 | DH52: 0 | DI52: -0.8027887976 | DJ52: -0.5805318446 | DK52: 0 | DL52: 0 | DM52: 0.1145323289 | DN52: 0.2841417359 | DO52: -0.1760845853 | DP52: -0.008872505808 | DQ52: 0 | DR52: 0 | DS52: 0 | DV52: 149.0404634 | DW52: 0.2016354398 | DX52: 0.0009311357171 | DY52: 165 | DZ52: 0 | EA52: 0 | EB52: 0 | ED52: 0 | EI52: 0 | EJ52: 0 | EK52: 0 | EL52: 0
A53: 52 | B53: Regular | C53: Convencional | D53: B3 | E53: Comercial | F53: Não se aplica | G53: Não se aplica | H53: Não se aplica | I53: Não se aplica | J53: CATIVO | K53: 2019-07-01 | L53: 0 | M53: 0 | N53: 33966.928 | O53: 33966.928 | P53: 33966.928 | Q53: 33966.928 | S53: 236.77 | T53: 220.1 | V53: 15518470.4 | W53: 15518470.4 | X53: 16893451.64 | Y53: 0 | Z53: 1602422.149 | AA53: 0 | AB53: 0 | AC53: 24356.75665 | AD53: 260296.1989 | AE53: 3761327.127 | AF53: 6512683.632 | AG53: 332505.4718 | AH53: 188792.025 | AI53: 0 | AJ53: 0 | AK53: 161069.4145 | AL53: 311296.3809 | AM53: 0 | AN53: 16562.59828 | AO53: 658405.0264 | AP53: 481055.5639 | AQ53: 0 | AR53: 0 | AS53: 0 | AT53: 122612.3343 | AU53: 0 | AV53: 366130.8064 | AW53: 26502.74173 | AX53: 19635.01979 | AY53: -548992.9394 | AZ53: 0 | BA53: -73480.82472 | BB53: 1739708.527 | BC53: 97712.95589 | BD53: 34354.1061 | BE53: 11597.4504 | BF53: 93347.95372 | BG53: 788720.3346 | BH53: 9725.119326 | BI53: 233686.56 | BJ53: 1077466.19 | BK53: 4503580.02 | BL53: 59963 | BU53: 147495.8524 | BV53: 7440703.476 | CI53: 16893452.64 | CJ53: 1374982.21 | CM53: 0 | CN53: 147495.8524 | CO53: 550943.5722 | CP53: 824037.6733 | CQ53: 31 | CR53: -250447.9633 | CS53: -18934.42656 | CT53: -15332.09195 | CU53: 0 | CV53: 0 | CW53: 0 | CX53: -2762.384008 | CY53: 3897.658473 | CZ53: -31829.54523 | DA53: 0 | DB53: -513.8326507 | DC53: -109120.1871 | DD53: -1564.047443 | DE53: -194.3155893 | DF53: -575.6039597 | DG53: -13215.03014 | DH53: 0 | DI53: -38899.10027 | DJ53: -28129.64817 | DK53: 0 | DL53: 0 | DM53: 5549.659584 | DN53: 10137.02052 | DO53: -8532.171799 | DP53: -429.9169272 | DQ53: 0 | DR53: 0 | DS53: 0 | DV53: 3761327.127 | DW53: 9770.237472 | DX53: 45.11814531 | DY53: 165 | DZ53: 0 | EA53: 0 | EB53: 0 | ED53: 0 | EI53: 0 | EJ53: 0 | EK53: 0 | EL53: 0
A54: 53 | B54: Refaturamento - Regular | C54: Convencional | D54: B3 | E54: Comercial | F54: Não se aplica | G54: Não se aplica | H54: Não se aplica | I54: Não se aplica | J54: CATIVO | K54: 2019-07-01 | L54: 0 | M54: 0 | N54: -76.935 | O54: -76.935 | P54: -76.935 | Q54: -76.935 | S54: 236.77 | T54: 220.1 | V54: -35149.29345 | W54: -35149.29345 | X54: -38263.62225 | Y54: 0 | Z54: -3629.48183 | AA54: 0 | AB54: 0 | AC54: -55.16798789 | AD54: -589.5701862 | AE54: -8519.395765 | AF54: -14751.2108 | AG54: -753.1239938 | AH54: -427.6134258 | AI54: 0 | AJ54: 0 | AK54: -364.8217879 | AL54: -705.0854603 | AM54: 0 | AN54: -37.51424028 | AO54: -1491.285603 | AP54: -1089.58955 | AQ54: 0 | AR54: 0 | AS54: 0 | AT54: -277.7166054 | AU54: 0 | AV54: -829.2852858 | AW54: -60.02863831 | AX54: -44.47326668 | AY54: 1243.467522 | AZ54: 0 | BA54: 166.4338691 | BB54: -3940.435105 | BC54: -221.3195807 | BD54: -77.81195734 | BE54: -26.26819377 | BF54: -211.4328626 | BG54: -1786.449423 | BH54: -22.02736896 | BI54: -445.39 | BJ54: -2051.25 | BK54: -8474.03 | BL54: -26 | BU54: -334.0777065 | BV54: -16853.17324 | CI54: -38266.109 | CJ54: -3116.84555 | CM54: 0 | CN54: -334.0777065 | CO54: -1247.8857 | CP54: -1866.4431 | CQ54: 31 | CR54: 567.263959 | CS54: 42.88642492 | CT54: 34.72714677 | CU54: 0 | CV54: 0 | CW54: 0 | CX54: 6.256792304 | CY54: -8.828185894 | CZ54: 72.09383381 | DA54: 0 | DB54: 1.163829563 | DC54: 247.1569286 | DD54: 3.542563225 | DE54: 0.4401242839 | DF54: 1.303741411 | DG54: 29.93200752 | DH54: 0 | DI54: 88.10635684 | DJ54: 63.71357698 | DK54: 0 | DL54: 0 | DM54: -12.56996394 | DN54: -22.96032405 | DO54: 19.32534604 | DP54: 0.9737606767 | DQ54: 0 | DR54: 0 | DS54: 0 | DV54: -8519.395765 | DW54: -22.12956143 | DX54: -0.102192477 | DY54: 165 | DZ54: 0 | EA54: 0 | EB54: 0 | ED54: 0 | EI54: 0 | EJ54: 0 | EK54: 0 | EL54: 0
A55: 54 | B55: Sistema de Compensação | C55: Convencional | D55: B3 | E55: Comercial | F55: Não se aplica | G55: Não se aplica | H55: Não se aplica | I55: Não se aplica | J55: CATIVO | K55: 2019-07-01 | L55: 0 | M55: 0 | N55: 416.957 | O55: 416.957 | P55: 416.957 | Q55: 416.957 | S55: 236.77 | T55: 220.1 | V55: 190495.1446 | W55: 190495.1446 | X55: 207373.564 | Y55: 0 | Z55: 19670.34322 | AA55: 0 | AB55: 0 | AC55: 298.9884802 | AD55: 3195.235148 | AE55: 46171.72548 | AF55: 79945.67625 | AG55: 4081.631521 | AH55: 2317.494134 | AI55: 0 | AJ55: 0 | AK55: 1977.188512 | AL55: 3821.281839 | AM55: 0 | AN55: 203.3122127 | AO55: 8082.172888 | AP55: 5905.140575 | AQ55: 0 | AR55: 0 | AS55: 0 | AT55: 1505.113182 | AU55: 0 | AV55: 4494.395332 | AW55: 325.3312659 | AX55: 241.0273589 | AY55: -6739.097779 | AZ55: 0 | BA55: -902.0051573 | BB55: 21355.58589 | BC55: 1199.463812 | BD55: 421.7097589 | BE55: 142.3631282 | BF55: 1145.881745 | BG55: 9681.843014 | BH55: 119.37955 | BI55: 2855.36 | BJ55: 13161.65 | BK55: 54194.05 | BL55: 506 | BU55: 1810.56786 | BV55: 91337.47389 | CI55: 207375.056 | CJ55: 16879.88141 | CM55: 0 | CN55: 1810.56786 | CO55: 6763.04254 | CP55: 10115.37682 | CQ55: 31 | CR55: -3074.344298 | CS55: -232.4273097 | CT55: -188.207278 | CU55: 0 | CV55: 0 | CW55: 0 | CX55: -33.90931759 | CY55: 47.84524476 | CZ55: -390.7198111 | DA55: 0 | DB55: -6.307491821 | DC55: -1339.491928 | DD55: -19.19927906 | DE55: -2.385297992 | DF55: -7.065758205 | DG55: -162.2195367 | DH55: 0 | DI55: -477.5012963 | DJ55: -345.3021631 | DK55: 0 | DL55: 0 | DM55: 68.12418866 | DN55: 124.4357943 | DO55: -104.735664 | DP55: -5.2773943 | DQ55: 0 | DR55: 0 | DS55: 0 | DV55: 46171.72548 | DW55: 119.9333924 | DX55: 0.5538424468 | DY55: 165 | DZ55: 0 | EA55: 0 | EB55: 0 | ED55: 0 | EI55: 0 | EJ55: 0 | EK55: 0 | EL55: 0
A56: 55 | B56: Sistema de Compensação - Refaturamento | C56: Convencional | D56: B3 | E56: Comercial | F56: Não se aplica | G56: Não se aplica | H56: Não se aplica | I56: Não se aplica | J56: CATIVO | K56: 2019-07-01 | L56: 0 | M56: 0 | N56: -2.978 | O56: -2.978 | P56: -2.978 | Q56: -2.978 | S56: 236.77 | T56: 220.1 | V56: -1360.55886 | W56: -1360.55886 | X56: -1481.1083 | Y56: 0 | Z56: -140.4899836 | AA56: 0 | AB56: 0 | AC56: -2.13544249 | AD56: -22.82108292 | AE56: -329.7687735 | AF56: -570.9898715 | AG56: -29.15192375 | AH56: -16.5520606 | AI56: 0 | AJ56: 0 | AK56: -14.12152186 | AL56: -27.29244818 | AM56: 0 | AN56: -1.452101223 | AO56: -57.72468351 | AP56: -42.1758326 | AQ56: 0 | AR56: 0 | AS56: 0 | AT56: -10.74985443 | AU56: 0 | AV56: -32.09997506 | AW56: -2.323588547 | AX56: -1.721471218 | AY56: 48.13214117 | AZ56: 0 | BA56: 6.44232225 | BB56: -152.5263631 | BC56: -8.566838386 | BD56: -3.011945265 | BE56: -1.016789251 | BF56: -8.184143299 | BG56: -69.14988475 | BH56: -0.8526354033 | BI56: -19.19 | BJ56: -88.4 | BK56: -355.09 | BL56: 0 | BU56: -12.93147995 | BV56: -652.3526341 | CI56: -1482.103 | CJ56: -121.57414 | CM56: 0 | CN56: -12.93147995 | CO56: -48.30316 | CP56: -72.24628 | CQ56: 31 | CR56: 21.95765347 | CS56: 1.660047747 | CT56: 1.344218406 | CU56: 0 | CV56: 0 | CW56: 0 | CX56: 0.2421879181 | CY56: -0.3417214219 | CZ56: 2.790608138 | DA56: 0 | DB56: 0.04504951504 | DC56: 9.566950456 | DD56: 0.1371255382 | DE56: 0.0170363309 | DF56: 0.05046522287 | DG56: 1.158608155 | DH56: 0 | DI56: 3.410420883 | DJ56: 2.466225154 | DK56: 0 | DL56: 0 | DM56: -0.4865581675 | DN56: -0.8887482295 | DO56: 0.7480454994 | DP56: 0.03769232852 | DQ56: 0 | DR56: 0 | DS56: 0 | DV56: -329.7687735 | DW56: -0.8565910697 | DX56: -0.003955666427 | DY56: 165 | DZ56: 0 | EA56: 0 | EB56: 0 | ED56: 0 | EI56: 0 | EJ56: 0 | EK56: 0 | EL56: 0
A57: 56 | B57: Regular | C57: Azul | D57: A3a | E57: Comercial | F57: Não se aplica | G57: Não se aplica | H57: Não se aplica | I57: Ponta | J57: CATIVO | K57: 2019-07-01 | L57: 219 | M57: 219 | N57: 12.686 | O57: 12.686 | P57: 12.686 | Q57: 12.686 | R57: 39.11 | S57: 61.16 | T57: 339.48 | U57: 8565.09 | V57: 5082.51904 | W57: 13647.60904 | X57: 14440.21026 | Y57: 0 | Z57: 550.5961913 | AA57: 0 | AB57: 0 | AC57: 38.41137205 | AD57: 500.5944025 | AE57: 6329.09339 | AF57: 3946.85344 | AG57: 124.1844542 | AH57: 70.51022187 | AI57: 0 | AJ57: 0 | AK57: 31.95862554 | AL57: 116.2632631 | AM57: 0 | AN57: 4.614852655 | AO57: 978.6318566 | AP57: 717.9282348 | AQ57: 0 | AR57: 0 | AS57: 0 | AT57: 45.79336915 | AU57: 0 | AV57: 125.8034456 | AW57: 9.89826874 | AX57: 7.333305533 | AY57: -205.0383959 | AZ57: 0 | BA57: -27.44368706 | BB57: 954.0514341 | BC57: 134.882202 | BD57: 11.04123263 | BE57: 1.270912582 | BF57: 34.86368096 | BG57: 86.43232456 | BH57: 3.125603227 | BI57: 0 | BJ57: 0 | BK57: 0 | BL57: 0 | BU57: 55.08688873 | BV57: 4080.461591 | CI57: 14442.0579 | CJ57: 794.41886 | CM57: 0 | CN57: 55.08688873 | CO57: 156.01774 | CP57: 636.58348 | CQ57: 31 | CR57: -204.0874985 | CS57: -28.14351695 | CT57: -22.88164307 | CU57: 0 | CV57: 0 | CW57: 0 | CX57: -1.03169776 | CY57: 1.455701128 | CZ57: -61.21369517 | DA57: 0 | DB57: -0.8103302672 | DC57: -66.12963417 | DD57: -0.5841419 | DE57: -0.02129417405 | DF57: -0.1849961459 | DG57: -1.448175893 | DH57: 0 | DI57: -13.36582652 | DJ57: -10.50588728 | DK57: 0 | DL57: 0 | DM57: 2.072692046 | DN57: 2.011339298 | DO57: -3.186603494 | DP57: -0.119788166 | DQ57: 0 | DR57: 0 | DS57: 0 | DU57: 6329.09339 | DV57: 0 | DW57: 3.140103966 | DX57: 0.01450073936 | DY57: 165 | DZ57: 0 | EA57: 0 | EB57: 0 | ED57: 0 | EI57: 0 | EJ57: 0 | EK57: 0 | EL57: 0
A58: 57 | B58: Regular | C58: Azul | D58: A3a | E58: Comercial | F58: Não se aplica | G58: Não se aplica | H58: Não se aplica | I58: Fora ponta | J58: CATIVO | K58: 2019-07-01 | L58: 292 | M58: 292 | N58: 105.056 | O58: 105.056 | P58: 105.056 | Q58: 105.056 | R58: 15.17 | S58: 61.16 | T58: 209.25 | U58: 4429.64 | V58: 28408.19296 | W58: 32837.83296 | X58: 36373.7104 | Y58: 0 | Z58: 4559.627422 | AA58: 0 | AB58: 0 | AC58: 41.7857935 | AD58: 252.7874387 | AE58: 1961.472109 | AF58: 19002.84854 | AG58: 1028.403123 | AH58: 583.9131223 | AI58: 0 | AJ58: 0 | AK58: 264.6575252 | AL58: 962.8057207 | AM58: 0 | AN58: 38.21677128 | AO58: 1259.295427 | AP58: 913.8456902 | AQ58: 0 | AR58: 0 | AS58: 0 | AT58: 379.2265639 | AU58: 0 | AV58: 1041.810403 | AW58: 81.97008677 | AX58: 60.72897257 | AY58: -1697.975226 | AZ58: 0 | BA58: -227.2681687 | BB58: 4701.747133 | BC58: 197.6268007 | BD58: 91.43526215 | BE58: 10.52475108 | BF58: 288.7150297 | BG58: 715.7681136 | BH58: 25.88391712 | BI58: 0 | BJ58: 0 | BK58: 0 | BL58: 0 | BU58: 456.1885687 | BV58: 20109.2917 | CI58: 36374.924 | CJ58: 3537.06104 | CM58: 0 | CN58: 456.1885687 | CO58: 1235.15104 | CP58: 2300.7264 | CQ58: 31 | CR58: -621.8019528 | CS58: -36.21484623 | CT58: -29.12587901 | CU58: 0 | CV58: 0 | CW58: 0 | CX58: -8.543752158 | CY58: 12.05503214 | CZ58: -30.91135885 | DA58: 0 | DB58: -0.8815174101 | DC58: -318.3932318 | DD58: -4.837427987 | DE58: -0.1763424838 | DF58: -1.532000245 | DG58: -11.99271374 | DH58: 0 | DI58: -110.6858167 | DJ58: -87.00193076 | DK58: 0 | DL58: 0 | DM58: 17.16449122 | DN58: 16.65641347 | DO58: -26.38907588 | DP58: -0.9919963401 | DQ58: 0 | DR58: 0 | DS58: 0 | DU58: 1961.472109 | DV58: 0 | DW58: 26.00400144 | DX58: 0.1200843192 | DY58: 165 | DZ58: 0 | EA58: 0 | EB58: 0 | ED58: 0 | EI58: 0 | EJ58: 0 | EK58: 0 | EL58: 0
A59: 58 | B59: Regular | C59: Azul | D59: A3a | E59: Comercial | F59: Não se aplica | G59: Não se aplica | H59: Não se aplica | I59: Não se aplica | J59: CATIVO | K59: 2019-07-01 | L59: 0 | M59: 0 | N59: 0 | O59: 0 | P59: 0 | Q59: 0 | AA59: 0 | AZ59: 0 | BI59: 889.22 | BJ59: 4095.97 | BK59: 25341.54 | BL59: 1 | CJ59: -0.03 | CO59: 0 | CP59: 0 | CQ59: 31 | DK59: 0 | DY59: 165 | ED59: 0 | EI59: 0 | EJ59: 0 | EK59: 0 | EL59: 0
A60: 59 | B60: Regular | C60: Azul | D60: A4 | E60: Comercial | F60: Não se aplica | G60: Não se aplica | H60: Não se aplica | I60: Ponta | J60: CATIVO | K60: 2019-07-01 | L60: 7122 | M60: 7122 | N60: 221.278 | O60: 221.278 | P60: 221.278 | Q60: 221.278 | R60: 39.11 | S60: 61.16 | T60: 339.48 | U60: 278541.42 | V60: 88652.81792 | W60: 367194.2379 | X60: 381250.481 | Y60: 0 | Z60: 9603.880184 | AA60: 0 | AB60: 0 | AC60: 1249.158867 | AD60: 16279.60427 | AE60: 205825.585 | AF60: 68843.75182 | AG60: 2166.111277 | AH60: 1229.888135 | AI60: 0 | AJ60: 0 | AK60: 557.4444854 | AL60: 2027.944375 | AM60: 0 | AN60: 80.49545686 | AO60: 31825.64421 | AP60: 23347.41958 | AQ60: 0 | AR60: 0 | AS60: 0 | AT60: 798.7596673 | AU60: 0 | AV60: 2194.350846 | AW60: 172.6524602 | AX60: 127.9125951 | AY60: -3576.421737 | AZ60: 0 | BA60: -478.6918008 | BB60: 16641.22602 | BC60: 4332.906274 | BD60: 192.5888282 | BE60: 22.16813766 | BF60: 608.1164744 | BG60: 1507.612479 | BH60: 54.51893669 | BI60: 0 | BJ60: 0 | BK60: 0 | BL60: 0 | BU60: 960.8636738 | BV60: 71174.23774 | CI60: 381251.4048 | CJ60: 14057.13688 | CM60: 0 | CN60: 960.8636738 | CO60: 2952.51302 | CP60: 11103.73004 | CQ60: 31 | CR60: -5264.374777 | CS60: -915.2425923 | CT60: -744.1235705 | CU60: 0 | CV60: 0 | CW60: 0 | CX60: -17.99558702 | CY60: 25.39134748 | CZ60: -1990.702909 | DA60: 0 | DB60: -26.3523843 | DC60: -1153.478889 | DD60: -10.18900767 | DE60: -0.3714277349 | DF60: -3.226830929 | DG60: -25.26008712 | DH60: 0 | DI60: -233.1360051 | DJ60: -183.2509636 | DK60: 0 | DL60: 0 | DM60: 36.15333048 | DN60: 35.08317335 | DO60: -55.58294561 | DP60: -2.089428173 | DQ60: 0 | DR60: 0 | DS60: 0 | DU60: 205825.585 | DV60: 0 | DW60: 54.77186863 | DX60: 0.252931941 | DY60: 165 | DZ60: 0 | EA60: 0 | EB60: 0 | ED60: 0 | EI60: 0 | EJ60: 0 | EK60: 0 | EL60: 0
A61: 60 | B61: Refaturamento - Regular | C61: Azul | D61: A4 | E61: Comercial | F61: Não se aplica | G61: Não se aplica | H61: Não se aplica | I61: Ponta | J61: CATIVO | K61: 2019-07-01 | L61: 175 | M61: 175 | N61: 0 | O61: 0 | P61: 0 | Q61: 0 | R61: 39.11 | U61: 6844.25 | W61: 6844.25 | X61: 6856.5 | Y61: 0 | Z61: 0 | AA61: 0 | AB61: 0 | AC61: 30.69401876 | AD61: 400.0183582 | AE61: 5057.494718 | AI61: 0 | AJ61: 0 | AK61: 0 | AL61: 0 | AM61: 0 | AN61: 0 | AO61: 782.0117576 | AP61: 573.6869456 | AQ61: 0 | AR61: 0 | AU61: 0 | AV61: 0 | AW61: 0 | AZ61: 0 | BB61: 0 | BC61: 104.9452693 | BD61: 0 | BE61: 0 | BG61: 0 | BH61: 0 | BI61: 0 | BJ61: 0 | BK61: 0 | BL61: 0 | BV61: 0 | CI61: 6856.5 | CJ61: 12.22 | CO61: 12.25 | CP61: 0 | CQ61: 31 | CR61: -90.3361071 | CS61: -22.48911172 | CT61: -18.28441798 | CU61: 0 | CV61: 0 | CZ61: -48.91505322 | DA61: 0 | DB61: -0.6475241861 | DE61: 0 | DF61: 0 | DG61: 0 | DH61: 0 | DI61: 0 | DK61: 0 | DL61: 0 | DN61: 0 | DO61: 0 | DP61: 0 | DQ61: 0 | DR61: 0 | DS61: 0 | DU61: 5057.494718 | DW61: 0 | DX61: 0 | DY61: 165 | ED61: 0 | EI61: 0 | EJ61: 0 | EK61: 0 | EL61: 0
A62: 61 | B62: Sistema de Compensação | C62: Azul | D62: A4 | E62: Comercial | F62: Não se aplica | G62: Não se aplica | H62: Não se aplica | I62: Ponta | J62: CATIVO | K62: 2019-07-01 | L62: 124 | M62: 124 | N62: 6.337 | O62: 6.337 | P62: 6.337 | Q62: 6.337 | R62: 39.11 | S62: 61.16 | T62: 339.48 | U62: 4849.64 | V62: 2538.85568 | W62: 7388.49568 | X62: 7785.44367 | Y62: 0 | Z62: 275.0376844 | AA62: 0 | AB62: 0 | AC62: 21.74890472 | AD62: 283.4415795 | AE62: 3583.596257 | AF62: 1971.560007 | AG62: 62.03349254 | AH62: 35.22176226 | AI62: 0 | AJ62: 0 | AK62: 15.96419754 | AL62: 58.07664343 | AM62: 0 | AN62: 2.305243676 | AO62: 554.1111882 | AP62: 406.4981786 | AQ62: 0 | AR62: 0 | AS62: 0 | AT62: 22.87502604 | AU62: 0 | AV62: 62.84222249 | AW62: 4.944452862 | AX62: 3.663184389 | AY62: -102.4222225 | AZ62: 0 | BA62: -13.7088637 | BB62: 476.5744867 | BC62: 76.13488683 | BD62: 5.51539423 | BE62: 0.6348551972 | BF62: 17.41535127 | BG62: 43.17528305 | BH62: 1.561323321 | BI62: 0 | BJ62: 0 | BK62: 0 | BL62: 0 | BU62: 27.51739034 | BV62: 2038.300891 | CI62: 7786.8294 | CJ62: 398.30372 | CM62: 0 | CN62: 27.51739034 | CO62: 78.95733 | CP62: 317.99066 | CQ62: 31 | CR62: -109.4856833 | CS62: -15.93514202 | CT62: -12.95581617 | CU62: 0 | CV62: 0 | CW62: 0 | CX62: -0.5153609258 | CY62: 0.727162072 | CZ62: -34.65980914 | DA62: 0 | DB62: -0.4588171376 | DC62: -33.03354026 | DD62: -0.2917946729 | DE62: -0.01063701568 | DF62: -0.09241057674 | DG62: -0.7234030136 | DH62: 0 | DI62: -6.676591728 | DJ62: -5.247974749 | DK62: 0 | DL62: 0 | DM62: 1.035365718 | DN62: 1.004718361 | DO62: -1.591794604 | DP62: -0.05983742773 | DQ62: 0 | DR62: 0 | DS62: 0 | DU62: 3583.596257 | DV62: 0 | DW62: 1.568566832 | DX62: 0.007243511375 | DY62: 165 | DZ62: 0 | EA62: 0 | EB62: 0 | ED62: 0 | EI62: 0 | EJ62: 0 | EK62: 0 | EL62: 0
A63: 62 | B63: Regular | C63: Azul | D63: A4 | E63: Comercial | F63: Não se aplica | G63: Não se aplica | H63: Não se aplica | I63: Fora ponta | J63: CATIVO | K63: 2019-07-01 | L63: 7513 | M63: 7513 | N63: 1905.035 | O63: 1905.035 | P63: 1905.035 | Q63: 1905.035 | R63: 15.17 | S63: 61.16 | T63: 209.25 | U63: 113972.21 | V63: 515140.5144 | W63: 629112.7244 | X63: 693762.949 | Y63: 0 | Z63: 82682.0917 | AA63: 0 | AB63: 0 | AC63: 1075.125571 | AD63: 6504.082283 | AE63: 50467.60259 | AF63: 344588.5202 | AG63: 18648.56785 | AH63: 10588.39985 | AI63: 0 | AJ63: 0 | AK63: 4799.172332 | AL63: 17459.05608 | AM63: 0 | AN63: 693.0045584 | AO63: 32400.98132 | AP63: 23512.74887 | AQ63: 0 | AR63: 0 | AS63: 0 | AT63: 6876.712202 | AU63: 0 | AV63: 18891.68902 | AW63: 1486.406148 | AX63: 1101.229994 | AY63: -30790.26647 | AZ63: 0 | BA63: -4121.171715 | BB63: 85259.22222 | BC63: 4861.476982 | BD63: 1658.043088 | BE63: 190.8507765 | BF63: 5235.419553 | BG63: 12979.39488 | BH63: 469.3665098 | BI63: 0 | BJ63: 0 | BK63: 0 | BL63: 0 | BU63: 8272.3042 | BV63: 364652.2285 | CI63: 693764.466 | CJ63: 64651.71165 | CM63: 0 | CN63: 8272.3042 | CO63: 22929.95815 | CP63: 41720.2665 | CQ63: 31 | CR63: -12013.278 | CS63: -931.7881497 | CT63: -749.3929074 | CU63: 0 | CV63: 0 | CW63: 0 | CX63: -154.9282944 | CY63: 218.6001575 | CZ63: -795.3323255 | DA63: 0 | DB63: -22.68095994 | DC63: -5773.589804 | DD63: -87.7195936 | DE63: -3.197709826 | DF63: -27.78055595 | DG63: -217.4701057 | DH63: 0 | DI63: -2007.12339 | DJ63: -1577.651188 | DK63: 0 | DL63: 0 | DM63: 311.2526321 | DN63: 302.0393946 | DO63: -478.526816 | DP63: -17.98838475 | DQ63: 0 | DR63: 0 | DS63: 0 | DU63: 50467.60259 | DV63: 0 | DW63: 471.5440611 | DX63: 2.177551317 | DY63: 165 | DZ63: 0 | EA63: 0 | EB63: 0 | ED63: 0 | EI63: 0 | EJ63: 0 | EK63: 0 | EL63: 0
A64: 63 | B64: Refaturamento - Regular | C64: Azul | D64: A4 | E64: Comercial | F64: Não se aplica | G64: Não se aplica | H64: Não se aplica | I64: Fora ponta | J64: CATIVO | K64: 2019-07-01 | L64: 182 | M64: 182 | N64: 0 | O64: 0 | P64: 0 | Q64: 0 | R64: 15.17 | U64: 2760.94 | W64: 2760.94 | X64: 2804.62 | Y64: 0 | Z64: 0 | AA64: 0 | AB64: 0 | AC64: 26.04456992 | AD64: 157.559294 | AE64: 1222.561383 | AI64: 0 | AJ64: 0 | AK64: 0 | AL64: 0 | AM64: 0 | AN64: 0 | AO64: 784.9033142 | AP64: 569.5887521 | AQ64: 0 | AR64: 0 | AU64: 0 | AV64: 0 | AW64: 0 | AZ64: 0 | BB64: 0 | BC64: 104.8510743 | BD64: 0 | BE64: 0 | BG64: 0 | BH64: 0 | BI64: 0 | BJ64: 0 | BK64: 0 | BL64: 0 | BV64: 0 | CI64: 2804.62 | CJ64: 43.65 | CO64: 43.68 | CP64: 0 | CQ64: 31 | CR64: -60.54217627 | CS64: -22.57226717 | CT64: -18.1538013 | CU64: 0 | CV64: 0 | CZ64: -19.26666887 | DA64: 0 | DB64: -0.5494389337 | DE64: 0 | DF64: 0 | DG64: 0 | DH64: 0 | DI64: 0 | DK64: 0 | DL64: 0 | DN64: 0 | DO64: 0 | DP64: 0 | DQ64: 0 | DR64: 0 | DS64: 0 | DU64: 1222.561383 | DW64: 0 | DX64: 0 | DY64: 165 | ED64: 0 | EI64: 0 | EJ64: 0 | EK64: 0 | EL64: 0
A65: 64 | B65: Sistema de Compensação | C65: Azul | D65: A4 | E65: Comercial | F65: Não se aplica | G65: Não se aplica | H65: Não se aplica | I65: Fora ponta | J65: CATIVO | K65: 2019-07-01 | L65: 124 | M65: 124 | N65: 34.125 | O65: 34.125 | P65: 34.125 | Q65: 34.125 | R65: 15.17 | S65: 61.16 | T65: 209.25 | U65: 1881.08 | V65: 9227.74125 | W65: 11108.82125 | X65: 12264.365 | Y65: 0 | Z65: 1481.088998 | AA65: 0 | AB65: 0 | AC65: 17.74465204 | AD65: 107.3480904 | AE65: 832.9539093 | AF65: 6172.633706 | AG65: 334.0528536 | AH65: 189.6706071 | AI65: 0 | AJ65: 0 | AK65: 85.96784617 | AL65: 312.7450618 | AM65: 0 | AN65: 12.41382996 | AO65: 534.769291 | AP65: 388.0714575 | AQ65: 0 | AR65: 0 | AS65: 0 | AT65: 123.1829357 | AU65: 0 | AV65: 338.4078969 | AW65: 26.62607763 | AX65: 19.72639534 | AY65: -551.5477896 | AZ65: 0 | BA65: -73.82278267 | BB65: 1527.253283 | BC65: 80.98826602 | BD65: 29.70061987 | BE65: 3.418720783 | BF65: 93.78236739 | BG65: 232.5006366 | BH65: 8.40778891 | BI65: 0 | BJ65: 0 | BK65: 0 | BL65: 0 | BU65: 148.1822543 | BV65: 6532.03605 | CI65: 12265.882 | CJ65: 1157.03075 | CM65: 0 | CN65: 148.1822543 | CO65: 408.20625 | CP65: 747.3375 | CQ65: 31 | CR65: -211.6748359 | CS65: -15.3789073 | CT65: -12.36852396 | CU65: 0 | CV65: 0 | CW65: 0 | CX65: -2.775239324 | CY65: 3.915797019 | CZ65: -13.12674143 | DA65: 0 | DB65: -0.3743430098 | DC65: -103.4226416 | DD65: -1.571326055 | DE65: -0.05728075748 | DF65: -0.4976346743 | DG65: -3.895554338 | DH65: 0 | DI65: -35.95371512 | DJ65: -28.2605552 | DK65: 0 | DL65: 0 | DM65: 5.575486053 | DN65: 5.410448805 | DO65: -8.571877994 | DP65: -0.3222269562 | DQ65: 0 | DR65: 0 | DS65: 0 | DU65: 832.9539093 | DV65: 0 | DW65: 8.446795511 | DX65: 0.03900660023 | DY65: 165 | DZ65: 0 | EA65: 0 | EB65: 0 | ED65: 0 | EI65: 0 | EJ65: 0 | EK65: 0 | EL65: 0
A66: 65 | B66: Regular | C66: Azul | D66: A4 | E66: Comercial | F66: Não se aplica | G66: Não se aplica | H66: Não se aplica | I66: Não se aplica | J66: CATIVO | K66: 2019-07-01 | L66: 0 | M66: 0 | N66: 0 | O66: 0 | P66: 0 | Q66: 0 | AA66: 0 | AZ66: 0 | BI66: 14920.28 | BJ66: 68726.93 | BK66: 266336.25 | BL66: 57 | CJ66: -0.03 | CO66: 0 | CP66: 0 | CQ66: 31 | DK66: 0 | DY66: 165 | ED66: 0 | EI66: 0 | EJ66: 0 | EK66: 0 | EL66: 0
A67: 66 | B67: Refaturamento - Regular | C67: Azul | D67: A4 | E67: Comercial | F67: Não se aplica | G67: Não se aplica | H67: Não se aplica | I67: Não se aplica | J67: CATIVO | K67: 2019-07-01 | L67: 0 | M67: 0 | N67: 0 | O67: 0 | P67: 0 | Q67: 0 | AA67: 0 | AZ67: 0 | BI67: 120.04 | BJ67: 553 | BK67: 2221.86 | BL67: 0 | CJ67: -0.03 | CO67: 0 | CP67: 0 | CQ67: 31 | DK67: 0 | DY67: 165 | ED67: 0 | EI67: 0 | EJ67: 0 | EK67: 0 | EL67: 0
A68: 67 | B68: Sistema de Compensação | C68: Azul | D68: A4 | E68: Comercial | F68: Não se aplica | G68: Não se aplica | H68: Não se aplica | I68: Não se aplica | J68: CATIVO | K68: 2019-07-01 | L68: 0 | M68: 0 | N68: 0 | O68: 0 | P68: 0 | Q68: 0 | AA68: 0 | AZ68: 0 | BI68: 302.34 | BJ68: 1392.65 | BK68: 7339.67 | BL68: 1 | CJ68: -0.03 | CO68: 0 | CP68: 0 | CQ68: 31 | DK68: 0 | DY68: 165 | ED68: 0 | EI68: 0 | EJ68: 0 | EK68: 0 | EL68: 0
A69: 68 | B69: Regular | C69: Verde | D69: A3a | E69: Comercial | F69: Não se aplica | G69: Não se aplica | H69: Não se aplica | I69: Ponta | J69: CATIVO | K69: 2019-07-01 | L69: 0 | M69: 0 | N69: 7.993 | O69: 7.993 | P69: 7.993 | Q69: 7.993 | S69: 1013.09 | T69: 339.48 | V69: 10811.09201 | W69: 10811.09201 | X69: 11319.6866 | Y69: 0 | Z69: 346.91119 | AA69: 0 | AB69: 0 | AC69: 33.72847861 | AD69: 439.3977332 | AE69: 5555.494091 | AF69: 2486.772785 | AG69: 78.24423322 | AH69: 44.42599743 | AI69: 0 | AJ69: 0 | AK69: 111.090709 | AL69: 73.25337082 | AM69: 0 | AN69: 2.907655468 | AO69: 859.0195197 | AP69: 630.1743057 | AQ69: 0 | AR69: 0 | AS69: 0 | AT69: 28.85278256 | AU69: 0 | AV69: 79.26430241 | AW69: 6.236549113 | AX69: 4.620456497 | AY69: -129.1874427 | AZ69: 0 | BA69: -17.29129676 | BB69: 601.1140716 | BC69: 117.5163547 | BD69: 6.956690245 | BE69: 0.8007570761 | BF69: 21.96637253 | BG69: 54.4579513 | BH69: 1.969332066 | BI69: 0 | BJ69: 0 | BK69: 0 | BL69: 0 | BU69: 34.70830062 | BV69: 2570.954556 | CI69: 11315.438 | CJ69: 504.31599 | CM69: 0 | CN69: 34.70830062 | CO69: 107.50585 | CP69: 401.08874 | CQ69: 31 | CR69: -150.8661761 | CS69: -24.70370267 | CT69: -20.08477008 | CU69: 0 | CV69: 0 | CW69: 0 | CX69: -0.6500362759 | CY69: 0.9171858043 | CZ69: -53.73044278 | DA69: 0 | DB69: -0.7115394641 | DC69: -41.66594402 | DD69: -0.3680471548 | DE69: -0.01341670607 | DF69: -0.1165595297 | DG69: -0.9124444198 | DH69: 0 | DI69: -8.421334651 | DJ69: -6.619388065 | DK69: 0 | DL69: 0 | DM69: 1.305929964 | DN69: 6.991574414 | DO69: -2.007766178 | DP69: -0.07547428749 | DQ69: 0 | DR69: 0 | DS69: 0 | DV69: 5555.494091 | DW69: 1.978468469 | DX69: 0.009136403097 | DY69: 165 | DZ69: 0 | EA69: 0 | EB69: 0 | ED69: 0 | EI69: 0 | EJ69: 0 | EK69: 0 | EL69: 0
A70: 69 | B70: Regular | C70: Verde | D70: A3a | E70: Comercial | F70: Não se aplica | G70: Não se aplica | H70: Não se aplica | I70: Fora ponta | J70: CATIVO | K70: 2019-07-01 | L70: 0 | M70: 0 | N70: 84.758 | O70: 84.758 | P70: 84.758 | Q70: 84.758 | S70: 61.16 | T70: 209.25 | V70: 22919.41078 | W70: 22919.41078 | X70: 25715.5772 | Y70: 0 | Z70: 3678.656155 | AA70: 0 | AB70: 0 | AC70: 0 | AD70: 0 | AE70: 0 | AF70: 15331.28462 | AG70: 829.704081 | AH70: 471.094544 | AI70: 0 | AJ70: 0 | AK70: 213.5227166 | AL70: 776.7808338 | AM70: 0 | AN70: 30.83286153 | AO70: 0 | AP70: 0 | AQ70: 0 | AR70: 0 | AS70: 0 | AT70: 305.9557293 | AU70: 0 | AV70: 840.5209238 | AW70: 66.13254469 | AX70: 48.99545249 | AY70: -1369.907327 | AZ70: 0 | BA70: -183.357404 | BB70: 3793.316741 | BC70: 23.72297649 | BD70: 73.76894179 | BE70: 8.491250876 | BF70: 232.9320409 | BG70: 577.473669 | BH70: 20.88285341 | BI70: 0 | BJ70: 0 | BK70: 0 | BL70: 0 | BU70: 368.0478098 | BV70: 16223.95052 | CI70: 25716.184 | CJ70: 2796.74322 | CM70: 0 | CN70: 368.0478098 | CO70: 939.96622 | CP70: 1856.2002 | CQ70: 31 | CR70: -423.2965287 | CS70: 0 | CT70: 0 | CU70: 0 | CV70: 0 | CW70: 0 | CX70: -6.893003212 | CY70: 9.725864432 | CZ70: 0 | DA70: 0 | DB70: 0 | DC70: -256.8760808 | DD70: -3.902782529 | DE70: -0.1422711338 | DF70: -1.236000578 | DG70: -9.675586655 | DH70: 0 | DI70: -89.30007286 | DJ70: -70.19217986 | DK70: 0 | DL70: 0 | DM70: 13.84811859 | DN70: 13.43820717 | DO70: -21.29040982 | DP70: -0.8003314975 | DQ70: 0 | DR70: 0 | DS70: 0 | DV70: 0 | DW70: 20.97973608 | DX70: 0.09688267905 | DY70: 165 | DZ70: 0 | EA70: 0 | EB70: 0 | ED70: 0 | EI70: 0 | EJ70: 0 | EK70: 0 | EL70: 0
A71: 70 | B71: Regular | C71: Verde | D71: A3a | E71: Comercial | F71: Não se aplica | G71: Não se aplica | H71: Não se aplica | I71: Não se aplica | J71: CATIVO | K71: 2019-07-01 | L71: 839 | M71: 839 | N71: 0 | O71: 0 | P71: 0 | Q71: 0 | R71: 15.17 | U71: 12727.63 | W71: 12727.63 | X71: 12928.99 | Y71: 0 | Z71: 0 | AA71: 0 | AB71: 0 | AC71: 120.0626053 | AD71: 726.331031 | AE71: 5635.873628 | AI71: 0 | AJ71: 0 | AK71: 0 | AL71: 0 | AM71: 0 | AN71: 0 | AO71: 3618.318025 | AP71: 2625.741555 | AQ71: 0 | AR71: 0 | AU71: 0 | AV71: 0 | AW71: 0 | AZ71: 0 | BB71: 0 | BC71: 483.3519303 | BD71: 0 | BE71: 0 | BG71: 0 | BH71: 0 | BI71: 783.89 | BJ71: 3610.86 | BK71: 21384.55 | BL71: 6 | BV71: 0 | CI71: 12928.99 | CJ71: 201.33 | CO71: 201.36 | CP71: 0 | CQ71: 31 | CR71: -279.0927796 | CS71: -104.0556712 | CT71: -83.68702906 | CU71: 0 | CV71: 0 | CZ71: -88.81722628 | DA71: 0 | DB71: -2.532853107 | DE71: 0 | DF71: 0 | DG71: 0 | DH71: 0 | DI71: 0 | DK71: 0 | DL71: 0 | DN71: 0 | DO71: 0 | DP71: 0 | DQ71: 0 | DR71: 0 | DS71: 0 | DU71: 5635.873628 | DW71: 0 | DX71: 0 | DY71: 165 | ED71: 0 | EI71: 0 | EJ71: 0 | EK71: 0 | EL71: 0
A72: 71 | B72: Regular | C72: Verde | D72: A4 | E72: Comercial | F72: Não se aplica | G72: Não se aplica | H72: Não se aplica | I72: Ponta | J72: CATIVO | K72: 2019-07-01 | L72: 0 | M72: 0 | N72: 1279.423 | O72: 1279.423 | P72: 1279.423 | Q72: 1279.423 | S72: 1013.09 | T72: 339.48 | V72: 1730509.167 | W72: 1730509.167 | X72: 1811918.853 | Y72: 0 | Z72: 55529.35763 | AA72: 0 | AB72: 0 | AC72: 5398.847904 | AD72: 70333.48755 | AE72: 889256.464 | AF72: 398052.5831 | AG72: 12524.39279 | AH72: 7111.177645 | AI72: 0 | AJ72: 0 | AK72: 17782.06032 | AL72: 11725.51576 | AM72: 0 | AN72: 465.4224049 | AO72: 137501.4802 | AP72: 100870.6994 | AQ72: 0 | AR72: 0 | AS72: 0 | AT72: 4618.405308 | AU72: 0 | AV72: 12687.67316 | AW72: 998.2715345 | AX72: 739.5869277 | AY72: -20678.76711 | AZ72: 0 | BA72: -2767.782156 | BB72: 96219.08781 | BC72: 18810.60016 | BD72: 1113.543038 | BE72: 128.1755312 | BF72: 3516.111878 | BG72: 8716.971779 | BH72: 315.2269161 | BI72: 0 | BJ72: 0 | BK72: 0 | BL72: 0 | BU72: 5555.685988 | BV72: 411527.3853 | CI72: 1811914.604 | CJ72: 81405.40689 | CM72: 0 | CN72: 5555.685988 | CO72: 17208.23935 | CP72: 64201.44614 | CQ72: 31 | CR72: -24148.83719 | CS72: -3954.27066 | CT72: -3214.927661 | CU72: 0 | CV72: 0 | CW72: 0 | CX72: -104.049964 | CY72: 146.8120372 | CZ72: -8600.520992 | DA72: 0 | DB72: -113.8946523 | DC72: -6669.381597 | DD72: -58.91254785 | DE72: -2.147584427 | DF72: -18.65744316 | DG72: -146.0530936 | DH72: 0 | DI72: -1347.985643 | DJ72: -1059.551775 | DK72: 0 | DL72: 0 | DM72: 209.0375118 | DN72: 1119.126875 | DO72: -321.3789849 | DP72: -12.0810133 | DQ72: 0 | DR72: 0 | DS72: 0 | DV72: 889256.464 | DW72: 316.6893613 | DX72: 1.462445172 | DY72: 165 | DZ72: 0 | EA72: 0 | EB72: 0 | ED72: 0 | EI72: 0 | EJ72: 0 | EK72: 0 | EL72: 0
A73: 72 | B73: Refaturamento - Regular | C73: Verde | D73: A4 | E73: Comercial | F73: Não se aplica | G73: Não se aplica | H73: Não se aplica | I73: Ponta | J73: CATIVO | K73: 2019-07-01 | L73: 0 | M73: 0 | N73: -1.92 | O73: -1.92 | P73: -1.92 | Q73: -1.92 | S73: 1013.09 | T73: 339.48 | V73: -2596.9344 | W73: -2596.9344 | X73: -2719.104 | Y73: 0 | Z73: -83.33160076 | AA73: 0 | AB73: 0 | AC73: -8.101924051 | AD73: -105.5478103 | AE73: -1334.486257 | AF73: -597.348148 | AG73: -18.79506165 | AH73: -10.67157701 | AI73: 0 | AJ73: 0 | AK73: -26.68511963 | AL73: -17.59620568 | AM73: 0 | AN73: -0.6984484548 | AO73: -206.3452368 | AP73: -151.3742859 | AQ73: 0 | AR73: 0 | AS73: 0 | AT73: -6.930732206 | AU73: 0 | AV73: -19.04009266 | AW73: -1.498082609 | AX73: -1.109880705 | AY73: 31.03213937 | AZ73: 0 | BA73: 4.153545574 | BB73: -144.3937217 | BC73: -28.22862518 | BD73: -1.671067843 | BE73: -0.1923500045 | BF73: -5.276546385 | BG73: -13.0813545 | BH73: -0.4730536178 | BI73: 0 | BJ73: 0 | BK73: 0 | BL73: 0 | BU73: -8.337287275 | BV73: -617.5694667 | CI73: -2719.104 | CJ73: -122.1996 | CM73: 0 | CN73: -8.337287275 | CO73: -25.824 | CP73: -96.3456 | CQ73: 31 | CR73: 36.23959191 | CS73: 5.934080962 | CT73: 4.824566315 | CU73: 0 | CV73: 0 | CW73: 0 | CX73: 0.1561453334 | CY73: -0.2203173707 | CZ73: 12.90659954 | DA73: 0 | DB73: 0.1709190255 | DC73: 10.00858408 | DD73: 0.08840867475 | DE73: 0.003222829432 | DF73: 0.02799878607 | DG73: 0.2191784419 | DH73: 0 | DI73: 2.022890345 | DJ73: 1.590044425 | DK73: 0 | DL73: 0 | DM73: -0.3136976768 | DN73: -1.679447376 | DO73: 0.4822858828 | DP73: 0.01812969248 | DQ73: 0 | DR73: 0 | DS73: 0 | DV73: -1334.486257 | DW73: -0.4752482749 | DX73: -0.002194657068 | DY73: 165 | DZ73: 0 | EA73: 0 | EB73: 0 | ED73: 0 | EI73: 0 | EJ73: 0 | EK73: 0 | EL73: 0
A74: 73 | B74: Sistema de Compensação | C74: Verde | D74: A4 | E74: Comercial | F74: Não se aplica | G74: Não se aplica | H74: Não se aplica | I74: Ponta | J74: CATIVO | K74: 2019-07-01 | L74: 0 | M74: 0 | N74: 36.07 | O74: 36.07 | P74: 36.07 | Q74: 36.07 | S74: 1013.09 | T74: 339.48 | V74: 48787.1999 | W74: 48787.1999 | X74: 51082.334 | Y74: 0 | Z74: 1565.505646 | AA74: 0 | AB74: 0 | AC74: 152.2064586 | AD74: 1982.86954 | AE74: 25070.27047 | AF74: 11222.05609 | AG74: 353.0926426 | AH74: 200.4811369 | AI74: 0 | AJ74: 0 | AK74: 501.3188881 | AL74: 330.5703848 | AM74: 0 | AN74: 13.12137279 | AO74: 3876.496193 | AP74: 2843.786714 | AQ74: 0 | AR74: 0 | AS74: 0 | AT74: 130.2039118 | AU74: 0 | AV74: 357.6959074 | AW74: 28.14366652 | AX74: 20.85072762 | AY74: -582.9839933 | AZ74: 0 | BA74: -78.03041086 | BB74: 2712.646636 | BC74: 530.3158908 | BD74: 31.39344641 | BE74: 3.613575345 | BF74: 99.1276188 | BG74: 245.7523212 | BH74: 8.887002081 | BI74: 0 | BJ74: 0 | BK74: 0 | BL74: 0 | BU74: 156.6281 | BV74: 11601.94305 | CI74: 51082.334 | CJ74: 2295.1041 | CM74: 0 | CN74: 156.6281 | CO74: 485.1415 | CP74: 1809.9926 | CQ74: 31 | CR74: -680.8135834 | CS74: -111.4803647 | CT74: -90.63651406 | CU74: 0 | CV74: 0 | CW74: 0 | CX74: -2.933417799 | CY74: 4.138983105 | CZ74: -242.4692945 | DA74: 0 | DB74: -3.210963151 | DC74: -188.0258477 | DD74: -1.660885885 | DE74: -0.06054555084 | DF74: -0.5259980279 | DG74: -4.117586666 | DH74: 0 | DI74: -38.00294519 | DJ74: -29.87130333 | DK74: 0 | DL74: 0 | DM74: 5.893268334 | DN74: 31.55086815 | DO74: -9.060443641 | DP74: -0.3405927123 | DQ74: 0 | DR74: 0 | DS74: 0 | DV74: 25070.27047 | DW74: 8.928231914 | DX74: 0.04122983357 | DY74: 165 | DZ74: 0 | EA74: 0 | EB74: 0 | ED74: 0 | EI74: 0 | EJ74: 0 | EK74: 0 | EL74: 0
A75: 74 | B75: Regular | C75: Verde | D75: A4 | E75: Comercial | F75: Não se aplica | G75: Não se aplica | H75: Não se aplica | I75: Fora ponta | J75: CATIVO | K75: 2019-07-01 | L75: 0 | M75: 0 | N75: 14465.648 | O75: 14465.648 | P75: 14465.648 | Q75: 14465.648 | S75: 61.16 | T75: 209.25 | V75: 3911655.876 | W75: 3911655.876 | X75: 4388877.603 | Y75: 0 | Z75: 627836.252 | AA75: 0 | AB75: 0 | AC75: 0 | AD75: 0 | AE75: 0 | AF75: 2616590.371 | AG75: 141605.5969 | AH75: 80401.70661 | AI75: 0 | AJ75: 0 | AK75: 36441.9224 | AL75: 132573.1862 | AM75: 0 | AN75: 5262.244528 | AO75: 0 | AP75: 0 | AQ75: 0 | AR75: 0 | AS75: 0 | AT75: 52217.46483 | AU75: 0 | AV75: 143451.7074 | AW75: 11286.84151 | AX75: 8362.053958 | AY75: -233802.0858 | AZ75: 0 | BA75: -31293.60845 | BB75: 647405.3744 | BC75: 4048.800437 | BD75: 12590.14542 | BE75: 1449.201801 | BF75: 39754.5118 | BG75: 98557.43205 | BH75: 3564.076625 | BI75: 0 | BJ75: 0 | BK75: 0 | BL75: 0 | BU75: 62814.72031 | BV75: 2768941.662 | CI75: 4388878.21 | CJ75: 477222.3043 | CM75: 0 | CN75: 62814.72031 | CO75: 160424.0363 | CP75: 316797.6912 | CQ75: 31 | CR75: -72244.01926 | CS75: 0 | CT75: 0 | CU75: 0 | CV75: 0 | CW75: 0 | CX75: -1176.428869 | CY75: 1659.913299 | CZ75: 0 | DA75: 0 | DB75: 0 | DC75: -43841.04113 | DD75: -666.0879006 | DE75: -24.28141465 | DF75: -210.9482207 | DG75: -1651.33239 | DH75: 0 | DI75: -15240.84358 | DJ75: -11979.69945 | DK75: 0 | DL75: 0 | DM75: 2363.458422 | DN75: 2293.498841 | DO75: -3633.634279 | DP75: -136.592578 | DQ75: 0 | DR75: 0 | DS75: 0 | DV75: 0 | DW75: 3580.611592 | DX75: 16.53496699 | DY75: 165 | DZ75: 0 | EA75: 0 | EB75: 0 | ED75: 0 | EI75: 0 | EJ75: 0 | EK75: 0 | EL75: 0
A76: 75 | B76: Refaturamento - Regular | C76: Verde | D76: A4 | E76: Comercial | F76: Não se aplica | G76: Não se aplica | H76: Não se aplica | I76: Fora ponta | J76: CATIVO | K76: 2019-07-01 | L76: 0 | M76: 0 | N76: -11.52 | O76: -11.52 | P76: -11.52 | Q76: -11.52 | S76: 61.16 | T76: 209.25 | V76: -3115.1232 | W76: -3115.1232 | X76: -3495.168 | Y76: 0 | Z76: -499.9896046 | AA76: 0 | AB76: 0 | AC76: 0 | AD76: 0 | AE76: 0 | AF76: -2083.772609 | AG76: -112.7703699 | AH76: -64.02946208 | AI76: 0 | AJ76: 0 | AK76: -29.02123334 | AL76: -105.5772341 | AM76: 0 | AN76: -4.190690729 | AO76: 0 | AP76: 0 | AQ76: 0 | AR76: 0 | AS76: 0 | AT76: -41.58439324 | AU76: 0 | AV76: -114.240556 | AW76: -8.988495656 | AX76: -6.65928423 | AY76: 186.1928362 | AZ76: 0 | BA76: 24.92127344 | BB76: -515.5738556 | BC76: -3.224340937 | BD76: -10.02640706 | BE76: -1.154100027 | BF76: -31.65927831 | BG76: -78.48812699 | BH76: -2.838321707 | BI76: 0 | BJ76: 0 | BK76: 0 | BL76: 0 | BU76: -50.02372365 | BV76: -2205.100522 | CI76: -3495.168 | CJ76: -380.0748 | CM76: 0 | CN76: -50.02372365 | CO76: -127.7568 | CP76: -252.288 | CQ76: 31 | CR76: 57.53292918 | CS76: 0 | CT76: 0 | CU76: 0 | CV76: 0 | CW76: 0 | CX76: 0.9368720002 | CY76: -1.321904224 | CZ76: 0 | DA76: 0 | DB76: 0 | DC76: 34.91366538 | DD76: 0.5304520485 | DE76: 0.01933697659 | DF76: 0.1679927164 | DG76: 1.315070651 | DH76: 0 | DI76: 12.13734207 | DJ76: 9.540266547 | DK76: 0 | DL76: 0 | DM76: -1.882186061 | DN76: -1.826472388 | DO76: 2.893715297 | DP76: 0.1087781549 | DQ76: 0 | DR76: 0 | DS76: 0 | DV76: 0 | DW76: -2.851489649 | DX76: -0.01316794241 | DY76: 165 | DZ76: 0 | EA76: 0 | EB76: 0 | ED76: 0 | EI76: 0 | EJ76: 0 | EK76: 0 | EL76: 0
A77: 76 | B77: Sistema de Compensação | C77: Verde | D77: A4 | E77: Comercial | F77: Não se aplica | G77: Não se aplica | H77: Não se aplica | I77: Fora ponta | J77: CATIVO | K77: 2019-07-01 | L77: 0 | M77: 0 | N77: 277.881 | O77: 277.881 | P77: 277.881 | Q77: 277.881 | S77: 61.16 | T77: 209.25 | V77: 75141.80121 | W77: 75141.80121 | X77: 84309.0954 | Y77: 0 | Z77: 12060.55654 | AA77: 0 | AB77: 0 | AC77: 0 | AD77: 0 | AE77: 0 | AF77: 50263.95976 | AG77: 2720.203399 | AH77: 1544.494006 | AI77: 0 | AJ77: 0 | AK77: 700.0390054 | AL77: 2546.693349 | AM77: 0 | AN77: 101.0862266 | AO77: 0 | AP77: 0 | AQ77: 0 | AR77: 0 | AS77: 0 | AT77: 1003.082706 | AU77: 0 | AV77: 2755.666661 | AW77: 216.8170279 | AX77: 160.6326876 | AY77: -4491.271833 | AZ77: 0 | BA77: -601.141353 | BB77: 12436.47383 | BC77: 77.77630938 | BD77: 241.8531267 | BE77: 27.83875604 | BF77: 763.6729094 | BG77: 1893.260349 | BH77: 68.46490228 | BI77: 0 | BJ77: 0 | BK77: 0 | BL77: 0 | BU77: 1206.652982 | BV77: 53190.5849 | CI77: 84308.792 | CJ77: 9166.96079 | CM77: 0 | CN77: 1206.652982 | CO77: 3081.70029 | CP77: 6085.5939 | CQ77: 31 | CR77: -1387.787143 | CS77: 0 | CT77: 0 | CU77: 0 | CV77: 0 | CW77: 0 | CX77: -22.5988653 | CY77: 31.88646422 | CZ77: 0 | DA77: 0 | DB77: 0 | DC77: -842.1739801 | DD77: -12.79535987 | DE77: -0.4664390965 | DF77: -4.052255559 | DG77: -31.7216274 | DH77: 0 | DI77: -292.7722875 | DJ77: -230.1266327 | DK77: 0 | DL77: 0 | DM77: 45.40136673 | DN77: 44.05746299 | DO77: -69.8010851 | DP77: -2.623904727 | DQ77: 0 | DR77: 0 | DS77: 0 | DV77: 0 | DW77: 68.78253431 | DX77: 0.3176320316 | DY77: 165 | DZ77: 0 | EA77: 0 | EB77: 0 | ED77: 0 | EI77: 0 | EJ77: 0 | EK77: 0 | EL77: 0
A78: 77 | B78: Regular | C78: Verde | D78: A4 | E78: Comercial | F78: Não se aplica | G78: Não se aplica | H78: Não se aplica | I78: Não se aplica | J78: CATIVO | K78: 2019-07-01 | L78: 88311 | M78: 88311 | N78: 0 | O78: 0 | P78: 0 | Q78: 0 | R78: 15.17 | U78: 1339677.87 | W78: 1339677.87 | X78: 1360872.51 | Y78: 0 | Z78: 0 | AA78: 0 | AB78: 0 | AC78: 12637.4836 | AD78: 76451.7517 | AE78: 593217.6829 | AI78: 0 | AJ78: 0 | AK78: 0 | AL78: 0 | AM78: 0 | AN78: 0 | AO78: 380854.9263 | AP78: 276378.8587 | AQ78: 0 | AR78: 0 | AU78: 0 | AV78: 0 | AW78: 0 | AZ78: 0 | BB78: 0 | BC78: 50876.39132 | BD78: 0 | BE78: 0 | BG78: 0 | BH78: 0 | BI78: 105838.15 | BJ78: 487526.24 | BK78: 1934965.71 | BL78: 730 | BV78: 0 | CI78: 1360872.51 | CJ78: 21194.61 | CO78: 21194.64 | CP78: 0 | CQ78: 31 | CR78: -29376.59411 | CS78: -10952.63454 | CT78: -8808.683222 | CU78: 0 | CV78: 0 | CZ78: -9348.674696 | DA78: 0 | DB78: -266.6016576 | DE78: 0 | DF78: 0 | DG78: 0 | DH78: 0 | DI78: 0 | DK78: 0 | DL78: 0 | DN78: 0 | DO78: 0 | DP78: 0 | DQ78: 0 | DR78: 0 | DS78: 0 | DU78: 593217.6829 | DW78: 0 | DX78: 0 | DY78: 165 | ED78: 0 | EI78: 0 | EJ78: 0 | EK78: 0 | EL78: 0
A79: 78 | B79: Refaturamento - Regular | C79: Verde | D79: A4 | E79: Comercial | F79: Não se aplica | G79: Não se aplica | H79: Não se aplica | I79: Não se aplica | J79: CATIVO | K79: 2019-07-01 | L79: -90 | M79: -90 | N79: 0 | O79: 0 | P79: 0 | Q79: 0 | R79: 15.17 | U79: -1365.3 | W79: -1365.3 | X79: -1386.9 | Y79: 0 | Z79: 0 | AA79: 0 | AB79: 0 | AC79: -12.87918293 | AD79: -77.91393657 | AE79: -604.5633213 | AI79: 0 | AJ79: 0 | AK79: 0 | AL79: 0 | AM79: 0 | AN79: 0 | AO79: -388.1390015 | AP79: -281.6647675 | AQ79: 0 | AR79: 0 | AU79: 0 | AV79: 0 | AW79: 0 | AZ79: 0 | BB79: 0 | BC79: -51.84943233 | BD79: 0 | BE79: 0 | BG79: 0 | BH79: 0 | BI79: -93.36 | BJ79: -430.07 | BK79: -3116.59 | BL79: -3 | BV79: 0 | CI79: -1386.9 | CJ79: -21.63 | CO79: -21.6 | CP79: 0 | CQ79: 31 | CR79: 29.93843882 | CS79: 11.16211014 | CT79: 8.977154488 | CU79: 0 | CV79: 0 | CZ79: 9.527473618 | DA79: 0 | DB79: 0.2717005716 | DE79: 0 | DF79: 0 | DG79: 0 | DH79: 0 | DI79: 0 | DK79: 0 | DL79: 0 | DN79: 0 | DO79: 0 | DP79: 0 | DQ79: 0 | DR79: 0 | DS79: 0 | DU79: -604.5633213 | DW79: 0 | DX79: 0 | DY79: 165 | ED79: 0 | EI79: 0 | EJ79: 0 | EK79: 0 | EL79: 0
A80: 79 | B80: Sistema de Compensação | C80: Verde | D80: A4 | E80: Comercial | F80: Não se aplica | G80: Não se aplica | H80: Não se aplica | I80: Não se aplica | J80: CATIVO | K80: 2019-07-01 | L80: 5818 | M80: 5818 | N80: 0 | O80: 0 | P80: 0 | Q80: 0 | R80: 15.17 | U80: 88259.06 | W80: 88259.06 | X80: 89655.38 | Y80: 0 | Z80: 0 | AA80: 0 | AB80: 0 | AC80: 832.5676254 | AD80: 5036.703144 | AE80: 39081.66004 | AI80: 0 | AJ80: 0 | AK80: 0 | AL80: 0 | AM80: 0 | AN80: 0 | AO80: 25091.03012 | AP80: 18208.06242 | AQ80: 0 | AR80: 0 | AU80: 0 | AV80: 0 | AW80: 0 | AZ80: 0 | BB80: 0 | BC80: 3351.777748 | BD80: 0 | BE80: 0 | BG80: 0 | BH80: 0 | BI80: 3016.44 | BJ80: 13894.56 | BK80: 51230.38 | BL80: 20 | BV80: 0 | CI80: 89655.38 | CJ80: 1396.29 | CO80: 1396.32 | CP80: 0 | CQ80: 31 | CR80: -1935.353745 | CS80: -721.5684087 | CT80: -580.3231646 | CU80: 0 | CV80: 0 | CZ80: -615.898239 | DA80: 0 | DB80: -17.56393251 | DE80: 0 | DF80: 0 | DG80: 0 | DH80: 0 | DI80: 0 | DK80: 0 | DL80: 0 | DN80: 0 | DO80: 0 | DP80: 0 | DQ80: 0 | DR80: 0 | DS80: 0 | DU80: 39081.66004 | DW80: 0 | DX80: 0 | DY80: 165 | ED80: 0 | EI80: 0 | EJ80: 0 | EK80: 0 | EL80: 0
A81: 80 | B81: Sistema de Compensação - Refaturamento | C81: Verde | D81: A4 | E81: Comercial | F81: Não se aplica | G81: Não se aplica | H81: Não se aplica | I81: Não se aplica | J81: CATIVO | K81: 2019-07-01 | L81: -97 | M81: -97 | N81: 0 | O81: 0 | P81: 0 | Q81: 0 | R81: 15.17 | U81: -1471.49 | W81: -1471.49 | X81: -1494.77 | Y81: 0 | Z81: 0 | AA81: 0 | AB81: 0 | AC81: -13.88089716 | AD81: -83.97390942 | AE81: -651.5849129 | AI81: 0 | AJ81: 0 | AK81: 0 | AL81: 0 | AM81: 0 | AN81: 0 | AO81: -418.3275905 | AP81: -303.5720272 | AQ81: 0 | AR81: 0 | AU81: 0 | AV81: 0 | AW81: 0 | AZ81: 0 | BB81: 0 | BC81: -55.88216596 | BD81: 0 | BE81: 0 | BG81: 0 | BH81: 0 | BI81: -18.9 | BJ81: -87.04 | BK81: -75.4 | BL81: 0 | BV81: 0 | CI81: -1494.77 | CJ81: -23.31 | CO81: -23.28 | CP81: 0 | CQ81: 31 | CR81: 32.26698406 | CS81: 12.03027426 | CT81: 9.675377615 | CU81: 0 | CV81: 0 | CZ81: 10.26849934 | DA81: 0 | DB81: 0.2928328383 | DE81: 0 | DF81: 0 | DG81: 0 | DH81: 0 | DI81: 0 | DK81: 0 | DL81: 0 | DN81: 0 | DO81: 0 | DP81: 0 | DQ81: 0 | DR81: 0 | DS81: 0 | DU81: -651.5849129 | DW81: 0 | DX81: 0 | DY81: 165 | ED81: 0 | EI81: 0 | EJ81: 0 | EK81: 0 | EL81: 0
A82: 81 | B82: Regular | C82: Branca | D82: B3 | E82: Comercial | F82: Não se aplica | G82: Não se aplica | H82: Não se aplica | I82: Ponta | J82: CATIVO | K82: 2019-07-01 | L82: 0 | M82: 0 | N82: 9.837 | O82: 9.837 | P82: 9.837 | Q82: 9.837 | S82: 576.69 | T82: 339.48 | V82: 9012.36429 | W82: 9012.36429 | X82: 9680.5917 | Y82: 0 | Z82: 464.0698351 | AA82: 0 | AB82: 0 | AC82: 22.57050792 | AD82: 241.2260499 | AE82: 3485.76023 | AF82: 3060.475902 | AG82: 96.29532368 | AH82: 54.67515786 | AI82: 0 | AJ82: 0 | AK82: 86.60209161 | AL82: 90.15306003 | AM82: 0 | AN82: 4.796615087 | AO82: 610.1700109 | AP82: 445.8109736 | AQ82: 0 | AR82: 0 | AS82: 0 | AT82: 35.50917329 | AU82: 0 | AV82: 106.0333965 | AW82: 7.675332619 | AX82: 5.686404424 | AY82: -158.9912266 | AZ82: 0 | BA82: -21.28043115 | BB82: 778.4074532 | BC82: 84.49703592 | BD82: 9.949128802 | BE82: 3.358682291 | BF82: 27.03405562 | BG82: 228.417534 | BH82: 2.81644542 | BI82: 0 | BJ82: 0 | BK82: 0 | BL82: 0 | BU82: 42.71557027 | BV82: 3329.235303 | CI82: 9683.544 | CJ82: 671.14971 | CM82: 0 | CN82: 42.71557027 | CO82: 174.60675 | CP82: 493.62066 | CQ82: 31 | CR82: -132.1322384 | CS82: -17.5472829 | CT82: -14.2087845 | CU82: 0 | CV82: 0 | CW82: 0 | CX82: -0.8000008565 | CY82: 1.128782279 | CZ82: -29.49760887 | DA82: 0 | DB82: -0.4761497634 | DC82: -51.27835498 | DD82: -0.4529563196 | DE82: -0.05627481095 | DF82: -0.1666979172 | DG82: -3.827141846 | DH82: 0 | DI82: -11.26538288 | DJ82: -8.146493231 | DK82: 0 | DL82: 0 | DM82: 1.607210441 | DN82: 5.450365503 | DO82: -2.470961577 | DP82: -0.1245061906 | DQ82: 0 | DR82: 0 | DS82: 0 | DV82: 3485.76023 | DW82: 2.829511871 | DX82: 0.01306645085 | DY82: 165 | DZ82: 0 | EA82: 0 | EB82: 0 | ED82: 0 | EI82: 0 | EJ82: 0 | EK82: 0 | EL82: 0
A83: 82 | B83: Refaturamento - Regular | C83: Branca | D83: B3 | E83: Comercial | F83: Não se aplica | G83: Não se aplica | H83: Não se aplica | I83: Ponta | J83: CATIVO | K83: 2019-07-01 | L83: 0 | M83: 0 | N83: 0.011 | O83: 0.011 | P83: 0.011 | Q83: 0.011 | S83: 576.69 | T83: 339.48 | V83: 10.07787 | W83: 10.07787 | X83: 10.8251 | Y83: 0 | Z83: 0.5189354667 | AA83: 0 | AB83: 0 | AC83: 0.02523895366 | AD83: 0.2697455067 | AE83: 3.897871559 | AF83: 3.422307098 | AG83: 0.1076800407 | AH83: 0.06113924331 | AI83: 0 | AJ83: 0 | AK83: 0.09684080591 | AL83: 0.100811595 | AM83: 0 | AN83: 0.005363704986 | AO83: 0.6823086429 | AP83: 0.4985179129 | AQ83: 0 | AR83: 0 | AS83: 0 | AT83: 0.03970731993 | AU83: 0 | AV83: 0.1185694176 | AW83: 0.008582764949 | AX83: 0.006358691539 | AY83: -0.1777882985 | AZ83: 0 | BA83: -0.02379635485 | BB83: 0.8704363104 | BC83: 0.09448687558 | BD83: 0.01112538547 | BE83: 0.003755769564 | BF83: 0.03023021366 | BG83: 0.255422677 | BH83: 0.0031494256 | BI83: 0 | BJ83: 0 | BK83: 0 | BL83: 0 | BU83: 0.04776570835 | BV83: 3.722841144 | CI83: 9.841 | CJ83: -0.26687 | CM83: 0 | CN83: 0.04776570835 | CO83: 0.19525 | CP83: 0.55198 | CQ83: 31 | CR83: -0.14775385 | CS83: -0.0196218473 | CT83: -0.01588864791 | CU83: 0 | CV83: 0 | CW83: 0 | CX83: -0.0008945826391 | CY83: 0.001262234936 | CZ83: -0.03298502567 | DA83: 0 | DB83: -0.0005324435699 | DC83: -0.05734084627 | DD83: -0.0005065080324 | DE83: -6.292801875e-05 | DF83: -0.0001864061288 | DG83: -0.004279613735 | DH83: 0 | DI83: -0.01259725645 | DJ83: -0.009109629515 | DK83: 0 | DL83: 0 | DM83: 0.001797226273 | DN83: 0.00609474642 | DO83: -0.002763096203 | DP83: -0.0001392261967 | DQ83: 0 | DR83: 0 | DS83: 0 | DV83: 3.897871559 | DW83: 0.003164036859 | DX83: 1.461125947e-05 | DY83: 165 | DZ83: 0 | EA83: 0 | EB83: 0 | ED83: 0 | EI83: 0 | EJ83: 0 | EK83: 0 | EL83: 0
A84: 83 | B84: Sistema de Compensação | C84: Branca | D84: B3 | E84: Comercial | F84: Não se aplica | G84: Não se aplica | H84: Não se aplica | I84: Ponta | J84: CATIVO | K84: 2019-07-01 | L84: 0 | M84: 0 | N84: 0.333 | O84: 0.333 | P84: 0.333 | Q84: 0.333 | S84: 576.69 | T84: 339.48 | V84: 305.08461 | W84: 305.08461 | X84: 327.7053 | Y84: 0 | Z84: 15.70959186 | AA84: 0 | AB84: 0 | AC84: 0.7640519608 | AD84: 8.165932156 | AE84: 117.9992027 | AF84: 103.6025694 | AG84: 3.259768505 | AH84: 1.850851638 | AI84: 0 | AJ84: 0 | AK84: 2.931635306 | AL84: 3.051841922 | AM84: 0 | AN84: 0.1623739782 | AO84: 20.65534346 | AP84: 15.09149682 | AQ84: 0 | AR84: 0 | AS84: 0 | AT84: 1.202048867 | AU84: 0 | AV84: 3.589419642 | AW84: 0.2598237026 | AX84: 0.1924949348 | AY84: -5.382136672 | AZ84: 0 | BA84: -0.7203805605 | BB84: 26.35048103 | BC84: 2.860375415 | BD84: 0.33679576 | BE84: 0.1136973877 | BF84: 0.9151510136 | BG84: 7.732341041 | BH84: 0.09534170225 | BI84: 0 | BJ84: 0 | BK84: 0 | BL84: 0 | BU84: 1.445998262 | BV84: 112.7005546 | CI84: 324.753 | CJ84: 19.63839 | CM84: 0 | CN84: 1.445998262 | CO84: 5.91075 | CP84: 16.70994 | CQ84: 31 | CR84: -4.472912005 | CS84: -0.594006832 | CT84: -0.4809927049 | CU84: 0 | CV84: 0 | CW84: 0 | CX84: -0.02708145626 | CY84: 0.03821129399 | CZ84: -0.9985466863 | DA84: 0 | DB84: -0.01611851898 | DC84: -1.735863801 | DD84: -0.01533337953 | DE84: -0.00190500275 | DF84: -0.0056430219 | DG84: -0.1295555794 | DH84: 0 | DI84: -0.381353309 | DJ84: -0.2757733299 | DK84: 0 | DL84: 0 | DM84: 0.05440694082 | DN84: 0.1845045962 | DO84: -0.08364645779 | DP84: -0.004214756682 | DQ84: 0 | DR84: 0 | DS84: 0 | DV84: 117.9992027 | DW84: 0.09578402492 | DX84: 0.000442322673 | DY84: 165 | DZ84: 0 | EA84: 0 | EB84: 0 | ED84: 0 | EI84: 0 | EJ84: 0 | EK84: 0 | EL84: 0
A85: 84 | B85: Regular | C85: Branca | D85: B3 | E85: Comercial | F85: Não se aplica | G85: Não se aplica | H85: Não se aplica | I85: Fora ponta | J85: CATIVO | K85: 2019-07-01 | L85: 0 | M85: 0 | N85: 115.35 | O85: 115.35 | P85: 115.35 | Q85: 115.35 | S85: 181.15 | T85: 209.25 | V85: 45032.64 | W85: 45032.64 | X85: 49400.9445 | Y85: 0 | Z85: 5441.746008 | AA85: 0 | AB85: 0 | AC85: 52.9299652 | AD85: 565.7322828 | AE85: 8174.89733 | AF85: 20864.85855 | AG85: 1129.172063 | AH85: 641.1283378 | AI85: 0 | AJ85: 0 | AK85: 470.3159186 | AL85: 1057.147044 | AM85: 0 | AN85: 56.24576093 | AO85: 1430.981781 | AP85: 1045.525936 | AQ85: 0 | AR85: 0 | AS85: 0 | AT85: 416.3853958 | AU85: 0 | AV85: 1243.362029 | AW85: 90.00199426 | AX85: 66.67955173 | AY85: -1864.352748 | AZ85: 0 | BA85: -249.5372302 | BB85: 5615.259369 | BC85: 223.9924724 | BD85: 116.6648376 | BE85: 39.38436539 | BF85: 317.0050133 | BG85: 2678.455072 | BH85: 33.02602208 | BI85: 0 | BJ85: 0 | BK85: 0 | BL85: 0 | BU85: 500.8885871 | BV85: 24016.36784 | CI85: 49400.9445 | CJ85: 4368.2745 | CM85: 0 | CN85: 500.8885871 | CO85: 1842.1395 | CP85: 2526.165 | CQ85: 31 | CR85: -752.9250812 | CS85: -41.15220624 | CT85: -33.32276143 | CU85: 0 | CV85: 0 | CW85: 0 | CX85: -9.380918857 | CY85: 13.23625454 | CZ85: -69.17888681 | DA85: 0 | DB85: -1.116616006 | DC85: -349.5912589 | DD85: -5.311427413 | DE85: -0.6598860876 | DF85: -1.954722451 | DG85: -44.87758584 | DH85: 0 | DI85: -132.099412 | DJ85: -95.52688769 | DK85: 0 | DL85: 0 | DM85: 18.84636824 | DN85: 29.59967376 | DO85: -28.97483155 | DP85: -1.459976526 | DQ85: 0 | DR85: 0 | DS85: 0 | DV85: 8174.89733 | DW85: 33.17924106 | DX85: 0.15321898 | DY85: 165 | DZ85: 0 | EA85: 0 | EB85: 0 | ED85: 0 | EI85: 0 | EJ85: 0 | EK85: 0 | EL85: 0
A86: 85 | B86: Refaturamento - Regular | C86: Branca | D86: B3 | E86: Comercial | F86: Não se aplica | G86: Não se aplica | H86: Não se aplica | I86: Fora ponta | J86: CATIVO | K86: 2019-07-01 | L86: 0 | M86: 0 | N86: 0.131 | O86: 0.131 | P86: 0.131 | Q86: 0.131 | S86: 181.15 | T86: 209.25 | V86: 51.1424 | W86: 51.1424 | X86: 56.10337 | Y86: 0 | Z86: 6.180049649 | AA86: 0 | AB86: 0 | AC86: 0.06011118718 | AD86: 0.6424874647 | AE86: 9.284018641 | AF86: 23.69567811 | AG86: 1.282371394 | AH86: 0.7281128067 | AI86: 0 | AJ86: 0 | AK86: 0.5341255773 | AL86: 1.20057445 | AM86: 0 | AN86: 0.06387685029 | AO86: 1.625128854 | AP86: 1.187376659 | AQ86: 0 | AR86: 0 | AS86: 0 | AT86: 0.4728780828 | AU86: 0 | AV86: 1.412053973 | AW86: 0.102212928 | AX86: 0.0757262356 | AY86: -2.117297009 | AZ86: 0 | BA86: -0.2833929532 | BB86: 6.377104268 | BC86: 0.2543824351 | BD86: 0.1324932269 | BE86: 0.04472780117 | BF86: 0.3600143627 | BG86: 3.041851881 | BH86: 0.03750679578 | BI86: 0 | BJ86: 0 | BK86: 0 | BL86: 0 | BU86: 0.568846163 | BV86: 27.27476538 | CI86: 55.6751 | CJ86: 4.5027 | CM86: 0 | CN86: 0.568846163 | CO86: 2.09207 | CP86: 2.8689 | CQ86: 31 | CR86: -0.8550774655 | CS86: -0.04673549214 | CT86: -0.03784379495 | CU86: 0 | CV86: 0 | CW86: 0 | CX86: -0.01065366598 | CY86: 0.01503207061 | CZ86: -0.07856466556 | DA86: 0 | DB86: -0.001268111806 | DC86: -0.3970217157 | DD86: -0.006032050205 | DE86: -0.0007494154961 | DF86: -0.002219927534 | DG86: -0.05096630902 | DH86: 0 | DI86: -0.1500218723 | DJ86: -0.108487406 | DK86: 0 | DL86: 0 | DM86: 0.02140333107 | DN86: 0.03361558095 | DO86: -0.03290596388 | DP86: -0.001658057433 | DQ86: 0 | DR86: 0 | DS86: 0 | DV86: 9.284018641 | DW86: 0.0376808026 | DX86: 0.0001740068173 | DY86: 165 | DZ86: 0 | EA86: 0 | EB86: 0 | ED86: 0 | EI86: 0 | EJ86: 0 | EK86: 0 | EL86: 0
A87: 86 | B87: Sistema de Compensação | C87: Branca | D87: B3 | E87: Comercial | F87: Não se aplica | G87: Não se aplica | H87: Não se aplica | I87: Fora ponta | J87: CATIVO | K87: 2019-07-01 | L87: 0 | M87: 0 | N87: 1.493 | O87: 1.493 | P87: 1.493 | Q87: 1.493 | S87: 181.15 | T87: 209.25 | V87: 582.8672 | W87: 582.8672 | X87: 639.40711 | Y87: 0 | Z87: 70.43369562 | AA87: 0 | AB87: 0 | AC87: 0.6850839883 | AD87: 7.322395304 | AE87: 105.8094644 | AF87: 270.0583772 | AG87: 14.61511825 | AH87: 8.298262751 | AI87: 0 | AJ87: 0 | AK87: 6.087400663 | AL87: 13.68288285 | AM87: 0 | AN87: 0.7280010495 | AO87: 18.52150671 | AP87: 13.53246834 | AQ87: 0 | AR87: 0 | AS87: 0 | AT87: 5.389366242 | AU87: 0 | AV87: 16.09310368 | AW87: 1.164915279 | AX87: 0.8630478607 | AY87: -24.13072087 | AZ87: 0 | BA87: -3.229814345 | BB87: 72.67951658 | BC87: 2.89918302 | BD87: 1.510018227 | BE87: 0.50976036 | BF87: 4.103064454 | BG87: 34.66782335 | BH87: 0.4274629473 | BI87: 0 | BJ87: 0 | BK87: 0 | BL87: 0 | BU87: 6.483109324 | BV87: 310.8490436 | CI87: 638.1223 | CJ87: 55.2251 | CM87: 0 | CN87: 6.483109324 | CO87: 23.84321 | CP87: 32.6967 | CQ87: 31 | CR87: -9.745272183 | CS87: -0.5326419066 | CT87: -0.4313037088 | CU87: 0 | CV87: 0 | CW87: 0 | CX87: -0.1214192618 | CY87: 0.1713197055 | CZ87: -0.8953972953 | DA87: 0 | DB87: -0.01445260249 | DC87: -4.524835279 | DD87: -0.06874695386 | DE87: -0.008541048364 | DF87: -0.02530039548 | DG87: -0.5808603005 | DH87: 0 | DI87: -1.709791262 | DJ87: -1.23642517 | DK87: 0 | DL87: 0 | DM87: 0.2439326206 | DN87: 0.3831149798 | DO87: -0.375027512 | DP87: -0.01889679197 | DQ87: 0 | DR87: 0 | DS87: 0 | DV87: 105.8094644 | DW87: 0.4294460937 | DX87: 0.001983146399 | DY87: 165 | DZ87: 0 | EA87: 0 | EB87: 0 | ED87: 0 | EI87: 0 | EJ87: 0 | EK87: 0 | EL87: 0
A88: 87 | B88: Regular | C88: Branca | D88: B3 | E88: Comercial | F88: Não se aplica | G88: Não se aplica | H88: Não se aplica | I88: Não se aplica | J88: CATIVO | K88: 2019-07-01 | L88: 0 | M88: 0 | N88: 0 | O88: 0 | P88: 0 | Q88: 0 | AA88: 0 | AZ88: 0 | BI88: 898.84 | BJ88: 4142.2 | BK88: 17732.49 | BL88: 105 | CJ88: -0.03 | CO88: 0 | CP88: 0 | CQ88: 31 | DK88: 0 | DY88: 165 | ED88: 0 | EI88: 0 | EJ88: 0 | EK88: 0 | EL88: 0
A89: 88 | B89: Refaturamento - Regular | C89: Branca | D89: B3 | E89: Comercial | F89: Não se aplica | G89: Não se aplica | H89: Não se aplica | I89: Não se aplica | J89: CATIVO | K89: 2019-07-01 | L89: 0 | M89: 0 | N89: 0 | O89: 0 | P89: 0 | Q89: 0 | AA89: 0 | AZ89: 0 | BI89: 0.96 | BJ89: 4.42 | BK89: 17.79 | BL89: 1 | CJ89: -0.03 | CO89: 0 | CP89: 0 | CQ89: 31 | DK89: 0 | DY89: 165 | ED89: 0 | EI89: 0 | EJ89: 0 | EK89: 0 | EL89: 0
A90: 89 | B90: Sistema de Compensação | C90: Branca | D90: B3 | E90: Comercial | F90: Não se aplica | G90: Não se aplica | H90: Não se aplica | I90: Não se aplica | J90: CATIVO | K90: 2019-07-01 | L90: 0 | M90: 0 | N90: 0 | O90: 0 | P90: 0 | Q90: 0 | AA90: 0 | AZ90: 0 | BI90: 14.29 | BJ90: 65.85 | BK90: 252.93 | BL90: 2 | CJ90: -0.03 | CO90: 0 | CP90: 0 | CQ90: 31 | DK90: 0 | DY90: 165 | ED90: 0 | EI90: 0 | EJ90: 0 | EK90: 0 | EL90: 0
A91: 90 | B91: Regular | C91: Branca | D91: B3 | E91: Comercial | F91: Não se aplica | G91: Não se aplica | H91: Não se aplica | I91: Intermediário | J91: CATIVO | K91: 2019-07-01 | L91: 0 | M91: 0 | N91: 8.733 | O91: 8.733 | P91: 8.733 | Q91: 8.733 | S91: 378.92 | T91: 209.25 | V91: 5136.48861 | W91: 5136.48861 | X91: 5474.97969 | Y91: 0 | Z91: 411.9875846 | AA91: 0 | AB91: 0 | AC91: 12.02291571 | AD91: 128.4925885 | AE91: 1856.733761 | AF91: 1579.65158 | AG91: 85.48816323 | AH91: 48.53900107 | AI91: 0 | AJ91: 0 | AK91: 56.24490993 | AL91: 80.03524176 | AM91: 0 | AN91: 4.25829415 | AO91: 325.0144114 | AP91: 237.4662679 | AQ91: 0 | AR91: 0 | AS91: 0 | AT91: 31.52400227 | AU91: 0 | AV91: 94.13333854 | AW91: 6.813935118 | AX91: 5.048223019 | AY91: -141.1477464 | AZ91: 0 | BA91: -18.89214245 | BB91: 425.1240578 | BC91: 45.98605499 | BD91: 8.832544661 | BE91: 2.9817396 | BF91: 24.00004145 | BG91: 202.7823853 | BH91: 2.500357615 | BI91: 0 | BJ91: 0 | BK91: 0 | BL91: 0 | BU91: 37.92163009 | BV91: 1818.248291 | CI91: 5473.0989 | CJ91: 336.58029 | CM91: 0 | CN91: 37.92163009 | CO91: 147.23838 | CP91: 191.2527 | CQ91: 31 | CR91: -77.62495352 | CS91: -9.346771755 | CT91: -7.568470105 | CU91: 0 | CV91: 0 | CW91: 0 | CX91: -0.7102172898 | CY91: 1.002099791 | CZ91: -15.71233338 | DA91: 0 | DB91: -0.25363667 | DC91: -26.46710415 | DD91: -0.4021213316 | DE91: -0.04995912616 | DF91: -0.1479895203 | DG91: -3.397624249 | DH91: 0 | DI91: -10.00107642 | DJ91: -7.232217687 | DK91: 0 | DL91: 0 | DM91: 1.426834277 | DN91: 3.539814236 | DO91: -2.193647195 | DP91: -0.1105329433 | DQ91: 0 | DR91: 0 | DS91: 0 | DV91: 1856.733761 | DW91: 2.511957627 | DX91: 0.01160001172 | DY91: 165 | DZ91: 0 | EA91: 0 | EB91: 0 | ED91: 0 | EI91: 0 | EJ91: 0 | EK91: 0 | EL91: 0
A92: 91 | B92: Refaturamento - Regular | C92: Branca | D92: B3 | E92: Comercial | F92: Não se aplica | G92: Não se aplica | H92: Não se aplica | I92: Intermediário | J92: CATIVO | K92: 2019-07-01 | L92: 0 | M92: 0 | N92: 0.012 | O92: 0.012 | P92: 0.012 | Q92: 0.012 | S92: 378.92 | T92: 209.25 | V92: 7.05804 | W92: 7.05804 | X92: 7.52316 | Y92: 0 | Z92: 0.5661114182 | AA92: 0 | AB92: 0 | AC92: 0.01652066741 | AD92: 0.1765614407 | AE92: 2.551334608 | AF92: 2.170596468 | AG92: 0.1174691353 | AH92: 0.06669735634 | AI92: 0 | AJ92: 0 | AK92: 0.0772860322 | AL92: 0.1099762855 | AM92: 0 | AN92: 0.005851314531 | AO92: 0.4466017333 | AP92: 0.3263019827 | AQ92: 0 | AR92: 0 | AS92: 0 | AT92: 0.04331707629 | AU92: 0 | AV92: 0.1293484556 | AW92: 0.009363016308 | AX92: 0.006936754406 | AY92: -0.1939508711 | AZ92: 0 | BA92: -0.02595965984 | BB92: 0.584162223 | BC92: 0.06318935759 | BD92: 0.01213678414 | BE92: 0.004097203161 | BF92: 0.03297841491 | BG92: 0.2786429204 | BH92: 0.003435737018 | BI92: 0 | BJ92: 0 | BK92: 0 | BL92: 0 | BU92: 0.05210804547 | BV92: 2.498451791 | CI92: 6.2693 | CJ92: -0.81874 | CM92: 0 | CN92: 0.05210804547 | CO92: 0.20232 | CP92: 0.2628 | CQ92: 31 | CR92: -0.1066643126 | CS92: -0.01284338269 | CT92: -0.01039982151 | CU92: 0 | CV92: 0 | CW92: 0 | CX92: -0.0009759083336 | CY92: 0.001376983567 | CZ92: -0.02159028977 | DA92: 0 | DB92: -0.0003485217038 | DC92: -0.03636840144 | DD92: -0.0005525542172 | DE92: -6.864874773e-05 | DF92: -0.0002033521405 | DG92: -0.004668669529 | DH92: 0 | DI92: -0.01374246159 | DJ92: -0.009937777653 | DK92: 0 | DL92: 0 | DM92: 0.00196061048 | DN92: 0.004864052541 | DO92: -0.003014286767 | DP92: -0.0001518831237 | DQ92: 0 | DR92: 0 | DS92: 0 | DV92: 2.551334608 | DW92: 0.003451676574 | DX92: 1.593955579e-05 | DY92: 165 | DZ92: 0 | EA92: 0 | EB92: 0 | ED92: 0 | EI92: 0 | EJ92: 0 | EK92: 0 | EL92: 0
A93: 92 | B93: Sistema de Compensação | C93: Branca | D93: B3 | E93: Comercial | F93: Não se aplica | G93: Não se aplica | H93: Não se aplica | I93: Intermediário | J93: CATIVO | K93: 2019-07-01 | L93: 0 | M93: 0 | N93: 0.135 | O93: 0.135 | P93: 0.135 | Q93: 0.135 | S93: 378.92 | T93: 209.25 | V93: 79.40295 | W93: 79.40295 | X93: 84.63555 | Y93: 0 | Z93: 6.368753455 | AA93: 0 | AB93: 0 | AC93: 0.1858575083 | AD93: 1.986316208 | AE93: 28.70251434 | AF93: 24.41921026 | AG93: 1.321527772 | AH93: 0.7503452588 | AI93: 0 | AJ93: 0 | AK93: 0.8694678622 | AL93: 1.237233212 | AM93: 0 | AN93: 0.06582728847 | AO93: 5.0242695 | AP93: 3.670897305 | AQ93: 0 | AR93: 0 | AS93: 0 | AT93: 0.4873171083 | AU93: 0 | AV93: 1.455170125 | AW93: 0.1053339335 | AX93: 0.07803848707 | AY93: -2.181947299 | AZ93: 0 | BA93: -0.2920461732 | BB93: 6.571825009 | BC93: 0.7108802729 | BD93: 0.1365388216 | BE93: 0.04609353556 | BF93: 0.3710071677 | BG93: 3.134732855 | BH93: 0.03865204145 | BI93: 0 | BJ93: 0 | BK93: 0 | BL93: 0 | BU93: 0.5862155115 | BV93: 28.10758264 | CI93: 87.7702 | CJ93: 8.33725 | CM93: 0 | CN93: 0.5862155115 | CO93: 2.2761 | CP93: 2.9565 | CQ93: 31 | CR93: -1.199973517 | CS93: -0.1444880553 | CT93: -0.116997992 | CU93: 0 | CV93: 0 | CW93: 0 | CX93: -0.01097896875 | CY93: 0.01549106513 | CZ93: -0.2428907599 | DA93: 0 | DB93: -0.003920869168 | DC93: -0.4091445162 | DD93: -0.006216234944 | DE93: -0.000772298412 | DF93: -0.002287711581 | DG93: -0.0525225322 | DH93: 0 | DI93: -0.1546026928 | DJ93: -0.1117999986 | DK93: 0 | DL93: 0 | DM93: 0.0220568679 | DN93: 0.05472059108 | DO93: -0.03391072613 | DP93: -0.001708685141 | DQ93: 0 | DR93: 0 | DS93: 0 | DV93: 28.70251434 | DW93: 0.03883136145 | DX93: 0.0001793200026 | DY93: 165 | DZ93: 0 | EA93: 0 | EB93: 0 | ED93: 0 | EI93: 0 | EJ93: 0 | EK93: 0 | EL93: 0
A94: 93 | B94: Regular | C94: Convencional | D94: B2 | E94: Rural | F94: Não se aplica | G94: Não se aplica | H94: Não se aplica | I94: Não se aplica | J94: CATIVO | K94: 2019-07-01 | L94: 0 | M94: 0 | N94: 17283.983 | O94: 17283.983 | P94: 17283.983 | Q94: 17283.983 | S94: 236.77 | T94: 220.1 | V94: 7896533.313 | W94: 7896533.313 | X94: 8596188.945 | Y94: 0 | Z94: 815388.344 | AA94: 0 | AB94: 0 | AC94: 12393.87229 | AD94: 132451.0441 | AE94: 1913941.529 | AF94: 3313962.133 | AG94: 169194.5448 | AH94: 96066.33109 | AI94: 0 | AJ94: 0 | AK94: 81959.75277 | AL94: 158402.3541 | AM94: 0 | AN94: 8427.835073 | AO94: 335027.6858 | AP94: 244783.873 | AQ94: 0 | AR94: 0 | AS94: 0 | AT94: 62390.96752 | AU94: 0 | AV94: 186304.7089 | AW94: 13485.85122 | AX94: 9991.228769 | AY94: -279353.6299 | AZ94: 0 | BA94: -37390.52661 | BB94: 885246.1606 | BC94: 49720.98355 | BD94: 17480.99757 | BE94: 5901.332482 | BF94: 47499.86355 | BG94: 401338.2916 | BH94: 4948.601684 | BI94: 103729.22 | BJ94: 478578.26 | BK94: 893214.89 | BL94: 44508 | BR94: 2063016.211 | BU94: 75052.881 | BV94: 3786182.618 | CI94: 6533171.6 | CJ94: 531654.1531 | CM94: 0 | CN94: 75052.881 | CO94: 280346.2043 | CP94: 419309.4276 | CQ94: 31 | CR94: -127439.7949 | CS94: -9634.733727 | CT94: -7801.695125 | CU94: 0 | CV94: 0 | CW94: 0 | CX94: -1405.631921 | CY94: 1983.31338 | CZ94: -16196.38134 | DA94: 0 | DB94: -261.4624084 | DC94: -55525.52352 | DD94: -795.8614747 | DE94: -98.8769824 | DF94: -292.8945783 | DG94: -6724.43373 | DH94: 0 | DI94: -19793.70603 | DJ94: -14313.69833 | DK94: 0 | DL94: 0 | DM94: 2823.929851 | DN94: 5158.196538 | DO94: -4341.573437 | DP94: -218.7621106 | DQ94: 0 | DR94: 0 | DS94: 0 | DV94: 1913941.529 | DW94: 4971.559935 | DX94: 22.95825093 | DY94: 165 | DZ94: 0 | EA94: 0 | EB94: 0 | ED94: 0 | EI94: 0 | EJ94: 0 | EK94: 0 | EL94: 0
A95: 94 | B95: Refaturamento - Regular | C95: Convencional | D95: B2 | E95: Rural | F95: Não se aplica | G95: Não se aplica | H95: Não se aplica | I95: Não se aplica | J95: CATIVO | K95: 2019-07-01 | L95: 0 | M95: 0 | N95: -24.415 | O95: -24.415 | P95: -24.415 | Q95: -24.415 | S95: 236.77 | T95: 220.1 | V95: -11154.48105 | W95: -11154.48105 | X95: -12142.80025 | Y95: 0 | Z95: -1151.800856 | AA95: 0 | AB95: 0 | AC95: -17.50732988 | AD95: -187.0976291 | AE95: -2703.594562 | AF95: -4681.234961 | AG95: -239.0007449 | AH95: -135.7013296 | AI95: 0 | AJ95: 0 | AK95: -115.7746663 | AL95: -223.7559175 | AM95: 0 | AN95: -11.90498702 | AO95: -473.2532397 | AP95: -345.77668 | AQ95: 0 | AR95: 0 | AS95: 0 | AT95: -88.13220147 | AU95: 0 | AV95: -263.1702119 | AW95: -19.04983693 | AX95: -14.1134049 | AY95: 394.6092097 | AZ95: 0 | BA95: 52.81709125 | BB95: -1250.480576 | BC95: -70.2348419 | BD95: -24.69329874 | BE95: -8.336101265 | BF95: -67.09733333 | BG95: -566.9222418 | BH95: -6.990293274 | BI95: -118.92 | BJ95: -547.82 | BK95: -1204.03 | BL95: 0 | BR95: -2914.1744 | BU95: -106.0181608 | BV95: -5348.283936 | CI95: -9230.5158 | CJ95: -752.92535 | CM95: 0 | CN95: -106.0181608 | CO95: -396.0113 | CP95: -592.3079 | CQ95: 31 | CR95: 180.0188414 | CS95: 13.60982731 | CT95: 11.02051457 | CU95: 0 | CV95: 0 | CW95: 0 | CX95: 1.98556683 | CY95: -2.801587816 | CZ95: 22.87867619 | DA95: 0 | DB95: 0.3693364371 | DC95: 78.43421604 | DD95: 1.124217601 | DE95: 0.139671598 | DF95: 0.4137368759 | DG95: 9.498797212 | DH95: 0 | DI95: 27.9601833 | DJ95: 20.21923678 | DK95: 0 | DL95: 0 | DM95: -3.989025406 | DN95: -7.286362667 | DO95: 6.132817618 | DP95: 0.309018872 | DQ95: 0 | DR95: 0 | DS95: 0 | DV95: -2703.594562 | DW95: -7.022723629 | DX95: -0.03243035454 | DY95: 165 | DZ95: 0 | EA95: 0 | EB95: 0 | ED95: 0 | EI95: 0 | EJ95: 0 | EK95: 0 | EL95: 0
A96: 95 | B96: Sistema de Compensação | C96: Convencional | D96: B2 | E96: Rural | F96: Não se aplica | G96: Não se aplica | H96: Não se aplica | I96: Não se aplica | J96: CATIVO | K96: 2019-07-01 | L96: 0 | M96: 0 | N96: 95.237 | O96: 95.237 | P96: 95.237 | Q96: 95.237 | S96: 236.77 | T96: 220.1 | V96: 43510.92819 | W96: 43510.92819 | X96: 47366.12195 | Y96: 0 | Z96: 4492.896095 | AA96: 0 | AB96: 0 | AC96: 68.29185238 | AD96: 729.8225232 | AE96: 10546.06739 | AF96: 18260.36346 | AG96: 932.2840034 | AH96: 529.3380104 | AI96: 0 | AJ96: 0 | AK96: 451.6089246 | AL96: 872.8176251 | AM96: 0 | AN96: 46.43847016 | AO96: 1846.046233 | AP96: 1348.791058 | AQ96: 0 | AR96: 0 | AS96: 0 | AT96: 343.7823662 | AU96: 0 | AV96: 1026.563239 | AW96: 74.30879868 | AX96: 55.05297328 | AY96: -1539.274926 | AZ96: 0 | BA96: -206.026677 | BB96: 4877.821773 | BC96: 273.9691025 | BD96: 96.32257596 | BE96: 32.51711145 | BF96: 261.7304417 | BG96: 2211.426318 | BH96: 27.26744053 | BI96: 558.47 | BJ96: 2574.29 | BK96: 3672.6 | BL96: 90 | BR96: 11367.48832 | BU96: 413.5511605 | BV96: 20862.35991 | CI96: 35999.7676 | CJ96: 2930.59409 | CM96: 0 | CN96: 413.5511605 | CO96: 1544.74414 | CP96: 2310.44962 | CQ96: 31 | CR96: -702.2098871 | CS96: -53.08863911 | CT96: -42.98835741 | CU96: 0 | CV96: 0 | CW96: 0 | CX96: -7.745215164 | CY96: 10.92831533 | CZ96: -89.24417301 | DA96: 0 | DB96: -1.440691962 | DC96: -305.9528746 | DD96: -4.385300499 | DE96: -0.5448250656 | DF96: -1.613887317 | DG96: -37.05250666 | DH96: 0 | DI96: -109.0659012 | DJ96: -78.8703442 | DK96: 0 | DL96: 0 | DM96: 15.56022169 | DN96: 28.4223355 | DO96: -23.92263574 | DP96: -1.205407754 | DQ96: 0 | DR96: 0 | DS96: 0 | DV96: 10546.06739 | DW96: 27.39394349 | DX96: 0.1265029562 | DY96: 165 | DZ96: 0 | EA96: 0 | EB96: 0 | ED96: 0 | EI96: 0 | EJ96: 0 | EK96: 0 | EL96: 0
A97: 96 | B97: Regular | C97: Convencional | D97: B2 | E97: Rural | F97: Cooperativa de eletrificação rural | G97: Cooperativas autorizadas | H97: Não se aplica | I97: Não se aplica | J97: CATIVO | K97: 2019-07-01 | L97: 0 | M97: 0 | N97: 5.527 | O97: 5.527 | P97: 5.527 | Q97: 5.527 | S97: 236.77 | T97: 220.1 | V97: 2525.12049 | W97: 2525.12049 | X97: 2748.85345 | Y97: 0 | Z97: 260.741484 | AA97: 0 | AB97: 0 | AC97: 3.963260792 | AD97: 42.35464248 | AE97: 612.0322401 | AF97: 1059.72499 | AG97: 54.10432591 | AH97: 30.71969071 | AI97: 0 | AJ97: 0 | AK97: 26.20874792 | AL97: 50.65324416 | AM97: 0 | AN97: 2.695017951 | AO97: 107.1337561 | AP97: 78.27596601 | AQ97: 0 | AR97: 0 | AS97: 0 | AT97: 19.95112339 | AU97: 0 | AV97: 59.57574283 | AW97: 4.312449261 | AX97: 3.194953467 | AY97: -89.33053869 | AZ97: 0 | BA97: -11.95658666 | BB97: 283.0803253 | BC97: 15.89956876 | BD97: 5.590000497 | BE97: 1.887103489 | BF97: 15.18930827 | BG97: 128.3382851 | BH97: 1.582443208 | BI97: 30.95 | BJ97: 142.64 | BK97: 85.22 | BL97: 5 | BR97: 709.16937 | BU97: 24.00009728 | BV97: 1210.729687 | CI97: 2040.7912 | CJ97: 167.05293 | CM97: 0 | CN97: 24.00009728 | CO97: 89.64794 | CP97: 134.08502 | CQ97: 31 | CR97: -40.75216613 | CS97: -3.080954969 | CT97: -2.49479353 | CU97: 0 | CV97: 0 | CW97: 0 | CX97: -0.4494871133 | CY97: 0.6342156813 | CZ97: -5.179211275 | DA97: 0 | DB97: -0.08360935851 | DC97: -17.75572034 | DD97: -0.2544972632 | DE97: -0.03161846906 | DF97: -0.09366060672 | DG97: -2.150311374 | DH97: 0 | DI97: -6.329548765 | DJ97: -4.577174757 | DK97: 0 | DL97: 0 | DM97: 0.9030245103 | DN97: 1.649466576 | DO97: -1.388330247 | DP97: -0.06995483538 | DQ97: 0 | DR97: 0 | DS97: 0 | DV97: 612.0322401 | DW97: 1.589784702 | DX97: 0.007341493735 | DY97: 165 | DZ97: 0 | EA97: 0 | EB97: 0 | ED97: 0 | EI97: 0 | EJ97: 0 | EK97: 0 | EL97: 0
A98: 97 | B98: Regular | C98: Azul | D98: A4 | E98: Rural | F98: Não se aplica | G98: Não se aplica | H98: Não se aplica | I98: Ponta | J98: CATIVO | K98: 2019-07-01 | L98: 598 | M98: 550.16 | N98: 20.626 | O98: 18.97592 | P98: 20.626 | Q98: 18.97592 | R98: 39.11 | S98: 61.16 | T98: 339.48 | U98: 23387.78 | V98: 8263.60064 | W98: 31651.38064 | X98: 32956.99566 | Y98: 0 | Z98: 895.2070819 | AA98: 0 | AB98: 0 | AC98: 104.885847 | AD98: 1366.919875 | AE98: 17282.18195 | AF98: 6417.136927 | AG98: 201.9098654 | AH98: 114.6416393 | AI98: 0 | AJ98: 0 | AK98: 51.96110755 | AL98: 189.0309054 | AM98: 0 | AN98: 7.503228036 | AO98: 2672.245892 | AP98: 1960.370249 | AQ98: 0 | AR98: 0 | AS98: 0 | AT98: 74.45483463 | AU98: 0 | AV98: 204.5421621 | AW98: 16.09346453 | AX98: 11.9231247 | AY98: -333.3692222 | AZ98: 0 | BA98: -44.62032865 | BB98: 1551.179637 | BC98: 364.3860032 | BD98: 17.95179444 | BE98: 2.066359996 | BF98: 56.68439882 | BG98: 140.529176 | BH98: 5.081877042 | BI98: 0 | BJ98: 0 | BK98: 0 | BL98: 0 | BR98: 2636.559653 | BU98: 89.56504549 | BV98: 6634.368656 | CI98: 30322.3206 | CJ98: 1203.020411 | CM98: 0 | CN98: 89.56504549 | CO98: 270.60234 | CP98: 1035.01268 | CQ98: 31 | CR98: -456.709375 | CS98: -76.84850747 | CT98: -62.48046829 | CU98: 0 | CV98: 0 | CW98: 0 | CX98: -1.677423774 | CY98: 2.366805255 | CZ98: -167.1497247 | DA98: 0 | DB98: -2.212682647 | DC98: -107.5192996 | DD98: -0.949748607 | DE98: -0.0346219166 | DF98: -0.3007827925 | DG98: -2.354570074 | DH98: 0 | DI98: -21.73132097 | DJ98: -17.08138349 | DK98: 0 | DL98: 0 | DM98: 3.369962647 | DN98: 3.270210024 | DO98: -5.181056572 | DP98: -0.1947619985 | DQ98: 0 | DR98: 0 | DS98: 0 | DU98: 17282.18195 | DV98: 0 | DW98: 5.105453603 | DX98: 0.02357656077 | DY98: 165 | DZ98: 0 | EA98: 0 | EB98: 0 | ED98: 0 | EI98: 0 | EJ98: 0 | EK98: 0 | EL98: 0
A99: 98 | B99: Regular | C99: Azul | D99: A4 | E99: Rural | F99: Não se aplica | G99: Não se aplica | H99: Não se aplica | I99: Fora ponta | J99: CATIVO | K99: 2019-07-01 | L99: 1454 | M99: 1337.68 | N99: 174.348 | O99: 160.40016 | P99: 174.348 | Q99: 160.40016 | R99: 15.17 | S99: 61.16 | T99: 209.25 | U99: 22057.18 | V99: 47145.44268 | W99: 69202.62268 | X99: 75303.3232 | Y99: 0 | Z99: 7567.030172 | AA99: 0 | AB99: 0 | AC99: 208.0703553 | AD99: 1258.742931 | AE99: 9767.056324 | AF99: 31536.59608 | AG99: 1706.709067 | AH99: 969.0458902 | AI99: 0 | AJ99: 0 | AK99: 439.2182284 | AL99: 1597.845452 | AM99: 0 | AN99: 63.423485 | AO99: 6270.601202 | AP99: 4550.4508 | AQ99: 0 | AR99: 0 | AS99: 0 | AT99: 629.3538014 | AU99: 0 | AV99: 1728.959414 | AW99: 136.0352639 | AX99: 100.7841048 | AY99: -2817.912206 | AZ99: 0 | BA99: -377.1678978 | BB99: 7802.888071 | BC99: 886.4547695 | BD99: 151.7434043 | BE99: 17.4665826 | BF99: 479.1433902 | BG99: 1187.868747 | BH99: 42.95622508 | BI99: 0 | BJ99: 0 | BK99: 0 | BL99: 0 | BR99: 6024.265856 | BU99: 757.0777926 | BV99: 33372.81821 | CI99: 69279.0088 | CJ99: 5612.565934 | CM99: 0 | CN99: 757.0777926 | CO99: 2282.47932 | CP99: 3818.2212 | CQ99: 31 | CR99: -1354.397037 | CS99: -180.3300905 | CT99: -145.0309181 | CU99: 0 | CV99: 0 | CW99: 0 | CX99: -14.17897218 | CY99: 20.00619425 | CZ99: -153.9216293 | DA99: 0 | DB99: -4.389473679 | DC99: -528.3965046 | DD99: -8.028060222 | DE99: -0.2926530551 | DF99: -2.542464768 | DG99: -19.90277239 | DH99: 0 | DI99: -183.6910864 | DJ99: -144.3859715 | DK99: 0 | DL99: 0 | DM99: 28.48570966 | DN99: 27.64251805 | DO99: -43.79457244 | DP99: -1.646289388 | DQ99: 0 | DR99: 0 | DS99: 0 | DU99: 9767.056324 | DV99: 0 | DW99: 43.15551366 | DX99: 0.1992885784 | DY99: 165 | DZ99: 0 | EA99: 0 | EB99: 0 | ED99: 0 | EI99: 0 | EJ99: 0 | EK99: 0 | EL99: 0
A100: 99 | B100: Regular | C100: Azul | D100: A4 | E100: Rural | F100: Não se aplica | G100: Não se aplica | H100: Não se aplica | I100: Não se aplica | J100: CATIVO | K100: 2019-07-01 | L100: 0 | M100: 0 | N100: 0 | O100: 0 | P100: 0 | Q100: 0 | AA100: 0 | AZ100: 0 | BI100: 1258.29 | BJ100: 5796.03 | BK100: 5529.59 | BL100: 5 | CJ100: -0.03 | CO100: 0 | CP100: 0 | CQ100: 31 | DK100: 0 | DY100: 165 | ED100: 0 | EI100: 0 | EJ100: 0 | EK100: 0 | EL100: 0
